Workbook

Sheet Interject_LastPulledValues (hidden)
A1: Interject_LastPulledValues_BalanceRange | K1: Interject_LastPulledValues_DescriptionRange | P1: Interject_LastPulledValues_LastChangeGUID
A2: KeyValue | B2: FullAccount | C2: Period | D2: Year | E2: Source | F2: Company | G2: Currency | H2: Version | I2: Balance | K2: KeyValue | L2: SegmentValue | M2: SegmentNumber | N2: Description | P2: Interject_LastPulledValues_PreviousLastChangeGUID

Sheet Depr Summary
A7: Assets Through 12/31/2021 | J7: New Asset Adds and Transfers In from FAR (1/1/2022 and Beyond) | S7: Proforma Adds | AB7: Regulatory Assets | AK7: Combined Summary - This Section to Proforma
A8: Depreciation & Average Investment Summary | J8: Depreciation & Average Investment Summary | S8: Depreciation & Average Investment Summary | AB8: Depreciation & Average Investment Summary | AK8: Depreciation & Average Investment Summary
A9: Island Disposal, Inc. G-154 | J9: Island Disposal, Inc. G-154 | S9: Island Disposal, Inc. G-154 | AB9: Island Disposal, Inc. G-154 | AK9: Island Disposal, Inc. G-154
F10: Beginning | G10: Ending | O10: Beginning | P10: Ending | X10: Beginning | Y10: Ending | AG10: Beginning | AH10: Ending | AP10: Beginning | AQ10: Ending
A11: Equipment | B11: Cost | C11: Salvage | D11: Depr | E11: Test Year | F11: Accum Depr | G11: Accum Depr | H11: NBV | J11: Equipment | K11: Cost | L11: Salvage | M11: Depr | N11: Test Year | O11: Accum Depr | P11: Accum Depr | Q11: NBV | S11: Equipment | T11: Cost | U11: Salvage | V11: Depr | W11: Test Year | X11: Accum Depr | Y11: Accum Depr | Z11: NBV | AB11: Equipment | AC11: Cost | AD11: Salvage | AE11: Depr | AF11: Test Year | AG11: Accum Depr | AH11: Accum Depr | AI11: NBV | AK11: Equipment | AL11: Cost | AM11: Salvage | AN11: Depr | AO11: Test Year | AP11: Accum Depr | AQ11: Accum Depr | AR11: NBV
D12: Cost | E12: Depr | F12: 2022-11-01 | G12: 2023-10-31 | H12: =G12 -> 2023-10-31 | M12: Cost | N12: Depr | O12: =F12 -> 2022-11-01 | P12: =G12 -> 2023-10-31 | Q12: =H12 -> 2023-10-31 | V12: Cost | W12: Depr | X12: =O12 -> 2022-11-01 | Y12: =P12 -> 2023-10-31 | Z12: =Q12 -> 2023-10-31 | AE12: Cost | AF12: Depr | AG12: =X12 -> 2022-11-01 | AH12: =Y12 -> 2023-10-31 | AI12: =Z12 -> 2023-10-31 | AN12: Cost | AO12: Depr | AP12: =O12 -> 2022-11-01 | AQ12: =P12 -> 2023-10-31 | AR12: =Q12 -> 2023-10-31 | AS12: Allocator
A13: Trucks | J13: Trucks | S13: Trucks | AB13: Trucks | AK13: Trucks
A14: Resi/Comm Garbage | B14: ='2144 Trks'!L39 -> 2073666.46 | C14: =B14-D14 -> 0 | D14: ='2144 Trks'!M39 -> 2073666.46 | E14: =+'2144 Trks'!P39 -> 127125.0928 | F14: =+'2144 Trks'!Q39 -> 1421964.309 | G14: =+'2144 Trks'!R39 -> 1574210.401 | H14: =+'2144 Trks'!S39 -> 499456.0591 | I14: =+D14-G14-H14 -> 0 | J14: Resi/Comm Garbage | K14: =SUMIF('FAR Dep Summary'!$A$19:$A$26,'Depr Summary'!J14,'FAR Dep Summary'!$B$19:$B$26) -> 1476299.61 | L14: =K14-M14 -> 0 | M14: =K14 -> 1476299.61 | N14: =SUMIF('FAR Dep Summary'!$A$19:$A$26,'Depr Summary'!J14,'FAR Dep Summary'!$C$19:$C$26) -> 147968.573 | O14: =SUMIF('FAR Dep Summary'!$A$19:$A$26,'Depr Summary'!J14,'FAR Dep Summary'!$D$19:$D$26) -> 68945.113 | P14: =SUMIF('FAR Dep Summary'!$A$19:$A$26,'Depr Summary'!J14,'FAR Dep Summary'!$E$19:$E$26) -> 216913.686 | Q14: =SUMIF('FAR Dep Summary'!$A$19:$A$26,'Depr Summary'!J14,'FAR Dep Summary'!$F$19:$F$26) -> 1259385.924 | S14: Resi/Comm Garbage | AB14: Resi/Comm Garbage | AK14: Resi/Comm Garbage | AL14: =B14+K14+T14+AC14 -> 3549966.07 | AM14: 0 | AN14: 3549966.07 | AO14: 275093.6658 | AP14: 1490909.422 | AQ14: 1791124.087 | AR14: 1758841.983 | AS14: Route Hours
I15: 0
A16: Mixed- Recycle/Garbage | B16: =+'2144 Trks'!L46 -> 518152.12 | C16: =B16-D16 -> 0 | D16: =+'2144 Trks'!M46 -> 518152.12 | E16: =+'2144 Trks'!P46 -> 34167.784 | F16: =+'2144 Trks'!Q46 -> 353007.8307 | G16: =+'2144 Trks'!R46 -> 387175.6147 | H16: =+'2144 Trks'!S46 -> 130976.5053 | I16: 0 | J16: Mixed- Recycle/Garbage | K16: =SUMIF('FAR Dep Summary'!$A$19:$A$26,'Depr Summary'!J16,'FAR Dep Summary'!$B$19:$B$26) -> 0 | L16: =K16-M16 -> 0 | M16: =K16 -> 0 | N16: =SUMIF('FAR Dep Summary'!$A$19:$A$26,'Depr Summary'!J16,'FAR Dep Summary'!$C$19:$C$26) -> 0 | O16: =SUMIF('FAR Dep Summary'!$A$19:$A$26,'Depr Summary'!J16,'FAR Dep Summary'!$D$19:$D$26) -> 0 | P16: =SUMIF('FAR Dep Summary'!$A$19:$A$26,'Depr Summary'!J16,'FAR Dep Summary'!$E$19:$E$26) -> 0 | Q16: =SUMIF('FAR Dep Summary'!$A$19:$A$26,'Depr Summary'!J16,'FAR Dep Summary'!$F$19:$F$26) -> 0 | S16: Mixed- Recycle/Garbage | AB16: Mixed- Recycle/Garbage | AK16: Mixed- Recycle/Garbage | AL16: =B16+K16+T16+AC16 -> 518152.12 | AM16: 0 | AN16: 518152.12 | AO16: 34167.784 | AP16: 353007.8307 | AQ16: 387175.6147 | AR16: 130976.5053 | AS16: Route Hours
I17: 0
A18: Roll-off | B18: =+'2144 Trks'!L63 -> 548174.85 | C18: =B18-D18 -> 0 | D18: =+'2144 Trks'!M63 -> 548174.85 | E18: =+'2144 Trks'!P63 -> 23074.093 | F18: =+'2144 Trks'!Q63 -> 410273.6159 | G18: =+'2144 Trks'!R63 -> 444341.4315 | H18: =+'2144 Trks'!S63 -> 103833.4185 | I18: 0 | J18: Roll-off | K18: =SUMIF('FAR Dep Summary'!$A$19:$A$26,'Depr Summary'!J18,'FAR Dep Summary'!$B$19:$B$26) -> 398457.81 | L18: =K18-M18 -> 0 | M18: =K18 -> 398457.81 | N18: =SUMIF('FAR Dep Summary'!$A$19:$A$26,'Depr Summary'!J18,'FAR Dep Summary'!$C$19:$C$26) -> 33695.781 | O18: =SUMIF('FAR Dep Summary'!$A$19:$A$26,'Depr Summary'!J18,'FAR Dep Summary'!$D$19:$D$26) -> 61500 | P18: =SUMIF('FAR Dep Summary'!$A$19:$A$26,'Depr Summary'!J18,'FAR Dep Summary'!$E$19:$E$26) -> 95195.781 | Q18: =SUMIF('FAR Dep Summary'!$A$19:$A$26,'Depr Summary'!J18,'FAR Dep Summary'!$F$19:$F$26) -> 303262.029 | S18: Roll-off | AB18: Roll-off | AK18: Roll-off | AL18: =B18+K18+T18+AC18 -> 946632.66 | AM18: 0 | AN18: 946632.66 | AO18: 56769.874 | AP18: 471773.6159 | AQ18: 539537.2125 | AR18: 407095.4475 | AS18: Route Hours
I19: 0
A20: Long Haul | B20: =+'2144 Trks'!L71 -> 125535.73 | C20: =B20-D20 -> 0 | D20: =+'2144 Trks'!M71 -> 125535.73 | E20: =+'2144 Trks'!P71 -> 0 | F20: =+'2144 Trks'!Q71 -> 110862.6207 | G20: =+'2144 Trks'!R71 -> 125535.73 | H20: =+'2144 Trks'!S71 -> 0 | I20: 0 | J20: Long Haul | K20: =SUMIF('FAR Dep Summary'!$A$19:$A$26,'Depr Summary'!J20,'FAR Dep Summary'!$B$19:$B$26) -> 5902.2 | L20: =K20-M20 -> 0 | M20: =K20 -> 5902.2 | N20: =SUMIF('FAR Dep Summary'!$A$19:$A$26,'Depr Summary'!J20,'FAR Dep Summary'!$C$19:$C$26) -> 0 | O20: =SUMIF('FAR Dep Summary'!$A$19:$A$26,'Depr Summary'!J20,'FAR Dep Summary'!$D$19:$D$26) -> 5902.2 | P20: =SUMIF('FAR Dep Summary'!$A$19:$A$26,'Depr Summary'!J20,'FAR Dep Summary'!$E$19:$E$26) -> 5902.2 | Q20: =SUMIF('FAR Dep Summary'!$A$19:$A$26,'Depr Summary'!J20,'FAR Dep Summary'!$F$19:$F$26) -> 0 | S20: Long Haul | AB20: Long Haul | AK20: Long Haul | AL20: =B20+K20+T20+AC20 -> 131437.93 | AM20: 0 | AN20: 131437.93 | AO20: 0 | AP20: 116764.8207 | AQ20: 131437.93 | AR20: 0 | AS20: Actual
I21: 0
A22: Delivery | B22: ='2144 Trks'!L75 -> 0 | C22: =B22-D22 -> 0 | D22: ='2144 Trks'!L75 -> 0 | E22: ='2144 Trks'!P75 -> 0 | F22: ='2144 Trks'!Q75 -> 0 | G22: ='2144 Trks'!R75 -> 0 | H22: =+'2144 Trks'!S75 -> 0 | I22: 0 | J22: Delivery | K22: =SUMIF('FAR Dep Summary'!$A$19:$A$26,'Depr Summary'!J22,'FAR Dep Summary'!$B$19:$B$26) -> 0 | L22: =K22-M22 -> 0 | M22: =K22 -> 0 | N22: =SUMIF('FAR Dep Summary'!$A$19:$A$26,'Depr Summary'!J22,'FAR Dep Summary'!$C$19:$C$26) -> 0 | O22: =SUMIF('FAR Dep Summary'!$A$19:$A$26,'Depr Summary'!J22,'FAR Dep Summary'!$D$19:$D$26) -> 0 | P22: =SUMIF('FAR Dep Summary'!$A$19:$A$26,'Depr Summary'!J22,'FAR Dep Summary'!$E$19:$E$26) -> 0 | Q22: =SUMIF('FAR Dep Summary'!$A$19:$A$26,'Depr Summary'!J22,'FAR Dep Summary'!$F$19:$F$26) -> 0 | S22: Delivery | AB22: Delivery | AK22: Delivery | AL22: =B22+K22+T22+AC22 -> 0 | AM22: 0 | AN22: 0 | AO22: 0 | AP22: 0 | AQ22: 0 | AR22: 0 | AS22: N/A
I23: 0
A24: Total Trucks | B24: =SUM(B14:B23) -> 3265529.16 | C24: 0 | D24: 3265529.16 | E24: 184366.9698 | F24: 2296108.376 | G24: 2531263.177 | H24: 734265.983 | I24: 0 | J24: Total Trucks | K24: =SUM(K14:K23) -> 1880659.62 | L24: 0 | M24: 1880659.62 | N24: 181664.354 | O24: 136347.313 | P24: 318011.667 | Q24: =SUM(Q14:Q23) -> 1562647.953 | S24: Total Trucks | T24: =SUM(T14:T23) -> 0 | U24: 0 | V24: 0 | W24: =SUM(W14:W23) -> 0 | X24: 0 | Y24: 0 | Z24: 0 | AB24: Total Trucks | AC24: =SUM(AC14:AC23) -> 0 | AD24: 0 | AE24: 0 | AF24: =SUM(AF14:AF23) -> 0 | AG24: =SUM(AG14:AG23) -> 0 | AH24: 0 | AI24: 0 | AK24: Total Trucks | AL24: =SUM(AL14:AL23) -> 5146188.78 | AM24: 0 | AN24: 5146188.78 | AO24: =SUM(AO14:AO23) -> 366031.3238 | AP24: =SUM(AP14:AP23) -> 2432455.689 | AQ24: =SUM(AQ14:AQ23) -> 2849274.844 | AR24: =SUM(AR14:AR23) -> 2296913.936
E25: =E24-'2144 Trks'!P77 -> 0 | H25: =H24-'2144 Trks'!S77 -> 0 | I25: 0
A26: Containers | I26: 0 | J26: Containers | S26: Containers | AB26: Containers | AK26: Containers
A27: Commercial Garbage | B27: ='2144 Cont, DB'!L48 -> 305018 | C27: =B27-D27 -> 0 | D27: ='2144 Cont, DB'!M48 -> 305018 | E27: ='2144 Cont, DB'!P48 -> 14117.78017 | F27: =+'2144 Cont, DB'!Q48 -> 233410.9335 | G27: =+'2144 Cont, DB'!R48 -> 247528.7137 | H27: =+'2144 Cont, DB'!S48 -> 57489.28633 | I27: 0 | J27: Commercial Garbage | K27: =SUMIF('FAR Dep Summary'!$A$19:$A$26,'Depr Summary'!J27,'FAR Dep Summary'!$B$19:$B$26) -> 70094.54 | L27: =K27-M27 -> 0 | M27: =K27 -> 70094.54 | N27: =SUMIF('FAR Dep Summary'!$A$19:$A$26,'Depr Summary'!J27,'FAR Dep Summary'!$C$19:$C$26) -> 4745.99 | O27: =SUMIF('FAR Dep Summary'!$A$19:$A$26,'Depr Summary'!J27,'FAR Dep Summary'!$D$19:$D$26) -> 22259.71285 | P27: =SUMIF('FAR Dep Summary'!$A$19:$A$26,'Depr Summary'!J27,'FAR Dep Summary'!$E$19:$E$26) -> 27005.70285 | Q27: =SUMIF('FAR Dep Summary'!$A$19:$A$26,'Depr Summary'!J27,'FAR Dep Summary'!$F$19:$F$26) -> 43088.83715 | S27: Commercial Garbage | T27: ='2024 Bud Capital Input'!AK64 -> 40000 | U27: 0 | V27: =+T27-U27 -> 40000 | W27: ='2024 Bud Capital Input'!AN64 -> 5714.285714 | X27: 0 | Y27: =+W27+X27 -> 5714.285714 | Z27: ='2024 Bud Capital Input'!AP64 -> 34285.71429 | AB27: Commercial Garbage | AK27: Commercial Garbage | AL27: =B27+K27+T27+AC27 -> 415112.54 | AM27: 0 | AN27: 415112.54 | AO27: 24578.05588 | AP27: 255670.6463 | AQ27: 280248.7022 | AR27: 134863.8378 | AS27: Comm Cust
I28: 0
A29: Drop Boxes | B29: ='2144 Cont, DB'!L72 -> 482732.2 | C29: =B29-D29 -> 0 | D29: ='2144 Cont, DB'!M72 -> 482732.2 | E29: ='2144 Cont, DB'!P72 -> 17854.552 | F29: ='2144 Cont, DB'!Q72 -> 379880.2483 | G29: ='2144 Cont, DB'!R72 -> 397734.8003 | H29: ='2144 Cont, DB'!S72 -> 84997.39972 | I29: 0 | J29: Drop Boxes | K29: =SUMIF('FAR Dep Summary'!$A$19:$A$26,'Depr Summary'!J29,'FAR Dep Summary'!$B$19:$B$26) -> 98160.02 | L29: =K29-M29 -> 0 | M29: =K29 -> 98160.02 | N29: =SUMIF('FAR Dep Summary'!$A$19:$A$26,'Depr Summary'!J29,'FAR Dep Summary'!$C$19:$C$26) -> 0 | O29: =SUMIF('FAR Dep Summary'!$A$19:$A$26,'Depr Summary'!J29,'FAR Dep Summary'!$D$19:$D$26) -> 98160.02 | P29: =SUMIF('FAR Dep Summary'!$A$19:$A$26,'Depr Summary'!J29,'FAR Dep Summary'!$E$19:$E$26) -> 98160.02 | Q29: =SUMIF('FAR Dep Summary'!$A$19:$A$26,'Depr Summary'!J29,'FAR Dep Summary'!$F$19:$F$26) -> 0 | S29: Drop Boxes | T29: ='2024 Bud Capital Input'!AK65 -> 60000 | U29: 0 | V29: =+T29-U29 -> 60000 | W29: ='2024 Bud Capital Input'!AN65 -> 8571.428571 | X29: 0 | Y29: =+W29+X29 -> 8571.428571 | Z29: ='2024 Bud Capital Input'!AP65 -> 51428.57143 | AB29: Drop Boxes | AK29: Drop Boxes | AL29: =B29+K29+T29+AC29 -> 640892.22 | AM29: 0 | AN29: 640892.22 | AO29: 26425.98057 | AP29: 478040.2683 | AQ29: 504466.2488 | AR29: 136425.9712 | AS29: RO Cust
I30: 0
A31: Regulated Garbage Carts | B31: =+'2144 Cont, DB'!L81 -> 175957.7036 | C31: =B31-D31 -> 0 | D31: =+'2144 Cont, DB'!M81 -> 175957.7036 | E31: =+'2144 Cont, DB'!P81 -> 25136.81481 | F31: =+'2144 Cont, DB'!Q81 -> 85592.9721 | G31: =+'2144 Cont, DB'!R81 -> 110729.7869 | H31: =+'2144 Cont, DB'!S81 -> 65227.91673 | I31: 0 | J31: Regulated Garbage Carts | K31: =SUMIF('FAR Dep Summary'!$A$19:$A$26,'Depr Summary'!J31,'FAR Dep Summary'!$B$19:$B$26) -> 683270.65 | L31: =K31-M31 -> 0 | M31: =K31 -> 683270.65 | N31: =SUMIF('FAR Dep Summary'!$A$19:$A$26,'Depr Summary'!J31,'FAR Dep Summary'!$C$19:$C$26) -> 97610.09286 | O31: =SUMIF('FAR Dep Summary'!$A$19:$A$26,'Depr Summary'!J31,'FAR Dep Summary'!$D$19:$D$26) -> 86883.00857 | P31: =SUMIF('FAR Dep Summary'!$A$19:$A$26,'Depr Summary'!J31,'FAR Dep Summary'!$E$19:$E$26) -> 184493.1014 | Q31: =SUMIF('FAR Dep Summary'!$A$19:$A$26,'Depr Summary'!J31,'FAR Dep Summary'!$F$19:$F$26) -> 498777.5486 | R31: + | S31: Regulated Garbage Carts | AA31: + | AB31: Regulated Garbage Carts | AJ31: = | AK31: Regulated Garbage Carts | AL31: =B31+K31+T31+AC31 -> 859228.3536 | AM31: 0 | AN31: 859228.3536 | AO31: 122746.9077 | AP31: 172475.9807 | AQ31: 295222.8883 | AR31: 564005.4653 | AS31: Actual
I32: 0
A33: Shared Carts | B33: =+'2144 Cont, DB'!L89 -> 65551.84636 | C33: =B33-D33 -> 0 | D33: =+'2144 Cont, DB'!M89 -> 65551.84636 | E33: =+'2144 Cont, DB'!P89 -> 9364.54948 | F33: =+'2144 Cont, DB'!Q89 -> 30651.17016 | G33: =+'2144 Cont, DB'!R89 -> 40015.71964 | H33: =+'2144 Cont, DB'!S89 -> 25536.12672 | I33: 0 | J33: Shared Carts | K33: =SUMIF('FAR Dep Summary'!$A$19:$A$26,'Depr Summary'!J33,'FAR Dep Summary'!$B$19:$B$26) -> 0 | L33: =K33-M33 -> 0 | M33: =K33 -> 0 | N33: =SUMIF('FAR Dep Summary'!$A$19:$A$26,'Depr Summary'!J33,'FAR Dep Summary'!$C$19:$C$26) -> 0 | O33: =SUMIF('FAR Dep Summary'!$A$19:$A$26,'Depr Summary'!J33,'FAR Dep Summary'!$D$19:$D$26) -> 0 | P33: =SUMIF('FAR Dep Summary'!$A$19:$A$26,'Depr Summary'!J33,'FAR Dep Summary'!$E$19:$E$26) -> 0 | Q33: =SUMIF('FAR Dep Summary'!$A$19:$A$26,'Depr Summary'!J33,'FAR Dep Summary'!$F$19:$F$26) -> 0 | S33: Shared Carts | AB33: Shared Carts | AK33: Shared Carts | AL33: =B33+K33+T33+AC33 -> 65551.84636 | AM33: 0 | AN33: 65551.84636 | AO33: 9364.54948 | AP33: 30651.17016 | AQ33: 40015.71964 | AR33: 25536.12672 | AS33: Total Carts
C34: =B34-D34 -> 0 | I34: 0
A35: Non-Reg | B35: =+'2144 Cont, DB'!L104 -> 280003.51 | D35: =+'2144 Cont, DB'!M104 -> 280003.51 | E35: =+'2144 Cont, DB'!P104 -> 0 | F35: =+'2144 Cont, DB'!Q104 -> 279711.3381 | G35: =+'2144 Cont, DB'!R104 -> 280003.51 | H35: =+'2144 Cont, DB'!S104 -> 0 | I35: 0 | J35: Non-Reg | K35: =SUMIF('FAR Dep Summary'!$A$19:$A$26,'Depr Summary'!J35,'FAR Dep Summary'!$B$19:$B$26) -> 0 | L35: =K35-M35 -> 0 | M35: =K35 -> 0 | N35: =SUMIF('FAR Dep Summary'!$A$19:$A$26,'Depr Summary'!J35,'FAR Dep Summary'!$C$19:$C$26) -> 0 | O35: =SUMIF('FAR Dep Summary'!$A$19:$A$26,'Depr Summary'!J35,'FAR Dep Summary'!$D$19:$D$26) -> 0 | P35: =SUMIF('FAR Dep Summary'!$A$19:$A$26,'Depr Summary'!J35,'FAR Dep Summary'!$E$19:$E$26) -> 0 | Q35: =SUMIF('FAR Dep Summary'!$A$19:$A$26,'Depr Summary'!J35,'FAR Dep Summary'!$F$19:$F$26) -> 0 | S35: Non-Reg | AB35: Non-Reg | AK35: Non-Reg | AL35: =B35+K35+T35+AC35 -> 280003.51 | AM35: 0 | AN35: 280003.51 | AO35: 0 | AP35: 279711.3381 | AQ35: 280003.51 | AR35: 0 | AS35: Actual
I36: 0
A37: Total Cont, Carts,Totes | B37: =SUM(B27:B35) -> 1309263.26 | C37: 0 | D37: 1309263.26 | E37: 66473.69645 | F37: 1009246.662 | G37: 1076012.53 | H37: 233250.7295 | I37: -3.783497959e-10 | J37: Total Cont, Carts,Totes | K37: =SUM(K27:K35) -> 851525.21 | L37: 0 | M37: 851525.21 | N37: 102356.0829 | O37: 207302.7414 | P37: 309658.8243 | Q37: =SUM(Q27:Q35) -> 541866.3857 | S37: Total Cont, Carts,Totes | T37: =SUM(T27:T35) -> 100000 | U37: 0 | V37: 100000 | W37: 14285.71429 | X37: 0 | Y37: 14285.71429 | Z37: =SUM(Z27:Z35) -> 85714.28571 | AB37: Total Cont, Carts,Totes | AC37: =SUM(AC27:AC35) -> 0 | AD37: 0 | AE37: 0 | AF37: 0 | AG37: 0 | AH37: 0 | AI37: =SUM(AI27:AI35) -> 0 | AK37: Total Cont, Carts,Totes | AL37: =SUM(AL27:AL35) -> 2260788.47 | AM37: 0 | AN37: 2260788.47 | AO37: 183115.4936 | AP37: 1216549.404 | AQ37: 1399957.069 | AR37: 860831.4009
E38: =E37-'2144 Cont, DB'!P106 -> 0 | H38: =H37-'2144 Cont, DB'!S106 -> 0 | I38: 0
A39: Service Equipment | B39: ='2144 Shop,Serv'!L37 -> 146197.35 | C39: =B39-D39 -> 0 | D39: ='2144 Shop,Serv'!M37 -> 146197.35 | E39: ='2144 Shop,Serv'!P37 -> 18642.167 | F39: ='2144 Shop,Serv'!Q37 -> 95824.24867 | G39: ='2144 Shop,Serv'!R37 -> 119886.3217 | H39: ='2144 Shop,Serv'!S37 -> 32983.46467 | I39: =+D39-G39-H39 -> -6672.436333 | J39: Service Equipment | K39: =SUMIF('FAR Dep Summary'!$A$19:$A$26,'Depr Summary'!J39,'FAR Dep Summary'!$B$19:$B$26) -> 20467.78 | L39: =K39-M39 -> 0 | M39: =K39 -> 20467.78 | N39: =SUMIF('FAR Dep Summary'!$A$19:$A$26,'Depr Summary'!J39,'FAR Dep Summary'!$C$19:$C$26) -> 4679.606667 | O39: =SUMIF('FAR Dep Summary'!$A$19:$A$26,'Depr Summary'!J39,'FAR Dep Summary'!$D$19:$D$26) -> 936.7081667 | P39: =SUMIF('FAR Dep Summary'!$A$19:$A$26,'Depr Summary'!J39,'FAR Dep Summary'!$E$19:$E$26) -> 5616.314833 | Q39: =SUMIF('FAR Dep Summary'!$A$19:$A$26,'Depr Summary'!J39,'FAR Dep Summary'!$F$19:$F$26) -> 14851.46517 | S39: Service Equipment | AB39: Service Equipment | AK39: Service Equipment | AL39: =B39+K39+T39+AC39 -> 166665.13 | AM39: 0 | AN39: 166665.13 | AO39: 23321.77367 | AP39: 96760.95683 | AQ39: 125502.6365 | AR39: 47834.92983 | AS39: Route Hours
I40: 0
A41: Shop Equipment | B41: ='2144 Shop,Serv'!L24 -> 237010.68 | C41: =B41-D41 -> 0 | D41: ='2144 Shop,Serv'!M24 -> 237010.68 | E41: ='2144 Shop,Serv'!P24 -> 20190.127 | F41: ='2144 Shop,Serv'!Q24 -> 173818.2496 | G41: ='2144 Shop,Serv'!R24 -> 194805.2899 | H41: ='2144 Shop,Serv'!S24 -> 42205.39008 | I41: 0 | J41: Shop Equipment | K41: =SUMIF('FAR Dep Summary'!$A$19:$A$26,'Depr Summary'!J41,'FAR Dep Summary'!$B$19:$B$26) -> 0 | L41: =K41-M41 -> 0 | M41: =K41 -> 0 | N41: =SUMIF('FAR Dep Summary'!$A$19:$A$26,'Depr Summary'!J41,'FAR Dep Summary'!$C$19:$C$26) -> 0 | O41: =SUMIF('FAR Dep Summary'!$A$19:$A$26,'Depr Summary'!J41,'FAR Dep Summary'!$D$19:$D$26) -> 0 | P41: =SUMIF('FAR Dep Summary'!$A$19:$A$26,'Depr Summary'!J41,'FAR Dep Summary'!$E$19:$E$26) -> 0 | Q41: =SUMIF('FAR Dep Summary'!$A$19:$A$26,'Depr Summary'!J41,'FAR Dep Summary'!$F$19:$F$26) -> 0 | S41: Shop Equipment | AB41: Shop Equipment | AK41: Shop Equipment | AL41: =B41+K41+T41+AC41 -> 237010.68 | AM41: 0 | AN41: 237010.68 | AO41: 20190.127 | AP41: 173818.2496 | AQ41: 194805.2899 | AR41: 42205.39008 | AS41: Route Hours
I42: 0
A43: Non-Regulated | B43: ='2144 Shop,Serv'!L43 -> 105958.302 | C43: =B43-D43 -> 0 | D43: ='2144 Shop,Serv'!M43 -> 105958.302 | E43: ='2144 Shop,Serv'!P43 -> 0 | F43: ='2144 Shop,Serv'!Q43 -> 105958.302 | G43: ='2144 Shop,Serv'!R43 -> 105958.302 | H43: ='2144 Shop,Serv'!S43 -> 0 | I43: 0 | J43: Non-Regulated | K43: =SUMIF('FAR Dep Summary'!$A$19:$A$26,'Depr Summary'!J43,'FAR Dep Summary'!$B$19:$B$26) -> 0 | L43: =K43-M43 -> 0 | M43: =K43 -> 0 | N43: =SUMIF('FAR Dep Summary'!$A$19:$A$26,'Depr Summary'!J43,'FAR Dep Summary'!$C$19:$C$26) -> 0 | O43: =SUMIF('FAR Dep Summary'!$A$19:$A$26,'Depr Summary'!J43,'FAR Dep Summary'!$D$19:$D$26) -> 0 | P43: =SUMIF('FAR Dep Summary'!$A$19:$A$26,'Depr Summary'!J43,'FAR Dep Summary'!$E$19:$E$26) -> 0 | Q43: =SUMIF('FAR Dep Summary'!$A$19:$A$26,'Depr Summary'!J43,'FAR Dep Summary'!$F$19:$F$26) -> 0 | S43: Non-Regulated | T43: =+'2024 Bud Capital Input'!AK60 -> 59576 | U43: 0 | V43: =+T43-U43 -> 59576 | W43: =+'2024 Bud Capital Input'!AN60 -> 5957.6 | X43: 0 | Y43: =+W43+X43 -> 5957.6 | Z43: =+'2024 Bud Capital Input'!AP60 -> 53618.4 | AB43: Non-Regulated | AK43: Non-Regulated | AL43: =B43+K43+T43+AC43 -> 165534.302 | AM43: =C43+L43+U43+AD43 -> 0 | AN43: 165534.302 | AO43: 5957.6 | AP43: 105958.302 | AQ43: 111915.902 | AR43: 53618.4 | AS43: Actual
I44: 0
A45: Office Equipment | B45: ='2144 Other'!L20 -> 15910.72 | C45: =B45-D45 -> 0 | D45: ='2144 Other'!M20 -> 15910.72 | E45: ='2144 Other'!P20 -> 0 | F45: ='2144 Other'!Q20 -> 15910.72 | G45: ='2144 Other'!R20 -> 15910.72 | H45: ='2144 Other'!S20 -> 0 | I45: 0 | J45: Office Equipment | K45: =SUMIF('FAR Dep Summary'!$A$19:$A$26,'Depr Summary'!J45,'FAR Dep Summary'!$B$19:$B$26) -> 0 | L45: =K45-M45 -> 0 | M45: =K45 -> 0 | N45: =SUMIF('FAR Dep Summary'!$A$19:$A$26,'Depr Summary'!J45,'FAR Dep Summary'!$C$19:$C$26) -> 0 | O45: =SUMIF('FAR Dep Summary'!$A$19:$A$26,'Depr Summary'!J45,'FAR Dep Summary'!$D$19:$D$26) -> 0 | P45: =SUMIF('FAR Dep Summary'!$A$19:$A$26,'Depr Summary'!J45,'FAR Dep Summary'!$E$19:$E$26) -> 0 | Q45: =SUMIF('FAR Dep Summary'!$A$19:$A$26,'Depr Summary'!J45,'FAR Dep Summary'!$F$19:$F$26) -> 0 | S45: Office Equipment | AB45: Office Equipment | AK45: Office Equipment | AL45: =B45+K45+T45+AC45 -> 15910.72 | AM45: 0 | AN45: 15910.72 | AO45: 0 | AP45: 15910.72 | AQ45: 15910.72 | AR45: 0 | AS45: Billed Cust
I46: 0
A47: Building | B47: ='2144 Other'!L34 -> 207799.72 | C47: =B47-D47 -> 0 | D47: ='2144 Other'!M34 -> 207799.72 | E47: ='2144 Other'!P34 -> 2981.167833 | F47: ='2144 Other'!Q34 -> 204617.3774 | G47: ='2144 Other'!R34 -> 207598.5453 | H47: ='2144 Other'!S34 -> 201.17475 | I47: -1.455191523e-11 | J47: Building | K47: =SUMIF('FAR Dep Summary'!$A$19:$A$26,'Depr Summary'!J47,'FAR Dep Summary'!$B$19:$B$26) -> 74114.65 | L47: =K47-M47 -> 0 | M47: =K47 -> 74114.65 | N47: =SUMIF('FAR Dep Summary'!$A$19:$A$26,'Depr Summary'!J47,'FAR Dep Summary'!$C$19:$C$26) -> 7411.465 | O47: =SUMIF('FAR Dep Summary'!$A$19:$A$26,'Depr Summary'!J47,'FAR Dep Summary'!$D$19:$D$26) -> 1217.708333 | P47: =SUMIF('FAR Dep Summary'!$A$19:$A$26,'Depr Summary'!J47,'FAR Dep Summary'!$E$19:$E$26) -> 8629.173333 | Q47: =SUMIF('FAR Dep Summary'!$A$19:$A$26,'Depr Summary'!J47,'FAR Dep Summary'!$F$19:$F$26) -> 65485.47667 | S47: Building | AB47: Building | AC47: =+'Regulatory Assets'!K14 -> 15924.55 | AD47: 0 | AE47: =+'Regulatory Assets'!L14 -> 15924.55 | AF47: =+'Regulatory Assets'!O14 -> 1592.455 | AG47: =+'Regulatory Assets'!P14 -> 530.8183333 | AH47: =+'Regulatory Assets'!Q14 -> 2123.273333 | AI47: =+'Regulatory Assets'!R14 -> 13801.27667 | AK47: Building | AL47: =B47+K47+T47+AC47 -> 297838.92 | AM47: 0 | AN47: 297838.92 | AO47: 11985.08783 | AP47: 206365.9041 | AQ47: 218350.9919 | AR47: 79487.92808 | AS47: Labor Hours/Billed Cust
A49: Land | B49: =177500*2 -> 355000 | H49: =B49 -> 355000 | I49: =+D49-G49-H49 -> -355000 | J49: Land | K49: =SUMIF('FAR Dep Summary'!$A$19:$A$26,'Depr Summary'!J49,'FAR Dep Summary'!$B$19:$B$26) -> 0 | L49: =K49-M49 -> 0 | M49: =K49 -> 0 | N49: =SUMIF('FAR Dep Summary'!$A$19:$A$26,'Depr Summary'!J49,'FAR Dep Summary'!$C$19:$C$26) -> 0 | O49: =SUMIF('FAR Dep Summary'!$A$19:$A$26,'Depr Summary'!J49,'FAR Dep Summary'!$D$19:$D$26) -> 0 | P49: =SUMIF('FAR Dep Summary'!$A$19:$A$26,'Depr Summary'!J49,'FAR Dep Summary'!$E$19:$E$26) -> 0 | Q49: =SUMIF('FAR Dep Summary'!$A$19:$A$26,'Depr Summary'!J49,'FAR Dep Summary'!$F$19:$F$26) -> 0 | S49: Land | AB49: Land | AK49: Land | AL49: =B49+K49+T49+AC49 -> 355000 | AR49: =H49+Q49+Z49+AI49 -> 355000 | AS49: Labor Hours/Billed Cust
A51: TOTAL | B51: =B24+B37+SUM(B39,B41,B43,B45,B47,B49) -> 5642669.192 | C51: =C24+C37+SUM(C39,C41,C43,C45,C47,C49) -> 0 | D51: 5287669.192 | E51: 292654.1281 | F51: 3901483.936 | G51: 4251434.886 | H51: 1397906.742 | I51: =+D51-G51-H51 -> -361672.4363 | J51: TOTAL | K51: =K24+K37+SUM(K39,K41,K43,K45,K47,K49) -> 2826767.26 | L51: =L24+L37+SUM(L39,L41,L43,L45,L47,L49) -> 0 | M51: 2826767.26 | N51: 296111.5085 | O51: 345804.4709 | P51: 641915.9794 | Q51: 2184851.281 | S51: TOTAL | T51: =T24+T37+SUM(T39,T41,T43,T45,T47,T49) -> 159576 | U51: =U24+U37+SUM(U39,U41,U43,U45,U47,U49) -> 0 | V51: 159576 | W51: 20243.31429 | X51: 0 | Y51: 20243.31429 | Z51: 139332.6857 | AB51: TOTAL | AC51: =AC24+AC37+SUM(AC39,AC41,AC43,AC45,AC47,AC49) -> 15924.55 | AD51: =AD24+AD37+SUM(AD39,AD41,AD43,AD45,AD47,AD49) -> 0 | AE51: 15924.55 | AF51: 1592.455 | AG51: 530.8183333 | AH51: 2123.273333 | AI51: 13801.27667 | AK51: TOTAL | AL51: =AL24+AL37+SUM(AL39,AL41,AL43,AL45,AL47,AL49) -> 8644937.002 | AM51: =AM24+AM37+SUM(AM39,AM41,AM43,AM45,AM47,AM49) -> 0 | AN51: 8289937.002 | AO51: 610601.4059 | AP51: 4247819.225 | AQ51: 4915717.453 | AR51: 3735891.985
A52: Check | B52: =B51-'2144 Trks'!L77-'2144 Cont, DB'!L106-'2144 Shop,Serv'!L46-'2144 Other'!L36-B49 -> 0 | E52: =E51-'2144 Trks'!P77-'2144 Cont, DB'!P106-'2144 Shop,Serv'!P46-'2144 Other'!P36-E49 -> -2.31921149e-11 | H52: =H51-'2144 Trks'!S77-'2144 Cont, DB'!S106-'2144 Shop,Serv'!S46-'2144 Other'!S36-H49 -> 0 | J52: Check | K52: =+'FAR Dep Summary'!B27-K51 -> 0 | M52: =+'FAR Dep Summary'!B27-M51 -> 0 | N52: =+'FAR Dep Summary'!C27-N51 -> 0 | O52: =+'FAR Dep Summary'!D27-O51 -> 0 | P52: =+'FAR Dep Summary'!E27-P51 -> 0 | Q52: =+'FAR Dep Summary'!F27-Q51 -> 0 | S52: Check | T52: ='2024 Bud Capital Input'!AK62-'Depr Summary'!T51 -> 0 | W52: =+'2024 Bud Capital Input'!AN62-W51 -> 0 | Z52: =+'2024 Bud Capital Input'!AP62-Z51 -> 0 | AB52: Check | AK52: Check | AL52: =AL51-K51-B51-T51-AC51 -> 7.457856555e-10 | AM52: =AM51-L51-C51-U51-AD51 -> 0 | AN52: =AN51-M51-D51-V51-AE51 -> 7.457856555e-10 | AO52: 2.364686225e-11 | AP52: 2.482920536e-10 | AQ52: -2.519300324e-10 | AR52: 5.384208634e-10
I54: =+SUM(I14:I50)-I51 -> 0
A55: UTC Group Tracking - for Assets through 12/31/2021
A57: Updated Through | B57: Updated By | C57: FAR Adds | D57: UTC Sched Adds | E57: Difference
A59: 1/1/2013 - 12/31/2013 | B59: HG | C59: 132868.35 | D59: 132868.35 | E59: =C59-D59 -> 0
A61: 1-1-2014 - 6/30/2014 | B61: HG | C61: 229332.22 | D61: 229332.22 | E61: =C61-D61 -> 0
A63: 1/1/2015 - 10/31/15 | B63: JB | C63: 271067.43 | D63: 271067.43 | E63: =C63-D63 -> 0
A65: 11/1/2015 - 12/31/2015 | B65: HG | C65: 185053.86 | D65: 185053.86 | E65: =C65-D65 -> 0
A67: 1/1/2016 - 12/31/2016 | B67: IRW | C67: 484718.5 | D67: 484718.5 | E67: =C67-D67 -> 0
A69: 1/1/2017-8/31/2017 | B69: JW | C69: 153338.68 | D69: 153338.68 | E69: =C69-D69 -> 0
A71: 9/1/17-12/31/17 | B71: LAW | C71: 649782.69 | D71: 649782.69 | E71: =C71-D71 -> 0
A73: 1/1/2018-12/31/2018 | B73: LAW | C73: 762944.03 | D73: 762944.03 | E73: =C73-D73 -> 0
A75: 1/1/2019-8/31/2019 | B75: LAW | C75: 547495.27 | D75: 547495.27 | E75: =C75-D75 -> 0
A77: 9/1/2019-12/31/2019 | B77: LAW | C77: 177637.72 | D77: 177637.72 | E77: =C77-D77 -> 0
A79: 1/1/2020 - 12/31/2020 | B79: JTH | C79: 41148.36 | D79: =+SUM('2144 Cont, DB'!L12,'2144 Cont, DB'!L87,'2144 Shop,Serv'!L33,'2144 Shop,Serv'!L34:L35) -> 41148.36 | E79: =D79-C79 -> 0
A81: 1/1/2021 - 12/31/2021 | C81: 734640.54 | D81: =+SUM('2144 Cont, DB'!L14,'2144 Cont, DB'!L89,'2144 Shop,Serv'!L35,'2144 Shop,Serv'!L36:L37) -> 221769.8164 | E81: =D81-C81 -> -512870.7236 | F81: Does this need updating?

Sheet FAR Dep Summary
A1: Live Pivot
A2: Pre 2022 Add? | B2: No
A4: Row Labels | B4: Sum of Cost | C4: Sum of Test Year Depreciation | D4: Sum of BOY Accum | E4: Sum of EOY Accum | F4: Sum of EOY Average Investment
A5: Drop Boxes | B5: 98160.02 | C5: 0 | D5: 98160.02 | E5: 98160.02 | F5: 0
A6: Regulated Garbage Carts | B6: 683270.65 | C6: 97610.09286 | D6: 86883.00857 | E6: 184493.1014 | F6: 498777.5486
A7: Service Equipment | B7: 20467.78 | C7: 4679.606667 | D7: 936.7081667 | E7: 5616.314833 | F7: 14851.46517
A8: Long Haul | B8: 5902.2 | C8: 0 | D8: 5902.2 | E8: 5902.2 | F8: 0
A9: Resi/Comm Garbage | B9: 1476299.61 | C9: 147968.573 | D9: 68945.113 | E9: 216913.686 | F9: 1259385.924
A10: Commercial Garbage | B10: 70094.54 | C10: 4745.99 | D10: 22259.71285 | E10: 27005.70285 | F10: 43088.83715
A11: Building | B11: 74114.65 | C11: 7411.465 | D11: 1217.708333 | E11: 8629.173333 | F11: 65485.47667
A12: Roll-off | B12: 398457.81 | C12: 33695.781 | D12: 61500 | E12: 95195.781 | F12: 303262.029
A13: Grand Total | B13: 2826767.26 | C13: 296111.5085 | D13: 345804.4709 | E13: 641915.9794 | F13: 2184851.281
A17: Pasted Values
A18: Row Labels | B18: Sum of Cost | C18: Sum of Test Year Depreciation | D18: Sum of BOY Accum | E18: Sum of EOY Accum | F18: Sum of EOY Average Investment
A19: Drop Boxes | B19: 98160.02 | C19: 0 | D19: 98160.02 | E19: 98160.02 | F19: 0 | H19: =+VLOOKUP(A19,'Depr Summary'!$J$14:$J$49,1, FALSE) -> Drop Boxes
A20: Regulated Garbage Carts | B20: 683270.65 | C20: 97610.09286 | D20: 86883.00857 | E20: 184493.1014 | F20: 498777.5486 | H20: =+VLOOKUP(A20,'Depr Summary'!$J$14:$J$49,1, FALSE) -> Regulated Garbage Carts
A21: Service Equipment | B21: 20467.78 | C21: 4679.606667 | D21: 936.7081667 | E21: 5616.314833 | F21: 14851.46517 | H21: =+VLOOKUP(A21,'Depr Summary'!$J$14:$J$49,1, FALSE) -> Service Equipment
A22: Long Haul | B22: 5902.2 | C22: 0 | D22: 5902.2 | E22: 5902.2 | F22: 0 | H22: =+VLOOKUP(A22,'Depr Summary'!$J$14:$J$49,1, FALSE) -> Long Haul
A23: Resi/Comm Garbage | B23: 1476299.61 | C23: 147968.573 | D23: 68945.113 | E23: 216913.686 | F23: 1259385.924 | H23: =+VLOOKUP(A23,'Depr Summary'!$J$14:$J$49,1, FALSE) -> Resi/Comm Garbage
A24: Commercial Garbage | B24: 70094.54 | C24: 4745.99 | D24: 22259.71285 | E24: 27005.70285 | F24: 43088.83715 | H24: =+VLOOKUP(A24,'Depr Summary'!$J$14:$J$49,1, FALSE) -> Commercial Garbage
A25: Building | B25: 74114.65 | C25: 7411.465 | D25: 1217.708333 | E25: 8629.173333 | F25: 65485.47667 | H25: =+VLOOKUP(A25,'Depr Summary'!$J$14:$J$49,1, FALSE) -> Building
A26: Roll-off | B26: 398457.81 | C26: 33695.781 | D26: 61500 | E26: 95195.781 | F26: 303262.029 | H26: =+VLOOKUP(A26,'Depr Summary'!$J$14:$J$49,1, FALSE) -> Roll-off
A27: Grand Total | B27: 2826767.26 | C27: 296111.5085 | D27: 345804.4709 | E27: 641915.9794 | F27: 2184851.281
A28: Check | B28: =+B27-B13 -> 0 | C28: =+C27-C13 -> 0 | D28: 0 | E28: 0 | F28: 0

Sheet FAR 10.31.2023
B1: Location | C1: AssetID | D1: ParentChild | E1: Description | F1: SystemNo | H1: MFGSerialNum | I1: LicensePlate | J1: ModelYear | K1: VendorMfg | L1: BodyManuf | M1: InsuranceCategory | N1: InServiceDate | O1: AcquisitionDate | P1: PONumber | Q1: EstimatedLife | R1: AssetGL | S1: AcqValue | T1: AccumulatedGL | U1: CurrentLifeToDate | W1: CurrentYearToDate | X1: ExpenseGL | Y1: CurrentPeriodDepr | Z1: AcqType | AA1: FormerCompany | AB1: InvoiceNum | AC1: CompAsstNo | AD1: Book | AE1: ActivityCd | AF1: DeprMethod | AG1: BegLsDeprDate | AH1: LongName | AI1: Sequence | AJ1: BegLifeToDate
V2: =S2-U2 -> 0
B3: =_xll.ReportRange("FARReport",A14:AJ303,A1:AJ1,A2:AJ2,_xll.Param($C$9,$C$10,C12,$M$9,$M$10,$M$11,$S$9,M12,$Y$10,$Y$9,S10,S11,CELL("address",$E$6)),TRUE,FALSE) -> OK!: ReportRange Formula OK [jAction{}] | L3: Default Month : | M3: =MONTH(NOW()) -> 3 | S3: OK!: ReportDrill 'Projected Depr' Formula OK [jAction{}] | Y3: =_xll.jFreezePanes(A14,A5) -> > jFreezePanes is ready. | AB3: =_xll.jFocus(C9) -> > jFocus is ready.
L4: Default Year : | M4: =IF(M3=12,YEAR(NOW()),YEAR(NOW())) -> 2024 | S4: reportdrill(Invoice!C2,,pairgroup(pair("C:C",Invoice!E8),pair("",Invoice!E7,"N")),"Drill To Invoices by FAS# (Exc CIP)") | U4: OK!: ReportDrill 'Drill To All Invoices by PO#' Formula OK [jAction{}] | X4: OK!: ReportDrill 'Drill to Invoice by PO# and Invoice #' Formula OK [jAction{}]
B5: Fixed Asset Register | H5: Asset Count: | I5: =COUNT(C14:C303) -> 289 | AK5: 11 | AL5: Test Period Beg. Month
B6: Data Last Updated in this Pull: | E6: Nov 7 2023 4:31PM | AK6: 10 | AL6: Test Period End Month
AK7: 2022 | AL7: First Year
AK8: 2023 | AL8: Second year
B9: Period: | C9: 2023-10 | F9: Ctrl + Shift + J | L9: VIN: | O9: (Contains the string) | R9: Parent/Child: | T9: (Leave blank for all) | X9: Service Date To: | AK9: =+AK8+(AK6/12) -> 2023.833333 | AL9: Test Period End Mo/Yr
B10: District: | C10: 2144 | E10: (F9 Aware) | L10: Description: | O10: (Contains the string) | R10: Asset Acct: | X10: Service Date From: | AK10: =+AK7+(AK5/12) -> 2022.916667 | AL10: Test Period Beg. Mo/Yr
L11: PO Number: | O11: (Contains the string) | R11: Exp Acct:
B12: Asset #: | L12: Ins Category: | O12: (Not setup yet) | R12: Depreciated %: | T12: (Not setup yet)
B13: District | C13: Asset # | D13: Parent/ Child | E13: Descr | F13: Container Count | G13: Bl | H13: MFG Serial# | I13: License Plate | J13: Model Year | K13: Vendor/Mfg | L13: Body Mfg | M13: Ins Category | N13: In Service Date | O13: Acq Date | P13: CER # | Q13: Useful Life | R13: Asset Account | S13: Cost | T13: Accum Account | U13: Accum Life to Date | V13: NBV | W13: Accum YTD | X13: Expense Account | Y13: Current Depr | Z13: Acq Type | AA13: Former Company | AB13: Invoice # | AC13: Company Asset # | AD13: Book | AE13: Activity Cd | AF13: Depr Meth | AG13: Beg Date | AH13: Dbase | AI13: Seq | AJ13: Beg Depr | AK13: Truck # | AL13: Equipment Type | AM13: Month | AN13: YearPIS | AO13: Year Fully Dep | AP13: Year/Mo Fully Dep | AQ13: Monthly Depreciation | AR13: Annual Depreciation | AS13: Test Year Depreciation | AT13: BOY Accum | AU13: EOY Accum | AV13: EOY Average Investment | AW13: Pre 2022 Add?
B14: 2144 | C14: 316961 | D14: P | E14: 65G MSW Carts | F14: 468 | I14: 94-3283464 | J14: 0 | K14: PO BOX 514457 | M14: Non-Container Audit | N14: 2023-09-12 | O14: 2023-09-12 | P14: 2144-23-0008-1 | Q14: 700 | R14: 14050 | S14: 28317.2 | T14: 14056 | U14: 674.22 | V14: =S14-U14 -> 27642.98 | W14: 674.22 | X14: 54260 | Y14: 674.22 | Z14: P | AB14: 50339184 | AD14: Internal | AE14: A | AF14: SL | AH14: WCNX | AI14: 0 | AJ14: 0 | AL14: Regulated Garbage Carts | AM14: =MONTH($N14) -> 9 | AN14: =YEAR($N14) -> 2023 | AO14: =$AN14+($Q14/100) -> 2030 | AP14: =$AO14+($AM14/12) -> 2030.75 | AQ14: =IFERROR($S14/($Q14/100)/12,0) -> 337.1095238 | AR14: =$AQ14*12 -> 4045.314286 | AS14: =+IF(AP14<=$AK$9,0,AR14) -> 4045.314286 | AT14: =+IF(AP14<=$AK$10,S14,IF((AN14+(AM14/12))>=$AK$10,0,((S14-((AP14-$AK$10)*12)*AQ14)))) -> 0 | AU14: =+IF(AP14<$AK$9,S14,AS14+AT14) -> 4045.314286 | AV14: =$S14-$AU14 -> 24271.88571 | AW14: No
B15: 2144 | C15: 308751 | D15: P | E15: 1 Yard FEL Containers w/ Lids & Casters | F15: 2 | J15: 0 | K15: Capital Industries, Inc. | M15: 1 YD FEL/REL/SL Metal | N15: 2005-06-16 | O15: 2005-06-16 | P15: 52131007 | Q15: 1200 | R15: 14050 | S15: 859.52 | T15: 14056 | U15: 859.52 | V15: 0 | W15: 0 | X15: 54260 | Y15: 0 | Z15: P | AA15: 0 | AB15: 158604 | AD15: Internal | AE15: A | AF15: SL | AG15: 2023-05-31 | AH15: WCNX | AI15: 0 | AJ15: 859.52 | AL15: Commercial Garbage | AM15: 6 | AN15: 2005 | AO15: 2017 | AP15: 2017.5 | AQ15: 5.968888889 | AR15: 71.62666667 | AS15: 0 | AT15: 859.52 | AU15: =+IF(AP15<$AK$9,S15,AS15+AT15) -> 859.52 | AV15: =$S15-$AU15 -> 0 | AW15: No
B16: 2144 | C16: 308292 | D16: P | E16: 12 Yd Rectangle Drop Boxes w/ Lids | F16: 1 | J16: 0 | K16: Cascon | M16: 12 YD RO Box | N16: 2001-09-27 | O16: 2001-09-27 | P16: A-01-2149-002 | Q16: 1200 | R16: 14050 | S16: 2962 | T16: 14056 | U16: 2962 | V16: 0 | W16: 0 | X16: 54260 | Y16: 0 | Z16: P | AB16: 2002152 | AD16: Internal | AE16: A | AF16: SL | AG16: 2023-05-31 | AH16: WCNX | AI16: 0 | AJ16: 2962 | AL16: Drop Boxes | AM16: 9 | AN16: 2001 | AO16: 2013 | AP16: 2013.75 | AQ16: 20.56944444 | AR16: 246.8333333 | AS16: 0 | AT16: 2962 | AU16: 2962 | AV16: 0 | AW16: No
B17: 2144 | C17: 308291 | D17: P | E17: 2yd Containers | F17: 10 | J17: 0 | M17: 2 YD FEL/REL/SL Metal | N17: 1984-08-07 | O17: 1984-08-07 | Q17: 1200 | R17: 14050 | S17: 1129.76 | T17: 14056 | U17: 1129.76 | V17: 0 | W17: 0 | X17: 54260 | Y17: 0 | Z17: A | AA17: DM Disposal | AD17: Internal | AE17: A | AF17: SL | AG17: 2023-05-31 | AH17: WCNX | AI17: 0 | AJ17: 1129.76 | AL17: Commercial Garbage | AM17: 8 | AN17: 1984 | AO17: 1996 | AP17: 1996.666667 | AQ17: 7.845555556 | AR17: 94.14666667 | AS17: 0 | AT17: 1129.76 | AU17: 1129.76 | AV17: 0 | AW17: No
B18: 2144 | C18: 308203 | D18: P | E18: 1 Yard Containers | F18: 5 | J18: 0 | K18: CAPITAL INDUSTRIES, INC. | M18: 1 YD FEL/REL/SL Metal | N18: 2008-10-31 | O18: 2008-10-31 | P18: 2111-8-0029-1 | Q18: 1200 | R18: 14050 | S18: 495.04 | T18: 14056 | U18: 495.04 | V18: 0 | W18: 0 | X18: 54260 | Y18: 0 | Z18: P | AB18: 38043 | AD18: Internal | AE18: A | AF18: SL | AG18: 2023-05-31 | AH18: WCNX | AI18: 0 | AJ18: 495.04 | AL18: Commercial Garbage | AM18: 10 | AN18: 2008 | AO18: 2020 | AP18: 2020.833333 | AQ18: 3.437777778 | AR18: 41.25333333 | AS18: 0 | AT18: 495.04 | AU18: 495.04 | AV18: 0 | AW18: No
B19: 2144 | C19: 307945 | D19: P | E19: 1yd Containers w/Lids | F19: 20 | J19: 0 | M19: 1 YD FEL/REL/SL Metal | N19: 1994-05-16 | O19: 1994-05-16 | Q19: 1200 | R19: 14050 | S19: 2242.46 | T19: 14056 | U19: 2242.46 | V19: 0 | W19: 0 | X19: 54260 | Y19: 0 | Z19: A | AA19: American Disposal | AD19: Internal | AE19: A | AF19: SL | AG19: 2023-05-31 | AH19: WCNX | AI19: 0 | AJ19: 2242.46 | AL19: Commercial Garbage | AM19: 5 | AN19: 1994 | AO19: 2006 | AP19: 2006.416667 | AQ19: 15.57263889 | AR19: 186.8716667 | AS19: 0 | AT19: 2242.46 | AU19: 2242.46 | AV19: 0 | AW19: No
B20: 2144 | C20: 307813 | D20: P | E20: 2 Yard Commercial Container | F20: 21 | J20: 0 | K20: REHRIG PACIFIC COMPANY | M20: 2 YD FEL/REL/SL Metal | N20: 2014-05-02 | O20: 2014-05-02 | P20: 2180-14-0019-1 | Q20: 1200 | R20: 14050 | S20: 10598.93 | T20: 14056 | U20: 8390.8 | V20: 2208.13 | W20: 368.02 | X20: 54260 | Y20: 73.6 | Z20: P | AB20: AT144837R | AD20: Internal | AE20: A | AF20: SL | AG20: 2023-05-31 | AH20: WCNX | AI20: 0 | AJ20: 8022.78 | AL20: Commercial Garbage | AM20: 5 | AN20: 2014 | AO20: 2026 | AP20: 2026.416667 | AQ20: 73.60368056 | AR20: 883.2441667 | AS20: 883.2441667 | AT20: 7507.575417 | AU20: 8390.819583 | AV20: 2208.110417 | AW20: No
B21: 2144 | C21: 307480 | D21: P | E21: 1yd Containers w/Lids (N) | F21: 19 | J21: 0 | M21: 1 YD FEL/REL/SL Metal | N21: 1998-04-14 | O21: 1998-04-14 | Q21: 1200 | R21: 14050 | S21: 1920.21 | T21: 14056 | U21: 1920.21 | V21: 0 | W21: 0 | X21: 54260 | Y21: 0 | Z21: A | AA21: Olympic Disposal | AD21: Internal | AE21: A | AF21: SL | AG21: 2023-05-31 | AH21: WCNX | AI21: 0 | AJ21: 1920.21 | AL21: Commercial Garbage | AM21: 4 | AN21: 1998 | AO21: 2010 | AP21: 2010.333333 | AQ21: 13.33479167 | AR21: 160.0175 | AS21: 0 | AT21: 1920.21 | AU21: 1920.21 | AV21: 0 | AW21: No
B22: 2144 | C22: 306812 | D22: P | E22: 1.5 YD Rear Load Containers | F22: 10 | H22: 170260-170269 | J22: 0 | K22: DeWald Nortwest | M22: 1.5 YD FEL/REL/SL Metal | N22: 2001-02-21 | O22: 2001-02-21 | P22: 12132001 | Q22: 1200 | R22: 14050 | S22: 3091.98 | T22: 14056 | U22: 3091.98 | V22: 0 | W22: 0 | X22: 54260 | Y22: 0 | Z22: P | AB22: 36955 | AD22: Internal | AE22: A | AF22: SL | AG22: 2023-05-31 | AH22: WCNX | AI22: 0 | AJ22: 3091.98 | AL22: Commercial Garbage | AM22: 2 | AN22: 2001 | AO22: 2013 | AP22: 2013.166667 | AQ22: 21.47208333 | AR22: 257.665 | AS22: 0 | AT22: 3091.98 | AU22: 3091.98 | AV22: 0 | AW22: No
B23: 2144 | C23: 306811 | D23: P | E23: 1.5 Yard Containers | F23: 12 | H23: 165980-165994 | J23: 0 | K23: DeWald Northwest Co. | M23: 1.5 YD FEL/REL/SL Metal | N23: 2000-06-08 | O23: 2000-06-08 | P23: 00-2112-004 | Q23: 1200 | R23: 14050 | S23: 3403.69 | T23: 14056 | U23: 3403.69 | V23: 0 | W23: 0 | X23: 54260 | Y23: 0 | Z23: P | AD23: Internal | AE23: A | AF23: SL | AG23: 2023-05-31 | AH23: WCNX | AI23: 0 | AJ23: 3403.69 | AL23: Commercial Garbage | AM23: 6 | AN23: 2000 | AO23: 2012 | AP23: 2012.5 | AQ23: 23.63673611 | AR23: 283.6408333 | AS23: 0 | AT23: 3403.69 | AU23: 3403.69 | AV23: 0 | AW23: No
B24: 2144 | C24: 304874 | D24: P | E24: 2023 Peterbilt ROL Truck | H24: 1NPCX4EX3PD867894 | J24: 2023 | M24: R/O Truck | N24: 2023-05-31 | O24: 2023-05-31 | P24: 2144-23-0003-1 | Q24: 1000 | R24: 14040 | S24: 336957.81 | T24: 14046 | U24: 14039.91 | V24: 322917.9 | W24: 14039.91 | X24: 51260 | Y24: 2807.98 | Z24: P | AD24: Internal | AE24: A | AF24: SL | AH24: WCNX | AI24: 0 | AJ24: 0 | AK24: 50-47 | AL24: Roll-off | AM24: 5 | AN24: 2023 | AO24: 2033 | AP24: 2033.416667 | AQ24: 2807.98175 | AR24: 33695.781 | AS24: 33695.781 | AT24: 0 | AU24: 33695.781 | AV24: 303262.029 | AW24: No
B25: 2144 | C25: 302424 | D25: P | E25: 2023 Peterbilt MSL Truck | H25: 3BPDLK0X0PF114139 | J25: 2023 | K25: Peterbilt 520 | M25: Automated Sideload | N25: 2023-02-13 | O25: 2023-02-13 | P25: 2112-22-0003 | Q25: 1000 | R25: 14040 | S25: 428046.09 | T25: 14046 | U25: 32103.46 | V25: 395942.63 | W25: 24969.36 | X25: 51260 | Y25: 3567.05 | Z25: P | AD25: Internal | AE25: A | AF25: SL | AG25: 2023-03-31 | AH25: WCNX | AI25: 0 | AJ25: 7134.1 | AK25: 50-20 | AL25: Resi/Comm Garbage | AM25: 2 | AN25: 2023 | AO25: 2033 | AP25: 2033.166667 | AQ25: 3567.05075 | AR25: 42804.609 | AS25: 42804.609 | AT25: 0 | AU25: 42804.609 | AV25: 385241.481 | AW25: No
B26: 2144 | C26: 298281 | D26: P | E26: 2004 Type H Drop R/O | F26: 0 | H26: 2FZHAZCK84AN42817 | I26: A39607V | J26: 2004 | K26: Sterling 7500 | L26: Helm | M26: R/O Truck | N26: 2008-11-03 | O26: 2008-11-03 | Q26: 500 | R26: 14040 | S26: 61500 | T26: 14046 | U26: 61500 | V26: 0 | W26: 0 | X26: 51260 | Y26: 0 | Z26: A | AA26: LeMay Enterprises | AC26: 444 | AD26: Internal | AE26: A | AF26: SL | AG26: 2022-12-31 | AH26: WCNX | AI26: 0 | AJ26: 61500 | AK26: 444 | AL26: Roll-off | AM26: 11 | AN26: 2008 | AO26: 2013 | AP26: 2013.916667 | AQ26: 1025 | AR26: 12300 | AS26: 0 | AT26: 61500 | AU26: 61500 | AV26: 0 | AW26: No
B27: 2144 | C27: 298241 | D27: P | E27: Parking lot - asphalt | J27: 0 | N27: 2023-01-02 | O27: 2023-01-02 | P27: 2144-22-0006 | Q27: 1000 | R27: 14010 | S27: 44889.65 | T27: 14016 | U27: 3740.81 | V27: 41148.84 | W27: 3740.81 | X27: 57260 | Y27: 374.08 | Z27: P | AD27: Internal | AE27: A | AF27: SL | AH27: WCNX | AI27: 0 | AJ27: 0 | AL27: Building | AM27: 1 | AN27: 2023 | AO27: 2033 | AP27: 2033.083333 | AQ27: 374.0804167 | AR27: 4488.965 | AS27: 4488.965 | AT27: 0 | AU27: 4488.965 | AV27: 40400.685 | AW27: No
B28: 2144 | C28: 295132 | D28: P | E28: GeoTab Units | F28: 20 | J28: 0 | K28: ASSURED TELEMATICS INC | N28: 2022-12-01 | O28: 2022-12-01 | P28: 2144-22-0013-1 | Q28: 300 | R28: 14110 | S28: 3128 | T28: 14116 | U28: 955.78 | V28: 2172.22 | W28: 868.89 | X28: 70260 | Y28: 86.89 | Z28: P | AB28: 98551 | AD28: Internal | AE28: A | AF28: SL | AH28: WCNX | AI28: 0 | AJ28: 0 | AL28: Service Equipment | AM28: 12 | AN28: 2022 | AO28: 2025 | AP28: 2026 | AQ28: 86.88888889 | AR28: 1042.666667 | AS28: 1042.666667 | AT28: 0 | AU28: 1042.666667 | AV28: 2085.333333 | AW28: No
B29: 2144 | C29: 292432 | D29: P | E29: 65G MSW Carts | F29: 468 | J29: 0 | K29: REHRIG PACIFIC COMPANY IN | M29: Non-Container Audit | N29: 2022-07-29 | O29: 2022-07-29 | P29: 2144-22-0011-1 | Q29: 700 | R29: 14050 | S29: 31335.97 | T29: 14056 | U29: 5595.72 | V29: 25740.25 | W29: 3730.48 | X29: 54260 | Y29: 373.05 | Z29: P | AB29: 50256480 | AD29: Internal | AE29: A | AF29: SL | AH29: WCNX | AI29: 0 | AJ29: 0 | AL29: Regulated Garbage Carts | AM29: 7 | AN29: 2022 | AO29: 2029 | AP29: 2029.583333 | AQ29: 373.0472619 | AR29: 4476.567143 | AS29: 4476.567143 | AT29: 1492.189048 | AU29: 5968.75619 | AV29: 25367.21381 | AW29: No
B30: 2144 | C30: 292093 | D30: P | E30: HP ProBook 440 G9 SN: 5CD2380FGR | F30: 1 | J30: 0 | K30: CDW DIR #2144 | N30: 2022-10-06 | O30: 2022-10-06 | P30: 2144-22-0012-1 | Q30: 300 | R30: 14110 | S30: 1109.63 | T30: 14116 | U30: 400.7 | V30: 708.93 | W30: 308.23 | X30: 70260 | Y30: 30.82 | Z30: P | AB30: DG18106 | AD30: Internal | AE30: A | AF30: SL | AH30: WCNX | AI30: 0 | AJ30: 0 | AL30: Service Equipment | AM30: 10 | AN30: 2022 | AO30: 2025 | AP30: 2025.833333 | AQ30: 30.82305556 | AR30: 369.8766667 | AS30: 369.8766667 | AT30: 30.82305556 | AU30: 400.6997222 | AV30: 708.9302778 | AW30: No
B31: 2144 | C31: 292092 | D31: 292093 | E31: Docking Station- No SN on Amazon Purchases | F31: 1 | J31: 0 | K31: AMZN MKTP US 1K4Q07S61 AM | N31: 2022-10-06 | O31: 2022-10-06 | P31: 2144-22-0012-1 | Q31: 300 | R31: 14110 | S31: 157.75 | T31: 14116 | U31: 56.97 | V31: 100.78 | W31: 43.82 | X31: 70260 | Y31: 4.38 | Z31: P | AB31: 8010614 | AD31: Internal | AE31: A | AF31: SL | AH31: WCNX | AI31: 0 | AJ31: 0 | AL31: Service Equipment | AM31: 10 | AN31: 2022 | AO31: 2025 | AP31: 2025.833333 | AQ31: 4.381944444 | AR31: 52.58333333 | AS31: 52.58333333 | AT31: 4.381944444 | AU31: 56.96527778 | AV31: 100.7847222 | AW31: No
B32: 2144 | C32: 292055 | D32: P | E32: New Shop Compressor | F32: 1 | J32: 0 | K32: COMPRESSOR WORLD, LLC | N32: 2022-10-11 | O32: 2022-10-11 | P32: 2144-22-0014-1 | Q32: 500 | R32: 14070 | S32: 11967.99 | T32: 14076 | U32: 2593.07 | V32: 9374.92 | W32: 1994.67 | X32: 51260 | Y32: 199.47 | Z32: P | AB32: 30072733 | AD32: Internal | AE32: A | AF32: SL | AH32: WCNX | AI32: 0 | AJ32: 0 | AL32: Service Equipment | AM32: 10 | AN32: 2022 | AO32: 2027 | AP32: 2027.833333 | AQ32: 199.4665 | AR32: 2393.598 | AS32: 2393.598 | AT32: 199.4665 | AU32: 2593.0645 | AV32: 9374.9255 | AW32: No
B33: 2144 | C33: 287263 | D33: P | E33: 2 Yd REL Containers | F33: 25 | J33: 0 | K33: WASTEQUIP MAYFAB | M33: 2 YD REL Container | N33: 2022-06-21 | O33: 2022-06-21 | P33: 2144-22-0009-3 | Q33: 1200 | R33: 14050 | S33: 20497.57 | T33: 14056 | U33: 2277.51 | V33: 18220.06 | W33: 1423.44 | X33: 54260 | Y33: 142.34 | Z33: P | AB33: 20INV000165818 | AD33: Internal | AE33: A | AF33: SL | AH33: WCNX | AI33: 0 | AJ33: 0 | AL33: Commercial Garbage | AM33: 6 | AN33: 2022 | AO33: 2034 | AP33: 2034.5 | AQ33: 142.3442361 | AR33: 1708.130833 | AS33: 1708.130833 | AT33: 711.7211806 | AU33: 2419.852014 | AV33: 18077.71799 | AW33: No
B34: 2144 | C34: 287262 | D34: P | E34: 1.5 Yd REL Containers | F34: 1 | J34: 0 | K34: WASTEQUIP MAYFAB | M34: 1.5 YD REL Container | N34: 2022-06-21 | O34: 2022-06-21 | P34: 2144-22-0009-3 | Q34: 1200 | R34: 14050 | S34: 603.38 | T34: 14056 | U34: 67.04 | V34: 536.34 | W34: 41.9 | X34: 54260 | Y34: 4.19 | Z34: P | AB34: 20INV000165818 | AD34: Internal | AE34: A | AF34: SL | AH34: WCNX | AI34: 0 | AJ34: 0 | AL34: Commercial Garbage | AM34: 6 | AN34: 2022 | AO34: 2034 | AP34: 2034.5 | AQ34: 4.190138889 | AR34: 50.28166667 | AS34: 50.28166667 | AT34: 20.95069444 | AU34: 71.23236111 | AV34: 532.1476389 | AW34: No
B35: 2144 | C35: 287261 | D35: P | E35: 1.5 Yd REL Containers | F35: 14 | J35: 0 | K35: WASTEQUIP MAYFAB | M35: 1.5 YD REL Container | N35: 2022-06-21 | O35: 2022-06-21 | P35: 2144-22-0009-2 | Q35: 1200 | R35: 14050 | S35: 10507.93 | T35: 14056 | U35: 1167.55 | V35: 9340.38 | W35: 729.72 | X35: 54260 | Y35: 72.97 | Z35: P | AB35: 20INV000165818 | AD35: Internal | AE35: A | AF35: SL | AH35: WCNX | AI35: 0 | AJ35: 0 | AL35: Commercial Garbage | AM35: 6 | AN35: 2022 | AO35: 2034 | AP35: 2034.5 | AQ35: 72.97173611 | AR35: 875.6608333 | AS35: 875.6608333 | AT35: 364.8586806 | AU35: 1240.519514 | AV35: 9267.410486 | AW35: No
B36: 2144 | C36: 287259 | D36: P | E36: 1 Yd REL Containers | F36: 19 | J36: 0 | K36: WASTEQUIP MAYFAB | M36: 1 YD REL Container | N36: 2022-06-17 | O36: 2022-06-17 | P36: 2144-22-0009-1 | Q36: 1200 | R36: 14050 | S36: 14141 | T36: 14056 | U36: 1571.23 | V36: 12569.77 | W36: 982.02 | X36: 54260 | Y36: 98.2 | Z36: P | AB36: 2OINV000165820 | AD36: Internal | AE36: A | AF36: SL | AH36: WCNX | AI36: 0 | AJ36: 0 | AL36: Commercial Garbage | AM36: 6 | AN36: 2022 | AO36: 2034 | AP36: 2034.5 | AQ36: 98.20138889 | AR36: 1178.416667 | AS36: 1178.416667 | AT36: 491.0069444 | AU36: 1669.423611 | AV36: 12471.57639 | AW36: No
B37: 2144 | C37: 287258 | D37: P | E37: 1 Yd REL Containers | F37: 1 | J37: 0 | K37: WASTEQUIP MAYFAB | M37: 1 YD REL Container | N37: 2022-06-17 | O37: 2022-06-17 | P37: 2144-22-0009-2 | Q37: 1200 | R37: 14050 | S37: 603.07 | T37: 14056 | U37: 67.01 | V37: 536.06 | W37: 41.88 | X37: 54260 | Y37: 4.18 | Z37: P | AB37: 2OINV000165820 | AD37: Internal | AE37: A | AF37: SL | AH37: WCNX | AI37: 0 | AJ37: 0 | AL37: Commercial Garbage | AM37: 6 | AN37: 2022 | AO37: 2034 | AP37: 2034.5 | AQ37: 4.187986111 | AR37: 50.25583333 | AS37: 50.25583333 | AT37: 20.93993056 | AU37: 71.19576389 | AV37: 531.8742361 | AW37: No
B38: 2144 | C38: 286787 | D38: P | E38: 3rd Eye Camera Installation | F38: 0 | I38: 94-3283464 | J38: 0 | K38: VELOCITI INC | N38: 2022-01-02 | O38: 2022-01-02 | P38: 1010-22-0039-1 | Q38: 500 | R38: 14070 | S38: 3565.36 | T38: 14076 | U38: 1307.3 | V38: 2258.06 | W38: 594.23 | X38: 51260 | Y38: 59.43 | Z38: P | AB38: BV75626 | AD38: Internal | AE38: A | AF38: SL | AG38: 2022-07-31 | AH38: WCNX | AI38: 0 | AJ38: 415.96 | AL38: Service Equipment | AM38: 1 | AN38: 2022 | AO38: 2027 | AP38: 2027.083333 | AQ38: 59.42266667 | AR38: 713.072 | AS38: 713.072 | AT38: 594.2266667 | AU38: 1307.298667 | AV38: 2258.061333 | AW38: No
B39: 2144 | C39: 282345 | D39: P | E39: MRF Building Improvements | J39: 0 | N39: 2022-06-10 | O39: 2022-06-10 | P39: 2144-22-0010-1 | Q39: 1000 | R39: 14080 | S39: 29225 | T39: 14086 | U39: 4140.21 | V39: 25084.79 | W39: 2435.42 | X39: 57260 | Y39: 243.54 | Z39: P | AD39: Internal | AE39: A | AF39: SL | AH39: WCNX | AI39: 0 | AJ39: 0 | AL39: Building | AM39: 6 | AN39: 2022 | AO39: 2032 | AP39: 2032.5 | AQ39: 243.5416667 | AR39: 2922.5 | AS39: 2922.5 | AT39: 1217.708333 | AU39: 4140.208333 | AV39: 25084.79167 | AW39: No
B40: 2144 | C40: 282318 | D40: P | E40: 2022 Peterbilt ASL Truck | H40: 3BPDLK0X5NF113159 | I40: D44209A | J40: 2022 | K40: Peterbilt | L40: Labrie | M40: Automated Sideload | N40: 2022-05-26 | O40: 2022-05-26 | P40: 2144-22-0004-1 | Q40: 1000 | R40: 14040 | S40: 394499.08 | T40: 14046 | U40: 55887.38 | V40: 338611.7 | W40: 32874.93 | X40: 51260 | Y40: 3287.5 | Z40: P | AC40: 50-19 | AD40: Internal | AE40: A | AF40: SL | AH40: WCNX | AI40: 0 | AJ40: 0 | AL40: Resi/Comm Garbage | AM40: 5 | AN40: 2022 | AO40: 2032 | AP40: 2032.416667 | AQ40: 3287.492333 | AR40: 39449.908 | AS40: 39449.908 | AT40: 19724.954 | AU40: 59174.862 | AV40: 335324.218 | AW40: No
B41: 2144 | C41: 279331 | D41: P | E41: 20 YD RO Containers | F41: 5 | H41: 0 | J41: 0 | K41: ENTERPRISE SALES, INC. | N41: 2006-10-24 | O41: 2006-10-24 | P41: 06-2112-009 | Q41: 1200 | R41: 14050 | S41: 25878.33 | T41: 14056 | U41: 25878.33 | V41: 0 | W41: 0 | X41: 54260 | Y41: 0 | Z41: P | AB41: 3147 | AD41: Internal | AE41: A | AF41: SL | AG41: 2022-04-30 | AH41: WCNX | AI41: 0 | AJ41: 25878.33 | AL41: Drop Boxes | AM41: 10 | AN41: 2006 | AO41: 2018 | AP41: 2018.833333 | AQ41: 179.710625 | AR41: 2156.5275 | AS41: 0 | AT41: 25878.33 | AU41: 25878.33 | AV41: 0 | AW41: No
B42: 2144 | C42: 279330 | D42: P | E42: 20 Yard Drop Boxes, Endless Chaine Style | F42: 3 | J42: 0 | K42: Enterprise Sales, Inc | M42: 20 YD RO Box | N42: 2005-05-16 | O42: 2005-05-16 | P42: 52112003 | Q42: 1200 | R42: 14050 | S42: 12429.14 | T42: 14056 | U42: 12429.14 | V42: 0 | W42: 0 | X42: 54260 | Y42: 0 | Z42: P | AA42: 0 | AB42: 2474 | AD42: Internal | AE42: A | AF42: SL | AG42: 2022-04-30 | AH42: WCNX | AI42: 0 | AJ42: 12429.14 | AL42: Drop Boxes | AM42: 5 | AN42: 2005 | AO42: 2017 | AP42: 2017.416667 | AQ42: 86.31347222 | AR42: 1035.761667 | AS42: 0 | AT42: 12429.14 | AU42: 12429.14 | AV42: 0 | AW42: No
B43: 2144 | C43: 279201 | D43: P | E43: 2022 Peterbilt ASL Truck | H43: 3BPDLK0X1NF113157 | I43: D44086A | J43: 2022 | K43: Peterbilt | L43: Labrie | M43: Automated Sideload | N43: 2022-04-15 | O43: 2022-04-15 | P43: 2144-22-0003-1 | Q43: 1000 | R43: 14040 | S43: 394499.08 | T43: 14046 | U43: 62462.36 | V43: 332036.72 | W43: 32874.93 | X43: 51260 | Y43: 3287.5 | Z43: P | AC43: 50-18 | AD43: Internal | AE43: A | AF43: SL | AH43: WCNX | AI43: 0 | AJ43: 0 | AL43: Resi/Comm Garbage | AM43: 4 | AN43: 2022 | AO43: 2032 | AP43: 2032.333333 | AQ43: 3287.492333 | AR43: 39449.908 | AS43: 39449.908 | AT43: 23012.44633 | AU43: 62462.35433 | AV43: 332036.7257 | AW43: No
B44: 2144 | C44: 274952 | D44: P | E44: 35G MSW Carts | F44: 800 | J44: 0 | K44: REHRIG PACIFIC COMPANY IN | M44: Non-Container Audit | N44: 2022-02-18 | O44: 2022-02-18 | P44: 2144-22-0007-1 | Q44: 700 | R44: 14050 | S44: 40018.99 | T44: 14056 | U44: 9528.34 | V44: 30490.65 | W44: 4764.17 | X44: 54260 | Y44: 476.42 | Z44: P | AB44: 50224374 | AD44: Internal | AE44: A | AF44: SL | AH44: WCNX | AI44: 0 | AJ44: 0 | AL44: Regulated Garbage Carts | AM44: 2 | AN44: 2022 | AO44: 2029 | AP44: 2029.166667 | AQ44: 476.4165476 | AR44: 5716.998571 | AS44: 5716.998571 | AT44: 4287.748929 | AU44: 10004.7475 | AV44: 30014.2425 | AW44: No
B45: 2144 | C45: 274112 | D45: P | E45: 65G MSW Carts | F45: 808 | J45: 0 | K45: REHRIG PACIFIC COMPANY IN | M45: Non-Container Audit | N45: 2022-02-03 | O45: 2022-02-03 | P45: 2144-22-0007-2 | Q45: 700 | R45: 14050 | S45: 47928.61 | T45: 14056 | U45: 11982.16 | V45: 35946.45 | W45: 5705.79 | X45: 54260 | Y45: 570.58 | Z45: P | AB45: 50221367 | AD45: Internal | AE45: A | AF45: SL | AH45: WCNX | AI45: 0 | AJ45: 0 | AL45: Regulated Garbage Carts | AM45: 2 | AN45: 2022 | AO45: 2029 | AP45: 2029.166667 | AQ45: 570.5786905 | AR45: 6846.944286 | AS45: 6846.944286 | AT45: 5135.208214 | AU45: 11982.1525 | AV45: 35946.4575 | AW45: No
B46: 2144 | C46: 272995 | D46: P | E46: 96G MSW Carts | F46: 702 | J46: 0 | K46: REHRIG PACIFIC COMPANY IN | M46: Non-Container Audit | N46: 2022-01-26 | O46: 2022-01-26 | P46: 2144-22-0007-3 | Q46: 700 | R46: 14050 | S46: 47722.65 | T46: 14056 | U46: 11930.67 | V46: 35791.98 | W46: 5681.27 | X46: 54260 | Y46: 568.13 | Z46: P | AB46: 50218530 | AD46: Internal | AE46: A | AF46: SL | AH46: WCNX | AI46: 0 | AJ46: 0 | AL46: Regulated Garbage Carts | AM46: =MONTH($N46) -> 1 | AN46: =YEAR($N46) -> 2022 | AO46: =$AN46+($Q46/100) -> 2029 | AP46: =$AO46+($AM46/12) -> 2029.083333 | AQ46: =IFERROR($S46/($Q46/100)/12,0) -> 568.1267857 | AR46: =$AQ46*12 -> 6817.521429 | AS46: =+IF(AP46<=$AK$9,0,AR46) -> 6817.521429 | AT46: =+IF(AP46<=$AK$10,S46,IF((AN46+(AM46/12))>=$AK$10,0,((S46-((AP46-$AK$10)*12)*AQ46)))) -> 5681.267857 | AU46: 12498.78929 | AV46: 35223.86071 | AW46: No
B47: 2144 | C47: 272994 | D47: P | E47: 35G MSW Carts | F47: 1080 | J47: 0 | K47: REHRIG PACIFIC COMPANY IN | M47: Non-Container Audit | N47: 2022-01-02 | O47: 2022-01-02 | P47: 2144-21-0007-1 | Q47: 700 | R47: 14050 | S47: 53390.83 | T47: 14056 | U47: 13983.31 | V47: 39407.52 | W47: 6356.05 | X47: 54260 | Y47: 635.6 | Z47: P | AB47: 50205154 | AD47: Internal | AE47: A | AF47: SL | AH47: WCNX | AI47: 0 | AJ47: 0 | AL47: Regulated Garbage Carts | AM47: 1 | AN47: 2022 | AO47: 2029 | AP47: 2029.083333 | AQ47: 635.605119 | AR47: 7627.261429 | AS47: 7627.261429 | AT47: 6356.05119 | AU47: 13983.31262 | AV47: 39407.51738 | AW47: No
B48: 2144 | C48: 272993 | D48: P | E48: 35G MSW Carts | F48: 1080 | J48: 0 | K48: REHRIG PACIFIC COMPANY IN | M48: Non-Container Audit | N48: 2022-01-02 | O48: 2022-01-02 | P48: 2144-21-0007-1 | Q48: 700 | R48: 14050 | S48: 53390.83 | T48: 14056 | U48: 13983.31 | V48: 39407.52 | W48: 6356.05 | X48: 54260 | Y48: 635.6 | Z48: P | AB48: 50204963 | AD48: Internal | AE48: A | AF48: SL | AH48: WCNX | AI48: 0 | AJ48: 0 | AL48: Regulated Garbage Carts | AM48: 1 | AN48: 2022 | AO48: 2029 | AP48: 2029.083333 | AQ48: 635.605119 | AR48: 7627.261429 | AS48: 7627.261429 | AT48: 6356.05119 | AU48: 13983.31262 | AV48: 39407.51738 | AW48: No
B49: 2144 | C49: 272575 | D49: 264781 | E49: Cart Rollout - Assembly and Distribution | F49: 0 | J49: 0 | K49: REHRIG PACIFIC COMPANY IN | M49: Non-Container Audit | N49: 2022-01-02 | O49: 2022-01-02 | P49: 2144-21-0007-3 | Q49: 700 | R49: 14050 | S49: 102505 | T49: 14056 | U49: 26846.55 | V49: 75658.45 | W49: 12202.98 | X49: 54260 | Y49: 1220.3 | Z49: P | AB49: 50215548 | AD49: Internal | AE49: A | AF49: SL | AH49: WCNX | AI49: 0 | AJ49: 0 | AL49: Regulated Garbage Carts | AM49: 1 | AN49: 2022 | AO49: 2029 | AP49: 2029.083333 | AQ49: 1220.297619 | AR49: 14643.57143 | AS49: 14643.57143 | AT49: 12202.97619 | AU49: 26846.54762 | AV49: 75658.45238 | AW49: No
B50: 2144 | C50: 272574 | D50: 264764 | E50: Cart Rollout - Assembly and Distribution | F50: 0 | J50: 0 | K50: REHRIG PACIFIC COMPANY IN | M50: Non-Container Audit | N50: 2022-01-02 | O50: 2022-01-02 | P50: 2144-21-0007-2 | Q50: 700 | R50: 14050 | S50: 2349.19 | T50: 14056 | U50: 615.27 | V50: 1733.92 | W50: 279.67 | X50: 54260 | Y50: 27.97 | Z50: P | AB50: 50215548 | AD50: Internal | AE50: A | AF50: SL | AH50: WCNX | AI50: 0 | AJ50: 0 | AL50: Regulated Garbage Carts | AM50: 1 | AN50: 2022 | AO50: 2029 | AP50: 2029.083333 | AQ50: 27.96654762 | AR50: 335.5985714 | AS50: 335.5985714 | AT50: 279.6654762 | AU50: 615.2640476 | AV50: 1733.925952 | AW50: No
B51: 2144 | C51: 270751 | D51: P | E51: 3rd Eye Camera -Cables | J51: 0 | N51: 2021-12-31 | O51: 2021-12-31 | P51: 1010-21-0039 | Q51: 500 | R51: 14070 | S51: 42.4 | T51: 14076 | U51: 15.55 | V51: 26.85 | W51: 7.07 | X51: 51260 | Y51: 0.71 | Z51: P | AD51: Internal | AE51: A | AF51: SL | AH51: WCNX | AI51: 0 | AJ51: 0 | AL51: Resi/Comm Garbage | AM51: 12 | AN51: 2021 | AO51: 2026 | AP51: 2027 | AQ51: 0.7066666667 | AR51: 8.48 | AS51: 8.48 | AT51: 7.773333333 | AU51: 16.25333333 | AV51: 26.14666667 | AW51: No
B52: 2144 | C52: 270629 | D52: P | E52: 3rd Eye Camera - Cables | J52: 0 | N52: 2021-12-31 | O52: 2021-12-31 | P52: 1010-21-0039 | Q52: 500 | R52: 14070 | S52: 74.55 | T52: 14076 | U52: 27.34 | V52: 47.21 | W52: 12.43 | X52: 51260 | Y52: 1.25 | Z52: P | AD52: Internal | AE52: A | AF52: SL | AH52: WCNX | AI52: 0 | AJ52: 0 | AL52: Resi/Comm Garbage | AM52: 12 | AN52: 2021 | AO52: 2026 | AP52: 2027 | AQ52: 1.2425 | AR52: 14.91 | AS52: 14.91 | AT52: 13.6675 | AU52: 28.5775 | AV52: 45.9725 | AW52: No
B53: 2144 | C53: 270625 | D53: P | E53: 3rd Eye Camera | F53: 6 | J53: 0 | N53: 2021-12-31 | O53: 2021-12-31 | P53: 1010-21-0039 | Q53: 500 | R53: 14070 | S53: 3269.17 | T53: 14076 | U53: 1198.69 | V53: 2070.48 | W53: 544.86 | X53: 51260 | Y53: 54.49 | Z53: P | AD53: Internal | AE53: A | AF53: SL | AH53: WCNX | AI53: 0 | AJ53: 0 | AL53: Resi/Comm Garbage | AM53: 12 | AN53: 2021 | AO53: 2026 | AP53: 2027 | AQ53: 54.48616667 | AR53: 653.834 | AS53: 653.834 | AT53: 599.3478333 | AU53: 1253.181833 | AV53: 2015.988167 | AW53: No
B54: 2144 | C54: 270175 | D54: P | E54: 65 Gal MSW Carts | F54: 936 | J54: 0 | K54: REHRIG PACIFIC COMPANY IN | M54: Non-Container Audit | N54: 2021-11-01 | O54: 2021-11-01 | P54: 2144-21-0007-2 | Q54: 700 | R54: 14050 | S54: 57887.27 | T54: 14056 | U54: 16539.22 | V54: 41348.05 | W54: 6891.34 | X54: 54260 | Y54: 689.13 | Z54: P | AB54: 50199759 | AD54: Internal | AE54: A | AF54: SL | AH54: WCNX | AI54: 0 | AJ54: 0 | AL54: Regulated Garbage Carts | AM54: 11 | AN54: 2021 | AO54: 2028 | AP54: 2028.916667 | AQ54: 689.1341667 | AR54: 8269.61 | AS54: 8269.61 | AT54: 8269.61 | AU54: 16539.22 | AV54: 41348.05 | AW54: No
B55: 2144 | C55: 265537 | D55: P | E55: Used 1992 Wabi Van Trailers #9202 | F55: 0 | H55: 1JJV533Y0NL176229 | I55: 48189AE | J55: 1992 | K55: Wabi Van | L55: Other | M55: Trailer | N55: 2010-12-01 | O55: 2010-12-01 | P55: 2170-10-0006-1 | Q55: 300 | R55: 14040 | S55: 5902.2 | T55: 14046 | U55: 5902.2 | V55: 0 | W55: 0 | X55: 51260 | Y55: 0 | Z55: P | AB55: October 20 2010 | AC55: 9202 | AD55: Internal | AE55: A | AF55: SL | AG55: 2021-10-31 | AH55: WCNX | AI55: 0 | AJ55: 5902.2 | AL55: Long Haul | AM55: 12 | AN55: 2010 | AO55: 2013 | AP55: 2014 | AQ55: 163.95 | AR55: 1967.4 | AS55: 0 | AT55: 5902.2 | AU55: 5902.2 | AV55: 0 | AW55: No
B56: 2144 | C56: 265455 | D56: P | E56: Drive Cam Units | F56: 1 | J56: 0 | N56: 2021-11-01 | O56: 2021-11-01 | P56: 1010-21-0038 | Q56: 500 | R56: 14070 | S56: 539.05 | T56: 14076 | U56: 215.61 | V56: 323.44 | W56: 89.84 | X56: 51260 | Y56: 8.98 | Z56: P | AD56: Internal | AE56: A | AF56: SL | AH56: WCNX | AI56: 0 | AJ56: 0 | AL56: Service Equipment | AM56: 11 | AN56: 2021 | AO56: 2026 | AP56: 2026.916667 | AQ56: 8.984166667 | AR56: 107.81 | AS56: 107.81 | AT56: 107.81 | AU56: 215.62 | AV56: 323.43 | AW56: No
B57: 2144 | C57: 265058 | D57: P | E57: 2022 Freightliner REL Truck | H57: 1FVHCYFEXNHNG2427 | I57: C34905Y | J57: 2022 | K57: Freightliner | L57: Mcneilus | M57: REL Truck | N57: 2021-11-19 | O57: 2021-11-19 | P57: 2144-21-0002 | Q57: 1000 | R57: 14040 | S57: 255869.24 | T57: 14046 | U57: 49041.58 | V57: 206827.66 | W57: 21322.43 | X57: 51260 | Y57: 2132.24 | Z57: P | AC57: 50-17 | AD57: Internal | AE57: A | AF57: SL | AH57: WCNX | AI57: 0 | AJ57: 0 | AL57: Resi/Comm Garbage | AM57: 11 | AN57: 2021 | AO57: 2031 | AP57: 2031.916667 | AQ57: 2132.243667 | AR57: 25586.924 | AS57: 25586.924 | AT57: 25586.924 | AU57: 51173.848 | AV57: 204695.392 | AW57: No
B58: 2144 | C58: 264781 | D58: P | E58: 65G MSW Carts | F58: 451 | J58: 0 | K58: REHRIG PACIFIC COMPANY IN | M58: Non-Container Audit | N58: 2021-11-01 | O58: 2021-11-01 | P58: 2144-21-0007-2 | Q58: 700 | R58: 14050 | S58: 27075.01 | T58: 14056 | U58: 7735.72 | V58: 19339.29 | W58: 3223.22 | X58: 54260 | Y58: 322.32 | Z58: P | AB58: 50200391 | AD58: Internal | AE58: A | AF58: SL | AH58: WCNX | AI58: 0 | AJ58: 0 | AL58: Regulated Garbage Carts | AM58: 11 | AN58: 2021 | AO58: 2028 | AP58: 2028.916667 | AQ58: 322.3215476 | AR58: 3867.858571 | AS58: 3867.858571 | AT58: 3867.858571 | AU58: 7735.717143 | AV58: 19339.29286 | AW58: No
B59: 2144 | C59: 264766 | D59: P | E59: 35G MSW carts | F59: 517 | J59: 0 | K59: REHRIG PACIFIC COMPANY IN | M59: Non-Container Audit | N59: 2021-11-01 | O59: 2021-11-01 | P59: 2144-21-0007-1 | Q59: 700 | R59: 14050 | S59: 25562.17 | T59: 14056 | U59: 7303.48 | V59: 18258.69 | W59: 3043.12 | X59: 54260 | Y59: 304.31 | Z59: P | AB59: 50200391 | AD59: Internal | AE59: A | AF59: SL | AH59: WCNX | AI59: 0 | AJ59: 0 | AL59: Regulated Garbage Carts | AM59: 11 | AN59: 2021 | AO59: 2028 | AP59: 2028.916667 | AQ59: 304.3115476 | AR59: 3651.738571 | AS59: 3651.738571 | AT59: 3651.738571 | AU59: 7303.477143 | AV59: 18258.69286 | AW59: No
B60: 2144 | C60: 264765 | D60: P | E60: 35G MSW Carts | F60: 1080 | J60: 0 | K60: REHRIG PACIFIC COMPANY IN | M60: Non-Container Audit | N60: 2021-11-01 | O60: 2021-11-01 | P60: 2144-21-0007-1 | Q60: 700 | R60: 14050 | S60: 53390.83 | T60: 14056 | U60: 15254.52 | V60: 38136.31 | W60: 6356.05 | X60: 54260 | Y60: 635.6 | Z60: P | AB60: 50204740 | AD60: Internal | AE60: A | AF60: SL | AH60: WCNX | AI60: 0 | AJ60: 0 | AL60: Regulated Garbage Carts | AM60: 11 | AN60: 2021 | AO60: 2028 | AP60: 2028.916667 | AQ60: 635.605119 | AR60: 7627.261429 | AS60: 7627.261429 | AT60: 7627.261429 | AU60: 15254.52286 | AV60: 38136.30714 | AW60: No
B61: 2144 | C61: 264764 | D61: P | E61: 35G MSW carts | F61: 1080 | J61: 0 | K61: REHRIG PACIFIC COMPANY IN | M61: Non-Container Audit | N61: 2021-11-01 | O61: 2021-11-01 | P61: 2144-21-0007-1 | Q61: 700 | R61: 14050 | S61: 53398.74 | T61: 14056 | U61: 15256.78 | V61: 38141.96 | W61: 6356.99 | X61: 54260 | Y61: 635.7 | Z61: P | AB61: 50200391 | AD61: Internal | AE61: A | AF61: SL | AH61: WCNX | AI61: 0 | AJ61: 0 | AL61: Regulated Garbage Carts | AM61: 11 | AN61: 2021 | AO61: 2028 | AP61: 2028.916667 | AQ61: 635.6992857 | AR61: 7628.391429 | AS61: 7628.391429 | AT61: 7628.391429 | AU61: 15256.78286 | AV61: 38141.95714 | AW61: No
B62: 2144 | C62: 257134 | D62: P | E62: 40YD. | F62: 11 | J62: 0 | M62: 40 YD RO Box | N62: 2008-11-03 | O62: 2008-11-03 | Q62: 700 | R62: 14050 | S62: 14259.83 | T62: 14056 | U62: 14259.83 | V62: 0 | W62: 0 | X62: 54260 | Y62: 0 | Z62: A | AA62: LeMay Enterprises | AD62: Internal | AE62: A | AF62: SL | AG62: 2022-04-30 | AH62: WCNX | AI62: 1 | AJ62: 14259.83 | AL62: Drop Boxes | AM62: 11 | AN62: 2008 | AO62: 2015 | AP62: 2015.916667 | AQ62: 169.759881 | AR62: 2037.118571 | AS62: 0 | AT62: 14259.83 | AU62: 14259.83 | AV62: 0 | AW62: No
B63: 2144 | C63: 257133 | D63: P | E63: 10 Yard R/O Containers | F63: 1 | J63: 0 | M63: 10 YD RO Box | N63: 2008-11-03 | O63: 2008-11-03 | Q63: 700 | R63: 14050 | S63: 4500 | T63: 14056 | U63: 4500 | V63: 0 | W63: 0 | X63: 54260 | Y63: 0 | Z63: A | AA63: LeMay Enterprises | AD63: Internal | AE63: A | AF63: SL | AG63: 2021-07-31 | AH63: WCNX | AI63: 0 | AJ63: 4500 | AL63: Drop Boxes | AM63: 11 | AN63: 2008 | AO63: 2015 | AP63: 2015.916667 | AQ63: 53.57142857 | AR63: 642.8571429 | AS63: 0 | AT63: 4500 | AU63: 4500 | AV63: 0 | AW63: No
B64: 2144 | C64: 256594 | D64: P | E64: 20yd Drop Box | F64: 12 | J64: 0 | M64: 20 YD RO Box | N64: 1990-10-30 | O64: 1990-10-30 | Q64: 1200 | R64: 14050 | S64: 37130.72 | T64: 14056 | U64: 37130.72 | V64: 0 | W64: 0 | X64: 54260 | Y64: 0 | Z64: A | AA64: DM Recycling | AD64: Internal | AE64: A | AF64: SL | AG64: 2021-07-31 | AH64: WCNX | AI64: 0 | AJ64: 37130.72 | AL64: Drop Boxes | AM64: 10 | AN64: 1990 | AO64: 2002 | AP64: 2002.833333 | AQ64: 257.8522222 | AR64: 3094.226667 | AS64: 0 | AT64: 37130.72 | AU64: 37130.72 | AV64: 0 | AW64: No
B65: 2144 | C65: 256593 | D65: P | E65: 20 yd Drop Box (U) | F65: 1 | J65: 0 | M65: 20 YD RO Box | N65: 1989-07-01 | O65: 1989-07-01 | Q65: 1200 | R65: 14050 | S65: 1000 | T65: 14056 | U65: 1000 | V65: 0 | W65: 0 | X65: 54260 | Y65: 0 | Z65: A | AA65: DM Recycling | AD65: Internal | AE65: A | AF65: SL | AG65: 2023-05-31 | AH65: WCNX | AI65: 2 | AJ65: 1000 | AL65: Drop Boxes | AM65: 7 | AN65: 1989 | AO65: 2001 | AP65: 2001.583333 | AQ65: 6.944444444 | AR65: 83.33333333 | AS65: 0 | AT65: 1000 | AU65: 1000 | AV65: 0 | AW65: No
B66: 2144 | C66: 249883 | D66: P | E66: 35Gal MSW Carts (Gray) | F66: 1080 | J66: 0 | K66: REHRIG PACIFIC COMPANY IN | M66: Non-Container Audit | N66: 2021-03-26 | O66: 2021-03-26 | P66: 2144-21-0005-1 | Q66: 700 | R66: 14050 | S66: 39386.36 | T66: 14056 | U66: 14535.44 | V66: 24850.92 | W66: 4688.85 | X66: 54260 | Y66: 468.88 | Z66: P | AB66: 50161004 | AD66: Internal | AE66: A | AF66: SL | AH66: WCNX | AI66: 0 | AJ66: 0 | AL66: Regulated Garbage Carts | AM66: 3 | AN66: 2021 | AO66: 2028 | AP66: 2028.25 | AQ66: 468.8852381 | AR66: 5626.622857 | AS66: 5626.622857 | AT66: 9377.704762 | AU66: 15004.32762 | AV66: 24382.03238 | AW66: No
B67: 2144 | C67: 249882 | D67: P | E67: 65 Gal MSW Carts (Gray) | F67: 468 | J67: 0 | K67: REHRIG PACIFIC COMPANY IN | M67: Non-Container Audit | N67: 2021-03-26 | O67: 2021-03-26 | P67: 2144-21-0005-1 | Q67: 700 | R67: 14050 | S67: 19611 | T67: 14056 | U67: 7237.39 | V67: 12373.61 | W67: 2334.64 | X67: 54260 | Y67: 233.46 | Z67: P | AB67: 50159555 | AD67: Internal | AE67: A | AF67: SL | AH67: WCNX | AI67: 0 | AJ67: 0 | AL67: Regulated Garbage Carts | AM67: 3 | AN67: 2021 | AO67: 2028 | AP67: 2028.25 | AQ67: 233.4642857 | AR67: 2801.571429 | AS67: 2801.571429 | AT67: 4669.285714 | AU67: 7470.857143 | AV67: 12140.14286 | AW67: No
B68: 2144 | C68: 240610 | D68: 240609 | E68: (18) Lytx Drivecams - Harness | F68: 18 | J68: 0 | K68: Lytx | N68: 2020-10-05 | O68: 2020-10-05 | P68: 2144-20-0006-1 | Q68: 500 | R68: 14070 | S68: 132.62 | T68: 14076 | U68: 81.77 | V68: 50.85 | W68: 22.1 | X68: 51260 | Y68: 2.21 | Z68: P | AB68: 5315184 | AD68: Internal | AE68: A | AF68: SL | AH68: WCNX | AI68: 0 | AJ68: 0
B69: 2144 | C69: 240609 | D69: P | E69: (18) SF300 Drivecam Units | F69: 18 | J69: 0 | K69: LYTX | N69: 2020-10-05 | O69: 2020-10-05 | P69: 2144-20-0006-1 | Q69: 500 | R69: 14070 | S69: 15265.31 | T69: 14076 | U69: 9413.61 | V69: 5851.7 | W69: 2544.22 | X69: 51260 | Y69: 254.42 | Z69: P | AB69: 5313062 | AD69: Internal | AE69: A | AF69: SL | AH69: WCNX | AI69: 0 | AJ69: 0
B70: 2144 | C70: 237927 | D70: P | E70: 2 yd Containers w/Lids | F70: 20 | J70: 0 | M70: 2 YD FEL/REL/SL Metal | N70: 1988-01-05 | O70: 1988-01-05 | Q70: 1200 | R70: 14050 | S70: 2500 | T70: 14056 | U70: 2500 | V70: 0 | W70: 0 | X70: 54260 | Y70: 0 | Z70: A | AA70: DM Recycling | AD70: Internal | AE70: A | AF70: SL | AG70: 2020-08-31 | AH70: WCNX | AI70: 0 | AJ70: 2500
B71: 2144 | C71: 236710 | D71: P | E71: 64 GAL MSW CARTS | F71: 468 | J71: 0 | K71: WASTEQUIP LLC | M71: Non-Container Audit | N71: 2020-07-14 | O71: 2020-07-14 | P71: 2144-20-0005-1 | Q71: 700 | R71: 14050 | S71: 16268.74 | T71: 14056 | U71: 7747.03 | V71: 8521.71 | W71: 1936.76 | X71: 54260 | Y71: 193.68 | Z71: P | AB71: 65685788 | AD71: Internal | AE71: A | AF71: SL | AH71: WCNX | AI71: 0 | AJ71: 0
B72: 2144 | C72: 230382 | D72: 225692 | E72: Use Tax and Licensing-Service Truck | J72: 0 | K72: N/A | L72: N/A | M72: Non-Rolling Stock | N72: 2020-01-07 | O72: 2020-01-07 | P72: 2144-19-0013-1 | Q72: 1000 | R72: 14040 | S72: 6981.69 | T72: 14046 | U72: 2676.28 | V72: 4305.41 | W72: 581.8 | X72: 51260 | Y72: 58.18 | Z72: P | AB72: C24409T | AD72: Internal | AE72: A | AF72: SL | AH72: WCNX | AI72: 0 | AJ72: 0
B73: 2144 | C73: 225970 | D73: P | E73: 35 GAL MSW CARTS | F73: 945 | J73: 0 | K73: WASTEQUIP TOTER | M73: Non-Container Audit | N73: 2019-09-28 | O73: 2019-09-28 | P73: 2144-19-0012-1 | Q73: 700 | R73: 14050 | S73: 37637.16 | T73: 14056 | U73: 21955.03 | V73: 15682.13 | W73: 4480.62 | X73: 54260 | Y73: 448.06 | Z73: P | AB73: 65624622 | AD73: Internal | AE73: A | AF73: SL | AH73: WCNX | AI73: 0 | AJ73: 0
B74: 2144 | C74: 225969 | D74: P | E74: 35 GAL MSW CARTS | F74: 945 | J74: 0 | K74: WASTEQUIP TOTER | M74: Non-Container Audit | N74: 2019-09-28 | O74: 2019-09-28 | P74: 2144-19-0012-1 | Q74: 700 | R74: 14050 | S74: 37637.16 | T74: 14056 | U74: 21955.03 | V74: 15682.13 | W74: 4480.62 | X74: 54260 | Y74: 448.06 | Z74: P | AB74: 65625241 | AD74: Internal | AE74: A | AF74: SL | AH74: WCNX | AI74: 0 | AJ74: 0
B75: 2144 | C75: 225692 | D75: P | E75: 2019 Ford F250 Service Truck | H75: 1FDBF2AT5KEF61078 | I75: C24409T | J75: 2019 | K75: Ford | L75: Ford | M75: Service Truck | N75: 2019-12-31 | O75: 2019-12-31 | P75: 4025-19-0006 | Q75: 500 | R75: 14040 | S75: 74322.06 | T75: 14046 | U75: 56980.24 | V75: 17341.82 | W75: 12387.01 | X75: 51260 | Y75: 1238.7 | Z75: P | AC75: 50-02 | AD75: Internal | AE75: A | AF75: SL | AH75: WCNX | AI75: 0 | AJ75: 0
B76: 2144 | C76: 223826 | D76: 218618 | E76: Coropla Sign's | J76: 0 | M76: Non-Rolling Stock | N76: 2019-11-01 | O76: 2019-11-01 | P76: 2144-19-0001 | Q76: 1000 | R76: 14040 | S76: 1502.23 | T76: 14046 | U76: 600.88 | V76: 901.35 | W76: 125.18 | X76: 51260 | Y76: 12.51 | Z76: P | AD76: Internal | AE76: A | AF76: SL | AH76: WCNX | AI76: 0 | AJ76: 0
B77: 2144 | C77: 222637 | D77: P | E77: 2YD REL Metal Containers | F77: 20 | J77: 0 | K77: CAPITAL INDUSTRIES INC | M77: 2 YD FEL/REL/SL Metal | N77: 2019-07-17 | O77: 2019-07-17 | P77: 2144-19-0011-2 | Q77: 1200 | R77: 14050 | S77: 14663.63 | T77: 14056 | U77: 5193.37 | V77: 9470.26 | W77: 1018.31 | X77: 54260 | Y77: 101.83 | Z77: P | AB77: 154453 | AD77: Internal | AE77: A | AF77: SL | AH77: WCNX | AI77: 0 | AJ77: 0
B78: 2144 | C78: 222014 | D78: P | E78: 1 YARD REAR LOAD CONTAINER | F78: 19 | J78: 0 | K78: CAPITAL INDUSTRIES INC | M78: 1 YD FEL/REL/SL Metal | N78: 2019-07-17 | O78: 2019-07-17 | P78: 2144-19-0011-1 | Q78: 1200 | R78: 14050 | S78: 11875.48 | T78: 14056 | U78: 4205.88 | V78: =S78-U78 -> 7669.6 | W78: 824.68 | X78: 54260 | Y78: 82.46 | Z78: P | AB78: 154452 | AD78: Internal | AE78: A | AF78: SL | AH78: WCNX | AI78: 0 | AJ78: 0
B79: 2144 | C79: 218618 | D79: P | E79: 2019 Peterbilt 520 ASL | H79: 3BPDL70XXKF106278 | I79: C52766S | J79: 2019 | K79: Peterbilt | L79: Labrie | M79: Automated Sideload | N79: 2019-08-31 | O79: 2019-08-31 | P79: 2144-19-0001-1 | Q79: 1000 | R79: 14040 | S79: 359143.82 | T79: 14046 | U79: 149643.21 | V79: 209500.61 | W79: 29928.65 | X79: 51260 | Y79: 2992.86 | Z79: P | AC79: 50-15 | AD79: Internal | AE79: A | AF79: SL | AH79: WCNX | AI79: 0 | AJ79: 0
B80: 2144 | C80: 212943 | D80: 71169 | E80: Capital Repair - Truck 50-39 Engine | I80: 94-3283464 | J80: 0 | K80: RWC Group | M80: Non-Rolling Stock | N80: 2019-03-15 | O80: 2019-03-15 | P80: 2144-19-0008-1 | Q80: 300 | R80: 14040 | S80: 25477.01 | T80: 14046 | U80: 25477.01 | V80: 0 | W80: 0 | X80: 51260 | Y80: 0 | Z80: P | AB80: 168797 | AD80: Internal | AE80: A | AF80: SL | AH80: WCNX | AI80: 0 | AJ80: 0
B81: 2144 | C81: 212748 | D81: P | E81: 96Gal MSW Carts | F81: 656 | I81: 94-3283464 | J81: 0 | K81: TOTER LLC | N81: 2019-04-23 | O81: 2019-04-23 | P81: 2144-19-0010-3 | Q81: 700 | R81: 14050 | S81: 32752.49 | T81: 14056 | U81: 21055.19 | V81: 11697.3 | W81: 3899.11 | X81: 54260 | Y81: 389.91 | Z81: P | AB81: 65164665 | AD81: Internal | AE81: A | AF81: SL | AH81: WCNX | AI81: 0 | AJ81: 0
B82: 2144 | C82: 212747 | D82: P | E82: 65Gal MSW Carts | F82: 1728 | I82: 94-3283464 | J82: 0 | K82: TOTER LLC | N82: 2019-04-23 | O82: 2019-04-23 | P82: 2144-19-0010-2 | Q82: 700 | R82: 14050 | S82: 78763 | T82: 14056 | U82: 50633.37 | V82: 28129.63 | W82: 9376.55 | X82: 54260 | Y82: 937.65 | Z82: P | AB82: 65164665 | AD82: Internal | AE82: A | AF82: SL | AH82: WCNX | AI82: 0 | AJ82: 0
B83: 2144 | C83: 212746 | D83: P | E83: 35Gal MSW Carts | F83: 945 | I83: 94-3283464 | J83: 0 | K83: TOTER LLC | N83: 2019-04-23 | O83: 2019-04-23 | P83: 2144-19-0010-1 | Q83: 700 | R83: 14050 | S83: 38451 | T83: 14056 | U83: 24718.5 | V83: 13732.5 | W83: 4577.5 | X83: 54260 | Y83: 457.75 | Z83: P | AB83: 65164665 | AD83: Internal | AE83: A | AF83: SL | AH83: WCNX | AI83: 0 | AJ83: 0
B84: 2144 | C84: 212191 | D84: 48617 | E84: TRUCK 50 - 36 HEAD GASKET REPAIR | J84: 0 | K84: CORCENTRIC COLLECTIVE BUS | M84: Non-rolling stock | N84: 2019-02-21 | O84: 2019-02-21 | P84: 2144-19-0009-1 | Q84: 300 | R84: 14040 | S84: 12907.95 | T84: 14046 | U84: 12907.95 | V84: 0 | W84: 0 | X84: 51260 | Y84: 0 | Z84: P | AB84: DTI011457823 | AD84: Internal | AE84: A | AF84: SL | AH84: WCNX | AI84: 0 | AJ84: 0
B85: 2144 | C85: 206447 | D85: P | E85: Diagnostic Software | J85: 0 | K85: NOREGON SYSTEMS INC | N85: 2018-07-31 | O85: 2018-07-31 | P85: 2144-18-0013-1 | Q85: 300 | R85: 14110 | S85: 5897 | T85: 14116 | U85: 5897 | V85: 0 | W85: 0 | X85: 70260 | Y85: 0 | Z85: P | AB85: 180116 | AD85: Internal | AE85: A | AF85: SL | AH85: WCNX | AI85: 0 | AJ85: 0
B86: 2144 | C86: 206371 | D86: 206362 | E86: Loader Planetaries - Rear, Left | J86: 2018 | M86: Non-Rolling Stock | N86: 2018-10-31 | O86: 2018-10-31 | P86: 2144-18-0010-1 | Q86: 300 | R86: 14030 | S86: 2594.13 | T86: 14036 | U86: 2594.13 | V86: 0 | W86: 0 | X86: 51260 | Y86: 0 | Z86: P | AB86: 85253 | AD86: Internal | AE86: A | AF86: SL | AH86: WCNX | AI86: 0 | AJ86: 0
B87: 2144 | C87: 206370 | D87: 206362 | E87: Loader Planetaries - Rear, Right | J87: 2018 | M87: Non-Rolling Stock | N87: 2018-10-31 | O87: 2018-10-31 | P87: 2144-18-0010-1 | Q87: 300 | R87: 14030 | S87: 2594.13 | T87: 14036 | U87: 2594.13 | V87: 0 | W87: 0 | X87: 51260 | Y87: 0 | Z87: P | AB87: 85253 | AD87: Internal | AE87: A | AF87: SL | AH87: WCNX | AI87: 0 | AJ87: 0
B88: 2144 | C88: 206369 | D88: 206362 | E88: Loader Planetaries - Front, Left | J88: 2018 | M88: Non-Rolling Stock | N88: 2018-10-31 | O88: 2018-10-31 | P88: 2144-18-0010-1 | Q88: 300 | R88: 14030 | S88: 2594.13 | T88: 14036 | U88: 2594.13 | V88: 0 | W88: 0 | X88: 51260 | Y88: 0 | Z88: P | AB88: 85253 | AD88: Internal | AE88: A | AF88: SL | AH88: WCNX | AI88: 0 | AJ88: 0
B89: 2144 | C89: 206368 | D89: 206362 | E89: Loader Planetaries - Front, Right | J89: 2018 | M89: Non-Rolling Stock | N89: 2018-10-31 | O89: 2018-10-31 | P89: 2144-18-0010-1 | Q89: 300 | R89: 14030 | S89: 2594.13 | T89: 14036 | U89: 2594.13 | V89: 0 | W89: 0 | X89: 51260 | Y89: 0 | Z89: P | AB89: 85253 | AD89: Internal | AE89: A | AF89: SL | AH89: WCNX | AI89: 0 | AJ89: 0
B90: 2144 | C90: 206367 | D90: 206362 | E90: Loader Differentials - Rear | J90: 2018 | M90: Non-Rolling Stock | N90: 2018-10-31 | O90: 2018-10-31 | P90: 2144-18-0010-1 | Q90: 300 | R90: 14030 | S90: 4323.54 | T90: 14036 | U90: 4323.54 | V90: 0 | W90: 0 | X90: 51260 | Y90: 0 | Z90: P | AB90: 85253 | AD90: Internal | AE90: A | AF90: SL | AH90: WCNX | AI90: 0 | AJ90: 0
B91: 2144 | C91: 206366 | D91: 206362 | E91: Loader Differentials - Front | J91: 2018 | M91: Non-Rolling Stock | N91: 2018-10-31 | O91: 2018-10-31 | P91: 2144-18-0010-1 | Q91: 300 | R91: 14030 | S91: 4323.54 | T91: 14036 | U91: 4323.54 | V91: 0 | W91: 0 | X91: 51260 | Y91: 0 | Z91: P | AB91: 85253 | AD91: Internal | AE91: A | AF91: SL | AH91: WCNX | AI91: 0 | AJ91: 0
B92: 2144 | C92: 206365 | D92: 206362 | E92: Loader Hydraulic Pumps, Drive Motors, Gear Boxes | J92: 2018 | M92: Non-Rolling Stock | N92: 2018-10-31 | O92: 2018-10-31 | P92: 2144-18-0010-1 | Q92: 300 | R92: 14030 | S92: 3458.83 | T92: 14036 | U92: 3458.83 | V92: 0 | W92: 0 | X92: 51260 | Y92: 0 | Z92: P | AB92: 85253 | AD92: Internal | AE92: A | AF92: SL | AH92: WCNX | AI92: 0 | AJ92: 0
B93: 2144 | C93: 206364 | D93: 206362 | E93: Loader Transmission | J93: 2018 | M93: Non-Rolling Stock | N93: 2018-10-31 | O93: 2018-10-31 | P93: 2144-18-0010-1 | Q93: 300 | R93: 14030 | S93: 6917.67 | T93: 14036 | U93: 6917.67 | V93: 0 | W93: 0 | X93: 51260 | Y93: 0 | Z93: P | AB93: 85253 | AD93: Internal | AE93: A | AF93: SL | AH93: WCNX | AI93: 0 | AJ93: 0
B94: 2144 | C94: 206363 | D94: 206362 | E94: Loader Engine | J94: 2018 | M94: Non-Rolling Stock | N94: 2018-10-31 | O94: 2018-10-31 | P94: 2144-18-0010-1 | Q94: 300 | R94: 14030 | S94: 10376.5 | T94: 14036 | U94: 10376.5 | V94: 0 | W94: 0 | X94: 51260 | Y94: 0 | Z94: P | AB94: 85253 | AD94: Internal | AE94: A | AF94: SL | AH94: WCNX | AI94: 0 | AJ94: 0
B95: 2144 | C95: 206362 | D95: P | E95: Mecalac AX850 Bucket Loader | H95: W09P85253JBA08820 | I95: N/A | J95: 2018 | K95: MECALAC | L95: MECALAC | M95: Bucket Loader | N95: 2018-10-31 | O95: 2018-10-31 | P95: 2144-18-0010-1 | Q95: 1200 | R95: 14030 | S95: 46694.25 | T95: 14036 | U95: 19455.95 | V95: 27238.3 | W95: 3242.66 | X95: 51260 | Y95: 324.27 | Z95: P | AB95: 85253 | AC95: Loader 1 | AD95: Internal | AE95: A | AF95: SL | AH95: WCNX | AI95: 0 | AJ95: 0
B96: 2144 | C96: 206245 | D96: P | E96: Nexiq USB Link 2 | J96: 0 | K96: Nexiq | N96: 2018-07-31 | O96: 2018-07-31 | P96: 2144-18-0013-1 | Q96: 300 | R96: 14110 | S96: 768.37 | T96: 14116 | U96: 768.37 | V96: 0 | W96: 0 | X96: 70260 | Y96: 0 | Z96: P | AB96: 9655 | AD96: Internal | AE96: A | AF96: SL | AH96: WCNX | AI96: 0 | AJ96: 0
B97: 2144 | C97: 206229 | D97: P | E97: AC Machine (Robinair B34988NI) | J97: 0 | K97: Tooltopia | N97: 2018-10-04 | O97: 2018-10-04 | P97: 2144-18-0014-1 | Q97: 500 | R97: 14070 | S97: 4346.8 | T97: 14076 | U97: 4346.8 | V97: 0 | W97: 652.02 | X97: 51260 | Y97: 0 | Z97: P | AB97: 1107066 | AD97: Internal | AE97: A | AF97: SL | AH97: WCNX | AI97: 0 | AJ97: 0
B98: 2144 | C98: 206217 | D98: P | E98: 20 YARD ROLL OFF BOXES | F98: 2 | J98: 0 | K98: WASTEQUIP WC | M98: 20 YD RO Box | N98: 2018-09-26 | O98: 2018-09-26 | P98: 2144-18-0012-1 | Q98: 1200 | R98: 14050 | S98: 12967 | T98: 14056 | U98: 5492.95 | V98: 7474.05 | W98: 900.48 | X98: 54260 | Y98: 90.04 | Z98: P | AB98: 37217807 | AD98: Internal | AE98: A | AF98: SL | AH98: WCNX | AI98: 0 | AJ98: 0
B99: 2144 | C99: 206216 | D99: P | E99: 20 YARD ROLL OFF BOXES | F99: 4 | J99: 0 | K99: WASTEQUIP WC | M99: 20 YD RO Box | N99: 2018-09-26 | O99: 2018-09-26 | P99: 2144-18-0012-1 | Q99: 1200 | R99: 14050 | S99: 25934 | T99: 14056 | U99: 10985.95 | V99: 14948.05 | W99: 1800.98 | X99: 54260 | Y99: 180.1 | Z99: P | AB99: 37217787 | AD99: Internal | AE99: A | AF99: SL | AH99: WCNX | AI99: 0 | AJ99: 0
B100: 2144 | C100: 206185 | D100: P | E100: Foam Filled Tires for Loader | J100: 2018 | K100: MECALAC | L100: MECALAC | M100: Non-Rolling Stock | N100: 2018-10-31 | O100: 2018-10-31 | P100: 2144-18-0010-1 | Q100: 300 | R100: 14030 | S100: 2460.74 | T100: 14036 | U100: 2460.74 | V100: 0 | W100: 0 | X100: 51260 | Y100: 0 | Z100: P | AB100: 127194 | AD100: Internal | AE100: A | AF100: SL | AH100: WCNX | AI100: 0 | AJ100: 0
B101: 2144 | C101: 205008 | D101: P | E101: 40Yd Rolloff Boxes | F101: 2 | J101: 0 | K101: Wastequip | M101: 40 YD RO Box | N101: 2018-09-26 | O101: 2018-09-26 | P101: 2144-18-0012-1 | Q101: 1200 | R101: 14050 | S101: 15593 | T101: 14056 | U101: 6605.39 | V101: 8987.61 | W101: 1082.85 | X101: 54260 | Y101: 108.28 | Z101: P | AB101: 37217758 | AD101: Internal | AE101: A | AF101: SL | AH101: WCNX | AI101: 0 | AJ101: 0
B102: 2144 | C102: 203974 | D102: P | E102: Isuzu-IDDS License Software | J102: 0 | K102: NOREGON SYSTEMS INC | N102: 2018-07-31 | O102: 2018-07-31 | P102: 2144-18-0013-1 | Q102: 300 | R102: 14110 | S102: 1429 | T102: 14116 | U102: 1429 | V102: 0 | W102: 0 | X102: 70260 | Y102: 0 | Z102: P | AB102: 178945 | AD102: Internal | AE102: A | AF102: SL | AH102: WCNX | AI102: 0 | AJ102: 0
B103: 2144 | C103: 203844 | D103: P | E103: 2019 Peterbilt 520 ASL Truck | H103: 3BPDL70X4KF103957 | I103: C62111N | J103: 2019 | K103: PETERBILT | L103: Labrie | M103: Automated Sideload | N103: 2018-10-12 | O103: 2018-10-12 | P103: 2144-18-0001-1 | Q103: 1000 | R103: 14040 | S103: 339628.44 | T103: 14046 | U103: 172644.44 | V103: 166984 | W103: 28302.37 | X103: 51260 | Y103: 2830.24 | Z103: P | AB103: 9934 | AC103: 50-09 | AD103: Internal | AE103: A | AF103: SL | AH103: WCNX | AI103: 0 | AJ103: 0
B104: 2144 | C104: 202702 | D104: 197551 | E104: Radio Installation | J104: 0 | K104: DAY MANAGEMENT CORP | M104: Non-Rolling Stock | N104: 2018-05-14 | O104: 2018-05-14 | P104: 2144-18-0007-1 | Q104: 500 | R104: 14040 | S104: 1510.87 | T104: 14046 | U104: 1510.87 | V104: 0 | W104: 100.74 | X104: 51260 | Y104: 0 | Z104: P | AB104: 220363-00 | AD104: Internal | AE104: A | AF104: SL | AH104: WCNX | AI104: 0 | AJ104: 0
B105: 2144 | C105: 202513 | D105: P | E105: Shop Diagnostic Laptop - Panasonic Toughbook 14" | J105: 0 | K105: CDW | N105: 2018-07-31 | O105: 2018-07-31 | P105: 2144-18-0013-1 | Q105: 300 | R105: 14110 | S105: 1641.36 | T105: 14116 | U105: 1641.36 | V105: 0 | W105: 0 | X105: 70260 | Y105: 0 | Z105: P | AB105: NPN8620 | AD105: Internal | AE105: A | AF105: SL | AH105: WCNX | AI105: 0 | AJ105: 0
B106: 2144 | C106: 200969 | D106: P | E106: Chevrolet 1500 Supervisor Truck | H106: 1GCNKNECXJZ119543 | I106: C71774N | J106: 2018 | K106: Chevrolet | L106: Chevrolet | M106: Pick Up Truck | N106: 2018-07-27 | O106: 2018-07-27 | P106: 2144-18-0011-1 | Q106: 500 | R106: 14040 | S106: 33555.67 | T106: 14046 | U106: 33555.67 | V106: 0 | W106: 3914.84 | X106: 51260 | Y106: 0 | Z106: P | AB106: 3694 | AC106: 50-24 | AD106: Internal | AE106: A | AF106: SL | AH106: WCNX | AI106: 0 | AJ106: 0
B107: 2144 | C107: 199113 | D107: 197551 | E107: Body for truck | J107: 0 | M107: Non-Rolling Stock | N107: 2018-05-14 | O107: 2018-05-14 | P107: 2144-18-0007-1 | Q107: 1000 | R107: 14040 | S107: 66654.84 | T107: 14046 | U107: 36660.15 | V107: 29994.69 | W107: 5554.57 | X107: 51260 | Y107: 555.46 | Z107: P | AD107: Internal | AE107: A | AF107: SL | AH107: WCNX | AI107: 0 | AJ107: 0
B108: 2144 | C108: 198001 | D108: P | E108: 2 YD Container | F108: 6 | J108: 0 | M108: 2 YD FEL/REL/SL Metal | N108: 2018-06-01 | O108: 2018-06-01 | P108: Container Audit | Q108: 0 | R108: 14050 | S108: 0 | T108: 14056 | U108: 0 | V108: 0 | W108: 0 | X108: 54260 | Y108: 0 | Z108: P | AD108: Internal | AE108: A | AF108: NO | AH108: WCNX | AI108: 0 | AJ108: 0
B109: 2144 | C109: 198000 | D109: P | E109: 1 YD Container | F109: 18 | J109: 0 | M109: 1 YD FEL/REL/SL Metal | N109: 2018-06-01 | O109: 2018-06-01 | P109: Container Audit | Q109: 0 | R109: 14050 | S109: 0 | T109: 14056 | U109: 0 | V109: 0 | W109: 0 | X109: 54260 | Y109: 0 | Z109: P | AD109: Internal | AE109: A | AF109: NO | AH109: WCNX | AI109: 0 | AJ109: 0
B110: 2144 | C110: 197551 | D110: P | E110: 2018 Petebilt 567 Rolloff | H110: 1NPCX4EX4JD482495 | I110: C16988L | J110: 2018 | K110: Peterbilt | L110: Advantage Rolloff | M110: R/O Truck | N110: 2018-05-14 | O110: 2018-05-14 | P110: 2144-18-0007-1 | Q110: 1000 | R110: 14040 | S110: 164086.09 | T110: 14046 | U110: 90247.35 | V110: 73838.74 | W110: 13673.84 | X110: 51260 | Y110: 1367.38 | Z110: P | AB110: P482495 | AC110: 50-26 | AD110: Internal | AE110: A | AF110: SL | AH110: WCNX | AI110: 0 | AJ110: 0
B111: 2144 | C111: 190461 | D111: 187379 | E111: Decal on New Tractor 50-07 | I111: 94-3283464 | J111: 0 | K111: Peterbilt | M111: Non-Rolling Stock | N111: 2017-10-17 | O111: 2017-10-17 | P111: 2144-17-0014-1 | Q111: 600 | R111: 14040 | S111: 864.17 | T111: 14046 | U111: 864.17 | V111: 0 | W111: 120.01 | X111: 51260 | Y111: 12 | Z111: P | AB111: 17473 | AD111: Internal | AE111: A | AF111: SL | AH111: WCNX | AI111: 0 | AJ111: 0
B112: 2144 | C112: 188087 | D112: 186154 | E112: Radio System for ASL | I112: 94-3283464 | J112: 0 | K112: Day Wireless | M112: Non-Rolling Stock | N112: 2017-10-02 | O112: 2017-10-02 | P112: 2144-17-0008-1 | Q112: 500 | R112: 14040 | S112: 1002.38 | T112: 14046 | U112: 1002.38 | V112: 0 | W112: 0 | X112: 51260 | Y112: 0 | Z112: P | AB112: 210229-00 | AD112: Internal | AE112: A | AF112: SL | AH112: WCNX | AI112: 0 | AJ112: 0
B113: 2144 | C113: 187423 | D113: 187422 | E113: 2009 Murrey's Pre-Ordered REL Truck (#476) | F113: 0 | H113: 36524 | J113: 2009 | M113: Non-Rolling Stock | N113: 2009-03-13 | O113: 2009-03-13 | P113: 2111-9-0002-1 | Q113: 1000 | R113: 14040 | S113: 78914.38 | T113: 14046 | U113: 78914.38 | V113: 0 | W113: 0 | X113: 51260 | Y113: 0 | Z113: P | AB113: 963231 | AD113: Internal | AE113: A | AF113: SL | AG113: 2017-09-30 | AH113: WCNX | AI113: 0 | AJ113: 67734.86
B114: 2144 | C114: 187422 | D114: P | E114: 2009 International 7400 REL | F114: 0 | H114: 1HTWCAZR49J136523 | I114: B92145H | J114: 2009 | K114: International | L114: McNeilus | M114: REL Truck | N114: 2009-03-20 | O114: 2009-03-20 | P114: 2111-8-0039-1 | Q114: 1000 | R114: 14040 | S114: 96557.52 | T114: 14046 | U114: 96557.52 | V114: 0 | W114: 0 | X114: 51260 | Y114: 0 | Z114: P | AC114: 50-13 | AD114: Internal | AE114: A | AF114: SL | AG114: 2017-09-30 | AH114: WCNX | AI114: 0 | AJ114: 82073.87
B115: 2144 | C115: 187379 | D115: P | E115: 2014 Peterbilt 579 Tractor | H115: 1XPBP49X0ED213167 | I115: C16916L | J115: 2014 | K115: Peterbilt | L115: Peterbilt | M115: Road Tractor | N115: 2017-10-17 | O115: 2017-10-17 | P115: 2144-17-0014-1 | Q115: 600 | R115: 14040 | S115: 95178 | T115: 14046 | U115: 95178 | V115: 0 | W115: 13219.17 | X115: 51260 | Y115: 1321.92 | Z115: P | AB115: 915-2436 | AC115: 50-01 | AD115: Internal | AE115: A | AF115: SL | AH115: WCNX | AI115: 0 | AJ115: 0
B116: 2144 | C116: 187318 | D116: P | E116: 2yd Commercial Containers | F116: 25 | I116: 94-3283464 | J116: 0 | K116: CAPITAL INDUSTRIES INC | M116: 2 YD FEL/REL/SL Metal | N116: 2017-09-29 | O116: 2017-09-29 | P116: 2144-17-0012-1 | Q116: 1200 | R116: 14050 | S116: 13859.26 | T116: 14056 | U116: 7025.89 | V116: 6833.37 | W116: 962.45 | X116: 54260 | Y116: 96.24 | Z116: P | AB116: 134001 | AD116: Internal | AE116: A | AF116: SL | AH116: WCNX | AI116: 0 | AJ116: 0
B117: 2144 | C117: 187317 | D117: P | E117: 1.5yd Commercial Containers | F117: 23 | I117: 94-3283464 | J117: 0 | K117: CAPITAL INDUSTRIES INC | M117: 1.5 YD FEL/REL/SL Metal | N117: 2017-09-29 | O117: 2017-09-29 | P117: 2144-17-0012-1 | Q117: 1200 | R117: 14050 | S117: 11745.04 | T117: 14056 | U117: 5954.07 | V117: 5790.97 | W117: 815.63 | X117: 54260 | Y117: 81.57 | Z117: P | AB117: 134000 | AD117: Internal | AE117: A | AF117: SL | AH117: WCNX | AI117: 0 | AJ117: 0
B118: 2144 | C118: 187316 | D118: P | E118: 1yd Commercial Containers | F118: 20 | I118: 94-3283464 | J118: 0 | K118: CAPITAL INDUSTRIES INC | M118: 1 YD FEL/REL/SL Metal | N118: 2017-09-29 | O118: 2017-09-29 | P118: 2144-17-0012-1 | Q118: 1200 | R118: 14050 | S118: 9984.1 | T118: 14056 | U118: 5061.39 | V118: 4922.71 | W118: 693.34 | X118: 54260 | Y118: 69.33 | Z118: P | AB118: 133999 | AD118: Internal | AE118: A | AF118: SL | AH118: WCNX | AI118: 0 | AJ118: 0
B119: 2144 | C119: 186154 | D119: P | E119: 2018 Peterbilt 320 ASL Truck | H119: 3BPZL70X1HF174659 | I119: C95705J | J119: 2018 | K119: Peterbilt | L119: Labrie | M119: Automated Sideload | N119: 2017-09-07 | O119: 2017-09-07 | P119: 2144-17-0008-1 | Q119: 1000 | R119: 14040 | S119: 341677.84 | T119: 14046 | U119: 210701.31 | V119: 130976.53 | W119: 28473.15 | X119: 51260 | Y119: 2847.31 | Z119: P | AB119: P174659 | AC119: 50-07 | AD119: Internal | AE119: A | AF119: SL | AH119: WCNX | AI119: 0 | AJ119: 0
B120: 2144 | C120: 185140 | D120: P | E120: 40YD Rolloff Boxes with lids | F120: 2 | J120: 0 | K120: CAPITAL INDUSTRIES INC | M120: 40 YD RO Box | N120: 2017-08-01 | O120: 2017-08-01 | P120: 2144-17-0010-1 | Q120: 1200 | R120: 14050 | S120: 15035 | T120: 14056 | U120: 7830.75 | V120: 7204.25 | W120: 1044.1 | X120: 54260 | Y120: 104.41 | Z120: P | AB120: 132395 | AD120: Internal | AE120: A | AF120: SL | AH120: WCNX | AI120: 0 | AJ120: 0
B121: 2144 | C121: 185139 | D121: P | E121: 20YD RO Boxes with Lids | F121: 7 | J121: 0 | K121: CAPITAL INDUSTRIES INC | M121: 20 YD RO Box | N121: 2017-08-01 | O121: 2017-08-01 | P121: 2144-17-0010-1 | Q121: 1200 | R121: 14050 | S121: 40160 | T121: 14056 | U121: 20916.69 | V121: 19243.31 | W121: 2788.89 | X121: 54260 | Y121: 278.89 | Z121: P | AB121: 132394 | AD121: Internal | AE121: A | AF121: SL | AH121: WCNX | AI121: 0 | AJ121: 0
B122: 2144 | C122: 184735 | D122: P | E122: Diagnostic Software for Shop | J122: 0 | K122: Snapon | N122: 2017-07-06 | O122: 2017-07-06 | P122: 2144-17-0013-1 | Q122: 300 | R122: 14110 | S122: 4848 | T122: 14116 | U122: 4848 | V122: 0 | W122: 0 | X122: 70260 | Y122: 0 | Z122: P | AB122: ARV/33080655 | AD122: Internal | AE122: A | AF122: SL | AH122: WCNX | AI122: 0 | AJ122: 0
B123: 2144 | C123: 181718 | D123: 181716 | E123: Engine Repair (837392) | F123: 0 | J123: 0 | M123: Non-Rolling Stock | N123: 2009-10-30 | O123: 2009-10-30 | P123: 2112-9-0002-1 | Q123: 300 | R123: 14040 | S123: 13879.68 | T123: 14046 | U123: 13879.68 | V123: 0 | W123: 0 | X123: 51260 | Y123: 0 | Z123: P | AB123: 18371 | AD123: Internal | AE123: A | AF123: SL | AG123: 2017-04-30 | AH123: WCNX | AI123: 0 | AJ123: 13879.68
B124: 2144 | C124: 181717 | D124: 181716 | E124: Inframe Engine Repair for 2000 Kenworth | F124: 0 | J124: 0 | M124: Non-Rolling Stock | N124: 2009-07-01 | O124: 2009-07-01 | P124: 2112-9-0002-1 | Q124: 300 | R124: 14040 | S124: 13302.3 | T124: 14046 | U124: 13302.3 | V124: 0 | W124: 0 | X124: 51260 | Y124: 0 | Z124: P | AB124: 18212 | AD124: Internal | AE124: A | AF124: SL | AG124: 2017-04-30 | AH124: WCNX | AI124: 0 | AJ124: 13302.3
B125: 2144 | C125: 172661 | D125: 170969 | E125: 2 Way radio for Container Del Truck | J125: 0 | K125: DAY WIRELESS SYSTEMS | L125: RWC | M125: Non-Rolling Stock | N125: 2017-01-01 | O125: 2017-01-01 | P125: 2144-16-0001-1 | Q125: 500 | R125: 14040 | S125: 1113.7 | T125: 14046 | U125: 1113.7 | V125: 0 | W125: 0 | X125: 51260 | Y125: 0 | Z125: P | AB125: 586452 | AD125: Internal | AE125: A | AF125: SL | AH125: WCNX | AI125: 0 | AJ125: 0
B126: 2144 | C126: 171237 | D126: P | E126: Genie Scissorlift | H126: GS32P-149897 | J126: 0 | K126: Genie | M126: Container Lift | N126: 2016-12-06 | O126: 2016-12-06 | P126: 2144-16-0020-1 | Q126: 1000 | R126: 14030 | S126: 16847.41 | T126: 14036 | U126: 11652.79 | V126: 5194.62 | W126: 1403.95 | X126: 51260 | Y126: 140.39 | Z126: P | AB126: 150004-1 | AC126: GS-1 | AD126: Internal | AE126: A | AF126: SL | AH126: WCNX | AI126: 0 | AJ126: 0
B127: 2144 | C127: 171065 | D127: P | E127: 40yd boxes with lids | F127: 2 | J127: 0 | K127: ENTERPRISE SALES, INC. | M127: 40 YD RO Box | N127: 2016-12-09 | O127: 2016-12-09 | P127: 2144-16-0018-1 | Q127: 1200 | R127: 14050 | S127: 14636 | T127: 14056 | U127: 8436.05 | V127: 6199.95 | W127: 1016.39 | X127: 54260 | Y127: 101.64 | Z127: P | AB127: 7330 | AD127: Internal | AE127: A | AF127: SL | AH127: WCNX | AI127: 0 | AJ127: 0
B128: 2144 | C128: 170969 | D128: P | E128: 2016 Isuzu NPR Container Delivery Truck | H128: JALB4W172G7F00756 | I128: C50515H | J128: 2016 | K128: RWC INTERNATIONAL LTD | M128: Container Delivery Truck | N128: 2016-12-21 | O128: 2016-12-21 | P128: 2144-16-0001-1 | Q128: 900 | R128: 14040 | S128: 59020.72 | T128: 14046 | U128: 44812.04 | V128: 14208.68 | W128: 5464.88 | X128: 51260 | Y128: 546.48 | Z128: P | AB128: 13261 | AC128: 50-22 | AD128: Internal | AE128: A | AF128: SL | AH128: WCNX | AI128: 0 | AJ128: 0
B129: 2144 | C129: 170769 | D129: P | E129: 40yd boxes with lids | F129: 2 | J129: 0 | K129: ENTERPRISE SALES INC | M129: 40 YD RO Box | N129: 2016-12-09 | O129: 2016-12-09 | P129: 2144-16-0018-1 | Q129: 1200 | R129: 14050 | S129: 14636 | T129: 14056 | U129: 8436.05 | V129: 6199.95 | W129: 1016.39 | X129: 54260 | Y129: 101.64 | Z129: P | AB129: 7328 | AD129: Internal | AE129: A | AF129: SL | AH129: WCNX | AI129: 0 | AJ129: 0
B130: 2144 | C130: 169976 | D130: P | E130: 2 yd REL Containers | F130: 22 | J130: 0 | K130: CAPITAL INDUSTRIES, INC. | M130: 2 YD FEL/REL/SL Metal | N130: 2016-11-02 | O130: 2016-11-02 | P130: 2144-16-0019-1 | Q130: 1200 | R130: 14050 | S130: 12799.44 | T130: 14056 | U130: 7466.34 | V130: 5333.1 | W130: 888.85 | X130: 54260 | Y130: 88.88 | Z130: P | AB130: 125131 | AD130: Internal | AE130: A | AF130: SL | AH130: WCNX | AI130: 0 | AJ130: 0
B131: 2144 | C131: 169975 | D131: P | E131: 1.5yd REL Containers | F131: 44 | J131: 0 | K131: CAPITAL INDUSTRIES, INC. | M131: 1.5 YD FEL/REL/SL Metal | N131: 2016-11-02 | O131: 2016-11-02 | P131: 2144-16-0019-1 | Q131: 1200 | R131: 14050 | S131: 22819.4 | T131: 14056 | U131: 13311.34 | V131: 9508.06 | W131: 1584.68 | X131: 54260 | Y131: 158.46 | Z131: P | AB131: 125130 | AD131: Internal | AE131: A | AF131: SL | AH131: WCNX | AI131: 0 | AJ131: 0
B132: 2144 | C132: 167137 | D132: P | E132: 30YD RO Boxes with Lids | F132: 3 | J132: 0 | K132: ENTERPRISE SALES, INC. | M132: 30 YD RO Box | N132: 2016-09-02 | O132: 2016-09-02 | P132: 2144-16-0005-1 | Q132: 1200 | R132: 14050 | S132: 17845 | T132: 14056 | U132: 10657.41 | V132: 7187.59 | W132: 1239.23 | X132: 54260 | Y132: 123.92 | Z132: P | AB132: 7221 | AD132: Internal | AE132: A | AF132: SL | AH132: WCNX | AI132: 0 | AJ132: 0
B133: 2144 | C133: 167136 | D133: P | E133: 10YD RO Boxes with lids | F133: 3 | J133: 0 | K133: ENTERPRISE SALES, INC. | M133: 10 YD RO Box | N133: 2016-09-02 | O133: 2016-09-02 | P133: 2144-16-0005-1 | Q133: 1200 | R133: 14050 | S133: 15700 | T133: 14056 | U133: 9376.37 | V133: 6323.63 | W133: 1090.28 | X133: 54260 | Y133: 109.03 | Z133: P | AB133: 7235 | AD133: Internal | AE133: A | AF133: SL | AH133: WCNX | AI133: 0 | AJ133: 0
B134: 2144 | C134: 165804 | D134: P | E134: HP Probook 640 G2 | J134: 0 | K134: CDW | N134: 2016-07-27 | O134: 2016-07-27 | P134: 2144-16-0017-1 | Q134: 300 | R134: 14110 | S134: 1089.57 | T134: 14116 | U134: 1089.57 | V134: 0 | W134: 0 | X134: 70260 | Y134: 0 | Z134: P | AB134: DRQ2851 | AD134: Internal | AE134: A | AF134: SL | AH134: WCNX | AI134: 0 | AJ134: 0
B135: 2144 | C135: 139929 | D135: 131542 | E135: (8) Tablet Mount/Clip/Adapter | J135: 0 | K135: ProClip | N135: 2016-03-31 | O135: 2016-03-31 | P135: 2144-16-0013-1 | Q135: 100 | R135: 14110 | S135: 671.24 | T135: 14116 | U135: 671.24 | V135: 0 | W135: 0 | X135: 70260 | Y135: 0 | Z135: P | AB135: SI-1138342 | AD135: Internal | AE135: A | AF135: SL | AH135: WCNX | AI135: 0 | AJ135: 0
B136: 2144 | C136: 133018 | D136: P | E136: 10 Tough Sleeves, 13 Pedistal Mounts, 3 powered move clips (Tablets) | J136: 0 | K136: ProClip | N136: 2016-03-31 | O136: 2016-03-31 | P136: 2144-16-0013-1 | Q136: 100 | R136: 14110 | S136: 2769.44 | T136: 14116 | U136: 2769.44 | V136: 0 | W136: 0 | X136: 70260 | Y136: 0 | Z136: P | AB136: SR-269001 | AD136: Internal | AE136: A | AF136: SL | AH136: WCNX | AI136: 0 | AJ136: 0
B137: 2144 | C137: 132501 | D137: 132131 | E137: Drive Cam | J137: 0 | M137: Non-Rolling Stock | N137: 2016-03-15 | O137: 2016-03-15 | P137: 2144-16-0012-1 | Q137: 1000 | R137: 14040 | S137: 605.92 | T137: 14046 | U137: 464.52 | V137: 141.4 | W137: 50.49 | X137: 51260 | Y137: 5.05 | Z137: P | AB137: 5036125 | AD137: Internal | AE137: A | AF137: SL | AH137: WCNX | AI137: 0 | AJ137: 0
B138: 2144 | C138: 132355 | D138: P | E138: Software- Shop Diagnostic Computer | J138: 0 | K138: Snap-On | N138: 2016-04-01 | O138: 2016-04-01 | P138: 2144-16-0016-1 | Q138: 300 | R138: 14110 | S138: 1671 | T138: 14116 | U138: 1671 | V138: 0 | W138: 0 | X138: 70260 | Y138: 0 | Z138: P | AB138: ARV/ 28548774 | AD138: Internal | AE138: A | AF138: SL | AH138: WCNX | AI138: 0 | AJ138: 0
B139: 2144 | C139: 132131 | D139: P | E139: 2016 Peterbilt 320 REL Truck | H139: 3BPZLJ0X4GF107405 | I139: C61525F | J139: 2016 | K139: Peterbilt | L139: New Way | M139: REL Truck | N139: 2016-03-15 | O139: 2016-03-15 | P139: 2144-16-0012-1 | Q139: 1000 | R139: 14040 | S139: 276355.27 | T139: 14046 | U139: 211872.4 | V139: 64482.87 | W139: 23029.61 | X139: 51260 | Y139: 2302.96 | Z139: P | AB139: P107405 | AC139: 50-14 | AD139: Internal | AE139: A | AF139: SL | AH139: WCNX | AI139: 0 | AJ139: 0
B140: 2144 | C140: 131542 | D140: P | E140: 10 Samsung Tablets | J140: 0 | K140: AT&T N098 10672~NAMEN CHA | N140: 2016-03-31 | O140: 2016-03-31 | P140: 2144-16-0013-1 | Q140: 100 | R140: 14110 | S140: 2164.89 | T140: 14116 | U140: 2164.89 | V140: 0 | W140: 0 | X140: 70260 | Y140: 0 | Z140: P | AB140: N098 | AD140: Internal | AE140: A | AF140: SL | AH140: WCNX | AI140: 0 | AJ140: 0
B141: 2144 | C141: 131183 | D141: 126399 | E141: Sales Tax on Freightliner REL Truck | J141: 0 | K141: N/A See internal comment | M141: Non-Rolling Stock | N141: 2016-01-01 | O141: 2016-01-01 | P141: 2144-15-0004-1 | Q141: 910 | R141: 14040 | S141: 9591.24 | T141: 14046 | U141: 7640.48 | V141: 1950.76 | W141: 812.82 | X141: 51260 | Y141: 81.28 | Z141: P | AB141: N/A See internal comment | AD141: Internal | AE141: A | AF141: SL | AH141: WCNX | AI141: 0 | AJ141: 0
B142: 2144 | C142: 130761 | D142: P | E142: 2009 Utility 4000D-X 53' Dry Van Trailer | H142: 1UYVS35349P775945 | I142: 4771-ZK | J142: 2009 | K142: TRAILER SOURCE INC | M142: Trailer | N142: 2016-03-24 | O142: 2016-03-24 | P142: 2144-16-0010-1 | Q142: 300 | R142: 14040 | S142: 25087.2 | T142: 14046 | U142: 25087.2 | V142: =S142-U142 -> 0 | W142: 0 | X142: 51260 | Y142: 0 | Z142: P | AB142: 88973 | AC142: 9325 | AD142: Internal | AE142: A | AF142: SL | AH142: WCNX | AI142: 0 | AJ142: 0
B143: 2144 | C143: 127407 | D143: P | E143: Truck Wash | J143: 0 | N143: 2015-11-30 | O143: 2015-11-30 | P143: 2144-14-0007-1 | Q143: 1000 | R143: 14010 | S143: 185053.86 | T143: 14016 | U143: 146501.01 | V143: 38552.85 | W143: 15421.16 | X143: 57260 | Y143: 1542.12 | Z143: P | AB143: 13-09-020-2 | AD143: Internal | AE143: A | AF143: SL | AH143: WCNX | AI143: 0 | AJ143: 0
B144: 2144 | C144: 126583 | D144: 126399 | E144: Drive Camera Replacement | J144: 0 | K144: Lytx | M144: Non-Rolling Stock | N144: 2015-10-30 | O144: 2015-10-30 | P144: 2144-15-0004-1 | Q144: 1000 | R144: 14040 | S144: 639.85 | T144: 14046 | U144: 511.93 | V144: 127.92 | W144: 53.33 | X144: 51260 | Y144: 5.34 | Z144: P | AB144: 5030732 | AD144: Internal | AE144: A | AF144: SL | AH144: WCNX | AI144: 0 | AJ144: 0
B145: 2144 | C145: 126399 | D145: P | E145: 2016 Freightliner M2-106 REL | H145: 1FVHCYCY5GHGZ9882 | I145: C33242E | J145: 2016 | K145: Freightliner | L145: McNeilus | M145: REL Truck | N145: 2015-10-30 | O145: 2015-10-30 | P145: 2144-15-0004-1 | Q145: 1000 | R145: 14040 | S145: 218205.58 | T145: 14046 | U145: 174564.48 | V145: 43641.1 | W145: 18183.8 | X145: 51260 | Y145: 1818.38 | Z145: P | AB145: M010005033 | AC145: 50-12 | AD145: Internal | AE145: A | AF145: SL | AH145: WCNX | AI145: 0 | AJ145: 0
B146: 2144 | C146: 124719 | D146: 50486 | E146: Transmission for Rolloff T#5037 | J146: 0 | K146: VALLEY FREIGHTLINER, INC. | M146: Non-Rolling Stock | N146: 2015-08-18 | O146: 2015-08-18 | P146: 2144-15-0007-1 | Q146: 300 | R146: 14040 | S146: 9352.18 | T146: 14046 | U146: 9352.18 | V146: 0 | W146: 0 | X146: 51260 | Y146: 0 | Z146: P | AB146: 2252300089 | AD146: Internal | AE146: A | AF146: SL | AH146: WCNX | AI146: 0 | AJ146: 0
B147: 2144 | C147: 124521 | D147: P | E147: 1.5 yd contienrs | F147: 20 | J147: 0 | K147: CAPITAL INDUSTRIES, INC. | M147: 1.5 YD FEL/REL/SL Metal | N147: 2015-07-15 | O147: 2015-07-15 | P147: 2144-15-0005-1 | Q147: 1200 | R147: 14050 | S147: 9767.24 | T147: 14056 | U147: 6782.83 | V147: 2984.41 | W147: 678.28 | X147: 54260 | Y147: 67.82 | Z147: P | AB147: 111110 | AD147: Internal | AE147: A | AF147: SL | AH147: WCNX | AI147: 0 | AJ147: 0
B148: 2144 | C148: 124520 | D148: P | E148: 2 yd containers | F148: 20 | J148: 0 | K148: CAPITAL INDUSTRIES, INC. | M148: 2 YD FEL/REL/SL Metal | N148: 2015-07-15 | O148: 2015-07-15 | P148: 2144-15-0005-1 | Q148: 1200 | R148: 14050 | S148: 10745 | T148: 14056 | U148: 7461.83 | V148: 3283.17 | W148: 746.18 | X148: 54260 | Y148: 74.61 | Z148: P | AB148: 111111 | AD148: Internal | AE148: A | AF148: SL | AH148: WCNX | AI148: 0 | AJ148: 0
B149: 2144 | C149: 124519 | D149: P | E149: 1 yd containers | F149: 25 | J149: 0 | K149: CAPITAL INDUSTRIES, INC. | M149: 1 YD FEL/REL/SL Metal | N149: 2015-07-15 | O149: 2015-07-15 | P149: 2144-15-0005-1 | Q149: 1200 | R149: 14050 | S149: 11680.91 | T149: 14056 | U149: 8111.76 | V149: 3569.15 | W149: 811.18 | X149: 54260 | Y149: 81.12 | Z149: P | AB149: 110799 | AD149: Internal | AE149: A | AF149: SL | AH149: WCNX | AI149: 0 | AJ149: 0
B150: 2144 | C150: 124462 | D150: P | E150: 20 YD RO Containers | F150: 16 | J150: 0 | N150: 2015-08-13 | O150: 2015-08-13 | P150: INPUT FORM | Q150: 0 | R150: 14050 | S150: 0 | T150: 14056 | U150: 0 | V150: 0 | W150: 0 | X150: 54260 | Y150: 0 | Z150: A | AD150: Internal | AE150: A | AF150: NO | AH150: WCNX | AI150: 0 | AJ150: 0
B151: 2144 | C151: 122701 | D151: P | E151: 2 Winterms | J151: 0 | K151: CDW | N151: 2015-04-30 | O151: 2015-04-30 | P151: 2144-15-0006-1 | Q151: 300 | R151: 14110 | S151: 650 | T151: 14116 | U151: 650 | V151: 0 | W151: 0 | X151: 70260 | Y151: 0 | Z151: P | AB151: VC58140 | AD151: Internal | AE151: A | AF151: SL | AH151: WCNX | AI151: 0 | AJ151: 0
B152: 2144 | C152: 119113 | D152: 50486 | E152: Improvement - Auto Tarper | J152: 0 | M152: Non-Rolling Stock | N152: 2015-01-01 | O152: 2015-01-01 | P152: 2144-14-0010-1 | Q152: 300 | R152: 14040 | S152: 5014.96 | T152: 14046 | U152: 5014.96 | V152: 0 | W152: 0 | X152: 51260 | Y152: 0 | Z152: P | AB152: 38485 | AD152: Internal | AE152: A | AF152: SL | AH152: WCNX | AI152: 0 | AJ152: 0
B153: 2144 | C153: 118362 | D153: P | E153: 30 Yard Drop Boxes with Lid | F153: 2 | J153: 0 | K153: CAPITAL INDUSTRIES, INC. | M153: 30 YD RO Box | N153: 2014-12-31 | O153: 2014-12-31 | P153: 2144-14-0012-1 | Q153: 1200 | R153: 14050 | S153: 13174.44 | T153: 14056 | U153: 9697.85 | V153: 3476.59 | W153: 914.89 | X153: 54260 | Y153: 91.49 | Z153: P | AB153: 102654 | AD153: Internal | AE153: A | AF153: SL | AH153: WCNX | AI153: 0 | AJ153: 0
B154: 2144 | C154: 118075 | D154: P | E154: 2006 Peterbilt 320 ASL Truck | H154: 1NPZL00X36D716669 | I154: C35282C | J154: 2006 | K154: PETERBILT | L154: CURBTENDER | M154: Automated Sideload | N154: 2014-12-31 | O154: 2014-12-31 | P154: 2144-14-0002-1 | Q154: 800 | R154: 14040 | S154: 172742.39 | T154: 14046 | U154: 172742.39 | V154: 0 | W154: 0 | X154: 51260 | Y154: 0 | Z154: P | AC154: 50-11 | AD154: Internal | AE154: A | AF154: SL | AH154: WCNX | AI154: 0 | AJ154: 0
B155: 2144 | C155: 116945 | D155: P | E155: Wyse Winterms D10D | F155: 2 | J155: 0 | K155: CDW | N155: 2014-04-20 | O155: 2014-04-20 | P155: 2000-14-0006-1 | Q155: 300 | R155: 14110 | S155: 666.17 | T155: 14116 | U155: 666.17 | V155: 0 | W155: 0 | X155: 70260 | Y155: 0 | Z155: P | AB155: Multiple beginning with K | AD155: Internal | AE155: A | AF155: SL | AG155: 2014-10-31 | AH155: WCNX | AI155: 0 | AJ155: 111.03
B156: 2144 | C156: 115085 | D156: 48617 | E156: Improvement - RO Tarper | J156: 0 | K156: LINCOLN INDUSTRIAL CORP I | M156: Non-Rolling Stock | N156: 2014-08-01 | O156: 2014-08-01 | P156: 2144-14-0008-1 | Q156: 300 | R156: 14040 | S156: 6532.56 | T156: 14046 | U156: 6532.56 | V156: 0 | W156: 0 | X156: 51260 | Y156: 0 | Z156: P | AB156: 140485 | AD156: Internal | AE156: A | AF156: SL | AH156: WCNX | AI156: 0 | AJ156: 0
B157: 2144 | C157: 114392 | D157: P | E157: 2 yd containers | F157: 17 | J157: 0 | K157: CAPITAL INDUSTRIES, INC. | M157: 2 YD FEL/REL/SL Metal | N157: 2014-07-03 | O157: 2014-07-03 | P157: 2144-14-0005-1 | Q157: 1200 | R157: 14050 | S157: 9582.99 | T157: 14056 | U157: 7453.41 | V157: 2129.58 | W157: 665.48 | X157: 54260 | Y157: 66.54 | Z157: P | AB157: 96659 | AD157: Internal | AE157: A | AF157: SL | AH157: WCNX | AI157: 0 | AJ157: 0
B158: 2144 | C158: 113799 | D158: P | E158: 1.5 yd Containers | F158: 18 | J158: 0 | K158: CAPITAL INDUSTRIES, INC. | M158: 1.5 YD FEL/REL/SL Metal | N158: 2014-06-04 | O158: 2014-06-04 | P158: 2144-14-0004-1 | Q158: 1200 | R158: 14050 | S158: 9276.46 | T158: 14056 | U158: 7279.46 | V158: 1997 | W158: 644.2 | X158: 54260 | Y158: 64.42 | Z158: P | AB158: 96068 | AD158: Internal | AE158: A | AF158: SL | AH158: WCNX | AI158: 0 | AJ158: 0
B159: 2144 | C159: 113798 | D159: P | E159: 1 Yd Containers | F159: 18 | J159: 0 | K159: CAPITAL INDUSTRIES, INC. | M159: 1 YD FEL/REL/SL Metal | N159: 2014-06-04 | O159: 2014-06-04 | P159: 2144-14-0003-1 | Q159: 1200 | R159: 14050 | S159: 8669.91 | T159: 14056 | U159: 6803.45 | V159: 1866.46 | W159: 602.08 | X159: 54260 | Y159: 60.21 | Z159: P | AB159: 96067 | AD159: Internal | AE159: A | AF159: SL | AH159: WCNX | AI159: 0 | AJ159: 0
B160: 2144 | C160: 112383 | D160: P | E160: Security Fence | J160: 0 | N160: 2014-04-01 | O160: 2014-04-01 | P160: 2144-14-0011-1 | Q160: 1000 | R160: 14010 | S160: 8687.3 | T160: 14016 | U160: 8325.33 | V160: 361.97 | W160: 723.94 | X160: 57260 | Y160: 72.39 | Z160: P | AD160: Internal | AE160: A | AF160: SL | AH160: WCNX | AI160: 0 | AJ160: 0
B161: 2144 | C161: 109830 | D161: P | E161: Truck Radios - Fleet | F161: 19 | J161: 0 | K161: DAY WIRELESS SYSTEMS | N161: 2013-12-31 | O161: 2013-12-31 | P161: 2144-13-0006-1 | Q161: 500 | R161: 14110 | S161: 21760.02 | T161: 14116 | U161: 21760.02 | V161: 0 | W161: 0 | X161: 70260 | Y161: 0 | Z161: P | AB161: 556915 | AD161: Internal | AE161: A | AF161: SL | AH161: WCNX | AI161: 0 | AJ161: 0
B162: 2144 | C162: 109810 | D162: P | E162: 10 Yd R/O Boxes | F162: 4 | J162: 0 | K162: CAPITAL INDUSTRIES, INC. | M162: 10 YD RO Box | N162: 2013-11-30 | O162: 2013-11-30 | P162: 2144-13-0001-1 | Q162: 1200 | R162: 14050 | S162: 21616.08 | T162: 14056 | U162: 17863.19 | V162: 3752.89 | W162: 1501.11 | X162: 54260 | Y162: 150.1 | Z162: P | AB162: 89026 | AD162: Internal | AE162: A | AF162: SL | AH162: WCNX | AI162: 0 | AJ162: 0
B163: 2144 | C163: 109492 | D163: P | E163: Security Fencing and Cameras | J163: 0 | N163: 2013-12-31 | O163: 2013-12-31 | P163: 2144-13-0005-1 | Q163: 1000 | R163: 14010 | S163: 15453.67 | T163: 14016 | U163: 15196.15 | V163: 257.52 | W163: 1287.82 | X163: 57260 | Y163: 128.78 | Z163: P | AD163: Internal | AE163: A | AF163: SL | AH163: WCNX | AI163: 0 | AJ163: 0
B164: 2144 | C164: 100512 | D164: 99654 | E164: Phone System Upgrade - Sales Tax Adjustment | F164: 0 | J164: 0 | K164: Gaynor Telesystems | N164: 2012-12-19 | O164: 2012-12-19 | P164: 2144-12-0004-1 | Q164: 500 | R164: 14100 | S164: 198.19 | T164: 14106 | U164: 198.19 | V164: 0 | W164: 0 | X164: 70260 | Y164: 0 | Z164: P | AB164: INV000022173 | AD164: Internal | AE164: A | AF164: SL | AH164: WCNX | AI164: 0 | AJ164: 0
B165: 2144 | C165: 100511 | D165: 99654 | E165: Phone System Upgrade - Sales Tax Adjustment | F165: 0 | J165: 0 | K165: Gaynor Telesystems | N165: 2012-12-19 | O165: 2012-12-19 | P165: 2144-12-0004-1 | Q165: 500 | R165: 14100 | S165: 317.11 | T165: 14106 | U165: 317.11 | V165: 0 | W165: 0 | X165: 70260 | Y165: 0 | Z165: P | AB165: INV000022252 | AD165: Internal | AE165: A | AF165: SL | AH165: WCNX | AI165: 0 | AJ165: 0
B166: 2144 | C166: 100510 | D166: 99654 | E166: Phone System Upgrade - Sales Tax Adjustment | F166: 0 | J166: 0 | K166: Gaynor Telesystems | N166: 2012-12-19 | O166: 2012-12-19 | P166: 2144-12-0004-1 | Q166: 500 | R166: 14100 | S166: 295.89 | T166: 14106 | U166: 295.89 | V166: 0 | W166: 0 | X166: 70260 | Y166: 0 | Z166: P | AB166: INV000022423 | AD166: Internal | AE166: A | AF166: SL | AH166: WCNX | AI166: 0 | AJ166: 0
B167: 2144 | C167: 100412 | D167: 99654 | E167: HP Compaq 6300 Pro (SN = MXL2211B72) - PC for the Phone System | F167: 0 | J167: 0 | K167: CDW | N167: 2012-12-19 | O167: 2012-12-15 | P167: 2144-12-0004-1 | Q167: 500 | R167: 14100 | S167: 648.75 | T167: 14106 | U167: 648.75 | V167: 0 | W167: 0 | X167: 70260 | Y167: 0 | Z167: P | AB167: T914181 | AD167: Internal | AE167: A | AF167: SL | AH167: WCNX | AI167: 0 | AJ167: 0
B168: 2144 | C168: 100411 | D168: 99654 | E168: Phone System for Island Disposal | F168: 0 | J168: 0 | K168: Gaynor Telesystems | N168: 2012-12-19 | O168: 2012-12-19 | P168: 2144-12-0004-1 | Q168: 500 | R168: 14100 | S168: 3401.02 | T168: 14106 | U168: 3401.02 | V168: 0 | W168: 0 | X168: 70260 | Y168: 0 | Z168: P | AB168: INV000022423 | AD168: Internal | AE168: A | AF168: SL | AH168: WCNX | AI168: 0 | AJ168: 0
B169: 2144 | C169: 100410 | D169: 99654 | E169: Equipment for Phone System | F169: 0 | J169: 0 | K169: CDW | N169: 2012-12-19 | O169: 2012-12-19 | P169: 2144-12-0004-1 | Q169: 500 | R169: 14100 | S169: 1122.77 | T169: 14106 | U169: 1122.77 | V169: 0 | W169: 0 | X169: 70260 | Y169: 0 | Z169: P | AB169: T834798 | AD169: Internal | AE169: A | AF169: SL | AH169: WCNX | AI169: 0 | AJ169: 0
B170: 2144 | C170: 100086 | D170: P | E170: 95 Gallon Recycel Carts - ROC Grey | F170: 164 | J170: 0 | K170: REHRIG PACIFIC COMPANY | N170: 2012-12-18 | O170: 2012-12-18 | P170: 2144-12-0006-1 | Q170: 700 | R170: 14050 | S170: 8889.48 | T170: 14056 | U170: 8889.48 | V170: 0 | W170: 0 | X170: 54260 | Y170: 0 | Z170: P | AB170: LA175017R | AD170: Internal | AE170: A | AF170: SL | AH170: WCNX | AI170: 0 | AJ170: 0
B171: 2144 | C171: 100085 | D171: P | E171: 95 Gallon Recycle Carts | F171: 486 | J171: 0 | K171: REHRIG PACIFIC COMPANY | N171: 2012-12-18 | O171: 2012-12-18 | P171: 2144-12-0006-1 | Q171: 700 | R171: 14050 | S171: 26171.15 | T171: 14056 | U171: 26171.15 | V171: 0 | W171: 0 | X171: 54260 | Y171: 0 | Z171: P | AB171: LA175016 | AD171: Internal | AE171: A | AF171: SL | AH171: WCNX | AI171: 0 | AJ171: 0
B172: 2144 | C172: 99654 | D172: P | E172: Phone System Upgrade | F172: 0 | J172: 0 | N172: 2012-12-19 | O172: 2012-12-19 | P172: 2144-12-0004-1 | Q172: 500 | R172: 14100 | S172: 5923.01 | T172: 14106 | U172: 5923.01 | V172: 0 | W172: 0 | X172: 70260 | Y172: 0 | Z172: P | AB172: INV000022252 | AD172: Internal | AE172: A | AF172: SL | AH172: WCNX | AI172: 0 | AJ172: 0
B173: 2144 | C173: 95047 | D173: P | E173: RTA Equipment | F173: 0 | J173: 0 | K173: CDW | N173: 2012-04-30 | O173: 2012-04-30 | P173: 1010-12-0021-1 | Q173: 300 | R173: 14110 | S173: 466.06 | T173: 14116 | U173: 466.06 | V173: 0 | W173: 0 | X173: 70260 | Y173: 0 | Z173: P | AB173: J787178 | AD173: Internal | AE173: A | AF173: SL | AG173: 2012-06-30 | AH173: WCNX | AI173: 0 | AJ173: 25.89
B174: 2144 | C174: 90766 | D174: P | E174: 1989 Selco V5-XHD Baler - Tax - Don's Tools | H174: 9893921 | J174: 1989 | K174: OTHER | L174: Other | M174: Baler | N174: 2001-11-01 | O174: 2001-11-01 | Q174: 1000 | R174: 14030 | S174: 0.01 | T174: 14036 | U174: 0.01 | V174: 0 | W174: 0 | X174: 51260 | Y174: 0 | Z174: A | AA174: Island | AD174: Internal | AE174: A | AF174: SL | AG174: 2012-01-31 | AH174: WCNX | AI174: 0 | AJ174: 0.01
B175: 2144 | C175: 90760 | D175: P | E175: (1) Sony Internet TV S/N# S018064198M | F175: 0 | J175: 0 | K175: CDW | N175: 2011-12-31 | O175: 2011-12-31 | P175: 1010-11-0048-1 | Q175: 500 | R175: 14110 | S175: 853.26 | T175: 14116 | U175: 853.26 | V175: 0 | W175: 0 | X175: 70260 | Y175: 0 | Z175: P | AB175: C563032 | AD175: Internal | AE175: A | AF175: SL | AG175: 2012-01-31 | AH175: WCNX | AI175: 0 | AJ175: 14.22
B176: 2144 | C176: 90759 | D176: P | E176: 65 Gallon Recycle Carts | F176: 648 | J176: 0 | K176: REHRIG PACIFIC COMPANY | N176: 2010-10-29 | O176: 2010-10-29 | P176: 2143-10-0004-1 | Q176: 700 | R176: 14050 | S176: 27386.14 | T176: 14056 | U176: 27386.14 | V176: 0 | W176: 0 | X176: 54260 | Y176: 0 | Z176: P | AB176: LA159733 | AD176: Internal | AE176: A | AF176: SL | AG176: 2012-01-31 | AH176: WCNX | AI176: 0 | AJ176: 4890.39
B177: 2144 | C177: 90758 | D177: P | E177: 65 Gallon Recycle Carts | F177: 504 | J177: 0 | K177: REHRIG PACIFIC COMPANY | N177: 2010-10-29 | O177: 2010-10-29 | P177: 2143-10-0004-1 | Q177: 700 | R177: 14050 | S177: 21300.33 | T177: 14056 | U177: 21300.33 | V177: 0 | W177: 0 | X177: 54260 | Y177: 0 | Z177: P | AB177: LA159734 | AD177: Internal | AE177: A | AF177: SL | AG177: 2012-01-31 | AH177: WCNX | AI177: 0 | AJ177: 3803.64
B178: 2144 | C178: 90757 | D178: P | E178: 95 Gallon Recycle Carts | F178: 486 | J178: 0 | K178: REHRIG PACIFIC COMPANY | N178: 2010-10-23 | O178: 2010-10-23 | P178: 2143-10-0005-1 | Q178: 700 | R178: 14050 | S178: 24285.12 | T178: 14056 | U178: 24285.12 | V178: 0 | W178: 0 | X178: 54260 | Y178: 0 | Z178: P | AB178: LA159552 | AD178: Internal | AE178: A | AF178: SL | AG178: 2012-01-31 | AH178: WCNX | AI178: 0 | AJ178: 4336.63
B179: 2144 | C179: 90756 | D179: P | E179: 95 Gallon Recycle Carts | F179: 342 | J179: 0 | K179: REHRIG PACIFIC COMPANY | N179: 2010-10-28 | O179: 2010-10-28 | P179: 2143-10-0005-1 | Q179: 700 | R179: 14050 | S179: 17089.52 | T179: 14056 | U179: 17089.52 | V179: 0 | W179: 0 | X179: 54260 | Y179: 0 | Z179: P | AB179: LA159765 | AD179: Internal | AE179: A | AF179: SL | AG179: 2012-01-31 | AH179: WCNX | AI179: 0 | AJ179: 3051.7
B180: 2144 | C180: 90755 | D180: P | E180: 20 Yard R/O Glass Recycle Boxes | F180: 4 | J180: 0 | K180: ENTERPRISE SALES, INC. | M180: 20 YD RO Box | N180: 2010-12-01 | O180: 2010-12-01 | P180: 2143-10-0006-1 | Q180: 1200 | R180: 14050 | S180: 28940.29 | T180: 14056 | U180: 28940.29 | V180: 0 | W180: 0 | X180: 54260 | Y180: 0 | Z180: P | AB180: 4715 | AD180: Internal | AE180: A | AF180: SL | AG180: 2012-01-31 | AH180: WCNX | AI180: 0 | AJ180: 2813.64
B181: 2144 | C181: 90754 | D181: P | E181: 95 Gallon Recycle Carts | F181: 486 | J181: 0 | K181: REHRIG PACIFIC COMPANY | N181: 2010-10-25 | O181: 2010-10-25 | P181: 2143-10-0005-1 | Q181: 700 | R181: 14050 | S181: 24285.12 | T181: 14056 | U181: 24285.12 | V181: 0 | W181: 0 | X181: 54260 | Y181: 0 | Z181: P | AB181: LA159598 | AD181: Internal | AE181: A | AF181: SL | AG181: 2012-01-31 | AH181: WCNX | AI181: 0 | AJ181: 4336.63
B182: 2144 | C182: 90753 | D182: P | E182: 95 Gallon Recycle Carts | F182: 486 | J182: 0 | K182: REHRIG PACIFIC COMPANY | N182: 2010-10-26 | O182: 2010-10-26 | P182: 2143-10-0005-1 | Q182: 700 | R182: 14050 | S182: 24285.12 | T182: 14056 | U182: 24285.12 | V182: 0 | W182: 0 | X182: 54260 | Y182: 0 | Z182: P | AB182: LA159597 | AD182: Internal | AE182: A | AF182: SL | AG182: 2012-01-31 | AH182: WCNX | AI182: 0 | AJ182: 4336.63
B183: 2144 | C183: 90752 | D183: P | E183: 30 Yard Roll Off Containers | F183: 1 | J183: 0 | M183: 30 YD RO Box | N183: 2001-11-01 | O183: 2001-11-01 | Q183: 600 | R183: 14050 | S183: 134 | T183: 14056 | U183: 134 | V183: 0 | W183: 0 | X183: 54260 | Y183: 0 | Z183: A | AA183: Island | AD183: Internal | AE183: A | AF183: SL | AG183: 2012-01-31 | AH183: WCNX | AI183: 4 | AJ183: 134
B184: 2144 | C184: 90751 | D184: P | E184: 2 Yd REL Containers | F184: 39 | J184: 0 | M184: 2 YD FEL/REL/SL Metal | N184: 2001-11-01 | O184: 2001-11-01 | Q184: 600 | R184: 14050 | S184: 64.86 | T184: 14056 | U184: 64.86 | V184: 0 | W184: 0 | X184: 54260 | Y184: 0 | Z184: A | AA184: Island | AD184: Internal | AE184: A | AF184: SL | AG184: 2012-01-31 | AH184: WCNX | AI184: 2 | AJ184: 64.86
B185: 2144 | C185: 90750 | D185: P | E185: 1 Yd REL Containers | F185: 65 | J185: 0 | M185: 1 YD FEL/REL/SL Metal | N185: 2001-11-01 | O185: 2001-11-01 | Q185: 600 | R185: 14050 | S185: 83.81 | T185: 14056 | U185: 83.81 | V185: 0 | W185: 0 | X185: 54260 | Y185: 0 | Z185: A | AA185: Island | AD185: Internal | AE185: A | AF185: SL | AG185: 2012-01-31 | AH185: WCNX | AI185: 2 | AJ185: 83.81
B186: 2144 | C186: 90749 | D186: P | E186: Tipper Containers | F186: 17 | J186: 0 | N186: 2001-11-01 | O186: 2001-11-01 | Q186: 600 | R186: 14050 | S186: 680 | T186: 14056 | U186: 680 | V186: 0 | W186: 0 | X186: 54260 | Y186: 0 | Z186: A | AA186: Island | AD186: Internal | AE186: A | AF186: SL | AG186: 2012-01-31 | AH186: WCNX | AI186: 0 | AJ186: 680
B187: 2144 | C187: 90746 | D187: P | E187: 1.5 Yd REL Containers | F187: 30 | J187: 0 | M187: 1.5 YD FEL/REL/SL Metal | N187: 2001-11-01 | O187: 2001-11-01 | Q187: 600 | R187: 14050 | S187: 25.41 | T187: 14056 | U187: 25.41 | V187: 0 | W187: 0 | X187: 54260 | Y187: 0 | Z187: A | AA187: Island | AD187: Internal | AE187: A | AF187: SL | AG187: 2012-01-31 | AH187: WCNX | AI187: 2 | AJ187: 25.41
B188: 2144 | C188: 90745 | D188: P | E188: 65 Gallon Recycle Carts | F188: 648 | J188: 0 | K188: REHRIG PACIFIC COMPANY | N188: 2010-10-28 | O188: 2010-10-28 | P188: 2143-10-0004-1 | Q188: 700 | R188: 14050 | S188: 27386.14 | T188: 14056 | U188: 27386.14 | V188: 0 | W188: 0 | X188: 54260 | Y188: 0 | Z188: P | AB188: LA159675 | AD188: Internal | AE188: A | AF188: SL | AG188: 2012-01-31 | AH188: WCNX | AI188: 0 | AJ188: 4890.39
B189: 2144 | C189: 90735 | D189: P | E189: Wastequip/Roll Off Trailer | F189: 0 | H189: 1W9RS22417R454005 | I189: 0396TU | J189: 2007 | K189: Solid Waste Systems | L189: WasteQuip | M189: R/O Trailer | N189: 2007-05-25 | O189: 2007-05-25 | P189: 07-2144-004 | Q189: 700 | R189: 14040 | S189: 38418.32 | T189: 14046 | U189: 38418.32 | V189: 0 | W189: 0 | X189: 51260 | Y189: 0 | Z189: P | AB189: 2503482 | AC189: 50-38 | AD189: Internal | AE189: A | AF189: SL | AG189: 2012-01-31 | AH189: WCNX | AI189: 0 | AJ189: 25612.12
B190: 2144 | C190: 90732 | D190: P | E190: Loader Bobcat/S-130 | F190: 0 | H190: 527311315 | I190: N/A | J190: 2005 | K190: Bobcat | M190: Skid Steer | N190: 2007-01-10 | O190: 2007-01-10 | P190: 07-2144-003 | Q190: 1000 | R190: 14030 | S190: 18681.75 | T190: 14036 | U190: 18681.75 | V190: 0 | W190: 0 | X190: 51260 | Y190: 0 | Z190: P | AB190: 5273-11315 | AC190: 50-27 | AD190: Internal | AE190: A | AF190: SL | AG190: 2012-01-31 | AH190: WCNX | AI190: 0 | AJ190: 9496.58
B191: 2144 | C191: 90731 | D191: 90732 | E191: Fleet Upgrade - Skid Steer Tires | F191: 0 | H191: BOBCAT | J191: 2004 | K191: Skid Steer Loader | M191: Non-Rolling Stock | N191: 2007-01-30 | O191: 2007-01-30 | P191: 07-2144-003 | Q191: 1000 | R191: 14030 | S191: 2601.64 | T191: 14036 | U191: 2601.64 | V191: 0 | W191: 0 | X191: 51260 | Y191: 0 | Z191: C | AB191: 332149 | AD191: Internal | AE191: A | AF191: SL | AG191: 2012-01-31 | AH191: WCNX | AI191: 0 | AJ191: 1300.8
B192: 2144 | C192: 90730 | D192: P | E192: 2003 Nissan/UGJ02/Forklift | F192: 0 | H192: UCJ02A30PV | I192: N/A | J192: 2003 | K192: NISSAN | L192: Nissan | M192: Forklift | N192: 2007-04-15 | O192: 2007-04-15 | P192: 07-2143-001 | Q192: 600 | R192: 14030 | S192: 18404.1 | T192: 14036 | U192: 18404.1 | V192: 0 | W192: 0 | X192: 51260 | Y192: 0 | Z192: P | AA192: 0 | AC192: 50-28 | AD192: Internal | AE192: A | AF192: SL | AG192: 2012-01-31 | AH192: WCNX | AI192: 0 | AJ192: 14825.52
B193: 2144 | C193: 88830 | D193: P | E193: HP Pro 3130 (SN = SMXL1282FPN) | F193: 0 | J193: 0 | K193: CDW | N193: 2011-12-27 | O193: 2011-12-27 | P193: 2144-11-0014-1 | Q193: 300 | R193: 14110 | S193: 754.35 | T193: 14116 | U193: 754.35 | V193: 0 | W193: 0 | X193: 70260 | Y193: 0 | Z193: P | AB193: C671517 | AD193: Internal | AE193: A | AF193: SL | AH193: WCNX | AI193: 0 | AJ193: 0
B194: 2144 | C194: 88605 | D194: P | E194: 2 Yard Containers - REL | F194: 15 | J194: 0 | K194: CAPITAL INDUSTRIES, INC. | M194: 2 YD FEL/REL/SL Metal | N194: 2011-12-28 | O194: 2011-12-28 | P194: 2144-11-0005-1 | Q194: 1200 | R194: 14050 | S194: 7391.25 | T194: 14056 | U194: 7288.61 | V194: 102.64 | W194: 513.27 | X194: 54260 | Y194: 51.32 | Z194: P | AB194: 65176 | AD194: Internal | AE194: A | AF194: SL | AH194: WCNX | AI194: 0 | AJ194: 0
B195: 2144 | C195: 88244 | D195: P | E195: Shop lighting upgrade - wiring and fixtures | F195: 0 | J195: 0 | K195: BARTLETT ELECTRIC INC | N195: 2011-12-01 | O195: 2011-12-01 | P195: 2144-11-0013-1 | Q195: 1000 | R195: 14080 | S195: 5261.08 | T195: 14086 | U195: 5261.08 | V195: 0 | W195: 0 | X195: 57260 | Y195: 0 | Z195: P | AB195: P0622 | AD195: Internal | AE195: A | AF195: SL | AH195: WCNX | AI195: 0 | AJ195: 0
B196: 2144 | C196: 88158 | D196: P | E196: New Bobcat 54" Sweeper Attachment | F196: 0 | J196: 0 | K196: PAPE MACHINERY | N196: 2011-11-02 | O196: 2011-11-02 | P196: 2143-11-0005-1 | Q196: 500 | R196: 14070 | S196: 2771.85 | T196: 14076 | U196: 2771.85 | V196: 0 | W196: 0 | X196: 51260 | Y196: 0 | Z196: P | AB196: 4M 184549 S | AD196: Internal | AE196: A | AF196: SL | AH196: WCNX | AI196: 0 | AJ196: 0
B197: 2144 | C197: 87620 | D197: P | E197: 40YD Roll-Off Drop Box | F197: 1 | J197: 0 | K197: ENTERPRISE SALES, INC. | M197: 40 YD RO Box | N197: 2011-10-01 | O197: 2011-10-01 | P197: 2144-11-0003-1 | Q197: 1200 | R197: 14050 | S197: 6737.23 | T197: 14056 | U197: 6737.23 | V197: 0 | W197: 421.03 | X197: 54260 | Y197: 0 | Z197: P | AB197: 5086 | AD197: Internal | AE197: A | AF197: SL | AH197: WCNX | AI197: 0 | AJ197: 0
B198: 2144 | C198: 86247 | D198: P | E198: 40 Yard Drop Boxes w/Lids | F198: 3 | J198: 0 | K198: ENTERPRISE SALES, INC. | M198: 40 YD RO Box | N198: 2011-09-12 | O198: 2011-09-12 | P198: 2144-11-0003-1 | Q198: 1200 | R198: 14050 | S198: 20211.68 | T198: 14056 | U198: 20211.68 | V198: 0 | W198: 1122.83 | X198: 54260 | Y198: 0 | Z198: P | AB198: 5056 | AD198: Internal | AE198: A | AF198: SL | AH198: WCNX | AI198: 0 | AJ198: 0
B199: 2144 | C199: 86246 | D199: P | E199: 40 Yard Drop Boxes w/Lids | F199: 1 | J199: 0 | K199: ENTERPRISE SALES, INC. | M199: 40 YD RO Box | N199: 2011-08-20 | O199: 2011-08-20 | P199: 2144-11-0003-1 | Q199: 1200 | R199: 14050 | S199: 7019.84 | T199: 14056 | U199: 7019.84 | V199: 0 | W199: 389.96 | X199: 54260 | Y199: 0 | Z199: P | AB199: 5046 | AD199: Internal | AE199: A | AF199: SL | AH199: WCNX | AI199: 2 | AJ199: 0
B200: 2144 | C200: 86245 | D200: P | E200: 30 Yard Drop Box w/Lid | F200: 1 | J200: 0 | K200: ENTERPRISE SALES, INC. | M200: 30 YD RO Box | N200: 2011-08-20 | O200: 2011-08-20 | P200: 2144-11-0002-1 | Q200: 1200 | R200: 14050 | S200: 6173.07 | T200: 14056 | U200: 6173.07 | V200: 0 | W200: 342.97 | X200: 54260 | Y200: 0 | Z200: P | AB200: 5045 | AD200: Internal | AE200: A | AF200: SL | AH200: WCNX | AI200: 0 | AJ200: 0
... 102 more rows

Sheet Regulatory Assets
J2: 11 | K2: Test Period Beg. Month
J3: 10 | K3: Test Period End Month
J4: 2022 | K4: First Year
J5: 2023 | K5: Second year
J6: =+J5+(J3/12) -> 2023.833333 | K6: Test Period End Mo/Yr
J7: =+J4+(J2/12) -> 2022.916667 | K7: Test Period Beg. Mo/Yr
A9: Date Acquired | B9: Asset Purchased | C9: Amount from JE Query | D9: Date In Service Year | E9: Month | F9: Salvage Value % | G9: Method | H9: Life Year | I9: Year Fully Depr | J9: Year/Mo Fully Depr | K9: Asset Cost | L9: Depr Cost | M9: Monthly Depr | N9: Annual Depr | O9: Test Year Depr | P9: Beg Accum Depr | Q9: Ending Accum Depr | R9: Average Investment
B10: Building
A11: 2022-07-22 | B11: Shop Bathroom Wall Repairs | C11: 3424.05 | D11: 2022 | E11: 7 | F11: 0 | G11: S/L | H11: 10 | I11: =D11+H11 -> 2032 | J11: =+I11+(E11/12) -> 2032.583333 | K11: =C11 -> 3424.05 | L11: =K11-K11*F11 -> 3424.05 | M11: =L11/H11/12 -> 28.53375 | N11: =M11*12 -> 342.405 | O11: =+IF(J11<=$J$6,0,N11) -> 342.405 | P11: =+IF($J11<=$J$7,$K11,IF(($D11+($E11/12))>=$J$7,0,((($L11-((($J11-$J$7)*12)*$M11)))))) -> 114.135 | Q11: =+IF(J11<=$J$6,L11,IF(O11=0,P11,P11+O11)) -> 456.54 | R11: =+K11-Q11 -> 2967.51
A12: 2022-07-22 | B12: Shop Bathroom Wall Repairs | C12: 12500.5 | D12: 2022 | E12: 7 | F12: 0 | G12: S/L | H12: 10 | I12: =D12+H12 -> 2032 | J12: =+I12+(E12/12) -> 2032.583333 | K12: =C12 -> 12500.5 | L12: =K12-K12*F12 -> 12500.5 | M12: =L12/H12/12 -> 104.1708333 | N12: =M12*12 -> 1250.05 | O12: 1250.05 | P12: 416.6833333 | Q12: =+IF(J12<=$J$6,L12,IF(O12=0,P12,P12+O12)) -> 1666.733333 | R12: =+K12-Q12 -> 10833.76667
B14: Total Building Capital Repairs | K14: =SUM(K11:K12) -> 15924.55 | L14: 15924.55 | M14: 132.7045833 | N14: 1592.455 | O14: 1592.455 | P14: 530.8183333 | Q14: 2123.273333 | R14: 13801.27667

Sheet 2023 Bud Capital Input (hidden)
D1: Column Definitions
R2: TruckRequest#
A3: PONum_Modified | B3: CurrentProjectNumber_FPS | C3: ProjectNumber_FPS | E3: DeleteFlag | F3: BusinessUnitCode | G3: PoNumber | H3: PoItemNumber | I3: ProjectName_FPS | J3: ItemDescription | K3: Explanation | M3: AssetType | N3: AssetSubType | O3: Life | P3: AddReplace | Q3: Condition | R3: TruckCenterNum ValueList:RequestedTruckList | S3: Jan | T3: Feb | U3: Mar | V3: Apr | W3: May | X3: Jun | Y3: Jul | Z3: Aug | AA3: Sep | AB3: Oct | AC3: Nov | AD3: Dec | AH3: FASNum | AJ3: ReplacementNotes | AK3: EquipmentNum | AL3: EquipmentModelYear | AN3: FileLink hlink:FileLink
C4: CurrentProjectNumber_FPS | H4: PoItemNumber | AP4: MessageToUser
D5: Formatting Range
A6: =IF(AND(C6<>"", B6<>C6),TRUE, FALSE) -> FALSE | B6: =IF(RIGHT("0000"&G6,4)&"-"&H6 <> "0000-", RIGHT("0000"&G6,4)&"-"&H6, "") ->  | D6: 1 | AF6: =SUM(S6:AD6) -> 0 | AR6: =IF(R6="", "", R6) ->  | AS6: =IFERROR(VLOOKUP($AR6,[7]TruckCenterReference!$C$23:$I23,3,FALSE), "") ->  | AT6: =IF(R6<>"",IF(AS6<>I6,"Review","ok"), "") ->  | AV6: =IFERROR(VLOOKUP($AR6,[7]TruckCenterReference!$C$23:$I23,4,FALSE), "") ->  | AW6: =IF(R6="","", IF($AV6<>$Q6, "Fix!", "OK")) ->  | AZ6: =IFERROR(VLOOKUP($AR6,[7]TruckCenterReference!$C$23:$I23,6,FALSE), "") ->  | BA6: =IF(R6<>"",IF(AY6<>AZ6,"Fix!","ok"), "") ->  | BC6: =IFERROR(VLOOKUP($AR6,[7]TruckCenterReference!$C$23:$I23,7,FALSE), 0) -> 0 | BD6: =IFERROR(VLOOKUP($AR6,[7]TruckCenterReference!$C$23:$K23,9,FALSE), 0) -> 0 | BE6: =IFERROR(VLOOKUP($AR6,[7]TruckCenterReference!$C$23:$K23,8,FALSE), 0) -> 0 | BF6: =IF(BC6<>0,BC6-AF6-BE6,"") ->  | BG6: =IF(R6="","",IF(ABS(BF6)>3000,IF(RIGHT(N6,4)="Body","Review","Fix!"),"OK")) -> 
D7: Report Formulas
F8: Pull | M8: =_xll.jFreezePanes(J29,D22) -> > jFreezePanes is ready.
E9: Clear Hash: | F9: =_xll.ReportDefaults("Pull","Clear",_xll.PairGroup(_xll.Pair("",H18))) -> OK!: ReportDefaults Formula OK [jAction{}] | L9: CC Query Drill: | M9: =_xll.ReportDrill(,"CCQueryDrill",_xll.PairGroup(_xll.Pair(L18,"SummaryLevel"),_xll.Pair(I24,"BudYear"),_xll.Pair(I23,"DistrictCell"),_xll.Pair(C30:C80,"PONumber"),_xll.Pair(G20:AP20)),"Drill to CC Query for Change History") -> OK!: ReportDrill 'Drill to CC Query for Change History' Formula OK [jAction{}]
E10: Pull AssetTypeList: | F10: =_xll.ReportRun([7]AssetTypeList!C7,FALSE,"Pull") -> OK!: ReportRun Formula OK [jAction{}]
E11: Pull - BudCap: | F11: =_xll.ReportRange("BudgetCapitalDetailPull",30:54,C3:BF3,C6:BF6,_xll.Param(I23,I24,H18,O18,L19)) -> OK!: ReportRange Formula OK [jAction{}] | AH11: FASNum | AI11: FASDescription
E12: Pull - FAS: | F12: =_xll.ReportFixed("BudCap1",AH30:AH54,AH11:AI11,_xll.Param(DetailBudYear, DetailDistrict)) -> OK!: ReportFixed Formula OK [jAction{}]
F13: =_xll.ReportRun([7]TruckCenterReference!F16,,"Pull") -> OK!: ReportRun Formula OK [jAction{}]
F14: Save
E15: Save: | F15: =_xll.ReportSave("BudgetCapitalDetailSave",F30:F54,A3:AN3,C4:AP4,_xll.Param(I23,I24,H18,O18)) -> OK!: ReportSave Formula OK [jAction{}]
D17: Hidden Parameters & Notes
A18: Repull?: | B18: =IFERROR(OR(A30:A54),FALSE) -> FALSE | G18: FilterHash: | H18: C655A74C41409240C3A3C2D4307CD7 | K18: CC Query Summary Level: | L18: By Change | N18: Exclude Items: | O18: 2
B19: =IF(B18=TRUE,"Save","SkipRePull") -> SkipRePull | K19: Pull Blank Rows: | L19: Yes
G20: For Drill | H20: For Drill | I20: For Drill | J20: For Drill | K20: For Drill | M20: For Drill | N20: For Drill | O20: For Drill | P20: For Drill | Q20: For Drill | R20: For Drill | S20: For Drill | T20: For Drill | U20: For Drill | V20: For Drill | W20: For Drill | X20: For Drill | Y20: For Drill | Z20: For Drill | AA20: For Drill | AB20: For Drill | AC20: For Drill | AD20: For Drill | AF20: For Drill | AH20: For Drill | AK20: For Drill | AL20: For Drill | AN20: For Drill | AP20: For Drill
D21: Report Area Below
H23: Dist / Div / Reg: | I23: 2144
H24: Budget Year: | I24: 2023
M25: IMPORTANT: Pull your district(s) BEFORE inputting. This will auto create new lines for you and prepare the page for input. | AR25: Recon Check Against Garage
E26: CAPITAL DETAIL
AG27: Replacement Info | AS27: Suggested | AV27: New / Used | AY27: Truck Type | AZ27: Truck Type | BC27: Truck Cost
E28: Delete on Save | F28: Dist. | G28: PO # | H28: Item # | I28: PO Description (Required) | J28: PO Item Description | K28: PO Explanation | M28: Asset Type | N28: SubType | O28: Life | P28: A / R | Q28: N / U | R28: Truck # | S28: 2010-01-31 | T28: 2010-02-28 | U28: 2010-03-31 | V28: 2010-04-30 | W28: 2010-05-31 | X28: 2010-06-30 | Y28: 2010-07-31 | Z28: 2010-08-31 | AA28: 2010-09-30 | AB28: 2010-10-31 | AC28: 2010-11-30 | AD28: 2010-12-31 | AF28: Total | AH28: FAS # | AI28: FAS Description | AJ28: Replacement Notes | AK28: Site Eq # | AL28: Model Year | AN28: Folder/File Link | AP28: Save Message | AR28: Truck # | AS28: PO Description | AT28: Note | AV28: Garage | AW28: Note* | AY28: PO Center | AZ28: Garage | BA28: Note | BC28: Garage $ | BD28: Prior PO | BE28: Prior PO $ | BF28: Variance | BG28: Note*
A30: =IF(AND(C30<>"", B30<>C30),TRUE, FALSE) -> FALSE | B30: =IF(RIGHT("0000"&G30,4)&"-"&H30 <> "0000-", RIGHT("0000"&G30,4)&"-"&H30, "") -> 0003-1 | C30: 0003-1 | D30: 1 | F30: 2144 | G30: 3 | H30: 1 | I30: New ROL Peterbilt 567 w/Chain System | J30: New ROL Peterbilt 567 w/Chain System | K30: New ROL Peterbilt 567 w/Chain System | M30: New Trucks | N30: Roll Off | O30: 10 | P30: R | Q30: N | R30: 17367 | S30: 0 | T30: 0 | U30: 0 | V30: 0 | W30: 346019 | X30: 0 | Y30: 0 | Z30: 0 | AA30: 0 | AB30: 0 | AC30: 0 | AD30: 0 | AF30: =SUM(S30:AD30) -> 346019 | AH30: 48617 | AI30: Sterling/LT9500/RO | AJ30: Replacing existing truck due to Sterling parts challenges | AL30: 2007 | AR30: =IF(R30="", "", R30) -> 17367 | AS30: =IFERROR(VLOOKUP($AR30,[7]TruckCenterReference!$C$23:$I27,3,FALSE), "") ->  | AT30: =IF(R30<>"",IF(AS30<>I30,"Review","ok"), "") -> Review | AV30: =IFERROR(VLOOKUP($AR30,[7]TruckCenterReference!$C$23:$I27,4,FALSE), "") ->  | AW30: =IF(R30="","", IF($AV30<>$Q30, "Fix!", "OK")) -> Fix! | AY30: Roll Off | AZ30: =IFERROR(VLOOKUP($AR30,[7]TruckCenterReference!$C$23:$I27,6,FALSE), "") ->  | BA30: =IF(R30<>"",IF(AY30<>AZ30,"Fix!","ok"), "") -> Fix! | BC30: =IFERROR(VLOOKUP($AR30,[7]TruckCenterReference!$C$23:$I27,7,FALSE), 0) -> 0 | BD30: =IFERROR(VLOOKUP($AR30,[7]TruckCenterReference!$C$23:$K27,9,FALSE), 0) -> 0 | BE30: =IFERROR(VLOOKUP($AR30,[7]TruckCenterReference!$C$23:$K27,8,FALSE), 0) -> 0 | BF30: =IF(BC30<>0,BC30-AF30-BE30,"") ->  | BG30: =IF(R30="","",IF(ABS(BF30)>3000,IF(RIGHT(N30,4)="Body","Review","Fix!"),"OK")) -> 
A31: FALSE | B31: 0004-1 | C31: 0004-1 | D31: 1 | F31: 2144 | G31: 4 | H31: 1 | I31: Containers Various | J31: Containers Various | K31: Containers Various | M31: Containers | N31: REL – Plastic | O31: 7 | P31: R | Q31: N | S31: 0 | T31: 25000 | U31: 0 | V31: 25000 | W31: 0 | X31: 25000 | Y31: 0 | Z31: 25000 | AA31: 0 | AB31: 0 | AC31: 0 | AD31: 0 | AF31: 100000 | AJ31: Avg spend from $50k-$100k per year | AS31: =IFERROR(VLOOKUP($AR31,[7]TruckCenterReference!$C$23:$I28,3,FALSE), "") ->  | AV31: =IFERROR(VLOOKUP($AR31,[7]TruckCenterReference!$C$23:$I28,4,FALSE), "") ->  | AZ31: =IFERROR(VLOOKUP($AR31,[7]TruckCenterReference!$C$23:$I28,6,FALSE), "") ->  | BC31: =IFERROR(VLOOKUP($AR31,[7]TruckCenterReference!$C$23:$I28,7,FALSE), 0) -> 0 | BD31: =IFERROR(VLOOKUP($AR31,[7]TruckCenterReference!$C$23:$K28,9,FALSE), 0) -> 0 | BE31: =IFERROR(VLOOKUP($AR31,[7]TruckCenterReference!$C$23:$K28,8,FALSE), 0) -> 0
A32: FALSE | B32: 0006-1 | C32: 0006-1 | D32: 1 | F32: 2144 | G32: 6 | H32: 1 | I32: Parking Lot Improvements | J32: Parking Lot Improvements | K32: Parking Lot Improvements | M32: Land Improvements | N32: Land Improvements | O32: 10 | P32: A | Q32: N | S32: 0 | T32: 0 | U32: 0 | V32: 40000 | W32: 0 | X32: 0 | Y32: 0 | Z32: 0 | AA32: 0 | AB32: 0 | AC32: 0 | AD32: 0 | AF32: 40000 | AJ32: Planning to move truck parking to west side of the building where there is more space and lighting | AS32: =IFERROR(VLOOKUP($AR32,[7]TruckCenterReference!$C$23:$I29,3,FALSE), "") ->  | AV32: =IFERROR(VLOOKUP($AR32,[7]TruckCenterReference!$C$23:$I29,4,FALSE), "") ->  | AZ32: =IFERROR(VLOOKUP($AR32,[7]TruckCenterReference!$C$23:$I29,6,FALSE), "") ->  | BC32: =IFERROR(VLOOKUP($AR32,[7]TruckCenterReference!$C$23:$I29,7,FALSE), 0) -> 0 | BD32: =IFERROR(VLOOKUP($AR32,[7]TruckCenterReference!$C$23:$K29,9,FALSE), 0) -> 0 | BE32: =IFERROR(VLOOKUP($AR32,[7]TruckCenterReference!$C$23:$K29,8,FALSE), 0) -> 0
A33: FALSE | B33: 0007-1 | C33: 0007-1 | D33: 1 | F33: 2144 | G33: 7 | H33: 1 | I33: Recycle Automation 96 Gallon | J33: Recycle Automation 96 Gallon | K33: Recycle Automation 96 Gallon | M33: Containers | N33: Toter – Plastic | O33: 7 | P33: A | Q33: N | S33: 0 | T33: 0 | U33: 0 | V33: 0 | W33: 0 | X33: 0 | Y33: 0 | Z33: 0 | AA33: 0 | AB33: 100000 | AC33: 0 | AD33: 0 | AF33: 100000 | AJ33: Recycle automation program roll out | AS33: =IFERROR(VLOOKUP($AR33,[7]TruckCenterReference!$C$23:$I30,3,FALSE), "") ->  | AV33: =IFERROR(VLOOKUP($AR33,[7]TruckCenterReference!$C$23:$I30,4,FALSE), "") ->  | AZ33: =IFERROR(VLOOKUP($AR33,[7]TruckCenterReference!$C$23:$I30,6,FALSE), "") ->  | BC33: =IFERROR(VLOOKUP($AR33,[7]TruckCenterReference!$C$23:$I30,7,FALSE), 0) -> 0 | BD33: =IFERROR(VLOOKUP($AR33,[7]TruckCenterReference!$C$23:$K30,9,FALSE), 0) -> 0 | BE33: =IFERROR(VLOOKUP($AR33,[7]TruckCenterReference!$C$23:$K30,8,FALSE), 0) -> 0
A34: FALSE | D34: 1 | S34: 0 | T34: 0 | U34: 0 | V34: 0 | W34: 0 | X34: 0 | Y34: 0 | Z34: 0 | AA34: 0 | AB34: 0 | AC34: 0 | AD34: 0 | AF34: 0 | AS34: =IFERROR(VLOOKUP($AR34,[7]TruckCenterReference!$C$23:$I31,3,FALSE), "") ->  | AV34: =IFERROR(VLOOKUP($AR34,[7]TruckCenterReference!$C$23:$I31,4,FALSE), "") ->  | AZ34: =IFERROR(VLOOKUP($AR34,[7]TruckCenterReference!$C$23:$I31,6,FALSE), "") ->  | BC34: =IFERROR(VLOOKUP($AR34,[7]TruckCenterReference!$C$23:$I31,7,FALSE), 0) -> 0 | BD34: =IFERROR(VLOOKUP($AR34,[7]TruckCenterReference!$C$23:$K31,9,FALSE), 0) -> 0 | BE34: =IFERROR(VLOOKUP($AR34,[7]TruckCenterReference!$C$23:$K31,8,FALSE), 0) -> 0
A35: FALSE | D35: 1 | S35: 0 | T35: 0 | U35: 0 | V35: 0 | W35: 0 | X35: 0 | Y35: 0 | Z35: 0 | AA35: 0 | AB35: 0 | AC35: 0 | AD35: 0 | AF35: 0 | AS35: =IFERROR(VLOOKUP($AR35,[7]TruckCenterReference!$C$23:$I32,3,FALSE), "") ->  | AV35: =IFERROR(VLOOKUP($AR35,[7]TruckCenterReference!$C$23:$I32,4,FALSE), "") ->  | AZ35: =IFERROR(VLOOKUP($AR35,[7]TruckCenterReference!$C$23:$I32,6,FALSE), "") ->  | BC35: =IFERROR(VLOOKUP($AR35,[7]TruckCenterReference!$C$23:$I32,7,FALSE), 0) -> 0 | BD35: =IFERROR(VLOOKUP($AR35,[7]TruckCenterReference!$C$23:$K32,9,FALSE), 0) -> 0 | BE35: =IFERROR(VLOOKUP($AR35,[7]TruckCenterReference!$C$23:$K32,8,FALSE), 0) -> 0
A36: FALSE | D36: 1 | S36: 0 | T36: 0 | U36: 0 | V36: 0 | W36: 0 | X36: 0 | Y36: 0 | Z36: 0 | AA36: 0 | AB36: 0 | AC36: 0 | AD36: 0 | AF36: 0 | AS36: =IFERROR(VLOOKUP($AR36,[7]TruckCenterReference!$C$23:$I33,3,FALSE), "") ->  | AV36: =IFERROR(VLOOKUP($AR36,[7]TruckCenterReference!$C$23:$I33,4,FALSE), "") ->  | AZ36: =IFERROR(VLOOKUP($AR36,[7]TruckCenterReference!$C$23:$I33,6,FALSE), "") ->  | BC36: =IFERROR(VLOOKUP($AR36,[7]TruckCenterReference!$C$23:$I33,7,FALSE), 0) -> 0 | BD36: =IFERROR(VLOOKUP($AR36,[7]TruckCenterReference!$C$23:$K33,9,FALSE), 0) -> 0 | BE36: =IFERROR(VLOOKUP($AR36,[7]TruckCenterReference!$C$23:$K33,8,FALSE), 0) -> 0
A37: FALSE | D37: 1 | S37: 0 | T37: 0 | U37: 0 | V37: 0 | W37: 0 | X37: 0 | Y37: 0 | Z37: 0 | AA37: 0 | AB37: 0 | AC37: 0 | AD37: 0 | AF37: 0 | AS37: =IFERROR(VLOOKUP($AR37,[7]TruckCenterReference!$C$23:$I34,3,FALSE), "") ->  | AV37: =IFERROR(VLOOKUP($AR37,[7]TruckCenterReference!$C$23:$I34,4,FALSE), "") ->  | AZ37: =IFERROR(VLOOKUP($AR37,[7]TruckCenterReference!$C$23:$I34,6,FALSE), "") ->  | BC37: =IFERROR(VLOOKUP($AR37,[7]TruckCenterReference!$C$23:$I34,7,FALSE), 0) -> 0 | BD37: =IFERROR(VLOOKUP($AR37,[7]TruckCenterReference!$C$23:$K34,9,FALSE), 0) -> 0 | BE37: =IFERROR(VLOOKUP($AR37,[7]TruckCenterReference!$C$23:$K34,8,FALSE), 0) -> 0
A38: FALSE | D38: 1 | S38: 0 | T38: 0 | U38: 0 | V38: 0 | W38: 0 | X38: 0 | Y38: 0 | Z38: 0 | AA38: 0 | AB38: 0 | AC38: 0 | AD38: 0 | AF38: 0 | AS38: =IFERROR(VLOOKUP($AR38,[7]TruckCenterReference!$C$23:$I35,3,FALSE), "") ->  | AV38: =IFERROR(VLOOKUP($AR38,[7]TruckCenterReference!$C$23:$I35,4,FALSE), "") ->  | AZ38: =IFERROR(VLOOKUP($AR38,[7]TruckCenterReference!$C$23:$I35,6,FALSE), "") ->  | BC38: =IFERROR(VLOOKUP($AR38,[7]TruckCenterReference!$C$23:$I35,7,FALSE), 0) -> 0 | BD38: =IFERROR(VLOOKUP($AR38,[7]TruckCenterReference!$C$23:$K35,9,FALSE), 0) -> 0 | BE38: =IFERROR(VLOOKUP($AR38,[7]TruckCenterReference!$C$23:$K35,8,FALSE), 0) -> 0
A39: FALSE | D39: 1 | S39: 0 | T39: 0 | U39: 0 | V39: 0 | W39: 0 | X39: 0 | Y39: 0 | Z39: 0 | AA39: 0 | AB39: 0 | AC39: 0 | AD39: 0 | AF39: 0 | AS39: =IFERROR(VLOOKUP($AR39,[7]TruckCenterReference!$C$23:$I36,3,FALSE), "") ->  | AV39: =IFERROR(VLOOKUP($AR39,[7]TruckCenterReference!$C$23:$I36,4,FALSE), "") ->  | AZ39: =IFERROR(VLOOKUP($AR39,[7]TruckCenterReference!$C$23:$I36,6,FALSE), "") ->  | BC39: =IFERROR(VLOOKUP($AR39,[7]TruckCenterReference!$C$23:$I36,7,FALSE), 0) -> 0 | BD39: =IFERROR(VLOOKUP($AR39,[7]TruckCenterReference!$C$23:$K36,9,FALSE), 0) -> 0 | BE39: =IFERROR(VLOOKUP($AR39,[7]TruckCenterReference!$C$23:$K36,8,FALSE), 0) -> 0
A40: FALSE | D40: 1 | S40: 0 | T40: 0 | U40: 0 | V40: 0 | W40: 0 | X40: 0 | Y40: 0 | Z40: 0 | AA40: 0 | AB40: 0 | AC40: 0 | AD40: 0 | AF40: 0 | AS40: =IFERROR(VLOOKUP($AR40,[7]TruckCenterReference!$C$23:$I37,3,FALSE), "") ->  | AV40: =IFERROR(VLOOKUP($AR40,[7]TruckCenterReference!$C$23:$I37,4,FALSE), "") ->  | AZ40: =IFERROR(VLOOKUP($AR40,[7]TruckCenterReference!$C$23:$I37,6,FALSE), "") ->  | BC40: =IFERROR(VLOOKUP($AR40,[7]TruckCenterReference!$C$23:$I37,7,FALSE), 0) -> 0 | BD40: =IFERROR(VLOOKUP($AR40,[7]TruckCenterReference!$C$23:$K37,9,FALSE), 0) -> 0 | BE40: =IFERROR(VLOOKUP($AR40,[7]TruckCenterReference!$C$23:$K37,8,FALSE), 0) -> 0
A41: FALSE | D41: 1 | S41: 0 | T41: 0 | U41: 0 | V41: 0 | W41: 0 | X41: 0 | Y41: 0 | Z41: 0 | AA41: 0 | AB41: 0 | AC41: 0 | AD41: 0 | AF41: 0 | AS41: =IFERROR(VLOOKUP($AR41,[7]TruckCenterReference!$C$23:$I38,3,FALSE), "") ->  | AV41: =IFERROR(VLOOKUP($AR41,[7]TruckCenterReference!$C$23:$I38,4,FALSE), "") ->  | AZ41: =IFERROR(VLOOKUP($AR41,[7]TruckCenterReference!$C$23:$I38,6,FALSE), "") ->  | BC41: =IFERROR(VLOOKUP($AR41,[7]TruckCenterReference!$C$23:$I38,7,FALSE), 0) -> 0 | BD41: =IFERROR(VLOOKUP($AR41,[7]TruckCenterReference!$C$23:$K38,9,FALSE), 0) -> 0 | BE41: =IFERROR(VLOOKUP($AR41,[7]TruckCenterReference!$C$23:$K38,8,FALSE), 0) -> 0
A42: FALSE | D42: 1 | S42: 0 | T42: 0 | U42: 0 | V42: 0 | W42: 0 | X42: 0 | Y42: 0 | Z42: 0 | AA42: 0 | AB42: 0 | AC42: 0 | AD42: 0 | AF42: 0 | AS42: =IFERROR(VLOOKUP($AR42,[7]TruckCenterReference!$C$23:$I39,3,FALSE), "") ->  | AV42: =IFERROR(VLOOKUP($AR42,[7]TruckCenterReference!$C$23:$I39,4,FALSE), "") ->  | AZ42: =IFERROR(VLOOKUP($AR42,[7]TruckCenterReference!$C$23:$I39,6,FALSE), "") ->  | BC42: =IFERROR(VLOOKUP($AR42,[7]TruckCenterReference!$C$23:$I39,7,FALSE), 0) -> 0 | BD42: =IFERROR(VLOOKUP($AR42,[7]TruckCenterReference!$C$23:$K39,9,FALSE), 0) -> 0 | BE42: =IFERROR(VLOOKUP($AR42,[7]TruckCenterReference!$C$23:$K39,8,FALSE), 0) -> 0
A43: FALSE | D43: 1 | S43: 0 | T43: 0 | U43: 0 | V43: 0 | W43: 0 | X43: 0 | Y43: 0 | Z43: 0 | AA43: 0 | AB43: 0 | AC43: 0 | AD43: 0 | AF43: 0 | AS43: =IFERROR(VLOOKUP($AR43,[7]TruckCenterReference!$C$23:$I40,3,FALSE), "") ->  | AV43: =IFERROR(VLOOKUP($AR43,[7]TruckCenterReference!$C$23:$I40,4,FALSE), "") ->  | AZ43: =IFERROR(VLOOKUP($AR43,[7]TruckCenterReference!$C$23:$I40,6,FALSE), "") ->  | BC43: =IFERROR(VLOOKUP($AR43,[7]TruckCenterReference!$C$23:$I40,7,FALSE), 0) -> 0 | BD43: =IFERROR(VLOOKUP($AR43,[7]TruckCenterReference!$C$23:$K40,9,FALSE), 0) -> 0 | BE43: =IFERROR(VLOOKUP($AR43,[7]TruckCenterReference!$C$23:$K40,8,FALSE), 0) -> 0
A44: FALSE | D44: 1 | S44: 0 | T44: 0 | U44: 0 | V44: 0 | W44: 0 | X44: 0 | Y44: 0 | Z44: 0 | AA44: 0 | AB44: 0 | AC44: 0 | AD44: 0 | AF44: 0 | AS44: =IFERROR(VLOOKUP($AR44,[7]TruckCenterReference!$C$23:$I41,3,FALSE), "") ->  | AV44: =IFERROR(VLOOKUP($AR44,[7]TruckCenterReference!$C$23:$I41,4,FALSE), "") ->  | AZ44: =IFERROR(VLOOKUP($AR44,[7]TruckCenterReference!$C$23:$I41,6,FALSE), "") ->  | BC44: =IFERROR(VLOOKUP($AR44,[7]TruckCenterReference!$C$23:$I41,7,FALSE), 0) -> 0 | BD44: =IFERROR(VLOOKUP($AR44,[7]TruckCenterReference!$C$23:$K41,9,FALSE), 0) -> 0 | BE44: =IFERROR(VLOOKUP($AR44,[7]TruckCenterReference!$C$23:$K41,8,FALSE), 0) -> 0
A45: FALSE | D45: 1 | S45: 0 | T45: 0 | U45: 0 | V45: 0 | W45: 0 | X45: 0 | Y45: 0 | Z45: 0 | AA45: 0 | AB45: 0 | AC45: 0 | AD45: 0 | AF45: 0 | AS45: =IFERROR(VLOOKUP($AR45,[7]TruckCenterReference!$C$23:$I42,3,FALSE), "") ->  | AV45: =IFERROR(VLOOKUP($AR45,[7]TruckCenterReference!$C$23:$I42,4,FALSE), "") ->  | AZ45: =IFERROR(VLOOKUP($AR45,[7]TruckCenterReference!$C$23:$I42,6,FALSE), "") ->  | BC45: =IFERROR(VLOOKUP($AR45,[7]TruckCenterReference!$C$23:$I42,7,FALSE), 0) -> 0 | BD45: =IFERROR(VLOOKUP($AR45,[7]TruckCenterReference!$C$23:$K42,9,FALSE), 0) -> 0 | BE45: =IFERROR(VLOOKUP($AR45,[7]TruckCenterReference!$C$23:$K42,8,FALSE), 0) -> 0
A46: FALSE | D46: 1 | S46: 0 | T46: 0 | U46: 0 | V46: 0 | W46: 0 | X46: 0 | Y46: 0 | Z46: 0 | AA46: 0 | AB46: 0 | AC46: 0 | AD46: 0 | AF46: 0 | AS46: =IFERROR(VLOOKUP($AR46,[7]TruckCenterReference!$C$23:$I43,3,FALSE), "") ->  | AV46: =IFERROR(VLOOKUP($AR46,[7]TruckCenterReference!$C$23:$I43,4,FALSE), "") ->  | AZ46: =IFERROR(VLOOKUP($AR46,[7]TruckCenterReference!$C$23:$I43,6,FALSE), "") ->  | BC46: =IFERROR(VLOOKUP($AR46,[7]TruckCenterReference!$C$23:$I43,7,FALSE), 0) -> 0 | BD46: =IFERROR(VLOOKUP($AR46,[7]TruckCenterReference!$C$23:$K43,9,FALSE), 0) -> 0 | BE46: =IFERROR(VLOOKUP($AR46,[7]TruckCenterReference!$C$23:$K43,8,FALSE), 0) -> 0
A47: FALSE | D47: 1 | S47: 0 | T47: 0 | U47: 0 | V47: 0 | W47: 0 | X47: 0 | Y47: 0 | Z47: 0 | AA47: 0 | AB47: 0 | AC47: 0 | AD47: 0 | AF47: 0 | AS47: =IFERROR(VLOOKUP($AR47,[7]TruckCenterReference!$C$23:$I44,3,FALSE), "") ->  | AV47: =IFERROR(VLOOKUP($AR47,[7]TruckCenterReference!$C$23:$I44,4,FALSE), "") ->  | AZ47: =IFERROR(VLOOKUP($AR47,[7]TruckCenterReference!$C$23:$I44,6,FALSE), "") ->  | BC47: =IFERROR(VLOOKUP($AR47,[7]TruckCenterReference!$C$23:$I44,7,FALSE), 0) -> 0 | BD47: =IFERROR(VLOOKUP($AR47,[7]TruckCenterReference!$C$23:$K44,9,FALSE), 0) -> 0 | BE47: =IFERROR(VLOOKUP($AR47,[7]TruckCenterReference!$C$23:$K44,8,FALSE), 0) -> 0
A48: FALSE | D48: 1 | S48: 0 | T48: 0 | U48: 0 | V48: 0 | W48: 0 | X48: 0 | Y48: 0 | Z48: 0 | AA48: 0 | AB48: 0 | AC48: 0 | AD48: 0 | AF48: 0 | AS48: =IFERROR(VLOOKUP($AR48,[7]TruckCenterReference!$C$23:$I45,3,FALSE), "") ->  | AV48: =IFERROR(VLOOKUP($AR48,[7]TruckCenterReference!$C$23:$I45,4,FALSE), "") ->  | AZ48: =IFERROR(VLOOKUP($AR48,[7]TruckCenterReference!$C$23:$I45,6,FALSE), "") ->  | BC48: =IFERROR(VLOOKUP($AR48,[7]TruckCenterReference!$C$23:$I45,7,FALSE), 0) -> 0 | BD48: =IFERROR(VLOOKUP($AR48,[7]TruckCenterReference!$C$23:$K45,9,FALSE), 0) -> 0 | BE48: =IFERROR(VLOOKUP($AR48,[7]TruckCenterReference!$C$23:$K45,8,FALSE), 0) -> 0
A49: FALSE | D49: 1 | S49: 0 | T49: 0 | U49: 0 | V49: 0 | W49: 0 | X49: 0 | Y49: 0 | Z49: 0 | AA49: 0 | AB49: 0 | AC49: 0 | AD49: 0 | AF49: 0 | AS49: =IFERROR(VLOOKUP($AR49,[7]TruckCenterReference!$C$23:$I46,3,FALSE), "") ->  | AV49: =IFERROR(VLOOKUP($AR49,[7]TruckCenterReference!$C$23:$I46,4,FALSE), "") ->  | AZ49: =IFERROR(VLOOKUP($AR49,[7]TruckCenterReference!$C$23:$I46,6,FALSE), "") ->  | BC49: =IFERROR(VLOOKUP($AR49,[7]TruckCenterReference!$C$23:$I46,7,FALSE), 0) -> 0 | BD49: =IFERROR(VLOOKUP($AR49,[7]TruckCenterReference!$C$23:$K46,9,FALSE), 0) -> 0 | BE49: =IFERROR(VLOOKUP($AR49,[7]TruckCenterReference!$C$23:$K46,8,FALSE), 0) -> 0
A50: FALSE | D50: 1 | S50: 0 | T50: 0 | U50: 0 | V50: 0 | W50: 0 | X50: 0 | Y50: 0 | Z50: 0 | AA50: 0 | AB50: 0 | AC50: 0 | AD50: 0 | AF50: 0 | AS50: =IFERROR(VLOOKUP($AR50,[7]TruckCenterReference!$C$23:$I47,3,FALSE), "") ->  | AV50: =IFERROR(VLOOKUP($AR50,[7]TruckCenterReference!$C$23:$I47,4,FALSE), "") ->  | AZ50: =IFERROR(VLOOKUP($AR50,[7]TruckCenterReference!$C$23:$I47,6,FALSE), "") ->  | BC50: =IFERROR(VLOOKUP($AR50,[7]TruckCenterReference!$C$23:$I47,7,FALSE), 0) -> 0 | BD50: =IFERROR(VLOOKUP($AR50,[7]TruckCenterReference!$C$23:$K47,9,FALSE), 0) -> 0 | BE50: =IFERROR(VLOOKUP($AR50,[7]TruckCenterReference!$C$23:$K47,8,FALSE), 0) -> 0
A51: FALSE | D51: 1 | S51: 0 | T51: 0 | U51: 0 | V51: 0 | W51: 0 | X51: 0 | Y51: 0 | Z51: 0 | AA51: 0 | AB51: 0 | AC51: 0 | AD51: 0 | AF51: 0 | AS51: =IFERROR(VLOOKUP($AR51,[7]TruckCenterReference!$C$23:$I48,3,FALSE), "") ->  | AV51: =IFERROR(VLOOKUP($AR51,[7]TruckCenterReference!$C$23:$I48,4,FALSE), "") ->  | AZ51: =IFERROR(VLOOKUP($AR51,[7]TruckCenterReference!$C$23:$I48,6,FALSE), "") ->  | BC51: =IFERROR(VLOOKUP($AR51,[7]TruckCenterReference!$C$23:$I48,7,FALSE), 0) -> 0 | BD51: =IFERROR(VLOOKUP($AR51,[7]TruckCenterReference!$C$23:$K48,9,FALSE), 0) -> 0 | BE51: =IFERROR(VLOOKUP($AR51,[7]TruckCenterReference!$C$23:$K48,8,FALSE), 0) -> 0
A52: FALSE | D52: 1 | S52: 0 | T52: 0 | U52: 0 | V52: 0 | W52: 0 | X52: 0 | Y52: 0 | Z52: 0 | AA52: 0 | AB52: 0 | AC52: 0 | AD52: 0 | AF52: 0 | AS52: =IFERROR(VLOOKUP($AR52,[7]TruckCenterReference!$C$23:$I49,3,FALSE), "") ->  | AV52: =IFERROR(VLOOKUP($AR52,[7]TruckCenterReference!$C$23:$I49,4,FALSE), "") ->  | AZ52: =IFERROR(VLOOKUP($AR52,[7]TruckCenterReference!$C$23:$I49,6,FALSE), "") ->  | BC52: =IFERROR(VLOOKUP($AR52,[7]TruckCenterReference!$C$23:$I49,7,FALSE), 0) -> 0 | BD52: =IFERROR(VLOOKUP($AR52,[7]TruckCenterReference!$C$23:$K49,9,FALSE), 0) -> 0 | BE52: =IFERROR(VLOOKUP($AR52,[7]TruckCenterReference!$C$23:$K49,8,FALSE), 0) -> 0
A53: FALSE | D53: 1 | S53: 0 | T53: 0 | U53: 0 | V53: 0 | W53: 0 | X53: 0 | Y53: 0 | Z53: 0 | AA53: 0 | AB53: 0 | AC53: 0 | AD53: 0 | AF53: 0 | AS53: =IFERROR(VLOOKUP($AR53,[7]TruckCenterReference!$C$23:$I50,3,FALSE), "") ->  | AV53: =IFERROR(VLOOKUP($AR53,[7]TruckCenterReference!$C$23:$I50,4,FALSE), "") ->  | AZ53: =IFERROR(VLOOKUP($AR53,[7]TruckCenterReference!$C$23:$I50,6,FALSE), "") ->  | BC53: =IFERROR(VLOOKUP($AR53,[7]TruckCenterReference!$C$23:$I50,7,FALSE), 0) -> 0 | BD53: =IFERROR(VLOOKUP($AR53,[7]TruckCenterReference!$C$23:$K50,9,FALSE), 0) -> 0 | BE53: =IFERROR(VLOOKUP($AR53,[7]TruckCenterReference!$C$23:$K50,8,FALSE), 0) -> 0
E54: End of List (save and re-pull for at least 5 more rows)
R55: TOTAL CAPITAL | S55: =SUM(S29:S54) -> 0 | T55: 25000 | U55: 0 | V55: 65000 | W55: 346019 | X55: 25000 | Y55: 0 | Z55: 25000 | AA55: 0 | AB55: 100000 | AC55: 0 | AD55: 0 | AF55: =SUM(AF29:AF54) -> 586019

Sheet 2024 Bud Capital Input
D1: Column Definitions
R2: TruckRequest#
A3: PONum_Modified | B3: CurrentProjectNumber_FPS | C3: ProjectNumber_FPS | E3: DeleteFlag | F3: BusinessUnitCode | G3: PoNumber | H3: PoItemNumber | I3: ProjectName_FPS | J3: ItemDescription | K3: Explanation | M3: AssetType | N3: AssetSubType | O3: Life | P3: AddReplace | Q3: Condition | R3: TruckCenterNum ValueList:RequestedTruckList | S3: Jan | T3: Feb | U3: Mar | V3: Apr | W3: May | X3: Jun | Y3: Jul | Z3: Aug | AA3: Sep | AB3: Oct | AC3: Nov | AD3: Dec | AH3: FASNum | AJ3: ReplacementNotes | AK3: EquipmentNum | AL3: EquipmentModelYear | AN3: FileLink hlink:FileLink
C4: CurrentProjectNumber_FPS | H4: PoItemNumber | AP4: MessageToUser
D5: Formatting Range
A6: =IF(AND(C6<>"", B6<>C6),TRUE, FALSE) -> FALSE | B6: =IF(RIGHT("0000"&G6,4)&"-"&H6 <> "0000-", RIGHT("0000"&G6,4)&"-"&H6, "") ->  | D6: 1 | AF6: =SUM(S6:AD6) -> 0 | AR6: =IF(R6="", "", R6) ->  | AS6: =IFERROR(VLOOKUP($AR6,[7]TruckCenterReference!$C$23:$I26,3,FALSE), "") ->  | AT6: =IF(R6<>"",IF(AS6<>I6,"Review","ok"), "") ->  | AV6: =IFERROR(VLOOKUP($AR6,[7]TruckCenterReference!$C$23:$I26,4,FALSE), "") ->  | AW6: =IF(R6="","", IF($AV6<>$Q6, "Fix!", "OK")) ->  | AZ6: =IFERROR(VLOOKUP($AR6,[7]TruckCenterReference!$C$23:$I26,6,FALSE), "") ->  | BA6: =IF(R6<>"",IF(AY6<>AZ6,"Fix!","ok"), "") ->  | BC6: =IFERROR(VLOOKUP($AR6,[7]TruckCenterReference!$C$23:$I26,7,FALSE), 0) -> 0 | BD6: =IFERROR(VLOOKUP($AR6,[7]TruckCenterReference!$C$23:$K26,9,FALSE), 0) -> 0 | BE6: =IFERROR(VLOOKUP($AR6,[7]TruckCenterReference!$C$23:$K26,8,FALSE), 0) -> 0 | BF6: =IF(BC6<>0,BC6-AF6-BE6,"") ->  | BG6: =IF(R6="","",IF(ABS(BF6)>3000,IF(RIGHT(N6,4)="Body","Review","Fix!"),"OK")) -> 
D7: Report Formulas
F8: Pull | M8: =_xll.jFreezePanes(J29,D22) -> > jFreezePanes is ready.
E9: Clear Hash: | F9: =_xll.ReportDefaults("Pull","Clear",_xll.PairGroup(_xll.Pair("",H18))) -> OK!: ReportDefaults Formula OK [jAction{}] | L9: CC Query Drill: | M9: =_xll.ReportDrill(,"CCQueryDrill",_xll.PairGroup(_xll.Pair(L18,"SummaryLevel"),_xll.Pair(I24,"BudYear"),_xll.Pair(I23,"DistrictCell"),_xll.Pair(C30:C79,"PONumber"),_xll.Pair(G20:AP20)),"Drill to CC Query for Change History") -> OK!: ReportDrill 'Drill to CC Query for Change History' Formula OK [jAction{}]
E10: Pull AssetTypeList: | F10: =_xll.ReportRun([7]AssetTypeList!C7,FALSE,"Pull") -> OK!: ReportRun Formula OK [jAction{}]
E11: Pull - BudCap: | F11: =_xll.ReportRange("BudgetCapitalDetailPull",30:53,C3:BF3,C6:BF6,_xll.Param(I23,I24,H18,O18,L19)) -> OK!: ReportRange Formula OK [jAction{}] | AH11: FASNum | AI11: FASDescription
E12: Pull - FAS: | F12: =_xll.ReportFixed("BudCap1",AH30:AH53,AH11:AI11,_xll.Param(DetailBudYear, DetailDistrict)) -> OK!: ReportFixed Formula OK [jAction{}]
F13: =_xll.ReportRun([7]TruckCenterReference!F16,,"Pull") -> OK!: ReportRun Formula OK [jAction{}]
F14: Save
E15: Save: | F15: =_xll.ReportSave("BudgetCapitalDetailSave",F30:F53,A3:AN3,C4:AP4,_xll.Param(I23,I24,H18,O18)) -> OK!: ReportSave Formula OK [jAction{}]
D17: Hidden Parameters & Notes
A18: Repull?: | B18: =IFERROR(OR(A30:A53),FALSE) -> FALSE | G18: FilterHash: | H18: 47A7FFF0890B4DB99F85E36496DB41 | K18: CC Query Summary Level: | L18: By Change | N18: Exclude Items: | O18: 2
B19: =IF(B18=TRUE,"Save","SkipRePull") -> SkipRePull | K19: Pull Blank Rows: | L19: Yes
G20: For Drill | H20: For Drill | I20: For Drill | J20: For Drill | K20: For Drill | M20: For Drill | N20: For Drill | O20: For Drill | P20: For Drill | Q20: For Drill | R20: For Drill | S20: For Drill | T20: For Drill | U20: For Drill | V20: For Drill | W20: For Drill | X20: For Drill | Y20: For Drill | Z20: For Drill | AA20: For Drill | AB20: For Drill | AC20: For Drill | AD20: For Drill | AF20: For Drill | AH20: For Drill | AK20: For Drill | AL20: For Drill | AN20: For Drill | AP20: For Drill
D21: Report Area Below
H23: Dist / Div / Reg: | I23: 2144
H24: Budget Year: | I24: =YEAR(NOW())+1 -> 2025
M25: IMPORTANT: Pull your district(s) BEFORE inputting. This will auto create new lines for you and prepare the page for input. | AR25: Recon Check Against Garage
E26: CAPITAL DETAIL
AG27: Replacement Info | AS27: Suggested | AV27: New / Used | AY27: Truck Type | AZ27: Truck Type | BC27: Truck Cost
E28: Delete on Save | F28: Dist. | G28: PO # | H28: Item # | I28: PO Description (Required) | J28: PO Item Description | K28: PO Explanation | M28: Asset Type | N28: SubType | O28: Life | P28: A / R | Q28: N / U | R28: Truck # | S28: 2010-01-31 | T28: 2010-02-28 | U28: 2010-03-31 | V28: 2010-04-30 | W28: 2010-05-31 | X28: 2010-06-30 | Y28: 2010-07-31 | Z28: 2010-08-31 | AA28: 2010-09-30 | AB28: 2010-10-31 | AC28: 2010-11-30 | AD28: 2010-12-31 | AF28: Total | AH28: FAS # | AI28: FAS Description | AJ28: Replacement Notes | AK28: Site Eq # | AL28: Model Year | AN28: Folder/File Link | AP28: Save Message | AR28: Truck # | AS28: PO Description | AT28: Note | AV28: Garage | AW28: Note* | AY28: PO Center | AZ28: Garage | BA28: Note | BC28: Garage $ | BD28: Prior PO | BE28: Prior PO $ | BF28: Variance | BG28: Note*
A30: =IF(AND(C30<>"", B30<>C30),TRUE, FALSE) -> FALSE | B30: =IF(RIGHT("0000"&G30,4)&"-"&H30 <> "0000-", RIGHT("0000"&G30,4)&"-"&H30, "") -> 0001-1 | C30: 0001-1 | D30: 1 | F30: 2144 | G30: 1 | H30: 1 | I30: Containers Various | J30: Containers Various | K30: Average spend (Excluding automation): ~$75k/year | M30: Containers | N30: Toter – Plastic | O30: 7 | P30: R | Q30: N | S30: 0 | T30: 0 | U30: 0 | V30: 50000 | W30: 0 | X30: 0 | Y30: 0 | Z30: 50000 | AA30: 0 | AB30: 0 | AC30: 0 | AD30: 0 | AF30: =SUM(S30:AD30) -> 100000 | AJ30: Average spend (Excluding automation): ~$75k/year | AN30: Shared Carts | AR30: =IF(R30="", "", R30) ->  | AS30: =IFERROR(VLOOKUP($AR30,[7]TruckCenterReference!$C$23:$I50,3,FALSE), "") ->  | AT30: =IF(R30<>"",IF(AS30<>I30,"Review","ok"), "") ->  | AV30: =IFERROR(VLOOKUP($AR30,[7]TruckCenterReference!$C$23:$I50,4,FALSE), "") ->  | AW30: =IF(R30="","", IF($AV30<>$Q30, "Fix!", "OK")) ->  | AZ30: =IFERROR(VLOOKUP($AR30,[7]TruckCenterReference!$C$23:$I50,6,FALSE), "") ->  | BA30: =IF(R30<>"",IF(AY30<>AZ30,"Fix!","ok"), "") ->  | BC30: =IFERROR(VLOOKUP($AR30,[7]TruckCenterReference!$C$23:$I50,7,FALSE), 0) -> 0 | BD30: =IFERROR(VLOOKUP($AR30,[7]TruckCenterReference!$C$23:$K50,9,FALSE), 0) -> 0 | BE30: =IFERROR(VLOOKUP($AR30,[7]TruckCenterReference!$C$23:$K50,8,FALSE), 0) -> 0 | BF30: =IF(BC30<>0,BC30-AF30-BE30,"") ->  | BG30: =IF(R30="","",IF(ABS(BF30)>3000,IF(RIGHT(N30,4)="Body","Review","Fix!"),"OK")) -> 
A31: FALSE | B31: 0004-1 | C31: 0004-1 | D31: 1 | F31: 2144 | G31: 4 | H31: 1 | I31: Add MRF Wall | J31: Add MRF Wall | K31: Add MRF Walls - Aide in containing material within MRF and reducing overall wind impacts during Fall/Winter months. Improving security in MRF. | M31: Buildings | N31: Building Improvements | O31: 10 | P31: A | Q31: N | S31: 0 | T31: 0 | U31: 0 | V31: 0 | W31: 0 | X31: 0 | Y31: 40000 | Z31: 0 | AA31: 0 | AB31: 0 | AC31: 0 | AD31: 0 | AF31: 40000 | AN31: MRF | AS31: =IFERROR(VLOOKUP($AR31,[7]TruckCenterReference!$C$23:$I51,3,FALSE), "") ->  | AV31: =IFERROR(VLOOKUP($AR31,[7]TruckCenterReference!$C$23:$I51,4,FALSE), "") ->  | AZ31: =IFERROR(VLOOKUP($AR31,[7]TruckCenterReference!$C$23:$I51,6,FALSE), "") ->  | BC31: =IFERROR(VLOOKUP($AR31,[7]TruckCenterReference!$C$23:$I51,7,FALSE), 0) -> 0 | BD31: =IFERROR(VLOOKUP($AR31,[7]TruckCenterReference!$C$23:$K51,9,FALSE), 0) -> 0 | BE31: =IFERROR(VLOOKUP($AR31,[7]TruckCenterReference!$C$23:$K51,8,FALSE), 0) -> 0
A32: FALSE | B32: 0005-1 | C32: 0005-1 | D32: 1 | F32: 2144 | G32: 5 | H32: 1 | I32: New LED Lights in MRF | J32: New LED Lights in MRF | K32: New LED Lights are needed inside the MRF in order to improve safety conditions and reduce utility expense. | M32: Buildings | N32: Building Improvements | O32: 10 | P32: R | Q32: N | S32: 0 | T32: 0 | U32: 19576 | W32: 0 | X32: 0 | Y32: 0 | Z32: 0 | AA32: 0 | AB32: 0 | AC32: 0 | AD32: 0 | AF32: 19576 | AN32: MRF | AS32: =IFERROR(VLOOKUP($AR32,[7]TruckCenterReference!$C$23:$I52,3,FALSE), "") ->  | AV32: =IFERROR(VLOOKUP($AR32,[7]TruckCenterReference!$C$23:$I52,4,FALSE), "") ->  | AZ32: =IFERROR(VLOOKUP($AR32,[7]TruckCenterReference!$C$23:$I52,6,FALSE), "") ->  | BC32: =IFERROR(VLOOKUP($AR32,[7]TruckCenterReference!$C$23:$I52,7,FALSE), 0) -> 0 | BD32: =IFERROR(VLOOKUP($AR32,[7]TruckCenterReference!$C$23:$K52,9,FALSE), 0) -> 0 | BE32: =IFERROR(VLOOKUP($AR32,[7]TruckCenterReference!$C$23:$K52,8,FALSE), 0) -> 0
A33: FALSE | D33: 1 | S33: 0 | T33: 0 | U33: 0 | V33: 0 | W33: 0 | X33: 0 | Y33: 0 | Z33: 0 | AA33: 0 | AB33: 0 | AC33: 0 | AD33: 0 | AF33: 0 | AS33: =IFERROR(VLOOKUP($AR33,[7]TruckCenterReference!$C$23:$I53,3,FALSE), "") ->  | AV33: =IFERROR(VLOOKUP($AR33,[7]TruckCenterReference!$C$23:$I53,4,FALSE), "") ->  | AZ33: =IFERROR(VLOOKUP($AR33,[7]TruckCenterReference!$C$23:$I53,6,FALSE), "") ->  | BC33: =IFERROR(VLOOKUP($AR33,[7]TruckCenterReference!$C$23:$I53,7,FALSE), 0) -> 0 | BD33: =IFERROR(VLOOKUP($AR33,[7]TruckCenterReference!$C$23:$K53,9,FALSE), 0) -> 0 | BE33: =IFERROR(VLOOKUP($AR33,[7]TruckCenterReference!$C$23:$K53,8,FALSE), 0) -> 0
A34: FALSE | D34: 1 | S34: 0 | T34: 0 | U34: 0 | V34: 0 | W34: 0 | X34: 0 | Y34: 0 | Z34: 0 | AA34: 0 | AB34: 0 | AC34: 0 | AD34: 0 | AF34: 0 | AS34: =IFERROR(VLOOKUP($AR34,[7]TruckCenterReference!$C$23:$I54,3,FALSE), "") ->  | AV34: =IFERROR(VLOOKUP($AR34,[7]TruckCenterReference!$C$23:$I54,4,FALSE), "") ->  | AZ34: =IFERROR(VLOOKUP($AR34,[7]TruckCenterReference!$C$23:$I54,6,FALSE), "") ->  | BC34: =IFERROR(VLOOKUP($AR34,[7]TruckCenterReference!$C$23:$I54,7,FALSE), 0) -> 0 | BD34: =IFERROR(VLOOKUP($AR34,[7]TruckCenterReference!$C$23:$K54,9,FALSE), 0) -> 0 | BE34: =IFERROR(VLOOKUP($AR34,[7]TruckCenterReference!$C$23:$K54,8,FALSE), 0) -> 0
A35: FALSE | D35: 1 | S35: 0 | T35: 0 | U35: 0 | V35: 0 | W35: 0 | X35: 0 | Y35: 0 | Z35: 0 | AA35: 0 | AB35: 0 | AC35: 0 | AD35: 0 | AF35: 0 | AS35: =IFERROR(VLOOKUP($AR35,[7]TruckCenterReference!$C$23:$I55,3,FALSE), "") ->  | AV35: =IFERROR(VLOOKUP($AR35,[7]TruckCenterReference!$C$23:$I55,4,FALSE), "") ->  | AZ35: =IFERROR(VLOOKUP($AR35,[7]TruckCenterReference!$C$23:$I55,6,FALSE), "") ->  | BC35: =IFERROR(VLOOKUP($AR35,[7]TruckCenterReference!$C$23:$I55,7,FALSE), 0) -> 0 | BD35: =IFERROR(VLOOKUP($AR35,[7]TruckCenterReference!$C$23:$K55,9,FALSE), 0) -> 0 | BE35: =IFERROR(VLOOKUP($AR35,[7]TruckCenterReference!$C$23:$K55,8,FALSE), 0) -> 0
A36: FALSE | D36: 1 | S36: 0 | T36: 0 | U36: 0 | V36: 0 | W36: 0 | X36: 0 | Y36: 0 | Z36: 0 | AA36: 0 | AB36: 0 | AC36: 0 | AD36: 0 | AF36: 0 | AS36: =IFERROR(VLOOKUP($AR36,[7]TruckCenterReference!$C$23:$I56,3,FALSE), "") ->  | AV36: =IFERROR(VLOOKUP($AR36,[7]TruckCenterReference!$C$23:$I56,4,FALSE), "") ->  | AZ36: =IFERROR(VLOOKUP($AR36,[7]TruckCenterReference!$C$23:$I56,6,FALSE), "") ->  | BC36: =IFERROR(VLOOKUP($AR36,[7]TruckCenterReference!$C$23:$I56,7,FALSE), 0) -> 0 | BD36: =IFERROR(VLOOKUP($AR36,[7]TruckCenterReference!$C$23:$K56,9,FALSE), 0) -> 0 | BE36: =IFERROR(VLOOKUP($AR36,[7]TruckCenterReference!$C$23:$K56,8,FALSE), 0) -> 0
A37: FALSE | D37: 1 | S37: 0 | T37: 0 | U37: 0 | V37: 0 | W37: 0 | X37: 0 | Y37: 0 | Z37: 0 | AA37: 0 | AB37: 0 | AC37: 0 | AD37: 0 | AF37: 0 | AS37: =IFERROR(VLOOKUP($AR37,[7]TruckCenterReference!$C$23:$I57,3,FALSE), "") ->  | AV37: =IFERROR(VLOOKUP($AR37,[7]TruckCenterReference!$C$23:$I57,4,FALSE), "") ->  | AZ37: =IFERROR(VLOOKUP($AR37,[7]TruckCenterReference!$C$23:$I57,6,FALSE), "") ->  | BC37: =IFERROR(VLOOKUP($AR37,[7]TruckCenterReference!$C$23:$I57,7,FALSE), 0) -> 0 | BD37: =IFERROR(VLOOKUP($AR37,[7]TruckCenterReference!$C$23:$K57,9,FALSE), 0) -> 0 | BE37: =IFERROR(VLOOKUP($AR37,[7]TruckCenterReference!$C$23:$K57,8,FALSE), 0) -> 0
A38: FALSE | D38: 1 | S38: 0 | T38: 0 | U38: 0 | V38: 0 | W38: 0 | X38: 0 | Y38: 0 | Z38: 0 | AA38: 0 | AB38: 0 | AC38: 0 | AD38: 0 | AF38: 0 | AS38: =IFERROR(VLOOKUP($AR38,[7]TruckCenterReference!$C$23:$I58,3,FALSE), "") ->  | AV38: =IFERROR(VLOOKUP($AR38,[7]TruckCenterReference!$C$23:$I58,4,FALSE), "") ->  | AZ38: =IFERROR(VLOOKUP($AR38,[7]TruckCenterReference!$C$23:$I58,6,FALSE), "") ->  | BC38: =IFERROR(VLOOKUP($AR38,[7]TruckCenterReference!$C$23:$I58,7,FALSE), 0) -> 0 | BD38: =IFERROR(VLOOKUP($AR38,[7]TruckCenterReference!$C$23:$K58,9,FALSE), 0) -> 0 | BE38: =IFERROR(VLOOKUP($AR38,[7]TruckCenterReference!$C$23:$K58,8,FALSE), 0) -> 0
A39: FALSE | D39: 1 | S39: 0 | T39: 0 | U39: 0 | V39: 0 | W39: 0 | X39: 0 | Y39: 0 | Z39: 0 | AA39: 0 | AB39: 0 | AC39: 0 | AD39: 0 | AF39: 0 | AS39: =IFERROR(VLOOKUP($AR39,[7]TruckCenterReference!$C$23:$I59,3,FALSE), "") ->  | AV39: =IFERROR(VLOOKUP($AR39,[7]TruckCenterReference!$C$23:$I59,4,FALSE), "") ->  | AZ39: =IFERROR(VLOOKUP($AR39,[7]TruckCenterReference!$C$23:$I59,6,FALSE), "") ->  | BC39: =IFERROR(VLOOKUP($AR39,[7]TruckCenterReference!$C$23:$I59,7,FALSE), 0) -> 0 | BD39: =IFERROR(VLOOKUP($AR39,[7]TruckCenterReference!$C$23:$K59,9,FALSE), 0) -> 0 | BE39: =IFERROR(VLOOKUP($AR39,[7]TruckCenterReference!$C$23:$K59,8,FALSE), 0) -> 0
A40: FALSE | D40: 1 | S40: 0 | T40: 0 | U40: 0 | V40: 0 | W40: 0 | X40: 0 | Y40: 0 | Z40: 0 | AA40: 0 | AB40: 0 | AC40: 0 | AD40: 0 | AF40: 0 | AS40: =IFERROR(VLOOKUP($AR40,[7]TruckCenterReference!$C$23:$I60,3,FALSE), "") ->  | AV40: =IFERROR(VLOOKUP($AR40,[7]TruckCenterReference!$C$23:$I60,4,FALSE), "") ->  | AZ40: =IFERROR(VLOOKUP($AR40,[7]TruckCenterReference!$C$23:$I60,6,FALSE), "") ->  | BC40: =IFERROR(VLOOKUP($AR40,[7]TruckCenterReference!$C$23:$I60,7,FALSE), 0) -> 0 | BD40: =IFERROR(VLOOKUP($AR40,[7]TruckCenterReference!$C$23:$K60,9,FALSE), 0) -> 0 | BE40: =IFERROR(VLOOKUP($AR40,[7]TruckCenterReference!$C$23:$K60,8,FALSE), 0) -> 0
A41: FALSE | D41: 1 | S41: 0 | T41: 0 | U41: 0 | V41: 0 | W41: 0 | X41: 0 | Y41: 0 | Z41: 0 | AA41: 0 | AB41: 0 | AC41: 0 | AD41: 0 | AF41: 0 | AS41: =IFERROR(VLOOKUP($AR41,[7]TruckCenterReference!$C$23:$I61,3,FALSE), "") ->  | AV41: =IFERROR(VLOOKUP($AR41,[7]TruckCenterReference!$C$23:$I61,4,FALSE), "") ->  | AZ41: =IFERROR(VLOOKUP($AR41,[7]TruckCenterReference!$C$23:$I61,6,FALSE), "") ->  | BC41: =IFERROR(VLOOKUP($AR41,[7]TruckCenterReference!$C$23:$I61,7,FALSE), 0) -> 0 | BD41: =IFERROR(VLOOKUP($AR41,[7]TruckCenterReference!$C$23:$K61,9,FALSE), 0) -> 0 | BE41: =IFERROR(VLOOKUP($AR41,[7]TruckCenterReference!$C$23:$K61,8,FALSE), 0) -> 0
A42: FALSE | D42: 1 | S42: 0 | T42: 0 | U42: 0 | V42: 0 | W42: 0 | X42: 0 | Y42: 0 | Z42: 0 | AA42: 0 | AB42: 0 | AC42: 0 | AD42: 0 | AF42: 0 | AS42: =IFERROR(VLOOKUP($AR42,[7]TruckCenterReference!$C$23:$I62,3,FALSE), "") ->  | AV42: =IFERROR(VLOOKUP($AR42,[7]TruckCenterReference!$C$23:$I62,4,FALSE), "") ->  | AZ42: =IFERROR(VLOOKUP($AR42,[7]TruckCenterReference!$C$23:$I62,6,FALSE), "") ->  | BC42: =IFERROR(VLOOKUP($AR42,[7]TruckCenterReference!$C$23:$I62,7,FALSE), 0) -> 0 | BD42: =IFERROR(VLOOKUP($AR42,[7]TruckCenterReference!$C$23:$K62,9,FALSE), 0) -> 0 | BE42: =IFERROR(VLOOKUP($AR42,[7]TruckCenterReference!$C$23:$K62,8,FALSE), 0) -> 0
A43: FALSE | D43: 1 | S43: 0 | T43: 0 | U43: 0 | V43: 0 | W43: 0 | X43: 0 | Y43: 0 | Z43: 0 | AA43: 0 | AB43: 0 | AC43: 0 | AD43: 0 | AF43: 0 | AS43: =IFERROR(VLOOKUP($AR43,[7]TruckCenterReference!$C$23:$I63,3,FALSE), "") ->  | AV43: =IFERROR(VLOOKUP($AR43,[7]TruckCenterReference!$C$23:$I63,4,FALSE), "") ->  | AZ43: =IFERROR(VLOOKUP($AR43,[7]TruckCenterReference!$C$23:$I63,6,FALSE), "") ->  | BC43: =IFERROR(VLOOKUP($AR43,[7]TruckCenterReference!$C$23:$I63,7,FALSE), 0) -> 0 | BD43: =IFERROR(VLOOKUP($AR43,[7]TruckCenterReference!$C$23:$K63,9,FALSE), 0) -> 0 | BE43: =IFERROR(VLOOKUP($AR43,[7]TruckCenterReference!$C$23:$K63,8,FALSE), 0) -> 0
A44: FALSE | D44: 1 | S44: 0 | T44: 0 | U44: 0 | V44: 0 | W44: 0 | X44: 0 | Y44: 0 | Z44: 0 | AA44: 0 | AB44: 0 | AC44: 0 | AD44: 0 | AF44: 0 | AS44: =IFERROR(VLOOKUP($AR44,[7]TruckCenterReference!$C$23:$I64,3,FALSE), "") ->  | AV44: =IFERROR(VLOOKUP($AR44,[7]TruckCenterReference!$C$23:$I64,4,FALSE), "") ->  | AZ44: =IFERROR(VLOOKUP($AR44,[7]TruckCenterReference!$C$23:$I64,6,FALSE), "") ->  | BC44: =IFERROR(VLOOKUP($AR44,[7]TruckCenterReference!$C$23:$I64,7,FALSE), 0) -> 0 | BD44: =IFERROR(VLOOKUP($AR44,[7]TruckCenterReference!$C$23:$K64,9,FALSE), 0) -> 0 | BE44: =IFERROR(VLOOKUP($AR44,[7]TruckCenterReference!$C$23:$K64,8,FALSE), 0) -> 0
A45: FALSE | D45: 1 | S45: 0 | T45: 0 | U45: 0 | V45: 0 | W45: 0 | X45: 0 | Y45: 0 | Z45: 0 | AA45: 0 | AB45: 0 | AC45: 0 | AD45: 0 | AF45: 0 | AS45: =IFERROR(VLOOKUP($AR45,[7]TruckCenterReference!$C$23:$I65,3,FALSE), "") ->  | AV45: =IFERROR(VLOOKUP($AR45,[7]TruckCenterReference!$C$23:$I65,4,FALSE), "") ->  | AZ45: =IFERROR(VLOOKUP($AR45,[7]TruckCenterReference!$C$23:$I65,6,FALSE), "") ->  | BC45: =IFERROR(VLOOKUP($AR45,[7]TruckCenterReference!$C$23:$I65,7,FALSE), 0) -> 0 | BD45: =IFERROR(VLOOKUP($AR45,[7]TruckCenterReference!$C$23:$K65,9,FALSE), 0) -> 0 | BE45: =IFERROR(VLOOKUP($AR45,[7]TruckCenterReference!$C$23:$K65,8,FALSE), 0) -> 0
A46: FALSE | D46: 1 | S46: 0 | T46: 0 | U46: 0 | V46: 0 | W46: 0 | X46: 0 | Y46: 0 | Z46: 0 | AA46: 0 | AB46: 0 | AC46: 0 | AD46: 0 | AF46: 0 | AS46: =IFERROR(VLOOKUP($AR46,[7]TruckCenterReference!$C$23:$I66,3,FALSE), "") ->  | AV46: =IFERROR(VLOOKUP($AR46,[7]TruckCenterReference!$C$23:$I66,4,FALSE), "") ->  | AZ46: =IFERROR(VLOOKUP($AR46,[7]TruckCenterReference!$C$23:$I66,6,FALSE), "") ->  | BC46: =IFERROR(VLOOKUP($AR46,[7]TruckCenterReference!$C$23:$I66,7,FALSE), 0) -> 0 | BD46: =IFERROR(VLOOKUP($AR46,[7]TruckCenterReference!$C$23:$K66,9,FALSE), 0) -> 0 | BE46: =IFERROR(VLOOKUP($AR46,[7]TruckCenterReference!$C$23:$K66,8,FALSE), 0) -> 0
A47: FALSE | D47: 1 | S47: 0 | T47: 0 | U47: 0 | V47: 0 | W47: 0 | X47: 0 | Y47: 0 | Z47: 0 | AA47: 0 | AB47: 0 | AC47: 0 | AD47: 0 | AF47: 0 | AS47: =IFERROR(VLOOKUP($AR47,[7]TruckCenterReference!$C$23:$I67,3,FALSE), "") ->  | AV47: =IFERROR(VLOOKUP($AR47,[7]TruckCenterReference!$C$23:$I67,4,FALSE), "") ->  | AZ47: =IFERROR(VLOOKUP($AR47,[7]TruckCenterReference!$C$23:$I67,6,FALSE), "") ->  | BC47: =IFERROR(VLOOKUP($AR47,[7]TruckCenterReference!$C$23:$I67,7,FALSE), 0) -> 0 | BD47: =IFERROR(VLOOKUP($AR47,[7]TruckCenterReference!$C$23:$K67,9,FALSE), 0) -> 0 | BE47: =IFERROR(VLOOKUP($AR47,[7]TruckCenterReference!$C$23:$K67,8,FALSE), 0) -> 0
A48: FALSE | D48: 1 | S48: 0 | T48: 0 | U48: 0 | V48: 0 | W48: 0 | X48: 0 | Y48: 0 | Z48: 0 | AA48: 0 | AB48: 0 | AC48: 0 | AD48: 0 | AF48: 0 | AS48: =IFERROR(VLOOKUP($AR48,[7]TruckCenterReference!$C$23:$I68,3,FALSE), "") ->  | AV48: =IFERROR(VLOOKUP($AR48,[7]TruckCenterReference!$C$23:$I68,4,FALSE), "") ->  | AZ48: =IFERROR(VLOOKUP($AR48,[7]TruckCenterReference!$C$23:$I68,6,FALSE), "") ->  | BC48: =IFERROR(VLOOKUP($AR48,[7]TruckCenterReference!$C$23:$I68,7,FALSE), 0) -> 0 | BD48: =IFERROR(VLOOKUP($AR48,[7]TruckCenterReference!$C$23:$K68,9,FALSE), 0) -> 0 | BE48: =IFERROR(VLOOKUP($AR48,[7]TruckCenterReference!$C$23:$K68,8,FALSE), 0) -> 0
A49: FALSE | D49: 1 | S49: 0 | T49: 0 | U49: 0 | V49: 0 | W49: 0 | X49: 0 | Y49: 0 | Z49: 0 | AA49: 0 | AB49: 0 | AC49: 0 | AD49: 0 | AF49: 0 | AS49: =IFERROR(VLOOKUP($AR49,[7]TruckCenterReference!$C$23:$I69,3,FALSE), "") ->  | AV49: =IFERROR(VLOOKUP($AR49,[7]TruckCenterReference!$C$23:$I69,4,FALSE), "") ->  | AZ49: =IFERROR(VLOOKUP($AR49,[7]TruckCenterReference!$C$23:$I69,6,FALSE), "") ->  | BC49: =IFERROR(VLOOKUP($AR49,[7]TruckCenterReference!$C$23:$I69,7,FALSE), 0) -> 0 | BD49: =IFERROR(VLOOKUP($AR49,[7]TruckCenterReference!$C$23:$K69,9,FALSE), 0) -> 0 | BE49: =IFERROR(VLOOKUP($AR49,[7]TruckCenterReference!$C$23:$K69,8,FALSE), 0) -> 0
A50: FALSE | D50: 1 | S50: 0 | T50: 0 | U50: 0 | V50: 0 | W50: 0 | X50: 0 | Y50: 0 | Z50: 0 | AA50: 0 | AB50: 0 | AC50: 0 | AD50: 0 | AF50: 0 | AS50: =IFERROR(VLOOKUP($AR50,[7]TruckCenterReference!$C$23:$I70,3,FALSE), "") ->  | AV50: =IFERROR(VLOOKUP($AR50,[7]TruckCenterReference!$C$23:$I70,4,FALSE), "") ->  | AZ50: =IFERROR(VLOOKUP($AR50,[7]TruckCenterReference!$C$23:$I70,6,FALSE), "") ->  | BC50: =IFERROR(VLOOKUP($AR50,[7]TruckCenterReference!$C$23:$I70,7,FALSE), 0) -> 0 | BD50: =IFERROR(VLOOKUP($AR50,[7]TruckCenterReference!$C$23:$K70,9,FALSE), 0) -> 0 | BE50: =IFERROR(VLOOKUP($AR50,[7]TruckCenterReference!$C$23:$K70,8,FALSE), 0) -> 0
A51: FALSE | D51: 1 | S51: 0 | T51: 0 | U51: 0 | V51: 0 | W51: 0 | X51: 0 | Y51: 0 | Z51: 0 | AA51: 0 | AB51: 0 | AC51: 0 | AD51: 0 | AF51: 0 | AS51: =IFERROR(VLOOKUP($AR51,[7]TruckCenterReference!$C$23:$I71,3,FALSE), "") ->  | AV51: =IFERROR(VLOOKUP($AR51,[7]TruckCenterReference!$C$23:$I71,4,FALSE), "") ->  | AZ51: =IFERROR(VLOOKUP($AR51,[7]TruckCenterReference!$C$23:$I71,6,FALSE), "") ->  | BC51: =IFERROR(VLOOKUP($AR51,[7]TruckCenterReference!$C$23:$I71,7,FALSE), 0) -> 0 | BD51: =IFERROR(VLOOKUP($AR51,[7]TruckCenterReference!$C$23:$K71,9,FALSE), 0) -> 0 | BE51: =IFERROR(VLOOKUP($AR51,[7]TruckCenterReference!$C$23:$K71,8,FALSE), 0) -> 0
A52: FALSE | D52: 1 | S52: 0 | T52: 0 | U52: 0 | V52: 0 | W52: 0 | X52: 0 | Y52: 0 | Z52: 0 | AA52: 0 | AB52: 0 | AC52: 0 | AD52: 0 | AF52: 0 | AS52: =IFERROR(VLOOKUP($AR52,[7]TruckCenterReference!$C$23:$I72,3,FALSE), "") ->  | AV52: =IFERROR(VLOOKUP($AR52,[7]TruckCenterReference!$C$23:$I72,4,FALSE), "") ->  | AZ52: =IFERROR(VLOOKUP($AR52,[7]TruckCenterReference!$C$23:$I72,6,FALSE), "") ->  | BC52: =IFERROR(VLOOKUP($AR52,[7]TruckCenterReference!$C$23:$I72,7,FALSE), 0) -> 0 | BD52: =IFERROR(VLOOKUP($AR52,[7]TruckCenterReference!$C$23:$K72,9,FALSE), 0) -> 0 | BE52: =IFERROR(VLOOKUP($AR52,[7]TruckCenterReference!$C$23:$K72,8,FALSE), 0) -> 0
E53: End of List (save and re-pull for at least 5 more rows)
R54: TOTAL CAPITAL | S54: =SUM(S29:S53) -> 0 | T54: 0 | U54: 19576 | V54: 50000 | W54: 0 | X54: 0 | Y54: 40000 | Z54: 50000 | AA54: 0 | AB54: 0 | AC54: 0 | AD54: 0 | AF54: =SUM(AF29:AF53) -> 159576
AJ59: Category | AK59: Value | AL59: Life | AN59: Test Year Depreciation | AP59: NBV
AJ60: MRF | AK60: =+SUMIF($AN$30:$AN$54,AJ60,$AF$30:$AF$30) -> 59576 | AL60: 10 | AN60: =+AK60/AL60 -> 5957.6 | AP60: =+AK60-AN60 -> 53618.4
AJ61: Shared Carts | AK61: 100000 | AL61: 7 | AN61: =+AK61/AL61 -> 14285.71429 | AP61: =+AK61-AN61 -> 85714.28571
AK62: =SUM(AK60:AK61) -> 159576 | AN62: =SUM(AN60:AN61) -> 20243.31429 | AP62: =SUM(AP60:AP61) -> 139332.6857
AJ63: Proforma Adds Breakout:
AJ64: Commercial Garbage | AK64: =AK61*0.4 -> 40000 | AL64: 7 | AN64: =AN61*0.4 -> 5714.285714 | AP64: =AP61*0.4 -> 34285.71429
AJ65: Drop Boxes | AK65: =AK61*0.6 -> 60000 | AL65: 7 | AN65: =AN61*0.6 -> 8571.428571 | AP65: =AP61*0.6 -> 51428.57143
AJ66: Total: | AK66: =SUM(AK64:AK65) -> 100000 | AN66: =SUM(AN64:AN65) -> 14285.71429 | AP66: =SUM(AP64:AP65) -> 85714.28571

Sheet 2144 Trks
D1: Island Disposal Inc
D2: Depreciation Schedule | N2: =+'FAR 10.31.2023'!AK5 -> 11 | O2: Test Period Beg. Month | AX2: CONVENTIONS
D3: ='Depr Summary'!H12 -> 2023-10-31 | N3: =+'FAR 10.31.2023'!AK6 -> 10 | O3: Test Period End Month
N4: =+'FAR 10.31.2023'!AK7 -> 2022 | O4: First Year | AW4: 1 | AX4: Calendar year test period: | BA4: 12 | BB4: mos in first year
N5: =+'FAR 10.31.2023'!AK8 -> 2023 | O5: Second year | AX5: 1993 | BA5: 0 | BB5: mos in 2nd year
N6: =+'FAR 10.31.2023'!AK9 -> 2023.833333 | O6: Test Period End Mo/Yr | BA6: 93 | BB6: First year
N7: =+'FAR 10.31.2023'!AK10 -> 2022.916667 | O7: Test Period Beg. Mo/Yr | BA7: 94 | BB7: Second Year
Q8: Beginning | R8: Allocated | V8: Regulated
D9: RESI/COMM GARBAGE | E9: Date in | G9: Salvage | J9: Year | K9: Year/Mo | Q9: Accumulated | R9: Accumulated | U9: Regulated | V9: Average
C10: Truck | E10: Service | G10: Value | H10: Method | I10: Life | J10: Fully | K10: Fully | L10: Asset | M10: Depr | N10: Monthly | O10: Annual | P10: Test yr. | Q10: Depreciation | R10: Depreciation | S10: NBV | U10: Test yr. | V10: Investment | AW10: 2 | AX10: Dispositions must be in test period
A11: FAR # | B11: Codes | C11: No | D11: Asset Classification | E11: Year | F11: Mo | G11: % | H11: M | I11: Years | J11: Depr | K11: Depr | L11: Cost | M11: Cost | N11: Depr | O11: Depr | P11: Depn. | Q11: ='Depr Summary'!F12 -> 2022-11-01 | R11: =+D3 -> 2023-10-31 | S11: =D3 -> 2023-10-31 | T11: Regulated % | U11: Depn. | V11: =S11 -> 2023-10-31
B12: RL | C12: 5016 | D12: 2007 International RL w/ Heil Pkr | E12: 2007 | F12: 9 | G12: 0 | H12: S/L | I12: 7 | J12: =E12+I12 -> 2014 | K12: =+J12+(F12/12) -> 2014.75 | L12: =+'2144 Trks Orig'!Q18 -> 109360.696 | M12: =L12-L12*G12 -> 109360.696 | N12: =M12/I12/12 -> 1301.913048 | O12: =+N12*12 -> 15622.95657 | P12: =+IF(K12<=$N$6,0,O12) -> 0 | Q12: =+IF($K12<=$N$7,$L12,IF(($E12+($F12/12))>=$N$7,0,((($M12-((($K12-$N$7)*12)*$N12)))))) -> 109360.696 | R12: =+IF(K12<=$N$6,M12,IF(P12=0,Q12,Q12+P12)) -> 109360.696 | S12: =+L12-R12 -> 0 | U12: =P12*T12 -> 0 | V12: =S12*T12 -> 0
C13: 5016 | D13: Truck #5016 Amort of Salvage | E13: 2020 | F13: 6 | G13: 0 | H13: S/L | I13: 3 | J13: 2023 | K13: 2023.5 | L13: =+'2144 Trks Orig'!O18-'2144 Trks'!L12 -> 27340.174 | M13: 27340.174 | N13: 759.4492778 | O13: 9113.391333 | P13: =+IF(K13<=$N$6,0,O13) -> 0 | Q13: =+IF($K13<=$N$7,$L13,IF(($E13+($F13/12))>=$N$7,0,((($M13-((($K13-$N$7)*12)*$N13)))))) -> 22024.02906 | R13: 27340.174 | S13: 0 | U13: 0 | V13: 0 | X13: =L13/L12 -> 0.25
B14: RL | C14: 5010 | D14: 2004 Int'l W/P 7400 (U) | E14: 2008 | F14: =2+6 -> 8 | G14: 0 | H14: S/L | I14: 5 | J14: 2013 | K14: 2013.666667 | L14: =+'2144 Trks Orig'!Q19 -> 44791.3157 | M14: 44791.3157 | N14: 746.5219283 | O14: 8958.26314 | P14: 0 | Q14: 44791.3157 | R14: 44791.3157 | S14: 0 | U14: 0 | V14: 0
C15: 5010 | D15: Truck #5010 Amort of Salvage | E15: 2020 | F15: 6 | G15: 0 | H15: S/L | I15: 3 | J15: 2023 | K15: 2023.5 | L15: =+'2144 Trks Orig'!O19-'2144 Trks'!L14 -> 22061.3943 | M15: 22061.3943 | N15: 612.8165083 | O15: 7353.7981 | P15: 0 | Q15: 17771.67874 | R15: 22061.3943 | S15: 0 | U15: 0 | V15: 0
B16: RL | C16: 5039 | D16: 2010 Int'l W/McNls Pkr (N) | E16: 2009 | F16: 12 | G16: 0 | H16: S/L | I16: 7 | J16: 2016 | K16: 2017 | L16: =+'2144 Trks Orig'!Q20 -> 148199.472 | M16: 148199.472 | N16: 1764.279429 | O16: 21171.35314 | P16: 0 | Q16: 148199.472 | R16: 148199.472 | S16: 0 | U16: 0 | V16: 0
C17: 5039 | D17: Truck #5039 Amort of Salvage | E17: 2020 | F17: 6 | G17: 0 | H17: S/L | I17: 3 | J17: 2023 | K17: 2023.5 | L17: =+'2144 Trks Orig'!O20-'2144 Trks'!L16 -> 37049.868 | M17: 37049.868 | N17: 1029.163 | O17: 12349.956 | P17: 0 | Q17: 29845.727 | R17: 37049.868 | S17: 0 | U17: 0 | V17: 0 | X17: =L17/L16 -> 0.25
B18: RL | C18: 5041 | D18: 2010 Int'l W/McNls Pkr (N) | E18: 2009 | F18: 12 | G18: 0 | H18: S/L | I18: 7 | J18: 2016 | K18: 2017 | L18: =+'2144 Trks Orig'!Q22 -> 147465.856 | M18: 147465.856 | N18: 1755.545905 | O18: 21066.55086 | P18: 0 | Q18: 147465.856 | R18: 147465.856 | S18: 0 | U18: 0 | V18: 0
C19: 5041 | D19: Truck #5041 Amort of Salvage | E19: 2020 | F19: 6 | G19: 0 | H19: S/L | I19: 3 | J19: 2023 | K19: 2023.5 | L19: =+'2144 Trks Orig'!O22-'2144 Trks'!L18 -> 36866.464 | M19: 36866.464 | N19: 1024.068444 | O19: 12288.82133 | P19: 0 | Q19: 29697.98489 | R19: 36866.464 | S19: 0 | U19: 0 | V19: 0 | X19: =L19/L18 -> 0.25
B20: RL | D20: Drive Cam (23) | E20: 2010 | F20: 4 | G20: 0 | H20: S/L | I20: 7 | J20: 2017 | K20: 2017.333333 | L20: =+'2144 Trks Orig'!Q23 -> 11295.952 | M20: 11295.952 | N20: 134.475619 | O20: 1613.707429 | P20: 0 | Q20: 11295.952 | R20: 11295.952 | S20: 0 | U20: 0 | V20: 0
D21: Drive Cams (23) Amort of Salvage | E21: 2020 | F21: 6 | G21: 0 | H21: S/L | I21: 3 | J21: 2023 | K21: 2023.5 | L21: =+'2144 Trks Orig'!O23-'2144 Trks'!L20 -> 2823.988 | M21: 2823.988 | N21: 78.44411111 | O21: 941.3293333 | P21: 0 | Q21: 2274.879222 | R21: 2823.988 | S21: 0 | U21: 0 | V21: 0 | X21: =L21/L20 -> 0.25
A22: 109830 | D22: 12 Truck Radios | E22: 2013 | F22: 12 | G22: 0 | H22: S/L | I22: 5 | J22: 2018 | K22: 2019 | L22: =1101.59*12 -> 13219.08 | M22: 13219.08 | N22: 220.318 | O22: 2643.816 | P22: 0 | Q22: 13219.08 | R22: 13219.08 | S22: 0 | U22: 0 | V22: 0
A23: 118075 | B23: ASL | C23: 5011 | D23: 2006 Peterbilt ASL (U) | E23: 2014 | F23: 12 | G23: 0 | H23: S/L | I23: 5 | J23: 2019 | K23: 2020 | L23: 172742.39 | M23: 172742.39 | N23: 2879.039833 | O23: 34548.478 | P23: 0 | Q23: 172742.39 | R23: 172742.39 | S23: 0 | U23: 0 | V23: 0
A24: 126399 | B24: RL | C24: 5012 | D24: 2016 REL Truck | E24: 2015 | F24: 10 | G24: 0 | H24: S/L | I24: 10 | J24: 2025 | K24: 2025.833333 | L24: =218205.58+9591.24 -> 227796.82 | M24: 227796.82 | N24: 1898.306833 | O24: 22779.682 | P24: 22779.682 | Q24: 161356.0808 | R24: 184135.7628 | S24: 43661.05717 | U24: 0 | V24: 0
A25: 126583 | C25: 5012 | D25: Drive Cam Replacement | E25: 2015 | F25: 10 | G25: 0 | H25: S/L | I25: 10 | J25: 2025 | K25: 2025.833333 | L25: 639.85 | M25: 639.85 | N25: 5.332083333 | O25: 63.985 | P25: 63.985 | Q25: 453.2270833 | R25: 517.2120833 | S25: 122.6379167 | U25: 0 | V25: 0
A26: 132131 132501 | B26: RL | C26: 5014 | D26: 2016 REL Truck (N) | E26: 2016 | F26: 3 | G26: 0 | H26: S/L | I26: 10 | J26: 2026 | K26: 2026.25 | L26: =276355.27+605.92 -> 276961.19 | M26: 276961.19 | N26: 2308.009917 | O26: 27696.119 | P26: 27696.119 | Q26: 184640.7933 | R26: 212336.9123 | S26: 64624.27767 | U26: 0 | V26: 0
A27: 131542 133018 139929 | D27: (10) Samsung Tablets | E27: 2016 | F27: 3 | G27: 0 | H27: S/L | I27: 1 | J27: 2017 | K27: 2017.25 | L27: =2164.89+2769.44+671.24 -> 5605.57 | M27: 5605.57 | N27: 467.1308333 | O27: 5605.57 | P27: 0 | Q27: 5605.57 | R27: 5605.57 | S27: 0 | U27: 0 | V27: 0
A28: 170969 | C28: 5022 | D28: Container Delivery Truck (N) | E28: 2016 | F28: 12 | G28: 0 | H28: S/L | I28: 9 | J28: 2025 | K28: 2026 | L28: 59020.72 | M28: 59020.72 | N28: 546.4881481 | O28: 6557.857778 | P28: 6557.857778 | Q28: 38800.65852 | R28: 45358.5163 | S28: 13662.2037 | U28: 0 | V28: 0
A29: 172661 | C29: 5022 | D29: 2 Way radio for Container Del Truck | E29: 2017 | F29: 1 | G29: 0 | H29: S/L | I29: 5 | J29: 2022 | K29: 2022.083333 | L29: 1113.7 | M29: 1113.7 | N29: 18.56166667 | O29: 222.74 | P29: 0 | Q29: 1113.7 | R29: 1113.7 | S29: 0 | U29: 0 | V29: 0
A30: 212943 | C30: 5039 | D30: Capital Repair - Truck 5039 Engine | E30: 2019 | F30: 3 | G30: 0 | H30: S/L | I30: 3 | J30: 2022 | K30: 2022.25 | L30: 25477.01 | M30: 25477.01 | N30: 707.6947222 | O30: 8492.336667 | P30: 0 | Q30: 25477.01 | R30: 25477.01 | S30: 0 | U30: 0 | V30: 0
D31: Amortization of Salvage - Retired Assets | E31: 2020 | F31: 6 | P31: 0 | Q31: 0 | U31: 0 | V31: 0
A32: 203844 | C32: 5009 | D32: 2019 ASL Truck | E32: 2018 | F32: 10 | G32: 0 | H32: S/L | I32: 10 | J32: =E32+I32 -> 2028 | K32: =+J32+(F32/12) -> 2028.833333 | L32: 339628.44 | M32: =L32-L32*G32 -> 339628.44 | N32: =M32/I32/12 -> 2830.237 | O32: =+N32*12 -> 33962.844 | P32: 33962.844 | Q32: 138681.613 | R32: 172644.457 | S32: =+L32-R32 -> 166983.983 | U32: 0 | V32: =S32*T32 -> 0
A33: 218618 | C33: 5015 | D33: 2019 ASL Peterbilt/Labrie (31 yd) | E33: 2019 | F33: 9 | G33: 0 | H33: S/L | I33: 10 | J33: =E33+I33 -> 2029 | K33: =+J33+(F33/12) -> 2029.75 | L33: 359143.82 | M33: =L33-L33*G33 -> 359143.82 | N33: =M33/I33/12 -> 2992.865167 | O33: =+N33*12 -> 35914.382 | P33: 35914.382 | Q33: 113728.8763 | R33: 149643.2583 | S33: =+L33-R33 -> 209500.5617 | U33: 0 | V33: =S33*T33 -> 0
A34: 223826/ 218618 | C34: 5015 | D34: Coropla Signs | E34: 2019 | F34: 11 | G34: 0 | H34: S/L | I34: 10 | J34: =E34+I34 -> 2029 | K34: =+J34+(F34/12) -> 2029.916667 | L34: 1502.23 | M34: =L34-L34*G34 -> 1502.23 | N34: =M34/I34/12 -> 12.51858333 | O34: =+N34*12 -> 150.223 | P34: 150.223 | Q34: 450.669 | R34: 600.892 | S34: =+L34-R34 -> 901.338 | U34: 0 | V34: =S34*T34 -> 0
D35: Arm | E35: 2020 | F35: 5 | G35: 0 | H35: S/L | I35: 3 | J35: =E35+I35 -> 2023 | K35: =+J35+(F35/12) -> 2023.416667 | L35: 3560.46 | M35: =L35-L35*G35 -> 3560.46 | N35: =M35/I35/12 -> 98.90166667 | O35: =+N35*12 -> 1186.82 | P35: 0 | Q35: 2967.05 | R35: 3560.46 | S35: =+L35-R35 -> 0 | U35: 0 | V35: =S35*T35 -> 0
P36: 0 | Q36: =+IF($K36<=$N$7,$L36,IF(($E36+($F36/12))>=$N$7,0,((($M36-((($K36-$N$7)*12)*$N36)))))) -> 0
O37: Amortize Remaining NBV Over 3 Years | P37: 0 | Q37: 0
L39: =SUM(L12:L38) -> 2073666.46 | M39: 2073666.46 | N39: 24192.08172 | O39: 290304.9807 | P39: 127125.0928 | Q39: 1421964.309 | R39: 1574210.401 | S39: 499456.0591 | U39: =SUM(U12:U38) -> 0 | V39: =SUM(V12:V38) -> 0
D41: MIXED - RECYCLING & MSW
A42: 187422, 187423 | C42: 5013 | D42: 2009 REL Truck | E42: 2009 | F42: 3 | G42: 0 | H42: S/L | I42: 10 | J42: =E42+I42 -> 2019 | K42: =+J42+(F42/12) -> 2019.25 | L42: 175471.9 | M42: =L42-L42*G42 -> 175471.9 | N42: =M42/I42/12 -> 1462.265833 | O42: =+N42*12 -> 17547.19 | P42: =+IF(K42<=$N$6,0,O42) -> 0 | Q42: =+IF($K42<=$N$7,$L42,IF(($E42+($F42/12))>=$N$7,0,((($M42-((($K42-$N$7)*12)*$N42)))))) -> 175471.9 | R42: =+IF(K42<=$N$6,M42,IF(P42=0,Q42,Q42+P42)) -> 175471.9 | S42: =+L42-R42 -> 0 | U42: =P42*T42 -> 0 | V42: =S42*T42 -> 0
A43: 186154 | C43: 5007 | D43: 2018 ASL Truck | E43: 2017 | F43: 9 | G43: 0 | H43: S/L | I43: 10 | J43: =E43+I43 -> 2027 | K43: =+J43+(F43/12) -> 2027.75 | L43: 341677.84 | M43: =L43-L43*G43 -> 341677.84 | N43: =M43/I43/12 -> 2847.315333 | O43: =+N43*12 -> 34167.784 | P43: =+IF(K43<=$N$6,0,O43) -> 34167.784 | Q43: 176533.5507 | R43: 210701.3347 | S43: =+L43-R43 -> 130976.5053 | U43: =P43*T43 -> 0 | V43: =S43*T43 -> 0
A44: 186154, 188087 | D44: Radio System for ASL | E44: 2017 | F44: 10 | G44: 0 | H44: S/L | I44: 5 | J44: =E44+I44 -> 2022 | K44: =+J44+(F44/12) -> 2022.833333 | L44: 1002.38 | M44: =L44-L44*G44 -> 1002.38 | N44: 16.70633333 | O44: 200.476 | P44: 0 | Q44: 1002.38 | R44: 1002.38 | S44: =+L44-R44 -> 0 | U44: =P44*T44 -> 0 | V44: 0
L46: =SUM(L42:L45) -> 518152.12 | M46: =SUM(M42:M45) -> 518152.12 | N46: =SUM(N42:N45) -> 4326.2875 | O46: 51915.45 | P46: 34167.784 | Q46: 353007.8307 | R46: 387175.6147 | S46: 130976.5053 | U46: =SUM(U43:U45) -> 0 | V46: =SUM(V43:V45) -> 0
D48: ROLL OFF TRUCKS
B49: RO | C49: 5036 | D49: 2007 Sterln LT9600 (N) | E49: 2007 | F49: 2 | G49: 0 | H49: S/L | I49: 7 | J49: =E49+I49 -> 2014 | K49: =+J49+(F49/12) -> 2014.166667 | L49: =+'2144 Trks Orig'!Q39 -> 110918.248 | M49: =L49-L49*G49 -> 110918.248 | N49: =M49/I49/12 -> 1320.455333 | O49: =+N49*12 -> 15845.464 | P49: =+IF(K49<=$N$6,0,O49) -> 0 | Q49: =+IF($K49<=$N$7,$L49,IF(($E49+($F49/12))>=$N$7,0,((($M49-((($K49-$N$7)*12)*$N49)))))) -> 110918.248 | R49: =+IF(K49<=$N$6,M49,IF(P49=0,Q49,Q49+P49)) -> 110918.248 | S49: =+L49-R49 -> 0 | U49: =P49*T49 -> 0 | V49: =S49*T49 -> 0
C50: 5036 | D50: Truck #5036 Amort of Salvage | E50: 2020 | F50: 6 | G50: 0 | H50: S/L | I50: 3 | J50: 2023 | K50: 2023.5 | L50: =+'2144 Trks Orig'!O39-'2144 Trks'!L49 -> 27729.562 | M50: 27729.562 | N50: 770.2656111 | O50: 9243.187333 | P50: 0 | Q50: 22337.70272 | R50: 27729.562 | S50: 0 | U50: 0 | V50: 0
B51: RO | C51: 5037 | D51: 2007 Sterln LT9600 (N) | E51: 2007 | F51: 6 | G51: 0 | H51: S/L | I51: 7 | J51: 2014 | K51: 2014.5 | L51: =+'2144 Trks Orig'!Q40 -> 108651.856 | M51: 108651.856 | N51: 1293.474476 | O51: 15521.69371 | P51: 0 | Q51: 108651.856 | R51: 108651.856 | S51: 0 | U51: 0 | V51: 0
C52: 5037 | D52: Truck #5037 Amort of Salvage | E52: 2020 | F52: 6 | G52: 0 | H52: S/L | I52: 3 | J52: 2023 | K52: 2023.5 | L52: =+'2144 Trks Orig'!O40-'2144 Trks'!L51 -> 27162.964 | M52: 27162.964 | N52: 754.5267778 | O52: 9054.321333 | P52: 0 | Q52: 21881.27656 | R52: 27162.964 | S52: 0 | U52: 0 | V52: 0
B53: RO | D53: Drive Cam (4) | E53: 2010 | F53: 5 | G53: 0 | H53: S/L | I53: 7 | J53: 2017 | K53: 2017.416667 | L53: =+'2144 Trks Orig'!Q41 -> 3478.4 | M53: 3478.4 | N53: 41.40952381 | O53: 496.9142857 | P53: 0 | Q53: 3478.4 | R53: 3478.4 | S53: 0 | U53: 0 | V53: 0
D54: Drive Cam Amort of Salvage | E54: 2020 | F54: 6 | G54: 0 | H54: S/L | I54: 3 | J54: 2023 | K54: 2023.5 | L54: =+'2144 Trks Orig'!O41-'2144 Trks'!L53 -> 869.6 | M54: 869.6 | N54: 24.15555556 | O54: 289.8666667 | P54: 0 | Q54: 700.5111111 | R54: 869.6 | S54: 0 | U54: 0 | V54: 0
A55: 109830 | D55: 3 Truck Radios | E55: 2013 | F55: 12 | G55: 0 | H55: S/L | I55: 5 | J55: 2018 | K55: 2019 | L55: =1101.59*3 -> 3304.77 | M55: 3304.77 | N55: 55.0795 | O55: 660.954 | P55: 0 | Q55: 3304.77 | R55: 3304.77 | S55: 0 | U55: 0 | V55: 0
A56: 115085 | B56: RO | C56: 5036 | D56: RO Tarper #5036 | E56: 2014 | F56: 8 | G56: 0 | H56: S/L | I56: 3 | J56: 2017 | K56: 2017.666667 | L56: 6532.56 | M56: 6532.56 | N56: 181.46 | O56: 2177.52 | P56: 0 | Q56: 6532.56 | R56: 6532.56 | S56: 0 | U56: 0 | V56: 0
A57: 119113 | B57: RO | C57: 5037 | D57: Improvement- Auto Tarper | E57: 2015 | F57: 1 | G57: 0 | H57: S/L | I57: 3 | J57: 2018 | K57: 2018.083333 | L57: 5014.96 | M57: 5014.96 | N57: 139.3044444 | O57: 1671.653333 | P57: 0 | Q57: 5014.96 | R57: 5014.96 | S57: 0 | U57: 0 | V57: 0
A58: 124719 | B58: RO | C58: 5037 | D58: Transmission | E58: 2015 | F58: 8 | G58: 0 | H58: S/L | I58: 3 | J58: 2018 | K58: 2018.666667 | L58: 9352.18 | M58: 9352.18 | N58: 259.7827778 | O58: 3117.393333 | P58: 0 | Q58: 9352.18 | R58: 9352.18 | S58: 0 | U58: 0 | V58: 0
A59: 197551/ 199113 | B59: RO | C59: 5026 | D59: 2018 Peterbilt 567 Rolloff Truck | E59: 2018 | F59: 5 | G59: 0 | H59: S/L | I59: 10 | J59: 2028 | K59: 2028.416667 | L59: =164086.09+66654.84 -> 230740.93 | M59: 230740.93 | N59: 1922.841083 | O59: 23074.093 | P59: 23074.093 | Q59: 103833.4185 | R59: 126907.5115 | S59: 103833.4185 | U59: 0 | V59: 0
A60: 202702/197551 | C60: 5026 | D60: Radio Installation | E60: 2018 | F60: 5 | G60: 0 | H60: S/L | I60: 5 | J60: 2023 | K60: 2023.416667 | L60: 1510.87 | M60: 1510.87 | N60: 25.18116667 | O60: 302.174 | P60: 0 | Q60: 1359.783 | R60: 1510.87 | S60: 0 | U60: 0 | V60: 0
A61: 212191 | B61: RO | C61: 5036 | D61: Truck 5036 Head Gasket Repair | E61: 2019 | F61: 2 | G61: 0 | H61: S/L | I61: 3 | J61: 2022 | K61: 2022.166667 | L61: 12907.95 | M61: 12907.95 | N61: 358.5541667 | O61: 4302.65 | P61: 0 | Q61: 12907.95 | R61: 12907.95 | S61: 0 | U61: 0 | V61: 0
O62: Amortize Remaining NBV Over 3 Years | P62: =+IF($K62<$N$7,0,IF($K62>$N$6,$O62,((($K62-$N$7)*12)*$N62))) -> 0 | Q62: 0
L63: =SUM(L49:L62) -> 548174.85 | M63: 548174.85 | N63: 7146.490417 | O63: 85757.885 | P63: 23074.093 | Q63: 410273.6159 | R63: 444341.4315 | S63: 103833.4185 | U63: =SUM(U49:U62) -> 0 | V63: =SUM(V49:V62) -> 0
D65: LONG HAUL TRUCKS
A66: 109830 | D66: 4 Truck Radios | E66: 2013 | F66: 12 | G66: 0 | H66: S/L | I66: 7 | J66: =E66+I66 -> 2020 | K66: =+J66+(F66/12) -> 2021 | L66: =1101.59*4 -> 4406.36 | M66: =L66-L66*G66 -> 4406.36 | N66: =M66/I66/12 -> 52.45666667 | O66: =+N66*12 -> 629.48 | P66: =+IF(K66<=$N$6,0,O66) -> 0 | Q66: =+IF($K66<=$N$7,$L66,IF(($E66+($F66/12))>=$N$7,0,((($M66-((($K66-$N$7)*12)*$N66)))))) -> 4406.36 | R66: =+IF(K66<=$N$6,M66,IF(P66=0,Q66,Q66+P66)) -> 4406.36 | S66: =+L66-R66 -> 0 | T66: 0 | U66: =P66*T66 -> 0 | V66: =S66*T66 -> 0
C67: 130761 | D67: 2009 53' Trailer | E67: 2016 | F67: 3 | G67: 0 | H67: S/L | I67: 3 | J67: =E67+I67 -> 2019 | K67: =+J67+(F67/12) -> 2019.25 | L67: 25087.2 | M67: =L67-L67*G67 -> 25087.2 | N67: =M67/I67/12 -> 696.8666667 | O67: =+N67*12 -> 8362.4 | P67: 0 | Q67: 25087.2 | R67: 25087.2 | S67: =+L67-R67 -> 0 | T67: 0 | U67: =P67*T67 -> 0 | V67: =S67*T67 -> 0
A68: 187379, 190461 | D68: 2014 Road Tractor | E68: 2017 | F68: 10 | G68: 0 | H68: S/L | I68: 6 | J68: =E68+I68 -> 2023 | K68: =+J68+(F68/12) -> 2023.833333 | L68: =95178+864.17 -> 96042.17 | M68: =L68-L68*G68 -> 96042.17 | N68: =M68/I68/12 -> 1333.919028 | O68: =+N68*12 -> 16007.02833 | P68: 0 | Q68: 81369.06069 | R68: 96042.17 | S68: =+L68-R68 -> 0 | T68: 0 | U68: =P68*T68 -> 0 | V68: =S68*T68 -> 0
L71: =SUM(L66:L70) -> 125535.73 | M71: 125535.73 | N71: 2083.242361 | O71: 24998.90833 | P71: 0 | Q71: 110862.6207 | R71: 125535.73 | S71: 0 | U71: =SUM(U66:U70) -> 0 | V71: =SUM(V66:V70) -> 0
D73: DELIVERY TRUCKS
L75: =SUM(L73:L74) -> 0 | M75: =SUM(M73:M74) -> 0 | N75: 0 | O75: 0 | P75: 0 | Q75: 0 | R75: 0 | S75: 0
D77: Total Trucks | L77: =L39+L63+L46+L71 -> 3265529.16 | M77: 3265529.16 | N77: 37748.102 | O77: 452977.224 | P77: 184366.9698 | Q77: 2296108.376 | R77: 2531263.177 | S77: 734265.983 | U77: =U39+U63+U46+U71 -> 0 | V77: =V39+V63+V46+V71 -> 0
D83: Retired/Transferred 2014
B84: RL | C84: 5004 | D84: 2000 Freightliner | E84: 1999 | F84: 11 | G84: 0 | H84: S/L | I84: 7 | J84: =E84+I84 -> 2006 | K84: =+J84+(F84/12) -> 2006.916667 | L84: =+'2144 Trks Orig'!Q82 -> 53934.4 | M84: =L84-L84*G84 -> 53934.4 | N84: =M84/I84/12 -> 642.0761905 | O84: =+N84*12 -> 7704.914286 | P84: =+IF(K84<=$N$5,0,IF(J84>$N$4,O84,(N84*F84))) -> 0 | Q84: =+IF(P84=0,L84,IF($N$3-E84<1,0,(($N$3-E84)*O84))) -> 53934.4 | R84: =+IF(P84=0,Q84,Q84+P84) -> 53934.4 | S84: =+L84-R84 -> 0 | U84: =+IF(#REF!<=$N$5,0,IF(P84>$N$4,T84,(S84*K84))) ->  | V84: =+O84-U84 -> 
C85: 5004 | D85: Truck #5004 Amort of Salvage | E85: 2020 | F85: 6 | G85: 0 | H85: S/L | I85: =+IF(J84-$N$3>=3,J84-$N$3,3) -> 1996 | J85: 4016 | K85: 4016.5 | L85: =+'2144 Trks Orig'!O82-'2144 Trks'!L84 -> 13483.6 | M85: 13483.6 | N85: 0.5629425518 | O85: 6.755310621 | P85: 6.755310621 | Q85: 0 | R85: 6.755310621 | S85: 13476.84469 | T85: General | U85: =+IF(#REF!<=$N$5,0,IF(P85>$N$4,T85,(S85*K85))) -> 
B86: RL | C86: 5004 | D86: 20 yd Heil Pckr | E86: 1999 | F86: 5 | G86: 0 | H86: S/L | I86: 7 | J86: 2006 | K86: 2006.416667 | L86: =+'2144 Trks Orig'!Q83 -> 24574.4 | M86: 24574.4 | N86: 292.552381 | O86: 3510.628571 | P86: 0 | Q86: 24574.4 | R86: 24574.4 | S86: 0 | U86: =+IF(#REF!<=$N$5,0,IF(P86>$N$4,T86,(S86*K86))) -> 
C87: 5004 | D87: Truck #5004 Amort of Salvage | E87: 2020 | F87: 6 | G87: 0 | H87: S/L | I87: =+IF(J86-$N$3>=3,J86-$N$3,3) -> 1996 | J87: 4016 | K87: 4016.5 | L87: =+'2144 Trks Orig'!O83-'2144 Trks'!L86 -> 6143.6 | M87: 6143.6 | N87: 0.256496326 | O87: 3.077955912 | P87: 3.077955912 | Q87: 0 | R87: 3.077955912 | S87: 6140.522044 | T87: General | U87: =+IF(#REF!<=$N$5,0,IF(P87>$N$4,T87,(S87*K87))) -> 
C88: 5018 | D88: 94 Volvo (less tires) | E88: 1994 | F88: 4 | G88: 0 | H88: S/L | I88: 7 | J88: 2001 | K88: 2001.333333 | L88: =+'2144 Trks Orig'!Q84 -> 55044 | M88: 55044 | N88: 655.2857143 | O88: 7863.428571 | P88: 0 | Q88: 55044 | R88: 55044 | S88: 0 | U88: =+IF(#REF!<=$N$5,0,IF(P88>$N$4,T88,(S88*K88))) -> 
C89: 5018 | D89: Truck #5018 Amort of Salvage | E89: 2020 | F89: 6 | G89: 0 | H89: S/L | I89: =+IF(J88-$N$3>=3,J88-$N$3,3) -> 1991 | J89: 4011 | K89: 4011.5 | L89: =+'2144 Trks Orig'!O84-'2144 Trks'!L88 -> 13761 | M89: 13761 | N89: 0.5759668508 | O89: 6.91160221 | P89: 6.91160221 | Q89: 0 | R89: 6.91160221 | S89: 13754.0884 | T89: General | U89: =+IF(#REF!<=$N$5,0,IF(P89>$N$4,T89,(S89*K89))) -> 
B90: RO | C90: 5021 | D90: 90 Volvo Truck RO | E90: 1995 | F90: 4 | G90: 0 | H90: S/L | I90: 5 | J90: 2000 | K90: 2000.333333 | L90: =+'2144 Trks Orig'!Q85 -> 21693.93 | M90: 21693.93 | N90: 361.5655 | O90: 4338.786 | P90: 0 | Q90: 21693.93 | R90: 21693.93 | S90: 0 | U90: =+IF(#REF!<=$N$5,0,IF(P90>$N$4,T90,(S90*K90))) -> 
C91: 5021 | D91: Truck #5021 Amort of Salvage | E91: 2020 | F91: 6 | G91: 0 | H91: S/L | I91: =+IF(J90-$N$3>=3,J90-$N$3,3) -> 1990 | J91: 4010 | K91: 4010.5 | L91: =+'2144 Trks Orig'!O85-'2144 Trks'!L90 -> 10685.07 | M91: 10685.07 | N91: 0.4474484925 | O91: 5.36938191 | P91: 5.36938191 | Q91: 0 | R91: 5.36938191 | S91: 10679.70062 | T91: RO | U91: =+IF(#REF!<=$N$5,0,IF(P91>$N$4,T91,(S91*K91))) -> 
C92: 5020 | D92: 1989 Volvo | E92: 1997 | F92: 4 | G92: 0 | H92: S/L | I92: 5 | J92: 2002 | K92: 2002.333333 | L92: =+'2144 Trks Orig'!Q86 -> 7735.15 | M92: 7735.15 | N92: 128.9191667 | O92: 1547.03 | P92: 0 | Q92: 7735.15 | R92: 7735.15 | S92: 0 | U92: =+IF(#REF!<=$N$5,0,IF(P92>$N$4,T92,(S92*K92))) -> 
C93: 5020 | D93: Truck #5020 Amort of Salvage | E93: 2020 | F93: 6 | G93: 0 | H93: S/L | I93: =+IF(J92-$N$3>=3,J92-$N$3,3) -> 1992 | J93: 4012 | K93: 4012.5 | L93: =+'2144 Trks Orig'!O86-'2144 Trks'!L92 -> 3809.85 | M93: 3809.85 | N93: 0.1593812751 | O93: 1.912575301 | P93: 1.912575301 | Q93: 0 | R93: 1.912575301 | S93: 3807.937425 | T93: General | U93: =+IF(#REF!<=$N$5,0,IF(P93>$N$4,T93,(S93*K93))) -> 
B94: RO | C94: 5021 | D94: Force Magnum RO system | E94: 1996 | F94: 7 | G94: 0 | H94: S/L | I94: 7 | J94: 2003 | K94: 2003.583333 | L94: =+'2144 Trks Orig'!Q87 -> 20017.6 | M94: 20017.6 | N94: 238.3047619 | O94: 2859.657143 | P94: 0 | Q94: 20017.6 | R94: 20017.6 | S94: 0 | U94: =+IF(#REF!<=$N$5,0,IF(P94>$N$4,T94,(S94*K94))) -> 
C95: 5021 | D95: Truck #5021 Amort of Salvage | E95: 2020 | F95: 6 | G95: 0 | H95: S/L | I95: =+IF(J94-$N$3>=3,J94-$N$3,3) -> 1993 | J95: 4013 | K95: 4013.5 | L95: =+'2144 Trks Orig'!O87-'2144 Trks'!L94 -> 5004.4 | M95: 5004.4 | N95: 0.2092490383 | O95: 2.51098846 | P95: 2.51098846 | Q95: 0 | R95: 2.51098846 | S95: 5001.889012 | T95: RO | U95: =+IF(#REF!<=$N$5,0,IF(P95>$N$4,T95,(S95*K95))) -> 
B96: Trct | C96: 5001 | D96: 1987 Freightliner (U) | E96: 2001 | F96: 11 | G96: 0 | H96: S/L | I96: 5 | J96: 2006 | K96: 2006.916667 | L96: 25000 | M96: 25000 | N96: 416.6666667 | O96: 5000 | P96: 0 | Q96: 25000 | R96: 25000 | S96: 0 | U96: =+IF(#REF!<=$N$5,0,IF(P96>$N$4,T96,(S96*K96))) -> 
B97: Trct | C97: 5001 | D97: Fleet Upgrade (Inframe) | E97: 2008 | F97: 7 | G97: 0 | H97: S/L | I97: 3 | J97: 2011 | K97: 2011.583333 | L97: 17797.16 | M97: 17797.16 | N97: 494.3655556 | O97: 5932.386667 | P97: 0 | Q97: 17797.16 | R97: 17797.16 | S97: 0 | U97: =+IF(#REF!<=$N$5,0,IF(P97>$N$4,T97,(S97*K97))) -> 
D100: Retired/Transferred 2016
B101: RL | C101: 5009 | D101: 1997 Freightliner | E101: 1997 | F101: 11 | G101: 0 | H101: S/L | I101: 7 | J101: =E101+I101 -> 2004 | K101: =+J101+(F101/12) -> 2004.916667 | L101: =+'2144 Trks Orig'!Q93 -> 46828.8 | M101: =L101-L101*G101 -> 46828.8 | N101: =M101/I101/12 -> 557.4857143 | O101: =+N101*12 -> 6689.828571 | P101: =+IF(K101<=$N$5,0,IF(J101>$N$4,O101,(N101*F101))) -> 0 | Q101: =+IF(P101=0,L101,IF($N$3-E101<1,0,(($N$3-E101)*O101))) -> 46828.8 | R101: =+IF(P101=0,Q101,Q101+P101) -> 46828.8 | S101: =+L101-R101 -> 0 | U101: =+IF(#REF!<=$N$5,0,IF(P101>$N$4,T101,(S101*K101))) ->  | V101: =+O101-U101 -> 
C102: 5009 | D102: Truck #5009 Amort of Salvage | E102: 2020 | F102: 6 | G102: 0 | H102: S/L | I102: =+IF(J101-$N$3>=3,J101-$N$3,3) -> 1994 | J102: =E102+I102 -> 4014 | K102: =+J102+(F102/12) -> 4014.5 | L102: =+'2144 Trks Orig'!O93-'2144 Trks'!L101 -> 11707.2 | M102: =L102-L102*G102 -> 11707.2 | N102: =M102/I102/12 -> 0.4892678034 | O102: =+N102*12 -> 5.871213641 | P102: =+IF(K102<=$N$5,0,IF(J102>$N$4,O102,(N102*F102))) -> 5.871213641 | Q102: =+IF(P102=0,L102,IF($N$3-E102<1,0,(($N$3-E102)*O102))) -> 0 | R102: =+IF(P102=0,Q102,Q102+P102) -> 5.871213641 | S102: =+L102-R102 -> 11701.32879 | T102: General | U102: =+IF(#REF!<=$N$5,0,IF(P102>$N$4,T102,(S102*K102))) ->  | V102: =+O102-U102 -> 
B103: RL | C103: 5009 | D103: 20 yd Heil Pckr | E103: 1998 | F103: 1 | G103: 0 | H103: S/L | I103: 7 | J103: =E103+I103 -> 2005 | K103: =+J103+(F103/12) -> 2005.083333 | L103: =+'2144 Trks Orig'!Q94 -> 23148.8 | M103: =L103-L103*G103 -> 23148.8 | N103: =M103/I103/12 -> 275.5809524 | O103: =+N103*12 -> 3306.971429 | P103: =+IF(K103<=$N$5,0,IF(J103>$N$4,O103,(N103*F103))) -> 0 | Q103: =+IF(P103=0,L103,IF($N$3-E103<1,0,(($N$3-E103)*O103))) -> 23148.8 | R103: =+IF(P103=0,Q103,Q103+P103) -> 23148.8 | S103: =+L103-R103 -> 0 | U103: =+IF(#REF!<=$N$5,0,IF(P103>$N$4,T103,(S103*K103))) ->  | V103: =+O103-U103 -> 
C104: 5009 | D104: Truck #5009 Amort of Salvage | E104: 2020 | F104: 6 | G104: 0 | H104: S/L | I104: =+IF(J103-$N$3>=3,J103-$N$3,3) -> 1995 | J104: =E104+I104 -> 4015 | K104: =+J104+(F104/12) -> 4015.5 | L104: =+'2144 Trks Orig'!O94-'2144 Trks'!L103 -> 5787.2 | M104: =L104-L104*G104 -> 5787.2 | N104: =M104/I104/12 -> 0.2417376775 | O104: =+N104*12 -> 2.90085213 | P104: =+IF(K104<=$N$5,0,IF(J104>$N$4,O104,(N104*F104))) -> 2.90085213 | Q104: =+IF(P104=0,L104,IF($N$3-E104<1,0,(($N$3-E104)*O104))) -> 0 | R104: =+IF(P104=0,Q104,Q104+P104) -> 2.90085213 | S104: =+L104-R104 -> 5784.299148 | T104: General | U104: =+IF(#REF!<=$N$5,0,IF(P104>$N$4,T104,(S104*K104))) ->  | V104: =+O104-U104 -> 
D106: Retired/Transferred 2017
B107: Trct | C107: 355 | D107: Engine Rebuild, Capital Repair | E107: 2012 | F107: 9 | G107: 0 | H107: S/L | I107: 3 | J107: =E107+I107 -> 2015 | K107: =+J107+(F107/12) -> 2015.75 | L107: =10263.47+25500 -> 35763.47 | M107: =L107-L107*G107 -> 35763.47 | N107: =M107/I107/12 -> 993.4297222 | O107: =+N107*12 -> 11921.15667 | P107: =+IF(K107<=$N$5,0,IF(J107>$N$4,O107,(N107*F107))) -> 0 | Q107: =+IF(P107=0,L107,IF($N$3-E107<1,0,(($N$3-E107)*O107))) -> 35763.47 | R107: =+IF(P107=0,Q107,Q107+P107) -> 35763.47 | S107: =+L107-R107 -> 0 | U107: =+IF(#REF!<=$N$5,0,IF(P107>$N$4,T107,(S107*K107))) ->  | V107: =+O107-U107 -> 
A108: 109711 | B108: Trct | C108: 5002 | D108: 2000 Kenworth Tractor (Commingle) (U) | E108: 2010 | F108: 6 | G108: 0 | H108: S/L | I108: 5 | J108: =E108+I108 -> 2015 | K108: =+J108+(F108/12) -> 2015.5 | L108: =+'2144 Trks Orig'!Q99 -> 49605.8486 | M108: =L108-L108*G108 -> 49605.8486 | N108: =M108/I108/12 -> 826.7641433 | O108: =+N108*12 -> 9921.16972 | P108: =+IF(K108<=$N$5,0,IF(J108>$N$4,O108,(N108*F108))) -> 0 | Q108: =+IF(P108=0,L108,IF($N$3-E108<1,0,(($N$3-E108)*O108))) -> 49605.8486 | R108: =+IF(P108=0,Q108,Q108+P108) -> 49605.8486 | S108: =+L108-R108 -> 0 | U108: =+IF(#REF!<=$N$5,0,IF(P108>$N$4,T108,(S108*K108))) ->  | V108: =+O108-U108 -> 
C109: 5002 | D109: Truck #5002 Amort of Salvage | E109: 2020 | F109: 6 | G109: 0 | H109: S/L | I109: =+IF(J108-$N$3>=3,J108-$N$3,3) -> 2005 | J109: =E109+I109 -> 4025 | K109: =+J109+(F109/12) -> 4025.5 | L109: =+'2144 Trks Orig'!O99-'2144 Trks'!L108 -> 24432.7314 | M109: =L109-L109*G109 -> 24432.7314 | N109: =M109/I109/12 -> 1.015491746 | O109: =+N109*12 -> 12.18590095 | P109: =+IF(K109<=$N$5,0,IF(J109>$N$4,O109,(N109*F109))) -> 12.18590095 | Q109: =+IF(P109=0,L109,IF($N$3-E109<1,0,(($N$3-E109)*O109))) -> 0 | R109: =+IF(P109=0,Q109,Q109+P109) -> 12.18590095 | S109: =+L109-R109 -> 24420.5455 | T109: General | U109: =+IF(#REF!<=$N$5,0,IF(P109>$N$4,T109,(S109*K109))) ->  | V109: =+O109-U109 -> 
A110: 181717/181718 | B110: Trct | C110: 5002 | D110: Engine Repair on 2000 Kenworth | E110: 2009 | F110: 10 | G110: 0 | H110: S/L | I110: 3 | J110: =E110+I110 -> 2012 | K110: =+J110+(F110/12) -> 2012.833333 | L110: =13302.3+13879.68 -> 27181.98 | M110: =L110-L110*G110 -> 27181.98 | N110: =M110/I110/12 -> 755.055 | O110: =+N110*12 -> 9060.66 | P110: =+IF(K110<=$N$5,0,IF(J110>$N$4,O110,(N110*F110))) -> 0 | Q110: =+IF(P110=0,L110,IF($N$3-E110<1,0,(($N$3-E110)*O110))) -> 27181.98 | R110: =+IF(P110=0,Q110,Q110+P110) -> 27181.98 | S110: =+L110-R110 -> 0 | U110: =+IF(#REF!<=$N$5,0,IF(P110>$N$4,T110,(S110*K110))) ->  | V110: =+O110-U110 -> 
D113: Retired/Transferred 2018
B114: SL | C114: 3545 | D114: 1997 Volvo H (U) | E114: 2008 | F114: 11 | G114: 0.33 | H114: S/L | I114: 5 | J114: =E114+I114 -> 2013 | K114: =+J114+(F114/12) -> 2013.916667 | L114: 18500 | M114: =L114-L114*G114 -> 12395 | N114: =M114/I114/12 -> 206.5833333 | O114: =+N114*12 -> 2479 | P114: =+IF(K114<=$N$5,0,IF(J114>$N$4,O114,(N114*F114))) -> 0 | Q114: =+IF(P114=0,L114,IF($N$3-E114<1,0,(($N$3-E114)*O114))) -> 18500 | R114: =+IF(P114=0,Q114,Q114+P114) -> 18500 | S114: =+L114-R114 -> 0 | U114: =+IF(#REF!<=$N$5,0,IF(P114>$N$4,T114,(S114*K114))) ->  | V114: =+O114-U114 -> 
B115: SL | C115: 3547 | D115: 1998 Volvo H (U) | E115: 2008 | F115: 11 | G115: 0.33 | H115: S/L | I115: 5 | J115: =E115+I115 -> 2013 | K115: =+J115+(F115/12) -> 2013.916667 | L115: 18500 | M115: =L115-L115*G115 -> 12395 | N115: =M115/I115/12 -> 206.5833333 | O115: =+N115*12 -> 2479 | P115: =+IF(K115<=$N$5,0,IF(J115>$N$4,O115,(N115*F115))) -> 0 | Q115: =+IF(P115=0,L115,IF($N$3-E115<1,0,(($N$3-E115)*O115))) -> 18500 | R115: =+IF(P115=0,Q115,Q115+P115) -> 18500 | S115: =+L115-R115 -> 0 | U115: =+IF(#REF!<=$N$5,0,IF(P115>$N$4,T115,(S115*K115))) ->  | V115: =+O115-U115 -> 
D118: Retired/Transferred 2019
B119: RL | C119: 5008 | D119: 2004 Int'l 7400 RL W/P (N) | E119: 2004 | F119: 5 | G119: 0 | H119: S/L | I119: 7 | J119: =E119+I119 -> 2011 | K119: =+J119+(F119/12) -> 2011.416667 | L119: =+'2144 Trks Orig'!Q14 -> 96061.6 | M119: =L119-L119*G119 -> 96061.6 | N119: =M119/I119/12 -> 1143.590476 | O119: =+N119*12 -> 13723.08571 | P119: =+IF(K119<=$N$5,0,IF(J119>$N$4,O119,(N119*F119))) -> 0 | Q119: =+IF(P119=0,L119,IF($N$3-E119<1,0,(($N$3-E119)*O119))) -> 96061.6 | R119: =+IF(P119=0,Q119,Q119+P119) -> 96061.6 | S119: =+L119-R119 -> 0 | U119: =+IF(#REF!<=$N$5,0,IF(P119>$N$4,T119,(S119*K119))) ->  | V119: =+O119-U119 -> 
C120: 5008 | D120: Truck #5008 Amort of Salvage | E120: 2020 | F120: 6 | G120: 0 | H120: S/L | I120: 3 | J120: 2023 | K120: 2023.5 | L120: =+'2144 Trks Orig'!O14-'2144 Trks'!L119 -> 24015.4 | M120: 24015.4 | N120: 667.0944444 | O120: 8005.133333 | P120: 8005.133333 | Q120: 0 | R120: 8005.133333 | S120: 16010.26667 | U120: =+IF(#REF!<=$N$5,0,IF(P120>$N$4,T120,(S120*K120))) -> 
D121: Fleet Upgrade | E121: 2002 | F121: 2 | G121: 0 | H121: S/L | I121: 3 | J121: 2005 | K121: 2005.166667 | L121: 4465 | M121: 4465 | N121: 124.0277778 | O121: 1488.333333 | P121: 0 | Q121: 4465 | R121: 4465 | S121: 0 | U121: =+IF(#REF!<=$N$5,0,IF(P121>$N$4,T121,(S121*K121))) -> 
D122: Fleet Upgrade | E122: 2002 | F122: 5 | G122: 0 | H122: S/L | I122: 3 | J122: 2005 | K122: 2005.416667 | L122: 4525 | M122: 4525 | N122: 125.6944444 | O122: 1508.333333 | P122: 0 | Q122: 4525 | R122: 4525 | S122: 0 | U122: =+IF(#REF!<=$N$5,0,IF(P122>$N$4,T122,(S122*K122))) -> 
B123: RL | C123: 5003 | D123: 2005 Int'l 7400 RL W/P (N) | E123: 2004 | F123: 12 | G123: 0 | H123: S/L | I123: 7 | J123: 2011 | K123: 2012 | L123: =+'2144 Trks Orig'!Q15 -> 101661.6 | M123: 101661.6 | N123: 1210.257143 | O123: 14523.08571 | P123: 0 | Q123: 101661.6 | R123: 101661.6 | S123: 0 | T123: Scrapped Jan 2020 | U123: =+IF(#REF!<=$N$5,0,IF(P123>$N$4,T123,(S123*K123))) -> 
C124: 5003 | D124: Truck #5003 Amort of Salvage | E124: 2020 | F124: 6 | G124: 0 | H124: S/L | I124: 3 | J124: 2023 | K124: 2023.5 | L124: =+'2144 Trks Orig'!O15-'2144 Trks'!L123 -> 25415.4 | M124: 25415.4 | N124: 705.9833333 | O124: 8471.8 | P124: 8471.8 | Q124: 0 | R124: 8471.8 | S124: 16943.6 | U124: =+IF(#REF!<=$N$5,0,IF(P124>$N$4,T124,(S124*K124))) -> 
B125: RL | C125: 5006 | D125: 2006 Int'l RL Pckr | E125: 2006 | F125: 11 | G125: 0 | H125: S/L | I125: 7 | J125: 2013 | K125: 2013.916667 | L125: =+'2144 Trks Orig'!Q16 -> 110632.52 | M125: 110632.52 | N125: 1317.05381 | O125: 15804.64571 | P125: 0 | Q125: 110632.52 | R125: 110632.52 | S125: 0 | T125: Scrapped Jan 2020 | U125: =+IF(#REF!<=$N$5,0,IF(P125>$N$4,T125,(S125*K125))) -> 
C126: 5006 | D126: Truck #5006 Amort of Salvage | E126: 2020 | F126: 6 | G126: 0 | H126: S/L | I126: 3 | J126: 2023 | K126: 2023.5 | L126: =+'2144 Trks Orig'!O16-'2144 Trks'!L125 -> 27658.13 | M126: 27658.13 | N126: 768.2813889 | O126: 9219.376667 | P126: 9219.376667 | Q126: 0 | R126: 9219.376667 | S126: 18438.75333 | U126: =+IF(#REF!<=$N$5,0,IF(P126>$N$4,T126,(S126*K126))) -> 
A127: 181716 | B127: Trct | D127: 2000 Kenworth T800 | E127: 2002 | F127: 8 | G127: 0 | H127: S/L | I127: 6 | J127: 2008 | K127: 2008.666667 | L127: 65000 | M127: 65000 | N127: 902.7777778 | O127: 10833.33333 | P127: 0 | Q127: 65000 | R127: 65000 | S127: 0 | U127: =+IF(#REF!<=$N$5,0,IF(P127>$N$4,T127,(S127*K127))) -> 
D129: Retired/Transferred 2023
B130: RL | C130: 5040 | D130: 2010 Int'l W/McNls Pkr (N) | E130: 2009 | F130: 12 | G130: 0 | H130: S/L | I130: 7 | J130: 2016 | K130: 2017 | L130: 147465.856 | M130: 147465.856 | N130: 1755.545905 | O130: 21066.55086 | P130: 0 | Q130: 147465.856 | R130: 147465.856 | S130: 0 | U130: 0 | V130: 0
C131: 5040 | D131: Truck #5040 Amort of Salvage | E131: 2020 | F131: 6 | G131: 0 | H131: S/L | I131: 3 | J131: 2023 | K131: 2023.5 | L131: 36866.464 | M131: 36866.464 | N131: 1024.068444 | O131: 12288.82133 | P131: 0 | Q131: 36866.464 | R131: 36866.464 | S131: 0 | U131: 0 | V131: 0 | X131: 0.25

Sheet 2144 Cont, DB
C1: Island Disposal
C2: Depreciation Schedule | N2: =+'2144 Trks'!N2 -> 11 | O2: Test Period Beg. Month
C3: ='Depr Summary'!H12 -> 2023-10-31 | N3: =+'2144 Trks'!N3 -> 10 | O3: Test Period End Month
N4: =+'2144 Trks'!N4 -> 2022 | O4: First Year
N5: =+'2144 Trks'!N5 -> 2023 | O5: Second year
N6: =+'2144 Trks'!N6 -> 2023.833333 | O6: Test Period End Mo/Yr
N7: =+'2144 Trks'!N7 -> 2022.916667 | O7: Test Period Beg. Mo/Yr
Q8: Beginning | R8: Ending
C9: GARBAGE CONTAINERS | D9: Date in Service | F9: Salvage | J9: Year | K9: Year/Mo | Q9: Accum | R9: Accum | S9: Average
B10: Quantity | F10: Value | H10: Method | I10: Life | J10: Fully | K10: Fully | L10: Asset | M10: Depr | N10: Monthly | O10: Annual | P10: Test yr. | Q10: Depr | R10: Depr | S10: Investment
A11: Codes | B11: No | C11: Asset Classification | D11: Year | E11: Mo | F11: % | G11: - | H11: M | I11: Years | J11: Depr | K11: Depr | L11: Cost | M11: Cost | N11: Depr | O11: Depr | P11: Depn. | Q11: ='Depr Summary'!F12 -> 2022-11-01 | R11: =+C3 -> 2023-10-31 | S11: =C3 -> 2023-10-31
A12: 237927 | B12: 20 | C12: 2 Yd Containers with Lids | D12: 1988 | E12: 1 | F12: 0 | H12: S/L | I12: 12 | J12: =D12+I12 -> 2000 | K12: =+J12+(E12/12) -> 2000.083333 | L12: 2500 | M12: =L12-L12*F12 -> 2500 | N12: =IFERROR(M12/I12/12,0) -> 17.36111111 | O12: =+N12*12 -> 208.3333333 | P12: =+IF(K12<=$N$6,0,O12) -> 0 | Q12: =+IF($K12<=$N$7,$L12,IF(($E12+($F12/12))>=$N$7,0,((($M12-((($K12-$N$7)*12)*$N12)))))) -> 2500 | R12: =+IF(K12<=$N$6,M12,IF(P12=0,Q12,Q12+P12)) -> 2500 | S12: =+L12-R12 -> 0
C13: Containers | D13: 1998 | E13: 5 | F13: 0 | H13: S/L | I13: 10 | J13: =D13+I13 -> 2008 | K13: =+J13+(E13/12) -> 2008.416667 | L13: 10093 | M13: =L13-L13*F13 -> 10093 | N13: =M13/I13/12 -> 84.10833333 | O13: =+N13*12 -> 1009.3 | P13: 0 | Q13: =+IF($K13<=$N$7,$L13,IF(($E13+($F13/12))>=$N$7,0,((($M13-((($K13-$N$7)*12)*$N13)))))) -> 10093 | R13: 10093 | S13: =+L13-R13 -> 0
C14: Containers | D14: 1998 | E14: 7 | F14: 0 | H14: S/L | I14: 10 | J14: 2008 | K14: =+J14+(E14/12) -> 2008.583333 | L14: 9888 | M14: 9888 | N14: 82.4 | O14: =+N14*12 -> 988.8 | P14: 0 | Q14: 9888 | R14: 9888 | S14: =+L14-R14 -> 0
C15: Containers | D15: 1998 | E15: 9 | F15: 0 | H15: S/L | I15: 10 | J15: 2008 | K15: 2008.75 | L15: 9908 | M15: 9908 | N15: 82.56666667 | O15: 990.8 | P15: 0 | Q15: 9908 | R15: 9908 | S15: 0
B16: 12 | C16: 12 1 yd containers | D16: 2000 | E16: 7 | F16: 0 | H16: S/L | I16: 10 | J16: 2010 | K16: 2010.583333 | L16: 6034 | M16: 6034 | N16: 50.28333333 | O16: 603.4 | P16: 0 | Q16: 6034 | R16: 6034 | S16: 0
B17: 12 | C17: 12 1.5 yd containers | D17: 2000 | E17: 7 | F17: 0 | H17: S/L | I17: 10 | J17: 2010 | K17: 2010.583333 | L17: 6425 | M17: 6425 | N17: 53.54166667 | O17: 642.5 | P17: 0 | Q17: 6425 | R17: 6425 | S17: 0
B18: 12 | C18: 12 1 yd containers | D18: 2003 | E18: 1 | F18: 0 | H18: S/L | I18: 10 | J18: 2013 | K18: 2013.083333 | L18: 4896 | M18: 4896 | N18: 40.8 | O18: 489.6 | P18: 0 | Q18: 4896 | R18: 4896 | S18: 0
B19: 12 | C19: 12 2 yd containers | D19: 2003 | E19: 1 | F19: 0 | H19: S/L | I19: 10 | J19: 2013 | K19: 2013.083333 | L19: 5962 | M19: 5962 | N19: 49.68333333 | O19: 596.2 | P19: 0 | Q19: 5962 | R19: 5962 | S19: 0
B20: 12 | C20: 12 2 yd containers | D20: 2005 | E20: 7 | F20: 0 | H20: S/L | I20: 10 | J20: 2015 | K20: 2015.583333 | L20: 7768.32 | M20: 7768.32 | N20: 64.736 | O20: 776.832 | P20: 0 | Q20: 7768.32 | R20: 7768.32 | S20: 0
B21: 12 | C21: 12 1 yd containers | D21: 2005 | E21: 9 | F21: 0 | H21: S/L | I21: 10 | J21: 2015 | K21: 2015.75 | L21: 6780 | M21: 6780 | N21: 56.5 | O21: 678 | P21: 0 | Q21: 6780 | R21: 6780 | S21: 0
B22: 12 | C22: 12 1.5 yd containers | D22: 2005 | E22: 9 | F22: 0 | H22: S/L | I22: 10 | J22: 2015 | K22: 2015.75 | L22: 7050.24 | M22: 7050.24 | N22: 58.752 | O22: 705.024 | P22: 0 | Q22: 7050.24 | R22: 7050.24 | S22: 0
B23: 12 | C23: 1 yd container | D23: 2006 | E23: 8 | F23: 0 | H23: S/L | I23: 10 | J23: 2016 | K23: 2016.666667 | L23: 5287.68 | M23: 5287.68 | N23: 44.064 | O23: 528.768 | P23: 0 | Q23: 5287.68 | R23: 5287.68 | S23: 0
B24: 12 | C24: 1.5 yd container | D24: 2006 | E24: 8 | F24: 0 | H24: S/L | I24: 10 | J24: 2016 | K24: 2016.666667 | L24: 5418.24 | M24: 5418.24 | N24: 45.152 | O24: 541.824 | P24: 0 | Q24: 5418.24 | R24: 5418.24 | S24: 0
B25: 12 | C25: 2 yd container | D25: 2006 | E25: 9 | F25: 0 | H25: S/L | I25: 10 | J25: 2016 | K25: 2016.75 | L25: 5679.36 | M25: 5679.36 | N25: 47.328 | O25: 567.936 | P25: 0 | Q25: 5679.36 | R25: 5679.36 | S25: 0
B26: 31 | C26: 2 yd container | D26: 2007 | E26: 8 | F26: 0 | H26: S/L | I26: 10 | J26: 2017 | K26: 2017.666667 | L26: =1894.36+1894.36+2368.58+2842.29+5684.58 -> 14684.17 | M26: 14684.17 | N26: 122.3680833 | O26: 1468.417 | P26: 0 | Q26: 14684.17 | R26: 14684.17 | S26: 0
B27: 15 | C27: 2 yd container | D27: 2010 | E27: 8 | F27: 0 | H27: S/L | I27: 10 | J27: 2020 | K27: 2020.666667 | L27: 7314.42 | M27: 7314.42 | N27: 60.9535 | O27: 731.442 | P27: 0 | Q27: 7314.42 | R27: 7314.42 | S27: 0
B28: 15 | C28: 1.5 yd container | D28: 2010 | E28: 8 | F28: 0 | H28: S/L | I28: 10 | J28: 2020 | K28: 2020.666667 | L28: 7102.46 | M28: 7102.46 | N28: 59.18716667 | O28: 710.246 | P28: 0 | Q28: 7102.46 | R28: 7102.46 | S28: 0
B29: 15 | C29: 2 yd container | D29: 2011 | E29: 12 | F29: 0 | H29: S/L | I29: 10 | J29: 2021 | K29: 2022 | L29: 7391.25 | M29: 7391.25 | N29: 61.59375 | O29: 739.125 | P29: 0 | Q29: 7391.25 | R29: 7391.25 | S29: 0
B30: 30 | C30: 1 yd w/lids | D30: 2011 | E30: 8 | F30: 0 | H30: S/L | I30: 10 | J30: 2021 | K30: 2021.666667 | L30: =9610.17+7756.83 -> 17367 | M30: 17367 | N30: 144.725 | O30: 1736.7 | P30: 0 | Q30: 17367 | R30: 17367 | S30: 0
A31: 113799 | B31: 18 | C31: 1.5 yd container | D31: 2014 | E31: 6 | F31: 0 | H31: S/L | I31: 10 | J31: 2024 | K31: 2024.5 | L31: 9276.46 | M31: 9276.46 | N31: 77.30383333 | O31: 927.646 | P31: 927.646 | Q31: 7807.687167 | R31: 8735.333167 | S31: 541.1268333
A32: 113798 | B32: 18 | C32: 1 yd container | D32: 2014 | E32: 6 | F32: 0 | H32: S/L | I32: 10 | J32: 2024 | K32: 2024.5 | L32: 8669.91 | M32: 8669.91 | N32: 72.24925 | O32: 866.991 | P32: 866.991 | Q32: 7297.17425 | R32: 8164.16525 | S32: 505.74475
A33: 114392 | B33: 17 | C33: 2 yd container | D33: 2014 | E33: 7 | F33: 0 | H33: S/L | I33: 10 | J33: 2024 | K33: 2024.583333 | L33: 9582.99 | M33: 9582.99 | N33: 79.85825 | O33: 958.299 | P33: 958.299 | Q33: 7985.825 | R33: 8944.124 | S33: 638.866
A34: 124519 | B34: 25 | C34: 1 yd container | D34: 2015 | E34: 12 | F34: 0 | H34: S/L | I34: 10 | J34: 2025 | K34: 2026 | L34: 11680.91 | M34: 11680.91 | N34: 97.34091667 | O34: 1168.091 | P34: 1168.091 | Q34: 8079.296083 | R34: 9247.387083 | S34: 2433.522917
A35: 124520 | B35: 20 | C35: 2 yd container | D35: 2015 | E35: 12 | F35: 0 | H35: S/L | I35: 10 | J35: 2025 | K35: 2026 | L35: 10745 | M35: 10745 | N35: 89.54166667 | O35: 1074.5 | P35: 1074.5 | Q35: 7431.958333 | R35: 8506.458333 | S35: 2238.541667
A36: 124521 | B36: 20 | C36: 1.5 yd container | D36: 2015 | E36: 12 | F36: 0 | H36: S/L | I36: 10 | J36: 2025 | K36: 2026 | L36: 9767.24 | M36: 9767.24 | N36: 81.39366667 | O36: 976.724 | P36: 976.724 | Q36: 6755.674333 | R36: 7732.398333 | S36: 2034.841667
A37: 169975 | B37: 44 | C37: 1.5 yd container | D37: 2016 | E37: 11 | F37: 0 | H37: S/L | I37: 12 | J37: 2028 | K37: 2028.916667 | L37: 22819.4 | M37: 22819.4 | N37: 158.4680556 | O37: 1901.616667 | P37: 1901.616667 | Q37: 11409.7 | R37: 13311.31667 | S37: 9508.083333
A38: 169976 | B38: 22 | C38: 2 yd container | D38: 2016 | E38: 11 | F38: 0 | H38: S/L | I38: 12 | J38: 2028 | K38: 2028.916667 | L38: 12799.44 | M38: 12799.44 | N38: 88.885 | O38: 1066.62 | P38: 1066.62 | Q38: 6399.72 | R38: 7466.34 | S38: 5333.1
A39: 187316 | B39: 20 | C39: 1 yd Commercial Containers | D39: 2017 | E39: 9 | F39: 0 | H39: S/L | I39: 12 | J39: 2029 | K39: 2029.75 | L39: 9984.1 | M39: 9984.1 | N39: 69.33402778 | O39: 832.0083333 | P39: 832.0083333 | Q39: 4298.709722 | R39: 5130.718056 | S39: 4853.381944
A40: 187317 | B40: 23 | C40: 1.5 yd Commercial Containers | D40: 2017 | E40: 9 | F40: 0 | H40: S/L | I40: 12 | J40: 2029 | K40: 2029.75 | L40: 11745.04 | M40: 11745.04 | N40: 81.56277778 | O40: 978.7533333 | P40: 978.7533333 | Q40: 5056.892222 | R40: 6035.645556 | S40: 5709.394444
A41: 187318 | B41: 25 | C41: 2 yd Commercial Containers | D41: 2017 | E41: 9 | F41: 0 | H41: S/L | I41: 12 | J41: 2029 | K41: 2029.75 | L41: 13859.26 | M41: 13859.26 | N41: 96.24486111 | O41: 1154.938333 | P41: 1154.938333 | Q41: 5967.181389 | R41: 7122.119722 | S41: 6737.140278
A42: 198002 | B42: 1 | C42: 8 Yd Container | D42: 2018 | E42: 6 | F42: 0 | H42: S/L | I42: 0 | J42: 2018 | K42: 2018.5 | L42: 0 | M42: 0 | N42: =IFERROR(M42/I42/12,0) -> 0 | O42: 0 | P42: 0 | Q42: 0 | R42: 0 | S42: 0
A43: 198001 | B43: 6 | C43: 2 Yd Container | D43: 2018 | E43: 6 | F43: 0 | H43: S/L | I43: 0 | J43: 2018 | K43: 2018.5 | L43: 0 | M43: 0 | N43: =IFERROR(M43/I43/12,0) -> 0 | O43: 0 | P43: 0 | Q43: 0 | R43: 0 | S43: 0
A44: 198000 | B44: 18 | C44: 1 Yd Container | D44: 2018 | E44: 6 | F44: 0 | H44: S/L | I44: 0 | J44: 2018 | K44: 2018.5 | L44: 0 | M44: 0 | N44: =IFERROR(M44/I44/12,0) -> 0 | O44: 0 | P44: 0 | Q44: 0 | R44: 0 | S44: 0
A45: 222637 | B45: 20 | C45: 2 Yd REL Metal Containers | D45: 2019 | E45: 7 | F45: 0 | H45: S/L | I45: 12 | J45: 2031 | K45: 2031.583333 | L45: 14663.63 | M45: 14663.63 | N45: =IFERROR(M45/I45/12,0) -> 101.8307639 | O45: =+N45*12 -> 1221.969167 | P45: 1221.969167 | Q45: 4073.230556 | R45: 5295.199722 | S45: =+L45-R45 -> 9368.430278
A46: 222014 | B46: 19 | C46: 1 Yard Rear Load Container | D46: 2019 | E46: 7 | F46: 0 | H46: S/L | I46: 12 | J46: 2031 | K46: 2031.583333 | L46: 11875.48 | M46: 11875.48 | N46: =IFERROR(M46/I46/12,0) -> 82.46861111 | O46: =+N46*12 -> 989.6233333 | P46: 989.6233333 | Q46: =+IF($K46<=$N$7,$L46,IF(($E46+($F46/12))>=$N$7,0,((($M46-((($K46-$N$7)*12)*$N46)))))) -> 3298.744444 | R46: 4288.367778 | S46: 7587.112222
C48: GARBAGE CONTAINERS | L48: =SUM(L12:L47) -> 305018 | M48: 305018 | N48: 2402.585625 | O48: 28831.0275 | P48: 14117.78017 | Q48: 233410.9335 | R48: 247528.7137 | S48: 57489.28633
C50: DROP BOXES
B51: 26026 | C51: sales tax | D51: 1994 | E51: 1 | F51: 0 | H51: S/L | I51: 10 | J51: =D51+I51 -> 2004 | K51: =+J51+(E51/12) -> 2004.083333 | L51: 656 | M51: =L51-L51*F51 -> 656 | N51: =M51/I51/12 -> 5.466666667 | O51: =+N51*12 -> 65.6 | P51: =+IF(K51<=$N$6,0,O51) -> 0 | Q51: =+IF($K51<=$N$7,$L51,IF(($E51+($F51/12))>=$N$7,0,((($M51-((($K51-$N$7)*12)*$N51)))))) -> 656 | R51: =+IF(K51<=$N$6,M51,IF(P51=0,Q51,Q51+P51)) -> 656 | S51: =+L51-R51 -> 0
B52: 2 | C52: 2 40 yd ok | D52: 2000 | E52: 6 | F52: 0 | H52: S/L | I52: 10 | J52: 2010 | K52: 2010.5 | L52: 8873 | M52: 8873 | N52: 73.94166667 | O52: 887.3 | P52: 0 | Q52: 8873 | R52: 8873 | S52: 0
B53: 20 | C53: 20 yd w/lids | D53: 2006 | E53: 11 | F53: 0 | H53: S/L | I53: 10 | J53: 2016 | K53: 2016.916667 | L53: 99878.4 | M53: 99878.4 | N53: 832.32 | O53: 9987.84 | P53: 0 | Q53: 99878.4 | R53: 99878.4 | S53: 0
B54: 20 | C54: 20 yd w/lids | D54: 2007 | E54: 8 | F54: 0 | H54: S/L | I54: 10 | J54: 2017 | K54: 2017.666667 | L54: =4998.51*20 -> 99970.2 | M54: 99970.2 | N54: 833.085 | O54: 9997.02 | P54: 0 | Q54: 99970.2 | R54: 99970.2 | S54: 0
B55: 2 | C55: 40 yd w/lids | D55: 2011 | E55: 8 | F55: 0 | H55: S/L | I55: 10 | J55: 2021 | K55: 2021.666667 | L55: 14039.69 | M55: 14039.69 | N55: 116.9974167 | O55: 1403.969 | P55: 0 | Q55: 14039.69 | R55: 14039.69 | S55: 0
B56: 4 | C56: 30 yd w/lids | D56: 2011 | E56: 8 | F56: 0 | H56: S/L | I56: 10 | J56: 2021 | K56: 2021.666667 | L56: =6173.07+18896.41 -> 25069.48 | M56: 25069.48 | N56: 208.9123333 | O56: 2506.948 | P56: 0 | Q56: 25069.48 | R56: 25069.48 | S56: 0
B57: 3 | C57: 40 yd w/lids | D57: 2011 | E57: 9 | F57: 0 | H57: S/L | I57: 10 | J57: 2021 | K57: 2021.75 | L57: 20211.68 | M57: 20211.68 | N57: 168.4306667 | O57: 2021.168 | P57: 0 | Q57: 20211.68 | R57: 20211.68 | S57: 0
B58: 1 | C58: 40 yd w/lids | D58: 2011 | E58: 10 | F58: 0 | H58: S/L | I58: 10 | J58: 2021 | K58: 2021.833333 | L58: 6737.23 | M58: 6737.23 | N58: 56.14358333 | O58: 673.723 | P58: 0 | Q58: 6737.23 | R58: 6737.23 | S58: 0
A59: 109810 | B59: 4 | C59: 10 Yd RO Boxes | D59: 2013 | E59: 12 | F59: 0 | H59: S/L | I59: 10 | J59: 2023 | K59: 2024 | L59: 21616.08 | M59: 21616.08 | N59: 180.134 | O59: 2161.608 | P59: 2161.608 | Q59: 19274.338 | R59: 21435.946 | S59: 180.134
A60: 118362 | B60: 2 | C60: 30 yd w/lids | D60: 2014 | E60: 12 | F60: 0 | H60: S/L | I60: 10 | J60: 2024 | K60: 2025 | L60: 13174.44 | M60: 13174.44 | N60: 109.787 | O60: 1317.444 | P60: 1317.444 | Q60: 10429.765 | R60: 11747.209 | S60: 1427.231
A61: 124463 | B61: 2 | C61: 40 yd RO Boxes | D61: 2015 | E61: 8 | F61: 0 | H61: S/L | I61: 10 | J61: 2025 | K61: 2025.666667 | L61: 0 | M61: 0 | N61: 0 | O61: 0 | P61: 0 | Q61: 0 | R61: 0 | S61: 0
A62: 167136 | B62: 3 | C62: 10 yd RO Boxes | D62: 2016 | E62: 9 | F62: 0 | H62: S/L | I62: 12 | J62: 2028 | K62: 2028.75 | L62: 15700 | M62: 15700 | N62: 109.0277778 | O62: 1308.333333 | P62: 1308.333333 | Q62: 8068.055556 | R62: 9376.388889 | S62: 6323.611111
A63: 167137 | B63: 3 | C63: 30 yd RO Boxes | D63: 2016 | E63: 9 | F63: 0 | H63: S/L | I63: 12 | J63: 2028 | K63: 2028.75 | L63: 17845 | M63: 17845 | N63: 123.9236111 | O63: 1487.083333 | P63: 1487.083333 | Q63: 9170.347222 | R63: 10657.43056 | S63: 7187.569444
A64: 170769 | B64: 2 | C64: 40 yd RO Boxes | D64: 2016 | E64: 12 | F64: 0 | H64: S/L | I64: 12 | J64: 2028 | K64: 2029 | L64: 14636 | M64: 14636 | N64: 101.6388889 | O64: 1219.666667 | P64: 1219.666667 | Q64: 7216.361111 | R64: 8436.027778 | S64: 6199.972222
A65: 171065 | B65: 2 | C65: 40 yd RO Boxes | D65: 2016 | E65: 12 | F65: 0 | H65: S/L | I65: 12 | J65: 2028 | K65: 2029 | L65: 14636 | M65: 14636 | N65: 101.6388889 | O65: 1219.666667 | P65: 1219.666667 | Q65: 7216.361111 | R65: 8436.027778 | S65: 6199.972222
A66: 185139 | B66: 7 | C66: 20YD RO Boxes with Lids | D66: 2017 | E66: 8 | F66: 0 | H66: S/L | I66: 12 | J66: 2029 | K66: 2029.666667 | L66: 40160 | M66: 40160 | N66: 278.8888889 | O66: 3346.666667 | P66: 3346.666667 | Q66: 17570 | R66: 20916.66667 | S66: 19243.33333
A67: 185140 | B67: 2 | C67: 40YD Rolloff Boxes with lids | D67: 2017 | E67: 8 | F67: 0 | H67: S/L | I67: 12 | J67: 2029 | K67: 2029.666667 | L67: 15035 | M67: 15035 | N67: 104.4097222 | O67: 1252.916667 | P67: 1252.916667 | Q67: 6577.8125 | R67: 7830.729167 | S67: 7204.270833
A68: 206217 | B68: 2 | C68: 20 Yard Roll Off Boxes | D68: 2018 | E68: 9 | F68: 0 | H68: S/L | I68: 12 | J68: 2030 | K68: 2030.75 | L68: 12967 | M68: 12967 | N68: =M68/I68/12 -> 90.04861111 | O68: 1080.583333 | P68: 1080.583333 | Q68: 4502.430556 | R68: 5583.013889 | S68: 7383.986111
A69: 206216 | B69: 4 | C69: 20 Yard Roll Off Boxes | D69: 2018 | E69: 9 | F69: 0 | H69: S/L | I69: 12 | J69: 2030 | K69: 2030.75 | L69: 25934 | M69: 25934 | N69: =M69/I69/12 -> 180.0972222 | O69: 2161.166667 | P69: 2161.166667 | Q69: 9004.861111 | R69: 11166.02778 | S69: 14767.97222
A70: 205008 | B70: 2 | C70: 40 Yd Rolloff Boxes | D70: 2018 | E70: 9 | F70: 0 | H70: S/L | I70: 12 | J70: 2030 | K70: 2030.75 | L70: 15593 | M70: 15593 | N70: =M70/I70/12 -> 108.2847222 | O70: 1299.416667 | P70: 1299.416667 | Q70: 5414.236111 | R70: 6713.652778 | S70: 8879.347222
C72: DROP BOXES | L72: =SUM(L51:L71) -> 482732.2 | M72: 482732.2 | N72: 3783.176667 | O72: 45398.12 | P72: 17854.552 | Q72: 379880.2483 | R72: 397734.8003 | S72: 84997.39972
C74: Regulated Carts
A75: 212748 | B75: =656-406 -> 250 | C75: 96 Gal MSW Carts | D75: 2019 | E75: 4 | F75: 0 | H75: S/L | I75: 7 | J75: =D75+I75 -> 2026 | K75: =+J75+(E75/12) -> 2026.333333 | L75: =32752.49*(0.38109756097561) -> 12481.89405 | M75: =L75-L75*F75 -> 12481.89405 | N75: =M75/I75/12 -> 148.5939768 | O75: =+N75*12 -> 1783.127722 | P75: =+IF(K75<=$N$6,0,O75) -> 1783.127722 | Q75: =+IF($K75<=$N$7,$L75,IF(($E75+($F75/12))>=$N$7,0,((($M75-((($K75-$N$7)*12)*$N75)))))) -> 6389.541004 | R75: =+IF(K75<=$N$6,M75,IF(P75=0,Q75,Q75+P75)) -> 8172.668726 | S75: =+L75-R75 -> 4309.225328
A76: 212747 | B76: =1728-150 -> 1578 | C76: 65 Gal MSW Carts | D76: 2019 | E76: 4 | F76: 0 | H76: S/L | I76: 7 | J76: =D76+I76 -> 2026 | K76: =+J76+(E76/12) -> 2026.333333 | L76: =78763*(B76/1728) -> 71925.93403 | M76: =L76-L76*F76 -> 71925.93403 | N76: =M76/I76/12 -> 856.2611194 | O76: =+N76*12 -> 10275.13343 | P76: 10275.13343 | Q76: 36819.22813 | R76: 47094.36157 | S76: =+L76-R76 -> 24831.57246
A77: 212746 | B77: 400 | C77: 35 Gal MSW Carts | D77: 2019 | E77: 4 | F77: 0 | H77: S/L | I77: 7 | J77: =D77+I77 -> 2026 | K77: =+J77+(E77/12) -> 2026.333333 | L77: =38451*(B77/945) -> 16275.55556 | M77: =L77-L77*F77 -> 16275.55556 | N77: =M77/I77/12 -> 193.7566138 | O77: =+N77*12 -> 2325.079365 | P77: 2325.079365 | Q77: 8331.534392 | R77: 10656.61376 | S77: =+L77-R77 -> 5618.941799
A78: 225970 | B78: 945 | C78: 35 Gal MSW Carts | D78: 2019 | E78: 9 | F78: 0 | H78: S/L | I78: 7 | J78: =D78+I78 -> 2026 | K78: =+J78+(E78/12) -> 2026.75 | L78: 37637.16 | M78: =L78-L78*F78 -> 37637.16 | N78: =M78/I78/12 -> 448.0614286 | O78: =+N78*12 -> 5376.737143 | P78: 5376.737143 | Q78: 17026.33429 | R78: 22403.07143 | S78: =+L78-R78 -> 15234.08857
A79: 225969 | B79: 945 | C79: 35 Gal MSW Carts | D79: 2019 | E79: 9 | F79: 0 | H79: S/L | I79: 7 | J79: =D79+I79 -> 2026 | K79: =+J79+(E79/12) -> 2026.75 | L79: 37637.16 | M79: =L79-L79*F79 -> 37637.16 | N79: =M79/I79/12 -> 448.0614286 | O79: =+N79*12 -> 5376.737143 | P79: 5376.737143 | Q79: 17026.33429 | R79: 22403.07143 | S79: =+L79-R79 -> 15234.08857
B80: =SUM(B75:B79) -> 4118
L81: =SUM(L75:L80) -> 175957.7036 | M81: 175957.7036 | N81: 2094.734567 | O81: 25136.81481 | P81: 25136.81481 | Q81: 85592.9721 | R81: 110729.7869 | S81: 65227.91673
C83: Shared Carts
A84: 212748 | B84: =656-250 -> 406 | C84: 96 Gal MSW Carts | D84: 2019 | E84: 4 | F84: 0 | H84: S/L | I84: 7 | J84: =D84+I84 -> 2026 | K84: =+J84+(E84/12) -> 2026.333333 | L84: =32752.49*(0.61890243902439) -> 20270.59595 | M84: =L84-L84*F84 -> 20270.59595 | N84: =M84/I84/12 -> 241.3166184 | O84: =+N84*12 -> 2895.799421 | P84: =+IF(K84<=$N$6,0,O84) -> 2895.799421 | Q84: =+IF($K84<=$N$7,$L84,IF(($E84+($F84/12))>=$N$7,0,((($M84-((($K84-$N$7)*12)*$N84)))))) -> 10376.61459 | R84: =+IF(K84<=$N$6,M84,IF(P84=0,Q84,Q84+P84)) -> 13272.41401 | S84: =+L84-R84 -> 6998.181933
A85: 212747 | B85: 150 | C85: 65 Gal MSW Carts | D85: 2019 | E85: 4 | F85: 0 | H85: S/L | I85: 7 | J85: =D85+I85 -> 2026 | K85: =+J85+(E85/12) -> 2026.333333 | L85: =78763*(B85/1728) -> 6837.065972 | M85: =L85-L85*F85 -> 6837.065972 | N85: =M85/I85/12 -> 81.39364253 | O85: =+N85*12 -> 976.7237103 | P85: 976.7237103 | Q85: 3499.926629 | R85: 4476.650339 | S85: =+L85-R85 -> 2360.415633
A86: 212746 | B86: =945-(400) -> 545 | C86: 35 Gal MSW Carts | D86: 2019 | E86: 4 | F86: 0 | H86: S/L | I86: 7 | J86: =D86+I86 -> 2026 | K86: =+J86+(E86/12) -> 2026.333333 | L86: =38451*(B86/945) -> 22175.44444 | M86: =L86-L86*F86 -> 22175.44444 | N86: =M86/I86/12 -> 263.9933862 | O86: =+N86*12 -> 3167.920635 | P86: 3167.920635 | Q86: 11351.71561 | R86: 14519.63624 | S86: =+L86-R86 -> 7655.808201
A87: 236710 | B87: 468 | C87: 64 Gal MSW Carts | D87: 2020 | E87: 7 | F87: 0 | H87: S/L | I87: 7 | J87: =D87+I87 -> 2027 | K87: =+J87+(E87/12) -> 2027.583333 | L87: 16268.74 | M87: =L87-L87*F87 -> 16268.74 | N87: =M87/I87/12 -> 193.6754762 | O87: =+N87*12 -> 2324.105714 | P87: 2324.105714 | Q87: 5422.913333 | R87: 7747.019048 | S87: =+L87-R87 -> 8521.720952
B88: =SUM(B84:B87) -> 1569
L89: =SUM(L84:L88) -> 65551.84636 | M89: 65551.84636 | N89: 780.3791234 | O89: 9364.54948 | P89: 9364.54948 | Q89: 30651.17016 | R89: 40015.71964 | S89: 25536.12672
B90: =B80+B88 -> 5687
C92: Whidbey Island (Naval Base):
B93: 1800 | C93: 95 Gallon | D93: 2010 | E93: 11 | F93: 0 | H93: S/L | I93: 10 | J93: =D93+I93 -> 2020 | K93: =+J93+(E93/12) -> 2020.916667 | L93: 89944.88 | M93: =L93-L93*F93 -> 89944.88 | N93: =M93/I93/12 -> 749.5406667 | O93: =+N93*12 -> 8994.488 | P93: =+IF(K93<=$N$6,0,O93) -> 0 | Q93: =+IF($K93<=$N$7,$L93,IF(($E93+($F93/12))>=$N$7,0,((($M93-((($K93-$N$7)*12)*$N93)))))) -> 89944.88 | R93: =+IF(K93<=$N$6,M93,IF(P93=0,Q93,Q93+P93)) -> 89944.88 | S93: =+L93-R93 -> 0
B94: 1800 | C94: 65 Gallon | D94: 2010 | E94: 11 | F94: 0 | H94: S/L | I94: 10 | J94: =D94+I94 -> 2020 | K94: =+J94+(E94/12) -> 2020.916667 | L94: 76072.61 | M94: =L94-L94*F94 -> 76072.61 | N94: =M94/I94/12 -> 633.9384167 | O94: =+N94*12 -> 7607.261 | P94: 0 | Q94: 76072.61 | R94: 76072.61 | S94: =+L94-R94 -> 0
B95: =486+164 -> 650 | C95: 95 Gallon | D95: 2012 | E95: 12 | F95: 0 | H95: S/L | I95: 10 | J95: =D95+I95 -> 2022 | K95: =+J95+(E95/12) -> 2023 | L95: =26171.15+8889.48 -> 35060.63 | M95: =L95-L95*F95 -> 35060.63 | N95: =M95/I95/12 -> 292.1719167 | O95: =+N95*12 -> 3506.063 | P95: 0 | Q95: 34768.45808 | R95: 35060.63 | S95: =+L95-R95 -> 0
B96: =SUM(B93:B95) -> 4250
L97: =SUM(L93:L96) -> 201078.12 | M97: =SUM(M93:M96) -> 201078.12 | N97: 1675.651 | O97: 20107.812 | P97: 0 | Q97: 200785.9481 | R97: 201078.12 | S97: 0
A98: Total Carts | B98: =B90+B96 -> 9937
B99: 10 | C99: 20 yd w/lids | D99: 2007 | E99: 8 | F99: 0 | H99: S/L | I99: 10 | J99: =D99+I99 -> 2017 | K99: =+J99+(E99/12) -> 2017.666667 | L99: =4998.51*10 -> 49985.1 | M99: =L99-L99*F99 -> 49985.1 | N99: =M99/I99/12 -> 416.5425 | O99: =+N99*12 -> 4998.51 | P99: =+IF(K99<=$N$6,0,O99) -> 0 | Q99: =+IF($K99<=$N$7,$L99,IF(($E99+($F99/12))>=$N$7,0,((($M99-((($K99-$N$7)*12)*$N99)))))) -> 49985.1 | R99: =+IF(K99<=$N$6,M99,IF(P99=0,Q99,Q99+P99)) -> 49985.1 | S99: =+L99-R99 -> 0
B100: 4 | C100: 20 yard Recycle Box | D100: 2010 | E100: 11 | F100: 0 | H100: S/L | I100: 10 | J100: =D100+I100 -> 2020 | K100: =+J100+(E100/12) -> 2020.916667 | L100: 28940.29 | M100: =L100-L100*F100 -> 28940.29 | N100: =M100/I100/12 -> 241.1690833 | O100: =+N100*12 -> 2894.029 | P100: 0 | Q100: 28940.29 | R100: 28940.29 | S100: =+L100-R100 -> 0
L102: =SUM(L99:L101) -> 78925.39 | M102: =SUM(M99:M101) -> 78925.39 | N102: 657.7115833 | O102: 7892.539 | P102: 0 | Q102: 78925.39 | R102: 78925.39 | S102: 0
L104: =+L97+L102 -> 280003.51 | M104: 280003.51 | N104: 2333.362583 | O104: 28000.351 | P104: 0 | Q104: 279711.3381 | R104: 280003.51 | S104: 0
L106: =+L81+L72+L48+L89+L104 -> 1309263.26 | M106: 1309263.26 | N106: 11394.23857 | O106: 136730.8628 | P106: 66473.69645 | Q106: 1009246.662 | R106: 1076012.53 | S106: 233250.7295
C110: Proformas Removed by AML 1.3.22
A112: PROFORMA | B112: 48 | C112: REL Metal 1, 1.5, 2 yd | D112: 2020 | E112: 7 | F112: 0 | H112: S/L | I112: 12 | J112: =D112+I112 -> 2032 | K112: =+J112+(E112/12) -> 2032.583333 | L112: 30000 | M112: =L112-L112*F112 -> 30000 | N112: =IFERROR(M112/I112/12,0) -> 208.3333333 | O112: =+N112*12 -> 2500 | P112: =+IF(K112<=$M$5,0,IF(J112>$M$4,O112,(N112*E112))) -> 2500 | Q112: =+IF(P112=0,M112,IF($M$3-D112<1,0,(($M$3-D112)*O112))) -> 0 | R112: =+IF(P112=0,Q112,Q112+P112) -> 2500 | S112: =+L112-R112 -> 27500
A113: PROFORMA | B113: 1560 | C113: MSW Carts - 35, 64, 95 gal | D113: 2020 | E113: 7 | F113: 0 | H113: S/L | I113: 7 | J113: =D113+I113 -> 2027 | K113: =+J113+(E113/12) -> 2027.583333 | L113: 55000 | M113: =L113-L113*F113 -> 55000 | N113: =M113/I113/12 -> 654.7619048 | O113: =+N113*12 -> 7857.142857 | P113: =+IF(K113<=$M$5,0,IF(J113>$M$4,O113,(N113*E113))) -> 7857.142857 | Q113: =+IF(P113=0,M113,IF($M$3-D113<1,0,(($M$3-D113)*O113))) -> 0 | R113: =+IF(P113=0,Q113,Q113+P113) -> 7857.142857 | S113: =+L113-R113 -> 47142.85714

Sheet 2144 Shop,Serv
D1: Island Disposal
D2: Depreciation Schedule | N2: =+'2144 Trks'!N2 -> 11 | O2: Test Period Beg. Month
D3: ='Depr Summary'!H12 -> 2023-10-31 | N3: =+'2144 Trks'!N3 -> 10 | O3: Test Period End Month
N4: =+'2144 Trks'!N4 -> 2022 | O4: First Year
N5: =+'2144 Trks'!N5 -> 2023 | O5: Second year
N6: =+'2144 Trks'!N6 -> 2023.833333 | O6: Test Period End Mo/Yr
N7: =+'2144 Trks'!N7 -> 2022.916667 | O7: Test Period Beg. Mo/Yr
Q8: Beginning | R8: Ending
E9: Date in Service | G9: Salvage | J9: Year | K9: Year/Mo | Q9: Accum | R9: Accum | S9: Average
B10: Quantity | D10: Shop Equipment | G10: Value | H10: Method | I10: Life | J10: Fully | K10: Fully | L10: Asset | M10: Depr | N10: Monthly | O10: Annual | P10: Test yr. | Q10: Depr | R10: Depr | S10: Investment
A11: Codes | B11: No | C11: FAR | D11: Asset Classification | E11: Year | F11: Mo | G11: % | H11: M | I11: Years | J11: Depr | K11: Depr | L11: Cost | M11: Cost | N11: Depr | O11: Depr | P11: Depn. | Q11: ='Depr Summary'!F12 -> 2022-11-01 | R11: =+D3 -> 2023-10-31 | S11: =D3 -> 2023-10-31
C12: 88214 | D12: Shop Lighting | E12: 2011 | F12: 12 | G12: 0 | H12: S/L | I12: 7 | J12: =E12+I12 -> 2018 | K12: =+J12+(F12/12) -> 2019 | L12: 5261.08 | M12: =L12-L12*G12 -> 5261.08 | N12: =M12/I12/12 -> 62.63190476 | O12: =+N12*12 -> 751.5828571 | P12: =+IF(K12<=$N$6,0,O12) -> 0 | Q12: =+IF($K12<=$N$7,$L12,IF(($E12+($F12/12))>=$N$7,0,((($M12-((($K12-$N$7)*12)*$N12)))))) -> 5261.08 | R12: =+IF(K12<=$N$6,M12,IF(P12=0,Q12,Q12+P12)) -> 5261.08 | S12: =+L12-R12 -> 0
C13: 88156 | D13: Bobcat 54 Sweeper Attach | E13: 2011 | F13: 12 | G13: 0 | H13: S/L | I13: 7 | J13: 2018 | K13: 2019 | L13: 2771.85 | M13: 2771.85 | N13: 32.99821429 | O13: 395.9785714 | P13: 0 | Q13: 2771.85 | R13: =+IF(K13<=$N$6,M13,IF(P13=0,Q13,Q13+P13)) -> 2771.85 | S13: 0
C14: 80814 | D14: Diagnostic Laptop (shop) | E14: 2011 | F14: 1 | G14: 0 | H14: S/L | I14: 5 | J14: 2016 | K14: 2016.083333 | L14: =1583.32+5660 -> 7243.32 | M14: 7243.32 | N14: 120.722 | O14: 1448.664 | P14: 0 | Q14: 7243.32 | R14: 7243.32 | S14: 0
C15: 127407 | D15: Truck Wash | E15: 2015 | F15: 11 | G15: 0 | H15: S/L | I15: 10 | J15: 2025 | K15: 2025.916667 | L15: 185053.86 | M15: 185053.86 | N15: 1542.1155 | O15: 18505.386 | P15: 18505.386 | Q15: 129537.702 | R15: 148043.088 | S15: 37010.772
C16: 132355 | D16: Diagnostic Laptop (shop) | E16: 2016 | F16: 4 | G16: 0 | H16: S/L | I16: 3 | J16: 2019 | K16: 2019.333333 | L16: 1671 | M16: 1671 | N16: 46.41666667 | O16: 557 | P16: 0 | Q16: 1671 | R16: 1671 | S16: 0
C17: 171237 | D17: Scissor Lift | E17: 2016 | F17: 12 | G17: 0 | H17: S/L | I17: 10 | J17: 2026 | K17: 2027 | L17: 16847.41 | M17: 16847.41 | N17: 140.3950833 | O17: 1684.741 | P17: 1684.741 | Q17: 9968.050917 | R17: 11652.79192 | S17: 5194.618083
C18: 184735 | D18: Diagnostic Software for Shop | E18: 2017 | F18: 7 | G18: 0 | H18: S/L | I18: 3 | J18: 2020 | K18: 2020.583333 | L18: 4848 | M18: 4848 | N18: 134.6666667 | O18: 0 | P18: 0 | Q18: 4848 | R18: 4848 | S18: 0
C19: 202513 | D19: Shop Diagnostic Laptop - Panasonic Toughbook 14' | E19: 2018 | F19: 7 | G19: 0 | H19: S/L | I19: 3 | J19: 2021 | K19: 2021.583333 | L19: 1641.36 | M19: 1641.36 | N19: 45.59333333 | O19: 547.12 | P19: 0 | Q19: 1641.36 | R19: 1641.36 | S19: 0
C20: 206447 | D20: Diagnostic Software | E20: 2018 | F20: 7 | G20: 0 | H20: S/L | I20: 3 | J20: 2021 | K20: 2021.583333 | L20: 5897 | M20: 5897 | N20: 163.8055556 | O20: 1965.666667 | P20: 0 | Q20: 5897 | R20: 5897 | S20: 0
C21: 203974 | D21: Isuzu-IDDS License Software | E21: 2018 | F21: 7 | G21: 0 | H21: S/L | I21: 3 | J21: 2021 | K21: 2021.583333 | L21: 1429 | M21: 1429 | N21: 39.69444444 | O21: 476.3333333 | P21: 0 | Q21: 1429 | R21: 1429 | S21: 0
C22: 206229 | D22: AC Machine (Robinair B34988NI) | E22: 2018 | F22: 10 | G22: 0 | H22: S/L | I22: 5 | J22: 2023 | K22: 2023.833333 | L22: 4346.8 | M22: 4346.8 | N22: 72.44666667 | O22: 869.36 | P22: 0 | Q22: 3549.886667 | R22: 4346.8 | S22: 0
D24: Total Shop | L24: =SUM(L12:L23) -> 237010.68 | M24: 237010.68 | N24: 2401.486036 | O24: 27201.83243 | P24: 20190.127 | Q24: 173818.2496 | R24: 194805.2899 | S24: 42205.39008
D26: Service Equipment
D27: Trailer | E27: 1985 | F27: 10 | G27: 0 | H27: S/L | I27: 5 | J27: =E27+I27 -> 1990 | K27: =+J27+(F27/12) -> 1990.833333 | L27: 1200 | M27: =L27-L27*G27 -> 1200 | N27: =M27/I27/12 -> 20 | O27: =+N27*12 -> 240 | P27: =+IF(K27<=$N$6,0,O27) -> 0 | Q27: =+IF($K27<=$N$7,$L27,IF(($E27+($F27/12))>=$N$7,0,((($M27-((($K27-$N$7)*12)*$N27)))))) -> 1200 | R27: =+IF(K27<=$N$6,M27,IF(P27=0,Q27,Q27+P27)) -> 1200 | S27: =+L27-R27 -> 0
B28: DL | D28: 2004 GMC Service Truck | E28: 2006 | F28: 11 | G28: 0 | H28: S/L | I28: 5 | J28: =E28+I28 -> 2011 | K28: =+J28+(F28/12) -> 2011.916667 | L28: ='2144 Trks Orig'!$Q$17 -> 9875.8 | M28: =L28-L28*G28 -> 9875.8 | N28: =M28/I28/12 -> 164.5966667 | O28: =+N28*12 -> 1975.16 | P28: 0 | Q28: 9875.8 | R28: =+IF(K28<=$N$6,M28,IF(P28=0,Q28,Q28+P28)) -> 9875.8 | S28: =+L28-R28 -> 0
D29: Truck 2004 GMC Amort of Salvage | E29: 2020 | F29: 6 | G29: 0 | H29: S/L | I29: 3 | J29: =E29+I29 -> 2023 | K29: =+J29+(F29/12) -> 2023.5 | L29: ='2144 Trks Orig'!$O$17-'2144 Shop,Serv'!$L$28 -> 4864.2 | M29: =L29-L29*G29 -> 4864.2 | N29: =M29/I29/12 -> 135.1166667 | O29: =+N29*12 -> 1621.4 | P29: 0 | Q29: 3918.383333 | R29: 4864.2 | S29: =+L29-R29 -> 0
C30: 200969 | D30: 2018 Chevy Silverado | E30: 2018 | F30: 7 | G30: 0 | H30: S/L | I30: 5 | J30: =E30+I30 -> 2023 | K30: =+J30+(F30/12) -> 2023.583333 | L30: 33555.67 | M30: =L30-L30*G30 -> 33555.67 | N30: =M30/I30/12 -> 559.2611667 | O30: =+N30*12 -> 6711.134 | P30: 0 | Q30: 29081.58067 | R30: =+IF(K30<=$N$6,M30,IF(P30=0,Q30,Q30+P30)) -> 33555.67 | S30: =+L30-R30 -> 0
C31: 225692 | D31: 2019 Ford Service Truck | E31: 2019 | F31: 12 | G31: 0 | H31: S/L | I31: 5 | J31: =E31+I31 -> 2024 | K31: =+J31+(F31/12) -> 2025 | L31: 74322.06 | M31: =L31-L31*G31 -> 74322.06 | N31: =M31/I31/12 -> 1238.701 | O31: =+N31*12 -> 14864.412 | P31: 14864.412 | Q31: 43354.535 | R31: 58218.947 | S31: =+L31-R31 -> 16103.113
D32: Amortization of Salvage - Retired Assets | E32: 2020 | F32: 6 | P32: 0 | Q32: 0 | W32: =Q32*V32 -> 0 | X32: =U32*V32 -> 0
C33: 225692/230382 | D33: Use Tax and Licensing - Service Truck | E33: 2020 | F33: 1 | G33: 0 | H33: S/L | I33: 10 | J33: =E33+I33 -> 2030 | K33: =+J33+(F33/12) -> 2030.083333 | L33: 6981.69 | M33: =L33-L33*G33 -> 6981.69 | N33: =M33/I33/12 -> 58.18075 | O33: =+N33*12 -> 698.169 | P33: 698.169 | Q33: 1978.1455 | R33: =+IF(K33<=$N$6,M33,IF(P33=0,Q33,Q33+P33)) -> 2676.3145 | S33: =+L33-R33 -> 4305.3755
A34: 240609 | D34: (18) SF300 Drivecam Units | E34: 2020 | F34: 10 | G34: 0 | H34: S/L | I34: 5 | J34: =E34+I34 -> 2025 | K34: =+J34+(F34/12) -> 2025.833333 | L34: 15265.31 | M34: =L34-L34*G34 -> 15265.31 | N34: =M34/I34/12 -> 254.4218333 | O34: =+N34*12 -> 3053.062 | P34: 3053.062 | Q34: 6360.545833 | R34: 9413.607833 | S34: =+IF(P34=0,R34,R34+P34) -> 12466.66983
A35: 240609/240610 | D35: (18) Lytx Drivecams - Harness | E35: 2020 | F35: 10 | G35: 0 | H35: S/L | I35: 5 | J35: =E35+I35 -> 2025 | K35: =+J35+(F35/12) -> 2025.833333 | L35: 132.62 | M35: =L35-L35*G35 -> 132.62 | N35: =M35/I35/12 -> 2.210333333 | O35: =+N35*12 -> 26.524 | P35: 26.524 | Q35: 55.25833333 | R35: 81.78233333 | S35: =+IF(P35=0,R35,R35+P35) -> 108.3063333
D37: Total Service Cars | L37: =SUM(L27:L36) -> 146197.35 | M37: =SUM(M27:M36) -> 146197.35 | N37: 2432.488417 | O37: 29189.861 | P37: 18642.167 | Q37: 95824.24867 | R37: 119886.3217 | S37: 32983.46467
D39: Non-Regulated - MRF Equipment
C40: 50710 | D40: Skid Steer Loader (N) | E40: 2007 | F40: 7 | G40: 0 | H40: S/L | I40: 7 | J40: =E40+I40 -> 2014 | K40: =+J40+(F40/12) -> 2014.583333 | L40: =+'2144 Shop,Serv Orig'!P53 -> 17026.712 | M40: =L40-L40*G40 -> 17026.712 | N40: =M40/I40/12 -> 202.6989524 | O40: =+N40*12 -> 2432.387429 | P40: =+IF($K40<$N$7,0,IF($K40>$N$6,$O40,((($K40-$N$7)*12)*$N40))) -> 0 | Q40: =+IF($K40<=$N$7,$L40,IF(($E40+($F40/12))>=$N$7,0,((($M40-((($K40-$N$7)*12)*$N40)))))) -> 17026.712 | R40: =+IF(K40<=$N$6,M40,IF(P40=0,Q40,Q40+P40)) -> 17026.712 | S40: =+L40-R40 -> 0
C41: 206362/ 206363/ 206364/ 206365/ 206366/ 206367/ 206368/ 206369/ 206370/ 206371/ 206185 | D41: Bucket Loader | E41: 2018 | F41: 10 | G41: 0 | H41: S/L | I41: 3 | J41: =E41+I41 -> 2021 | K41: =+J41+(F41/12) -> 2021.833333 | L41: =2594.13+2594.13+2594.13+2594.13+4323.54+4323.54+3458.83+6917.67+10376.5+46694.25+2460.74 -> 88931.59 | M41: =L41-L41*G41 -> 88931.59 | N41: =M41/I41/12 -> 2470.321944 | O41: =+N41*12 -> 29643.86333 | P41: 0 | Q41: =+IF($K41<=$N$7,$L41,IF(($E41+($F41/12))>=$N$7,0,((($M41-((($K41-$N$7)*12)*$N41)))))) -> 88931.59 | R41: 88931.59 | S41: =+L41-R41 -> 0
L43: =SUM(L40:L42) -> 105958.302 | M43: =SUM(M40:M42) -> 105958.302 | N43: 2673.020897 | O43: 32076.25076 | P43: 0 | Q43: 105958.302 | R43: 105958.302 | S43: 0
L46: =L37+L24+L43 -> 489166.332 | M46: 489166.332 | N46: 7506.995349 | O46: 88467.94419 | P46: 38832.294 | Q46: 375600.8003 | R46: 420649.9136 | S46: 75188.85475
D54: Retired/Transferred 2019
D55: 2000 Dodge Dakota | E55: 2000 | F55: 6 | G55: 0 | H55: S/L | I55: 5 | J55: =E55+I55 -> 2005 | K55: =+J55+(F55/12) -> 2005.5 | L55: =+'2144 Shop,Serv Orig'!P42 -> 13962.8 | M55: =L55-L55*G55 -> 13962.8 | N55: =M55/I55/12 -> 232.7133333 | O55: =+N55*12 -> 2792.56 | P55: =+IF(K55<=$N$5,0,IF(J55>$N$4,O55,(N55*F55))) -> 0 | Q55: =+IF(P55=0,M55,IF($N$3-E55<1,0,(($N$3-E55)*O55))) -> 13962.8 | R55: =+IF(P55=0,Q55,Q55+P55) -> 13962.8 | S55: =+L55-R55 -> 0
D56: 2000 Dodge Dakota Amort of Salvage | E56: 2018 | F56: 1 | G56: 0 | H56: S/L | I56: =+IF(J55-$M$3>=3,J55-$M$3,3) -> 2005 | J56: =E56+I56 -> 4023 | K56: =+J56+(F56/12) -> 4023.083333 | L56: =+'2144 Shop,Serv Orig'!N42-'2144 Shop,Serv'!L55 -> 6877.2 | M56: =L56-L56*G56 -> 6877.2 | N56: =M56/I56/12 -> 0.2858354115 | O56: =+N56*12 -> 3.430024938 | P56: =+IF(K56<=$N$5,0,IF(J56>$N$4,O56,(N56*F56))) -> 3.430024938 | Q56: =+IF(P56=0,M56,IF($N$3-E56<1,0,(($N$3-E56)*O56))) -> 0 | R56: =+IF(P56=0,Q56,Q56+P56) -> 3.430024938 | S56: =+L56-R56 -> 6873.769975

Sheet 2144 Other
D1: Island Disposal
D2: Depreciation Schedule | N2: =+'2144 Trks'!N2 -> 11 | O2: Test Period Beg. Month
D3: ='Depr Summary'!H12 -> 2023-10-31 | N3: =+'2144 Trks'!N3 -> 10 | O3: Test Period End Month
N4: =+'2144 Trks'!N4 -> 2022 | O4: First Year
N5: =+'2144 Trks'!N5 -> 2023 | O5: Second year
N6: =+'2144 Trks'!N6 -> 2023.833333 | O6: Test Period End Mo/Yr
N7: =+'2144 Trks'!N7 -> 2022.916667 | O7: Test Period Beg. Mo/Yr
Q8: Beginning | R8: Ending
E9: Date in | G9: Salvage | J9: Year | K9: Year/Mo | Q9: Accum | R9: Accum | S9: Average
D10: Office | E10: Service | G10: Value | H10: Method | I10: Life | J10: Fully | K10: Fully | L10: Asset | M10: Depr | N10: Monthly | O10: Annual | P10: Test yr. | Q10: Depr | R10: Depr | S10: Investment
A11: Codes | B11: No | C11: FAR | D11: Asset Classification | E11: Year | F11: Mo | G11: % | H11: M | I11: Years | J11: Depr | K11: Depr | L11: Cost | M11: Cost | N11: Depr | O11: Depr | P11: Depn. | Q11: ='Depr Summary'!F12 -> 2022-11-01 | R11: =+D3 -> 2023-10-31 | S11: =D3 -> 2023-10-31
C12: 99654 | D12: Phone System Upgrade | E12: 2012 | F12: 12 | G12: 0 | H12: S/L | I12: 7 | J12: =E12+I12 -> 2019 | K12: =+J12+(F12/12) -> 2020 | L12: =5923.01+1122.77+3401.02+295.89+317.11+198.19 -> 11257.99 | M12: =L12-L12*G12 -> 11257.99 | N12: =M12/I12/12 -> 134.0236905 | O12: =+N12*12 -> 1608.284286 | P12: =+IF($K12<$N$7,0,IF($K12>$N$6,$O12,((($K12-$N$7)*12)*$N12))) -> 0 | Q12: =+IF($K12<=$N$7,$L12,IF(($E12+($F12/12))>=$N$7,0,((($M12-((($K12-$N$7)*12)*$N12)))))) -> 11257.99 | R12: =+IF(K12<=$N$6,M12,IF(P12=0,Q12,Q12+P12)) -> 11257.99 | S12: =+L12-R12 -> 0
C13: 99654 | D13: HP Computer | E13: 2012 | F13: 12 | G13: 0 | H13: S/L | I13: 5 | J13: 2017 | K13: 2018 | L13: 648.75 | M13: 648.75 | N13: 10.8125 | O13: 129.75 | P13: 0 | Q13: 648.75 | R13: =+IF(K13<=$N$6,M13,IF(P13=0,Q13,Q13+P13)) -> 648.75 | S13: 0
C14: 109830 | D14: Radio Base Unit | E14: 2013 | F14: 12 | G14: 0 | H14: S/L | I14: 7 | J14: 2020 | K14: 2021 | L14: 829.87 | M14: 829.87 | N14: 9.879404762 | O14: 118.5528571 | P14: 0 | Q14: 829.87 | R14: 829.87 | S14: 0
C15: 116945 | D15: (2) Wyse Winterms | E15: 2014 | F15: 4 | G15: 0 | H15: S/L | I15: 5 | J15: 2019 | K15: 2019.333333 | L15: 666.17 | M15: 666.17 | N15: 11.10283333 | O15: 133.234 | P15: 0 | Q15: 666.17 | R15: 666.17 | S15: 0
C16: 122701 | D16: (2) Wyse Winterms | E16: 2015 | F16: 4 | G16: 0 | H16: S/L | I16: 5 | J16: 2020 | K16: 2020.333333 | L16: 650 | M16: 650 | N16: 10.83333333 | O16: 130 | P16: 0 | Q16: 650 | R16: 650 | S16: 0
C17: 165804 | D17: ProBook | E17: 2016 | F17: 7 | G17: 0 | H17: S/L | I17: 3 | J17: 2019 | K17: 2019.583333 | L17: 1089.57 | M17: 1089.57 | N17: 30.26583333 | O17: 363.19 | P17: 0 | Q17: 1089.57 | R17: 1089.57 | S17: 0
D18: Nexiq USB Link 2 | E18: 2018 | F18: 7 | G18: 0 | H18: S/L | I18: 3 | J18: 2021 | K18: 2021.583333 | L18: 768.37 | M18: 768.37 | N18: =M18/I18/12 -> 21.34361111 | O18: =+N18*12 -> 256.1233333 | P18: 0 | Q18: 768.37 | R18: 768.37 | S18: =+L18-R18 -> 0
D20: Total Office | L20: =SUM(L12:L19) -> 15910.72 | M20: 15910.72 | N20: 228.2612063 | O20: 2739.134476 | P20: 0 | Q20: 15910.72 | R20: 15910.72 | S20: 0
D23: Leasehold Improvs
C24: 13319 | D24: Clearing Yards | E24: 1987 | F24: 7 | G24: 0 | H24: S/L | I24: 10 | J24: =E24+I24 -> 1997 | K24: =+J24+(F24/12) -> 1997.583333 | L24: 3196 | M24: =L24-L24*G24 -> 3196 | N24: =M24/I24/12 -> 26.63333333 | O24: =+N24*12 -> 319.6 | P24: =+IF($K24<$N$7,0,IF($K24>$N$6,$O24,((($K24-$N$7)*12)*$N24))) -> 0 | Q24: =+IF($K24<=$N$7,$L24,IF(($E24+($F24/12))>=$N$7,0,((($M24-((($K24-$N$7)*12)*$N24)))))) -> 3196 | R24: =+IF(K24<=$N$6,M24,IF(P24=0,Q24,Q24+P24)) -> 3196 | S24: =+L24-R24 -> 0
C25: 13320 | D25: Electrical for Computer | E25: 1990 | F25: 1 | G25: 0 | H25: S/L | I25: 5 | J25: 1995 | K25: 1995.083333 | L25: 1634 | M25: 1634 | N25: 27.23333333 | O25: 326.8 | P25: 0 | Q25: 1634 | R25: 1634 | S25: 0
C26: 13321 | D26: Gravel Yard | E26: 1990 | F26: 2 | G26: 0 | H26: S/L | I26: 5 | J26: 1995 | K26: 1995.166667 | L26: 3584 | M26: 3584 | N26: 59.73333333 | O26: 716.8 | P26: 0 | Q26: 3584 | R26: 3584 | S26: 0
C27: 13322 | D27: Clear Lot & Pave | E27: 1994 | F27: 6 | G27: 0 | H27: S/L | I27: 10 | J27: 2004 | K27: 2004.5 | L27: 17570 | M27: 17570 | N27: 146.4166667 | O27: 1757 | P27: 0 | Q27: 17570 | R27: 17570 | S27: 0
C28: 13323 | D28: Water Line | E28: 1997 | F28: 12 | G28: 0 | H28: S/L | I28: 5 | J28: 2002 | K28: 2003 | L28: 7102 | M28: 7102 | N28: 118.3666667 | O28: 1420.4 | P28: 0 | Q28: 7102 | R28: 7102 | S28: 0
C29: 30502,31427,32825,34587,35252,35253,33260 | D29: Expended Office Space | E29: 2005 | F29: 1 | G29: 0 | H29: S/L | I29: 15 | J29: 2020 | K29: 2020.083333 | L29: 48500 | M29: 48500 | N29: 269.4444444 | O29: 3233.333333 | P29: 0 | Q29: 48500 | R29: 48500 | S29: 0
C30: 54748 | D30: Installed Storm Drain | E30: 2007 | F30: 12 | G30: 0 | H30: S/L | I30: 15 | J30: 2022 | K30: 2023 | L30: 26533.5 | M30: 26533.5 | N30: 147.4083333 | O30: 1768.9 | P30: 147.4083333 | Q30: 26386.09167 | R30: 26533.5 | S30: 0
C31: 54747 | D31: Paving | E31: 2007 | F31: 12 | G31: 0 | H31: S/L | I31: 15 | J31: 2022 | K31: 2023 | L31: 75539.25 | M31: 75539.25 | N31: 419.6625 | O31: 5035.95 | P31: 419.6625 | Q31: 75119.5875 | R31: 75539.25 | S31: 0
C32: 109492/112383 | D32: Security Fencing & Cameras | E32: 2013 | F32: 12 | G32: 0 | H32: S/L | I32: 10 | J32: 2023 | K32: 2024 | L32: 24140.97 | M32: 24140.97 | N32: 201.17475 | O32: 2414.097 | P32: 2414.097 | Q32: 21525.69825 | R32: 23939.79525 | S32: 201.17475
D34: Total Leasehold Improvs | L34: =SUM(L24:L33) -> 207799.72 | M34: 207799.72 | N34: 1416.073361 | O34: 16992.88033 | P34: 2981.167833 | Q34: 204617.3774 | R34: 207598.5453 | S34: 201.17475
L36: =+L20+L34 -> 223710.44 | M36: 223710.44 | N36: 1644.334567 | O36: 19732.01481 | P36: 2981.167833 | Q36: 220528.0974 | R36: 223509.2653 | S36: 201.17475

Sheet 2144 Trks Orig
D1: Island Disposal Inc | AF1: 2012-12-01
D2: Depreciation Schedule | Q2: 12 | R2: Months in first year | BY2: CONVENTIONS
D3: 2017-12-31 | Q3: 0 | R3: Months in second year | AF3: A. | AG3: Purchase date
Q4: 2017 | R4: First year | AF4: B. | AG4: End of Test Period | BX4: 1 | BY4: Calendar year test period: | CB4: 12 | CC4: mos in first year
Q5: 2018 | R5: Second year | AF5: C | AG5: Date fully Depr | AK5: Salvage Value Calculations | BY5: 1993 | CB5: 0 | CC5: mos in 2nd year
AF6: D. | AG6: Beg of Test Period | CB6: 93 | CC6: First year
AF7: E. | AG7: Disposition Date | CB7: 94 | CC7: Second Year
T8: Disposal | W8: Total | Y8: Beginning | Z8: Allocated | AB8: Allocated | AC8: Allocated | AO8: Adjustment to | AQ8: Adjustment to
D9: GARBAGE | E9: Date in | G9: Salvage | K9: Year | P9: Asset | S9: Test | T9: Year | U9: Total | V9: % | W9: Allocated | Y9: Accumulated | Z9: Accumulated | AA9: Branch | AB9: Accum. | AC9: Accum. | AD9: Average | AK9: Amort of | AM9: Total Depreciation | AO9: Avg. Investment | AQ9: Avg. Investment | AS9: Adjusted Avg.
C10: Truck | E10: Service | G10: Value | I10: Method | J10: Life | K10: Fully | L10: Asset | M10: Mo. | N10: Salvage Check | O10: Asset | P10: Disposal | Q10: Depr | R10: Monthly | S10: Year | T10: Depn | U10: Test yr. | V10: Allo. | W10: Test year | Y10: Depreciation | Z10: Depreciation | AA10: Allo. | AB10: Depr. | AC10: Depr. | AD10: Investment | AE10: A. | AF10: B | AG10: C. | AH10: D. | AI10: E. | AK10: Salvage Value | AM10: For Test Period | AO10: Fully Depr Assets | AQ10: Assets w/ Depr Life | AS10: Investment | BX10: 2 | BY10: Dispositions must be in test period
A11: FAR # | B11: Codes | C11: No | D11: Asset Classification | E11: Year | F11: Mo | G11: % | H11: - | I11: M | J11: Years | K11: Depr | L11: Cost | M11: - | O11: Cost | P11: - | Q11: Cost | R11: Depr | S11: Depr | T11: - | U11: Depn. | V11: - | W11: Depr. | Y11: 2017-01-01 | Z11: =+D3 -> 2017-12-31 | AA11: % | AB11: 2017-01-01 | AC11: =+D3 -> 2017-12-31 | AD11: =D3 -> 2017-12-31
D12: Fleet Upgrade | E12: 2002 | F12: 2 | G12: 0 | I12: S/L | J12: 3 | K12: =E12+J12 -> 2005 | O12: 4465 | Q12: =O12-O12*G12 -> 4465 | R12: =Q12/J12/12 -> 124.0277778 | S12: =IF(P12>0,0,IF(OR(AE12>AF12,AG12<AH12),0,IF(AND(AG12>=AH12,AG12<=AF12),R12*((AG12-AH12)*12),IF(AND(AH12<=AE12,AF12>=AE12),((AF12-AE12)*12)*R12,IF(AG12>AF12,12*R12,0))))) -> 0 | T12: =IF(P12=0,0,IF(AND(AI12>=AH12,AI12<=AG12),((AI12-AH12)*12)*R12,0)) -> 0 | U12: =IF(T12>0,T12,S12) -> 0 | V12: 1 | W12: =V12*SUM(S12:T12) -> 0 | Y12: =IF(AE12>AF12,0,IF(AG12<AH12,Q12,IF(AND(AG12>=AH12,AG12<=AF12),(Q12-U12),IF(AND(AH12<=AE12,AF12>=AE12),0,IF(AG12>AF12,((AH12-AE12)*12)*R12,0))))) -> 4465 | Z12: =Y12*V12 -> 4465 | AA12: 1 | AB12: =Z12*AA12 -> 4465 | AC12: =IF(P12>0,0,AB12+W12*AA12)*AA12 -> 4465 | AD12: =IF(P12>0,(O12-AB12)/2,IF(AE12>=AH12,(((O12*V12)*AA12)-AC12)/2,((((O12*V12)*AA12)-AB12)+(((O12*V12)*AA12)-AC12))/2)) -> 0 | AE12: =$E12+(($F12-1)/12) -> 2002.083333 | AF12: =($Q$5+1)-($Q$2/12) -> 2018 | AG12: =$K12+(($F12-1)/12) -> 2005.083333 | AH12: =$Q$4+($Q$3/12) -> 2017 | AI12: =$L12+(($M12-1)/12) -> -0.08333333333 | AK12: =+IF((AG12-AH12)>3,((O12-Q12)/(AG12-AH12)),(O12-Q12)/3) -> 0 | AM12: =+AK12+U12 -> 0 | AO12: =+IF(AG12<AH12,-AD12,0) -> 0 | AQ12: =IF(AG12>AH12,IF(AK12>0,IF(P12>0,(O12-AB12)/2,IF(AE12>=AH12,(((O12*V12)*AA12)-(AC12+AK12))/2,((((O12*V12)*AA12)-AB12)+(((O12*V12)*AA12)-(AC12+AK12)))/2)),0),0) -> 0 | AS12: =+AD12+AO12+(IF(AQ12>0,(AQ12-AD12),0)) -> 0
D13: Fleet Upgrade | E13: 2002 | F13: 5 | G13: 0 | I13: S/L | J13: 3 | K13: 2005 | O13: 4525 | Q13: 4525 | R13: 125.6944444 | S13: 0 | T13: 0 | U13: 0 | V13: 1 | W13: 0 | Y13: 4525 | Z13: 4525 | AA13: 1 | AB13: 4525 | AC13: 4525 | AD13: 0 | AE13: 2002.333333 | AF13: 2018 | AG13: 2005.333333 | AH13: 2017 | AI13: -0.08333333333 | AK13: =+IF((AG13-AH13)>3,((O13-Q13)/(AG13-AH13)),(O13-Q13)/3) -> 0 | AM13: =+AK13+U13 -> 0 | AO13: =+IF(AG13<AH13,-AD13,0) -> 0 | AQ13: =IF(AG13>AH13,IF(AK13>0,IF(P13>0,(O13-AB13)/2,IF(AE13>=AH13,(((O13*V13)*AA13)-(AC13+AK13))/2,((((O13*V13)*AA13)-AB13)+(((O13*V13)*AA13)-(AC13+AK13)))/2)),0),0) -> 0 | AS13: =+AD13+AO13+(IF(AQ13>0,(AQ13-AD13),0)) -> 0
B14: RL | C14: 5008 | D14: 2004 Int'l 7400 RL W/P (N) | E14: 2004 | F14: 5 | G14: 0.2 | I14: S/L | J14: 7 | K14: 2011 | O14: =75203+35470+547+365+38+8454 -> 120077 | Q14: 96061.6 | R14: 1143.590476 | S14: 0 | T14: 0 | U14: 0 | V14: 1 | W14: 0 | Y14: 96061.6 | Z14: 96061.6 | AA14: 1 | AB14: 96061.6 | AC14: 96061.6 | AD14: 24015.4 | AE14: 2004.333333 | AF14: 2018 | AG14: 2011.333333 | AH14: 2017 | AI14: -0.08333333333 | AK14: =+IF((AG14-AH14)>3,((O14-Q14)/(AG14-AH14)),(O14-Q14)/3) -> 8005.133333 | AM14: 8005.133333 | AO14: =+IF(AG14<AH14,-AD14,0) -> -24015.4 | AQ14: 0 | AS14: 0
B15: RL | C15: 5003 | D15: 2005 Int'l 7400 RL W/P (N) | E15: 2004 | F15: 12 | G15: 0.2 | I15: S/L | J15: 7 | K15: 2011 | O15: =77615+39372+10090 -> 127077 | Q15: 101661.6 | R15: 1210.257143 | S15: 0 | T15: 0 | U15: 0 | V15: 1 | W15: 0 | Y15: 101661.6 | Z15: 101661.6 | AA15: 1 | AB15: 101661.6 | AC15: 101661.6 | AD15: 25415.4 | AE15: 2004.916667 | AF15: 2018 | AG15: 2011.916667 | AH15: 2017 | AI15: -0.08333333333 | AK15: 8471.8 | AM15: 8471.8 | AO15: -25415.4 | AQ15: 0 | AS15: 0
B16: RL | C16: 5006 | D16: 2006 Int'l RL Pckr | E16: 2006 | F16: 11 | G16: 0.2 | I16: S/L | J16: 7 | K16: 2013 | O16: 138290.65 | Q16: 110632.52 | R16: 1317.05381 | S16: 0 | T16: 0 | U16: 0 | V16: 1 | W16: 0 | Y16: 110632.52 | Z16: 110632.52 | AA16: 1 | AB16: 110632.52 | AC16: 110632.52 | AD16: 27658.13 | AE16: 2006.833333 | AF16: 2018 | AG16: 2013.833333 | AH16: 2017 | AI16: -0.08333333333 | AK16: 9219.376667 | AM16: 9219.376667 | AO16: -27658.13 | AQ16: 0 | AS16: 0
B17: DL | D17: 2004 GMC (delivery pu) | E17: 2006 | F17: 11 | G17: 0.33 | I17: S/L | J17: 5 | K17: 2011 | N17: =O17-Q17 -> 4864.2 | O17: 14740 | Q17: 9875.8 | R17: 164.5966667 | S17: 0 | T17: 0 | U17: 0 | V17: 1 | W17: 0 | Y17: 9875.8 | Z17: 9875.8 | AA17: 1 | AB17: 9875.8 | AC17: 9875.8 | AD17: 4864.2 | AE17: 2006.833333 | AF17: 2018 | AG17: 2011.833333 | AH17: 2017 | AI17: -0.08333333333 | AK17: 1621.4 | AM17: 1621.4 | AO17: -4864.2 | AQ17: 0 | AS17: 0
B18: RL | C18: 5016 | D18: 2007 International RL w/ Heil Pkr | E18: 2007 | F18: 9 | G18: 0.2 | I18: S/L | J18: 7 | K18: 2014 | N18: 27340.174 | O18: 136700.87 | Q18: 109360.696 | R18: 1301.913048 | S18: 0 | T18: 0 | U18: 0 | V18: 1 | W18: 0 | Y18: 109360.696 | Z18: 109360.696 | AA18: 1 | AB18: 109360.696 | AC18: 109360.696 | AD18: 27340.174 | AE18: 2007.666667 | AF18: 2018 | AG18: 2014.666667 | AH18: 2017 | AI18: =$L18+(($M18-1)/12) -> -0.08333333333 | AK18: 9113.391333 | AM18: 9113.391333 | AO18: -27340.174 | AQ18: 0 | AS18: 0
B19: RL | C19: 5010 | D19: 2004 Int'l W/P 7400 (U) | E19: 2008 | F19: =2+6 -> 8 | G19: 0.33 | I19: S/L | J19: 5 | K19: 2013 | N19: 22061.3943 | O19: 66852.71 | Q19: 44791.3157 | R19: 746.5219283 | S19: 0 | T19: 0 | U19: 0 | V19: 1 | W19: 0 | Y19: 44791.3157 | Z19: 44791.3157 | AA19: 1 | AB19: 44791.3157 | AC19: 44791.3157 | AD19: 22061.3943 | AE19: 2008.583333 | AF19: 2018 | AG19: 2013.583333 | AH19: 2017 | AI19: =$L19+(($M19-1)/12) -> -0.08333333333 | AK19: 7353.7981 | AM19: 7353.7981 | AO19: -22061.3943 | AQ19: 0 | AS19: 0
B20: RL | C20: 5039 | D20: 2010 Int'l W/McNls Pkr (N) | E20: 2009 | F20: 12 | G20: 0.2 | I20: S/L | J20: 7 | K20: 2016 | N20: 37049.868 | O20: 185249.34 | Q20: 148199.472 | R20: 1764.279429 | S20: 0 | T20: 0 | U20: 0 | V20: 1 | W20: 0 | Y20: 148199.472 | Z20: 148199.472 | AA20: 1 | AB20: 148199.472 | AC20: 148199.472 | AD20: 37049.868 | AE20: 2009.916667 | AF20: 2018 | AG20: 2016.916667 | AH20: 2017 | AI20: -0.08333333333 | AK20: 12349.956 | AM20: 12349.956 | AO20: -37049.868 | AQ20: 0 | AS20: 0
B21: RL | C21: 5040 | D21: 2010 Int'l W/McNls Pkr (N) | E21: 2009 | F21: 12 | G21: 0.2 | I21: S/L | J21: 7 | K21: 2016 | N21: 36866.464 | O21: 184332.32 | Q21: 147465.856 | R21: 1755.545905 | S21: 0 | T21: 0 | U21: 0 | V21: 1 | W21: 0 | Y21: 147465.856 | Z21: 147465.856 | AA21: 1 | AB21: 147465.856 | AC21: 147465.856 | AD21: 36866.464 | AE21: 2009.916667 | AF21: 2018 | AG21: 2016.916667 | AH21: 2017 | AI21: -0.08333333333 | AK21: 12288.82133 | AM21: 12288.82133 | AO21: -36866.464 | AQ21: 0 | AS21: 0
B22: RL | C22: 5041 | D22: 2010 Int'l W/McNls Pkr (N) | E22: 2009 | F22: 12 | G22: 0.2 | I22: S/L | J22: 7 | K22: 2016 | N22: 36866.464 | O22: 184332.32 | Q22: 147465.856 | R22: 1755.545905 | S22: 0 | T22: 0 | U22: 0 | V22: 1 | W22: 0 | Y22: 147465.856 | Z22: 147465.856 | AA22: 1 | AB22: 147465.856 | AC22: 147465.856 | AD22: 36866.464 | AE22: 2009.916667 | AF22: 2018 | AG22: 2016.916667 | AH22: 2017 | AI22: -0.08333333333 | AK22: 12288.82133 | AM22: 12288.82133 | AO22: -36866.464 | AQ22: 0 | AS22: 0
B23: RL | D23: Drive Cam (23) | E23: 2010 | F23: 4 | G23: 0.2 | I23: S/L | J23: 7 | K23: 2017 | N23: 2823.988 | O23: =13707.42+412.52 -> 14119.94 | Q23: 11295.952 | R23: 134.475619 | S23: 403.4268571 | T23: 0 | U23: 403.4268571 | V23: 1 | W23: 403.4268571 | Y23: 10892.52514 | Z23: 10892.52514 | AA23: 1 | AB23: 10892.52514 | AC23: 11295.952 | AD23: 3025.701429 | AE23: 2010.25 | AF23: 2018 | AG23: 2017.25 | AH23: 2017 | AI23: -0.08333333333 | AK23: 941.3293333 | AM23: 1344.75619 | AO23: 0 | AQ23: 2555.036762 | AS23: 2555.036762
A24: 109830 | D24: 12 Truck Radios | E24: 2013 | F24: 12 | G24: 0 | I24: S/L | J24: 7 | K24: 2020 | O24: =1101.59*12 -> 13219.08 | Q24: 13219.08 | R24: 157.37 | S24: 1888.44 | T24: 0 | U24: 1888.44 | V24: 1 | W24: 1888.44 | Y24: 5822.69 | Z24: 5822.69 | AA24: 1 | AB24: 5822.69 | AC24: 7711.13 | AD24: 6452.17 | AE24: 2013.916667 | AF24: 2018 | AG24: 2020.916667 | AH24: 2017 | AI24: -0.08333333333 | AK24: 0 | AM24: 1888.44 | AO24: 0 | AQ24: 0 | AS24: 6452.17
A25: 126399 | B25: RL | C25: 5012 | D25: 2016 REL Truck | E25: 2015 | F25: 10 | G25: 0.2 | I25: S/L | J25: 7 | K25: 2022 | O25: =218205.58+9591.24 -> 227796.82 | Q25: 182237.456 | R25: 2169.493524 | S25: 26033.92229 | T25: 0 | U25: 26033.92229 | V25: 1 | W25: 26033.92229 | Y25: 32542.40286 | Z25: 32542.40286 | AA25: 1 | AB25: 32542.40286 | AC25: 58576.32514 | AD25: 182237.456 | AE25: 2015.75 | AF25: 2018 | AG25: 2022.75 | AH25: 2017 | AI25: -0.08333333333 | AK25: 7923.367652 | AM25: 33957.28994 | AO25: 0 | AQ25: 178275.7722 | AS25: 178275.7722
A26: 126583 | C26: 5012 | D26: Drive Cam Replacement | E26: 2015 | F26: 10 | G26: 0 | I26: S/L | J26: 7 | K26: 2022 | O26: 639.85 | Q26: 639.85 | R26: 7.617261905 | S26: 91.40714286 | T26: 0 | U26: 91.40714286 | V26: 1 | W26: 91.40714286 | Y26: 114.2589286 | Z26: 114.2589286 | AA26: 1 | AB26: 114.2589286 | AC26: 205.6660714 | AD26: 479.8875 | AE26: 2015.75 | AF26: 2018 | AG26: 2022.75 | AH26: 2017 | AI26: -0.08333333333 | AK26: 0 | AM26: 91.40714286 | AO26: 0 | AQ26: 0 | AS26: 479.8875
AK27: 0 | AM27: 0 | AO27: 0 | AQ27: 0 | AS27: 0
A28: 132131 132501 | B28: RL | D28: 2016 REL Truck (N) | E28: 2016 | F28: 3 | G28: 0 | I28: S/L | J28: 10 | K28: =E28+J28 -> 2026 | O28: =276355.27+605.92 -> 276961.19 | Q28: =O28-O28*G28 -> 276961.19 | R28: =Q28/J28/12 -> 2308.009917 | S28: =IF(P28>0,0,IF(OR(AE28>AF28,AG28<AH28),0,IF(AND(AG28>=AH28,AG28<=AF28),R28*((AG28-AH28)*12),IF(AND(AH28<=AE28,AF28>=AE28),((AF28-AE28)*12)*R28,IF(AG28>AF28,12*R28,0))))) -> 27696.119 | T28: =IF(P28=0,0,IF(AND(AI28>=AH28,AI28<=AG28),((AI28-AH28)*12)*R28,0)) -> 0 | U28: =IF(T28>0,T28,S28) -> 27696.119 | V28: 1 | W28: =V28*SUM(S28:T28) -> 27696.119 | Y28: =IF(AE28>AF28,0,IF(AG28<AH28,Q28,IF(AND(AG28>=AH28,AG28<=AF28),(Q28-U28),IF(AND(AH28<=AE28,AF28>=AE28),0,IF(AG28>AF28,((AH28-AE28)*12)*R28,0))))) -> 23080.09917 | Z28: =Y28*V28 -> 23080.09917 | AA28: 1 | AB28: =Z28*AA28 -> 23080.09917 | AC28: =IF(P28>0,0,AB28+W28*AA28)*AA28 -> 50776.21817 | AD28: =IF(P28>0,(O28-AB28)/2,IF(AE28>=AH28,(((O28*V28)*AA28)-AC28)/2,((((O28*V28)*AA28)-AB28)+(((O28*V28)*AA28)-AC28))/2)) -> 240033.0313 | AE28: =$E28+(($F28-1)/12) -> 2016.166667 | AF28: =($Q$5+1)-($Q$2/12) -> 2018 | AG28: =$K28+(($F28-1)/12) -> 2026.166667 | AH28: =$Q$4+($Q$3/12) -> 2017 | AI28: =$L28+(($M28-1)/12) -> -0.08333333333 | AK28: 0 | AM28: 27696.119 | AO28: 0 | AQ28: 0 | AS28: 240033.0313
A29: 131542 133018 139929 | D29: (10) Samsung Tablets | E29: 2016 | F29: 3 | G29: 0 | I29: S/L | J29: 1 | K29: =E29+J29 -> 2017 | O29: =2164.89+2769.44+671.24 -> 5605.57 | Q29: =O29-O29*G29 -> 5605.57 | R29: =Q29/J29/12 -> 467.1308333 | S29: =IF(P29>0,0,IF(OR(AE29>AF29,AG29<AH29),0,IF(AND(AG29>=AH29,AG29<=AF29),R29*((AG29-AH29)*12),IF(AND(AH29<=AE29,AF29>=AE29),((AF29-AE29)*12)*R29,IF(AG29>AF29,12*R29,0))))) -> 934.2616667 | T29: =IF(P29=0,0,IF(AND(AI29>=AH29,AI29<=AG29),((AI29-AH29)*12)*R29,0)) -> 0 | U29: =IF(T29>0,T29,S29) -> 934.2616667 | V29: 1 | W29: =V29*SUM(S29:T29) -> 934.2616667 | Y29: =IF(AE29>AF29,0,IF(AG29<AH29,Q29,IF(AND(AG29>=AH29,AG29<=AF29),(Q29-U29),IF(AND(AH29<=AE29,AF29>=AE29),0,IF(AG29>AF29,((AH29-AE29)*12)*R29,0))))) -> 4671.308333 | Z29: =Y29*V29 -> 4671.308333 | AA29: 1 | AB29: =Z29*AA29 -> 4671.308333 | AC29: =IF(P29>0,0,AB29+W29*AA29)*AA29 -> 5605.57 | AD29: =IF(P29>0,(O29-AB29)/2,IF(AE29>=AH29,(((O29*V29)*AA29)-AC29)/2,((((O29*V29)*AA29)-AB29)+(((O29*V29)*AA29)-AC29))/2)) -> 467.1308333 | AE29: =$E29+(($F29-1)/12) -> 2016.166667 | AF29: =($Q$5+1)-($Q$2/12) -> 2018 | AG29: =$K29+(($F29-1)/12) -> 2017.166667 | AH29: =$Q$4+($Q$3/12) -> 2017 | AI29: =$L29+(($M29-1)/12) -> -0.08333333333 | AK29: 0 | AM29: 934.2616667 | AO29: 0 | AQ29: 0 | AS29: 467.1308333
A30: 170969 | C30: 5022 | D30: Container Delivery Truck (N) | E30: 2016 | F30: 12 | G30: 0 | I30: S/L | J30: 10 | K30: =E30+J30 -> 2026 | O30: 59020.72 | Q30: =O30-O30*G30 -> 59020.72 | R30: =Q30/J30/12 -> 491.8393333 | S30: =IF(P30>0,0,IF(OR(AE30>AF30,AG30<AH30),0,IF(AND(AG30>=AH30,AG30<=AF30),R30*((AG30-AH30)*12),IF(AND(AH30<=AE30,AF30>=AE30),((AF30-AE30)*12)*R30,IF(AG30>AF30,12*R30,0))))) -> 5902.072 | T30: =IF(P30=0,0,IF(AND(AI30>=AH30,AI30<=AG30),((AI30-AH30)*12)*R30,0)) -> 0 | U30: =IF(T30>0,T30,S30) -> 5902.072 | V30: 1 | W30: =V30*SUM(S30:T30) -> 5902.072 | Y30: =IF(AE30>AF30,0,IF(AG30<AH30,Q30,IF(AND(AG30>=AH30,AG30<=AF30),(Q30-U30),IF(AND(AH30<=AE30,AF30>=AE30),0,IF(AG30>AF30,((AH30-AE30)*12)*R30,0))))) -> 491.8393333 | Z30: =Y30*V30 -> 491.8393333 | AA30: 1 | AB30: =Z30*AA30 -> 491.8393333 | AC30: =IF(P30>0,0,AB30+W30*AA30)*AA30 -> 6393.911333 | AD30: =IF(P30>0,(O30-AB30)/2,IF(AE30>=AH30,(((O30*V30)*AA30)-AC30)/2,((((O30*V30)*AA30)-AB30)+(((O30*V30)*AA30)-AC30))/2)) -> 55577.84467 | AE30: =$E30+(($F30-1)/12) -> 2016.916667 | AF30: =($Q$5+1)-($Q$2/12) -> 2018 | AG30: =$K30+(($F30-1)/12) -> 2026.916667 | AH30: =$Q$4+($Q$3/12) -> 2017 | AI30: =$L30+(($M30-1)/12) -> -0.08333333333 | AK30: 0 | AM30: 5902.072 | AO30: 0 | AQ30: 0 | AS30: 55577.84467
A31: 172661 | C31: 5022 | D31: 2 Way radio for Container Del Truck | E31: 2017 | F31: 1 | G31: 0 | I31: S/L | J31: 5 | K31: =E31+J31 -> 2022 | O31: 1113.7 | Q31: =O31-O31*G31 -> 1113.7 | R31: =Q31/J31/12 -> 18.56166667 | S31: =IF(P31>0,0,IF(OR(AE31>AF31,AG31<AH31),0,IF(AND(AG31>=AH31,AG31<=AF31),R31*((AG31-AH31)*12),IF(AND(AH31<=AE31,AF31>=AE31),((AF31-AE31)*12)*R31,IF(AG31>AF31,12*R31,0))))) -> 222.74 | T31: =IF(P31=0,0,IF(AND(AI31>=AH31,AI31<=AG31),((AI31-AH31)*12)*R31,0)) -> 0 | U31: =IF(T31>0,T31,S31) -> 222.74 | V31: 1 | W31: =V31*SUM(S31:T31) -> 222.74 | Y31: =IF(AE31>AF31,0,IF(AG31<AH31,Q31,IF(AND(AG31>=AH31,AG31<=AF31),(Q31-U31),IF(AND(AH31<=AE31,AF31>=AE31),0,IF(AG31>AF31,((AH31-AE31)*12)*R31,0))))) -> 0 | Z31: =Y31*V31 -> 0 | AA31: 1 | AB31: =Z31*AA31 -> 0 | AC31: =IF(P31>0,0,AB31+W31*AA31)*AA31 -> 222.74 | AD31: =IF(P31>0,(O31-AB31)/2,IF(AE31>=AH31,(((O31*V31)*AA31)-AC31)/2,((((O31*V31)*AA31)-AB31)+(((O31*V31)*AA31)-AC31))/2)) -> 445.48 | AE31: =$E31+(($F31-1)/12) -> 2017 | AF31: =($Q$5+1)-($Q$2/12) -> 2018 | AG31: =$K31+(($F31-1)/12) -> 2022 | AH31: =$Q$4+($Q$3/12) -> 2017 | AI31: =$L31+(($M31-1)/12) -> -0.08333333333 | AK31: 0 | AM31: 222.74 | AO31: 0 | AQ31: 0 | AS31: 445.48
A32: 187422, 187423 | D32: 2009 Murrey's Pre-Ordered REL Truck | E32: 2009 | F32: 3 | G32: 0 | I32: S/L | J32: 10 | K32: =E32+J32 -> 2019 | O32: 175471.9 | Q32: =O32-O32*G32 -> 175471.9 | R32: =Q32/J32/12 -> 1462.265833 | S32: =IF(P32>0,0,IF(OR(AE32>AF32,AG32<AH32),0,IF(AND(AG32>=AH32,AG32<=AF32),R32*((AG32-AH32)*12),IF(AND(AH32<=AE32,AF32>=AE32),((AF32-AE32)*12)*R32,IF(AG32>AF32,12*R32,0))))) -> 17547.19 | T32: =IF(P32=0,0,IF(AND(AI32>=AH32,AI32<=AG32),((AI32-AH32)*12)*R32,0)) -> 0 | U32: =IF(T32>0,T32,S32) -> 17547.19 | V32: 1 | W32: =V32*SUM(S32:T32) -> 17547.19 | Y32: =IF(AE32>AF32,0,IF(AG32<AH32,Q32,IF(AND(AG32>=AH32,AG32<=AF32),(Q32-U32),IF(AND(AH32<=AE32,AF32>=AE32),0,IF(AG32>AF32,((AH32-AE32)*12)*R32,0))))) -> 137452.9883 | Z32: =Y32*V32 -> 137452.9883 | AA32: 1 | AB32: =Z32*AA32 -> 137452.9883 | AC32: =IF(P32>0,0,AB32+W32*AA32)*AA32 -> 155000.1783 | AD32: =IF(P32>0,(O32-AB32)/2,IF(AE32>=AH32,(((O32*V32)*AA32)-AC32)/2,((((O32*V32)*AA32)-AB32)+(((O32*V32)*AA32)-AC32))/2)) -> 29245.31667 | AE32: =$E32+(($F32-1)/12) -> 2009.166667 | AF32: =($Q$5+1)-($Q$2/12) -> 2018 | AG32: =$K32+(($F32-1)/12) -> 2019.166667 | AH32: =$Q$4+($Q$3/12) -> 2017 | AI32: =$L32+(($M32-1)/12) -> -0.08333333333
D36: Total | O36: =SUM(O12:O35) -> 1940590.98 | Q36: =SUM(Q12:Q35) -> 1650070.134 | R36: =SUM(R12:R35) -> 18625.79052 | S36: =SUM(S12:S35) -> 80719.57895 | W36: =SUM(W12:W35) -> 80719.57895 | AB36: =SUM(AB12:AB35) -> 1139572.828 | AC36: =SUM(AC12:AC35) -> 1220292.407 | AD36: =SUM(AD12:AD35) -> 760101.5127 | AK36: =SUM(AK12:AK35) -> 89577.19509 | AM36: 152749.584 | AO36: -242137.4943 | AQ36: 180830.8089 | AS36: 484286.3533
D38: Roll-off
B39: RO | C39: 5036 | D39: 2007 Sterln LT9600 (N) | E39: 2007 | F39: 2 | G39: 0.2 | I39: S/L | J39: 7 | K39: =E39+J39 -> 2014 | N39: =O39-Q39 -> 27729.562 | O39: =101002.46+37645.35 -> 138647.81 | Q39: =O39-O39*G39 -> 110918.248 | R39: =Q39/J39/12 -> 1320.455333 | S39: =IF(P39>0,0,IF(OR(AE39>AF39,AG39<AH39),0,IF(AND(AG39>=AH39,AG39<=AF39),R39*((AG39-AH39)*12),IF(AND(AH39<=AE39,AF39>=AE39),((AF39-AE39)*12)*R39,IF(AG39>AF39,12*R39,0))))) -> 0 | T39: =IF(P39=0,0,IF(AND(AI39>=AH39,AI39<=AG39),((AI39-AH39)*12)*R39,0)) -> 0 | U39: =IF(T39>0,T39,S39) -> 0 | V39: 1 | W39: =V39*SUM(S39:T39) -> 0 | Y39: =IF(AE39>AF39,0,IF(AG39<AH39,Q39,IF(AND(AG39>=AH39,AG39<=AF39),(Q39-U39),IF(AND(AH39<=AE39,AF39>=AE39),0,IF(AG39>AF39,((AH39-AE39)*12)*R39,0))))) -> 110918.248 | Z39: =Y39*V39 -> 110918.248 | AA39: 1 | AB39: =Z39*AA39 -> 110918.248 | AC39: =IF(P39>0,0,AB39+W39*AA39)*AA39 -> 110918.248 | AD39: =IF(P39>0,(O39-AB39)/2,IF(AE39>=AH39,(((O39*V39)*AA39)-AC39)/2,((((O39*V39)*AA39)-AB39)+(((O39*V39)*AA39)-AC39))/2)) -> 27729.562 | AE39: =$E39+(($F39-1)/12) -> 2007.083333 | AF39: =($Q$5+1)-($Q$2/12) -> 2018 | AG39: =$K39+(($F39-1)/12) -> 2014.083333 | AH39: =$Q$4+($Q$3/12) -> 2017 | AI39: =$L39+(($M39-1)/12) -> -0.08333333333 | AK39: =+IF((AG39-AH39)>3,((O39-Q39)/(AG39-AH39)),(O39-Q39)/3) -> 9243.187333 | AM39: =+AK39+U39 -> 9243.187333 | AO39: =+IF(AG39<AH39,-AD39,0) -> -27729.562 | AQ39: =IF(AG39>AH39,IF(AK39>0,IF(P39>0,(O39-AB39)/2,IF(AE39>=AH39,(((O39*V39)*AA39)-AC39)/2,((((O39*V39)*AA39)-AB39)+(((O39*V39)*AA39)-AC39))/2)),0),0) -> 0 | AS39: =+AD39+AO39+(IF(AQ39>0,(AQ39-AD39),0)) -> 0
B40: RO | C40: 5037 | D40: 2007 Sterln LT9600 (N) | E40: 2007 | F40: 6 | G40: 0.2 | I40: S/L | J40: 7 | K40: 2014 | N40: =O40-Q40 -> 27162.964 | O40: =98438.63+37376.19 -> 135814.82 | Q40: 108651.856 | R40: 1293.474476 | S40: 0 | T40: 0 | U40: 0 | V40: 1 | W40: 0 | Y40: 108651.856 | Z40: 108651.856 | AA40: 1 | AB40: 108651.856 | AC40: 108651.856 | AD40: 27162.964 | AE40: 2007.416667 | AF40: 2018 | AG40: 2014.416667 | AH40: 2017 | AI40: -0.08333333333 | AK40: =+IF((AG40-AH40)>3,((O40-Q40)/(AG40-AH40)),(O40-Q40)/3) -> 9054.321333 | AM40: =+AK40+U40 -> 9054.321333 | AO40: =+IF(AG40<AH40,-AD40,0) -> -27162.964 | AQ40: 0 | AS40: =+AD40+AO40+(IF(AQ40>0,(AQ40-AD40),0)) -> 0
B41: RO | D41: Drive Cam (4) | E41: 2010 | F41: 5 | G41: 0.2 | I41: S/L | J41: 7 | K41: 2017 | N41: =O41-Q41 -> 869.6 | O41: 4348 | Q41: 3478.4 | R41: 41.40952381 | S41: 165.6380952 | T41: 0 | U41: 165.6380952 | V41: 1 | W41: 165.6380952 | Y41: 3312.761905 | Z41: 3312.761905 | AA41: 1 | AB41: 3312.761905 | AC41: 3478.4 | AD41: 952.4190476 | AE41: 2010.333333 | AF41: 2018 | AG41: 2017.333333 | AH41: 2017 | AI41: -0.08333333333 | AK41: 289.8666667 | AM41: 455.5047619 | AO41: 0 | AQ41: 952.4190476 | AS41: 952.4190476
A42: 109830 | D42: 3 Truck Radios | E42: 2013 | F42: 12 | G42: 0 | I42: S/L | J42: 7 | K42: 2020 | O42: =1101.59*3 -> 3304.77 | Q42: 3304.77 | R42: 39.3425 | S42: 472.11 | T42: 0 | U42: 472.11 | V42: 1 | W42: 472.11 | Y42: 1455.6725 | Z42: 1455.6725 | AA42: 1 | AB42: 1455.6725 | AC42: 1927.7825 | AD42: 1613.0425 | AE42: 2013.916667 | AF42: 2018 | AG42: 2020.916667 | AH42: 2017 | AI42: -0.08333333333 | AK42: 0 | AM42: 472.11 | AO42: 0 | AQ42: 0 | AS42: 1613.0425
A43: 115085 | B43: RO | C43: 5036 | D43: RO Tarper #5036 | E43: 2014 | F43: 8 | G43: 0 | I43: S/L | J43: 3 | K43: 2017 | O43: 6532.56 | Q43: 6532.56 | R43: 181.46 | S43: 1270.22 | T43: 0 | U43: 1270.22 | V43: 1 | W43: 1270.22 | Y43: 5262.34 | Z43: 5262.34 | AA43: 1 | AB43: 5262.34 | AC43: 6532.56 | AD43: 635.11 | AE43: 2014.583333 | AF43: 2018 | AG43: 2017.583333 | AH43: 2017 | AI43: -0.08333333333 | AK43: 0 | AM43: 1270.22 | AO43: 0 | AQ43: 0 | AS43: 635.11
A44: 119112 | B44: RO | C44: 5033 | D44: Improvement- Auto Tarper | E44: 2015 | F44: 1 | G44: 0 | I44: S/L | J44: 3 | K44: 2018 | O44: 5011.71 | Q44: 5011.71 | R44: 139.2141667 | S44: 1670.57 | T44: 0 | U44: 1670.57 | V44: 1 | W44: 1670.57 | Y44: 3341.14 | Z44: 3341.14 | AA44: 1 | AB44: 3341.14 | AC44: 5011.71 | AD44: 835.285 | AE44: 2015 | AF44: 2018 | AG44: 2018 | AH44: 2017 | AI44: -0.08333333333 | AK44: 0 | AM44: 1670.57 | AO44: 0 | AQ44: 0 | AS44: 835.285
A45: 119113 | B45: RO | C45: 5037 | D45: Improvement- Auto Tarper | E45: 2015 | F45: 1 | G45: 0 | I45: S/L | J45: 3 | K45: 2018 | O45: 5014.96 | Q45: 5014.96 | R45: 139.3044444 | S45: 1671.653333 | T45: 0 | U45: 1671.653333 | V45: 1 | W45: 1671.653333 | Y45: 3343.306667 | Z45: 3343.306667 | AA45: 1 | AB45: 3343.306667 | AC45: 5014.96 | AD45: 835.8266667 | AE45: 2015 | AF45: 2018 | AG45: 2018 | AH45: 2017 | AI45: -0.08333333333 | AK45: 0 | AM45: 1671.653333 | AO45: 0 | AQ45: 0 | AS45: 835.8266667
A46: 124719 | B46: RO | C46: 5037 | D46: Transmission | E46: 2015 | F46: 8 | G46: 0 | I46: S/L | J46: 3 | K46: 2018 | O46: 9352.18 | Q46: 9352.18 | R46: 259.7827778 | S46: 3117.393333 | T46: 0 | U46: 3117.393333 | V46: 1 | W46: 3117.393333 | Y46: 4416.307222 | Z46: 4416.307222 | AA46: 1 | AB46: 4416.307222 | AC46: 7533.700556 | AD46: 3377.176111 | AE46: 2015.583333 | AF46: 2018 | AG46: 2018.583333 | AH46: 2017 | AI46: -0.08333333333 | AK46: 0 | AM46: 3117.393333 | AO46: 0 | AQ46: 0 | AS46: 3377.176111
O48: =SUM(O39:O47) -> 308026.81 | Q48: =SUM(Q39:Q47) -> 252264.684 | R48: =SUM(R39:R47) -> 3414.443222 | S48: =SUM(S39:S47) -> 8367.584762 | U48: =SUM(U39:U47) -> 8367.584762 | W48: =SUM(W39:W47) -> 8367.584762 | Y48: =SUM(Y39:Y47) -> 240701.6323 | Z48: =SUM(Z39:Z47) -> 240701.6323 | AB48: =SUM(AB39:AB47) -> 240701.6323 | AC48: =SUM(AC39:AC47) -> 249069.2171 | AD48: =SUM(AD39:AD47) -> 63141.38533 | AK48: =SUM(AK39:AK47) -> 18587.37533 | AM48: 26954.9601 | AO48: -54892.526 | AQ48: 952.4190476 | AS48: 8248.859325
O50: =O36+O48 -> 2248617.79 | Q50: =Q36+Q48 -> 1902334.818 | R50: =R36+R48 -> 22040.23374 | S50: =S36+S48 -> 89087.16371 | U50: =U36+U48 -> 8367.584762 | W50: =W36+W48 -> 89087.16371 | Y50: =Y36+Y48 -> 240701.6323 | Z50: =Z36+Z48 -> 240701.6323 | AB50: =AB36+AB48 -> 1380274.46 | AC50: =AC36+AC48 -> 1469361.624 | AD50: =AD36+AD48 -> 823242.8981 | AK50: =AK36+AK48 -> 108164.5704 | AM50: 179704.5441 | AO50: -297030.0203 | AQ50: 181783.228 | AS50: 492535.2126
B56: Fully Non-Regulated Trucks
B57: SL | C57: 3545 | D57: 1997 Volvo H (U) | E57: 2008 | F57: 11 | G57: 0.33 | I57: S/L | J57: 5 | K57: =E57+J57 -> 2013 | O57: 18500 | Q57: =O57-O57*G57 -> 12395 | R57: =Q57/J57/12 -> 206.5833333 | S57: =IF(P57>0,0,IF(OR(AE57>AF57,AG57<AH57),0,IF(AND(AG57>=AH57,AG57<=AF57),R57*((AG57-AH57)*12),IF(AND(AH57<=AE57,AF57>=AE57),((AF57-AE57)*12)*R57,IF(AG57>AF57,12*R57,0))))) -> 0 | T57: =IF(P57=0,0,IF(AND(AI57>=AH57,AI57<=AG57),((AI57-AH57)*12)*R57,0)) -> 0 | U57: =IF(T57>0,T57,S57) -> 0 | V57: 1 | W57: =V57*SUM(S57:T57) -> 0 | Y57: =IF(AE57>AF57,0,IF(AG57<AH57,Q57,IF(AND(AG57>=AH57,AG57<=AF57),(Q57-U57),IF(AND(AH57<=AE57,AF57>=AE57),0,IF(AG57>AF57,((AH57-AE57)*12)*R57,0))))) -> 12395 | Z57: =Y57*V57 -> 12395 | AA57: 1 | AB57: =Z57*AA57 -> 12395 | AC57: =IF(P57>0,0,AB57+W57*AA57)*AA57 -> 12395 | AD57: =IF(P57>0,(O57-AB57)/2,IF(AE57>=AH57,(((O57*V57)*AA57)-AC57)/2,((((O57*V57)*AA57)-AB57)+(((O57*V57)*AA57)-AC57))/2)) -> 6105 | AE57: =$E57+(($F57-1)/12) -> 2008.833333 | AF57: =($Q$5+1)-($Q$2/12) -> 2018 | AG57: =$K57+(($F57-1)/12) -> 2013.833333 | AH57: =$Q$4+($Q$3/12) -> 2017 | AI57: =$L57+(($M57-1)/12) -> -0.08333333333 | AK57: =+IF((AG57-AH57)>3,((O57-Q57)/(AG57-AH57)),(O57-Q57)/3) -> 2035 | AM57: =+AK57+U57 -> 2035 | AO57: =+IF(AG57<AH57,-AD57,0) -> -6105 | AQ57: =IF(AG57>AH57,IF(AK57>0,IF(P57>0,(O57-AB57)/2,IF(AE57>=AH57,(((O57*V57)*AA57)-AC57)/2,((((O57*V57)*AA57)-AB57)+(((O57*V57)*AA57)-AC57))/2)),0),0) -> 0 | AS57: =+AD57+AO57+(IF(AQ57>0,(AQ57-AD57),0)) -> 0
B58: SL | C58: 3547 | D58: 1998 Volvo H (U) | E58: 2008 | F58: 11 | G58: 0.33 | I58: S/L | J58: 5 | K58: 2013 | O58: 18500 | Q58: 12395 | R58: 206.5833333 | S58: 0 | T58: 0 | U58: 0 | V58: 1 | W58: 0 | Y58: 12395 | Z58: 12395 | AA58: 1 | AB58: 12395 | AC58: 12395 | AD58: 6105 | AE58: 2008.833333 | AF58: =($Q$5+1)-($Q$2/12) -> 2018 | AG58: 2013.833333 | AH58: =$Q$4+($Q$3/12) -> 2017 | AI58: -0.08333333333 | AK58: =+IF((AG58-AH58)>3,((O58-Q58)/(AG58-AH58)),(O58-Q58)/3) -> 2035 | AM58: =+AK58+U58 -> 2035 | AO58: =+IF(AG58<AH58,-AD58,0) -> -6105 | AQ58: 0 | AS58: =+AD58+AO58+(IF(AQ58>0,(AQ58-AD58),0)) -> 0
A59: 109830 | D59: 4 Truck Radios | E59: 2013 | F59: 12 | G59: 0 | I59: S/L | J59: 7 | K59: 2020 | O59: =1101.59*4 -> 4406.36 | Q59: 4406.36 | R59: 52.45666667 | S59: 629.48 | T59: 0 | U59: 629.48 | V59: 1 | W59: 629.48 | Y59: 1940.896667 | Z59: 1940.896667 | AA59: 1 | AB59: 1940.896667 | AC59: 2570.376667 | AD59: 2150.723333 | AE59: 2013.916667 | AF59: =($Q$5+1)-($Q$2/12) -> 2018 | AG59: 2020.916667 | AH59: =$Q$4+($Q$3/12) -> 2017 | AI59: -0.08333333333 | AK59: 0 | AM59: 629.48 | AO59: 0 | AQ59: 0 | AS59: 2150.723333
A60: 118075 | B60: ASL | C60: 5011 | D60: 2006 Peterbilt ASL (U) | E60: 2014 | F60: 12 | G60: 0.33 | I60: S/L | J60: 5 | K60: 2019 | O60: 172742.39 | Q60: 115737.4013 | R60: 1928.956688 | S60: 23147.48026 | T60: 0 | U60: 23147.48026 | V60: 1 | W60: 23147.48026 | Y60: 48223.91721 | Z60: 48223.91721 | AA60: 1 | AB60: 48223.91721 | AC60: 71371.39747 | AD60: 112944.7327 | AE60: 2014.916667 | AF60: =($Q$5+1)-($Q$2/12) -> 2018 | AG60: 2019.916667 | AH60: =$Q$4+($Q$3/12) -> 2017 | AI60: -0.08333333333 | AK60: 19001.6629 | AM60: 42149.14316 | AO60: 0 | AQ60: 112944.7327 | AS60: 112944.7327
C61: 130761 | D61: 2009 53' Trailer | E61: 2016 | F61: 3 | G61: 0 | I61: S/L | J61: 3 | K61: 2019 | O61: 25087.2 | Q61: 25087.2 | R61: 696.8666667 | S61: 8362.4 | T61: 0 | U61: 8362.4 | V61: 1 | W61: 8362.4 | Y61: 6968.666667 | Z61: 6968.666667 | AA61: 1 | AB61: 6968.666667 | AC61: 15331.06667 | AD61: 13937.33333 | AE61: 2016.166667 | AF61: =('2144 Shop,Serv Orig'!$P$5+1)-('2144 Shop,Serv Orig'!$P$2/12) -> 2018 | AG61: 2019.166667 | AH61: ='2144 Shop,Serv Orig'!$P$4+('2144 Shop,Serv Orig'!$P$3/12) -> 2017 | AI61: -0.08333333333 | AK61: 0 | AM61: 8362.4 | AO61: 0 | AQ61: 0 | AS61: 13937.33333
A62: 181716 | B62: Trct | D62: 2000 Kenworth T800 | E62: 2002 | F62: 8 | G62: 0 | I62: S/L | J62: 6 | K62: 2008 | O62: 65000 | Q62: 65000 | R62: 902.7777778 | S62: 0 | T62: 0 | U62: 0 | V62: 1 | W62: 0 | Y62: 65000 | Z62: 65000 | AA62: 1 | AB62: 65000 | AC62: 65000 | AD62: 0 | AE62: 2002.583333 | AF62: =('2144 Shop,Serv Orig'!$P$5+1)-('2144 Shop,Serv Orig'!$P$2/12) -> 2018 | AG62: 2008.583333 | AH62: ='2144 Shop,Serv Orig'!$P$4+('2144 Shop,Serv Orig'!$P$3/12) -> 2017 | AI62: -0.08333333333 | AK62: 0 | AM62: 0 | AO62: 0 | AQ62: 0 | AS62: 0
A63: 181717/181718 | B63: Trct | C63: 5002 | D63: Engine Repair on 2000 Kenworth | E63: 2009 | F63: 10 | G63: 0 | I63: S/L | J63: 3 | K63: 2012 | O63: =13302.3+13879.68 -> 27181.98 | Q63: 27181.98 | R63: 755.055 | S63: 0 | T63: 0 | U63: 0 | V63: 1 | W63: 0 | Y63: 27181.98 | Z63: 27181.98 | AA63: 1 | AB63: 27181.98 | AC63: 27181.98 | AD63: 0 | AE63: 2009.75 | AF63: =('2144 Shop,Serv Orig'!$P$5+1)-('2144 Shop,Serv Orig'!$P$2/12) -> 2018 | AG63: 2012.75 | AH63: ='2144 Shop,Serv Orig'!$P$4+('2144 Shop,Serv Orig'!$P$3/12) -> 2017 | AI63: -0.08333333333 | AK63: 0 | AM63: 0 | AO63: 0 | AQ63: 0 | AS63: 0
A64: 187379, 190461 | D64: 2014 Road Tractor | E64: 2017 | F64: 10 | G64: 0 | I64: S/L | J64: 6 | K64: 2023 | O64: =95178+864.17 -> 96042.17 | Q64: =O64-O64*G64 -> 96042.17 | R64: =Q64/J64/12 -> 1333.919028 | S64: =IF(P64>0,0,IF(OR(AE64>AF64,AG64<AH64),0,IF(AND(AG64>=AH64,AG64<=AF64),R64*((AG64-AH64)*12),IF(AND(AH64<=AE64,AF64>=AE64),((AF64-AE64)*12)*R64,IF(AG64>AF64,12*R64,0))))) -> 4001.757083 | T64: =IF(P64=0,0,IF(AND(AI64>=AH64,AI64<=AG64),((AI64-AH64)*12)*R64,0)) -> 0 | U64: =IF(T64>0,T64,S64) -> 4001.757083 | V64: 1 | W64: =V64*SUM(S64:T64) -> 4001.757083 | Y64: =IF(AE64>AF64,0,IF(AG64<AH64,Q64,IF(AND(AG64>=AH64,AG64<=AF64),(Q64-U64),IF(AND(AH64<=AE64,AF64>=AE64),0,IF(AG64>AF64,((AH64-AE64)*12)*R64,0))))) -> 0 | Z64: =Y64*V64 -> 0 | AA64: 1 | AB64: =Z64*AA64 -> 0 | AC64: =IF(P64>0,0,AB64+W64*AA64)*AA64 -> 4001.757083 | AD64: =IF(P64>0,(O64-AB64)/2,IF(AE64>=AH64,(((O64*V64)*AA64)-AC64)/2,((((O64*V64)*AA64)-AB64)+(((O64*V64)*AA64)-AC64))/2)) -> 46020.20646 | AE64: 2017.75 | AF64: =('2144 Shop,Serv Orig'!$P$5+1)-('2144 Shop,Serv Orig'!$P$2/12) -> 2018 | AG64: 2023.75 | AH64: ='2144 Shop,Serv Orig'!$P$4+('2144 Shop,Serv Orig'!$P$3/12) -> 2017 | AI64: -0.08333333333
A65: 186154 | D65: 2018 ASL Truck | E65: 2017 | F65: 9 | G65: 0 | I65: S/L | J65: 10 | K65: 2027 | O65: 341677.84 | Q65: =O65-O65*G65 -> 341677.84 | R65: =Q65/J65/12 -> 2847.315333 | S65: =IF(P65>0,0,IF(OR(AE65>AF65,AG65<AH65),0,IF(AND(AG65>=AH65,AG65<=AF65),R65*((AG65-AH65)*12),IF(AND(AH65<=AE65,AF65>=AE65),((AF65-AE65)*12)*R65,IF(AG65>AF65,12*R65,0))))) -> 11389.26133 | T65: =IF(P65=0,0,IF(AND(AI65>=AH65,AI65<=AG65),((AI65-AH65)*12)*R65,0)) -> 0 | U65: =IF(T65>0,T65,S65) -> 11389.26133 | V65: 1 | W65: =V65*SUM(S65:T65) -> 11389.26133 | Y65: =IF(AE65>AF65,0,IF(AG65<AH65,Q65,IF(AND(AG65>=AH65,AG65<=AF65),(Q65-U65),IF(AND(AH65<=AE65,AF65>=AE65),0,IF(AG65>AF65,((AH65-AE65)*12)*R65,0))))) -> 0 | Z65: =Y65*V65 -> 0 | AA65: 1 | AB65: =Z65*AA65 -> 0 | AC65: =IF(P65>0,0,AB65+W65*AA65)*AA65 -> 11389.26133 | AD65: =IF(P65>0,(O65-AB65)/2,IF(AE65>=AH65,(((O65*V65)*AA65)-AC65)/2,((((O65*V65)*AA65)-AB65)+(((O65*V65)*AA65)-AC65))/2)) -> 165144.2893 | AE65: 2017.666667 | AF65: =('2144 Shop,Serv Orig'!$P$5+1)-('2144 Shop,Serv Orig'!$P$2/12) -> 2018 | AG65: 2027.666667 | AH65: ='2144 Shop,Serv Orig'!$P$4+('2144 Shop,Serv Orig'!$P$3/12) -> 2017 | AI65: -0.08333333333
A66: 186154, 188087 | D66: Radio System for ASL | E66: 2017 | F66: 10 | G66: 0 | I66: S/L | J66: 5 | K66: 2022 | O66: 1002.38 | Q66: =O66-O66*G66 -> 1002.38 | R66: =Q66/J66/12 -> 16.70633333 | S66: =IF(P66>0,0,IF(OR(AE66>AF66,AG66<AH66),0,IF(AND(AG66>=AH66,AG66<=AF66),R66*((AG66-AH66)*12),IF(AND(AH66<=AE66,AF66>=AE66),((AF66-AE66)*12)*R66,IF(AG66>AF66,12*R66,0))))) -> 50.119 | T66: =IF(P66=0,0,IF(AND(AI66>=AH66,AI66<=AG66),((AI66-AH66)*12)*R66,0)) -> 0 | U66: =IF(T66>0,T66,S66) -> 50.119 | V66: 1 | W66: =V66*SUM(S66:T66) -> 50.119 | Y66: =IF(AE66>AF66,0,IF(AG66<AH66,Q66,IF(AND(AG66>=AH66,AG66<=AF66),(Q66-U66),IF(AND(AH66<=AE66,AF66>=AE66),0,IF(AG66>AF66,((AH66-AE66)*12)*R66,0))))) -> 0 | Z66: =Y66*V66 -> 0 | AA66: 1 | AB66: =Z66*AA66 -> 0 | AC66: =IF(P66>0,0,AB66+W66*AA66)*AA66 -> 50.119 | AD66: =IF(P66>0,(O66-AB66)/2,IF(AE66>=AH66,(((O66*V66)*AA66)-AC66)/2,((((O66*V66)*AA66)-AB66)+(((O66*V66)*AA66)-AC66))/2)) -> 476.1305 | AE66: 2017.75 | AF66: =('2144 Shop,Serv Orig'!$P$5+1)-('2144 Shop,Serv Orig'!$P$2/12) -> 2018 | AG66: 2022.75 | AH66: ='2144 Shop,Serv Orig'!$P$4+('2144 Shop,Serv Orig'!$P$3/12) -> 2017 | AI66: -0.08333333333
D68: Total Trucks | O68: =SUM(O57:O67) -> 770140.32 | Q68: =SUM(Q57:Q67) -> 700925.3313 | R68: 8947.220161 | S68: 47580.49768 | T68: 0 | U68: 47580.49768 | V68: 10 | W68: 47580.49768 | X68: 0 | Y68: 174105.4605 | Z68: 174105.4605 | AA68: 10 | AB68: 174105.4605 | AC68: 221685.9582 | AD68: 352883.4156 | AK68: =SUM(AK57:AK63) -> 23071.6629 | AM68: =SUM(AM57:AM63) -> 55211.02316 | AO68: =SUM(AO57:AO63) -> -12210 | AQ68: =SUM(AQ57:AQ63) -> 112944.7327 | AS68: =SUM(AS57:AS63) -> 129032.7893
O70: =+O68+O50 -> 3018758.11 | Q70: =+Q68+Q50 -> 2603260.149 | R70: =+R68+R50 -> 30987.4539 | S70: =+S68+S50 -> 136667.6614 | U70: =+U68+U50 -> 55948.08244 | W70: =+W68+W50 -> 136667.6614 | Y70: =+Y68+Y50 -> 414807.0928 | Z70: =+Z68+Z50 -> 414807.0928 | AB70: =+AB68+AB50 -> 1554379.921 | AC70: =+AC68+AC50 -> 1691047.582 | AD70: =+AD68+AD50 -> 1176126.314 | AK70: =AK56+AK68 -> 23071.6629 | AM70: 55211.02316 | AO70: -12210 | AQ70: 112944.7327 | AS70: 129032.7893
D71: 5001 Rabenco Haul
K72: Fully Depreciated in 2016 | O72: =+SUMIF($K$12:$K$46,2016,$W$12:$W$50) -> 0
K73: Fully Depreciated in 2017 | O73: =+SUMIF($K$12:$K$46,2017,$W$12:$W$50) -> 2773.546619
O74: =+O72+O73 -> 2773.546619
D81: Retired/Transferred 2014
B82: RL | C82: 5004 | D82: 2000 Freightliner | E82: 1999 | F82: 11 | G82: 0.2 | I82: S/L | J82: 7 | K82: =E82+J82 -> 2006 | O82: 67418 | Q82: =O82-O82*G82 -> 53934.4 | R82: =Q82/J82/12 -> 642.0761905 | S82: =IF(P82>0,0,IF(OR(AE82>AF82,AG82<AH82),0,IF(AND(AG82>=AH82,AG82<=AF82),R82*((AG82-AH82)*12),IF(AND(AH82<=AE82,AF82>=AE82),((AF82-AE82)*12)*R82,IF(AG82>AF82,12*R82,0))))) -> 0 | T82: =IF(P82=0,0,IF(AND(AI82>=AH82,AI82<=AG82),((AI82-AH82)*12)*R82,0)) -> 0 | U82: =IF(T82>0,T82,S82) -> 0 | V82: 1 | W82: =V82*SUM(S82:T82) -> 0 | Y82: =IF(AE82>AF82,0,IF(AG82<AH82,Q82,IF(AND(AG82>=AH82,AG82<=AF82),(Q82-U82),IF(AND(AH82<=AE82,AF82>=AE82),0,IF(AG82>AF82,((AH82-AE82)*12)*R82,0))))) -> 53934.4 | Z82: =Y82*V82 -> 53934.4 | AA82: 1 | AB82: =Z82*AA82 -> 53934.4 | AC82: =IF(P82>0,0,AB82+W82*AA82)*AA82 -> 53934.4 | AD82: =IF(P82>0,(O82-AB82)/2,IF(AE82>=AH82,(((O82*V82)*AA82)-AC82)/2,((((O82*V82)*AA82)-AB82)+(((O82*V82)*AA82)-AC82))/2)) -> 13483.6 | AE82: =$E82+(($F82-1)/12) -> 1999.833333 | AF82: =($Q$5+1)-($Q$2/12) -> 2018 | AG82: =$K82+(($F82-1)/12) -> 2006.833333 | AH82: =$Q$4+($Q$3/12) -> 2017 | AI82: =$L82+(($M82-1)/12) -> -0.08333333333
B83: RL | C83: 5004 | D83: 20 yd Heil Pckr | E83: 1999 | F83: 5 | G83: 0.2 | I83: S/L | J83: 7 | K83: 2006 | O83: 30718 | Q83: 24574.4 | R83: 292.552381 | S83: 0 | T83: 0 | U83: 0 | V83: 1 | W83: 0 | Y83: 24574.4 | Z83: 24574.4 | AA83: 1 | AB83: 24574.4 | AC83: 24574.4 | AD83: 6143.6 | AE83: 1999.333333 | AF83: 2018 | AG83: 2006.333333 | AH83: 2017 | AI83: -0.08333333333
C84: 5018 | D84: 94 Volvo (less tires) | E84: 1994 | F84: 4 | G84: 0.2 | I84: S/L | J84: 7 | K84: 2001 | O84: =43063+25742 -> 68805 | Q84: 55044 | R84: 655.2857143 | S84: 0 | T84: 0 | U84: 0 | V84: 1 | W84: 0 | Y84: 55044 | Z84: 55044 | AA84: 1 | AB84: 55044 | AC84: 55044 | AD84: 13761 | AE84: 1994.25 | AF84: 2018 | AG84: 2001.25 | AH84: 2017 | AI84: -0.08333333333
B85: RO | C85: 5021 | D85: 90 Volvo Truck RO | E85: 1995 | F85: 4 | G85: 0.33 | I85: S/L | J85: 5 | K85: 2000 | O85: 32379 | Q85: 21693.93 | R85: 361.5655 | S85: 0 | T85: 0 | U85: 0 | V85: 1 | W85: 0 | Y85: 21693.93 | Z85: 21693.93 | AA85: 1 | AB85: 21693.93 | AC85: 21693.93 | AD85: 10685.07 | AE85: 1995.25 | AF85: 2018 | AG85: 2000.25 | AH85: 2017 | AI85: -0.08333333333
C86: 5020 | D86: 1989 Volvo | E86: 1997 | F86: 4 | G86: 0.33 | I86: S/L | J86: 5 | K86: 2002 | O86: 11545 | Q86: 7735.15 | R86: 128.9191667 | S86: 0 | T86: 0 | U86: 0 | V86: 1 | W86: 0 | Y86: 7735.15 | Z86: 7735.15 | AA86: 1 | AB86: 7735.15 | AC86: 7735.15 | AD86: 3809.85 | AE86: 1997.25 | AF86: 2018 | AG86: 2002.25 | AH86: 2017 | AI86: -0.08333333333
B87: RO | C87: 5021 | D87: Force Magnum RO system | E87: 1996 | F87: 7 | G87: 0.2 | I87: S/L | J87: 7 | K87: 2003 | O87: 25022 | Q87: 20017.6 | R87: 238.3047619 | S87: 0 | T87: 0 | U87: 0 | V87: 1 | W87: 0 | Y87: 20017.6 | Z87: 20017.6 | AA87: 1 | AB87: 20017.6 | AC87: 20017.6 | AD87: 5004.4 | AE87: 1996.5 | AF87: 2018 | AG87: 2003.5 | AH87: 2017 | AI87: -0.08333333333
B88: Trct | C88: 5001 | D88: 1987 Freightliner (U) | E88: 2001 | F88: 11 | G88: 0 | I88: S/L | J88: 5 | K88: 2006 | O88: 25000 | Q88: 25000 | R88: 416.6666667 | S88: 0 | T88: 0 | U88: 0 | V88: 1 | W88: 0 | Y88: 25000 | Z88: 25000 | AA88: 1 | AB88: 25000 | AC88: 25000 | AD88: 0 | AE88: 2001.833333 | AF88: 2018 | AG88: 2006.833333 | AH88: 2017 | AI88: -0.08333333333
B89: Trct | C89: 5001 | D89: Fleet Upgrade (Inframe) | E89: 2008 | F89: 7 | G89: 0 | I89: S/L | J89: 3 | K89: 2011 | O89: 17797.16 | Q89: 17797.16 | R89: 494.3655556 | S89: 0 | T89: 0 | U89: 0 | V89: 1 | W89: 0 | Y89: 17797.16 | Z89: 17797.16 | AA89: 1 | AB89: 17797.16 | AC89: 17797.16 | AD89: 0 | AE89: 2008.5 | AF89: 2018 | AG89: 2011.5 | AH89: 2017 | AI89: -0.08333333333
D92: Retired/Transferred 2016
B93: RL | C93: 5009 | D93: 1997 Freightliner | E93: 1997 | F93: 11 | G93: 0.2 | I93: S/L | J93: 7 | K93: =E93+J93 -> 2004 | O93: 58536 | Q93: =O93-O93*G93 -> 46828.8 | R93: =Q93/J93/12 -> 557.4857143 | S93: =IF(P93>0,0,IF(OR(AE93>AF93,AG93<AH93),0,IF(AND(AG93>=AH93,AG93<=AF93),R93*((AG93-AH93)*12),IF(AND(AH93<=AE93,AF93>=AE93),((AF93-AE93)*12)*R93,IF(AG93>AF93,12*R93,0))))) -> 0 | T93: =IF(P93=0,0,IF(AND(AI93>=AH93,AI93<=AG93),((AI93-AH93)*12)*R93,0)) -> 0 | U93: =IF(T93>0,T93,S93) -> 0 | V93: 1 | W93: =V93*SUM(S93:T93) -> 0 | Y93: =IF(AE93>AF93,0,IF(AG93<AH93,Q93,IF(AND(AG93>=AH93,AG93<=AF93),(Q93-U93),IF(AND(AH93<=AE93,AF93>=AE93),0,IF(AG93>AF93,((AH93-AE93)*12)*R93,0))))) -> 46828.8 | Z93: =Y93*V93 -> 46828.8 | AA93: 1 | AB93: =Z93*AA93 -> 46828.8 | AC93: =IF(P93>0,0,AB93+W93*AA93)*AA93 -> 46828.8 | AD93: =IF(P93>0,(O93-AB93)/2,IF(AE93>=AH93,(((O93*V93)*AA93)-AC93)/2,((((O93*V93)*AA93)-AB93)+(((O93*V93)*AA93)-AC93))/2)) -> 11707.2 | AE93: =$E93+(($F93-1)/12) -> 1997.833333 | AF93: =($Q$5+1)-($Q$2/12) -> 2018 | AG93: =$K93+(($F93-1)/12) -> 2004.833333 | AH93: =$Q$4+($Q$3/12) -> 2017 | AI93: =$L93+(($M93-1)/12) -> -0.08333333333
B94: RL | C94: 5009 | D94: 20 yd Heil Pckr | E94: 1998 | F94: 1 | G94: 0.2 | I94: S/L | J94: 7 | K94: =E94+J94 -> 2005 | O94: 28936 | Q94: =O94-O94*G94 -> 23148.8 | R94: =Q94/J94/12 -> 275.5809524 | S94: =IF(P94>0,0,IF(OR(AE94>AF94,AG94<AH94),0,IF(AND(AG94>=AH94,AG94<=AF94),R94*((AG94-AH94)*12),IF(AND(AH94<=AE94,AF94>=AE94),((AF94-AE94)*12)*R94,IF(AG94>AF94,12*R94,0))))) -> 0 | T94: =IF(P94=0,0,IF(AND(AI94>=AH94,AI94<=AG94),((AI94-AH94)*12)*R94,0)) -> 0 | U94: =IF(T94>0,T94,S94) -> 0 | V94: 1 | W94: =V94*SUM(S94:T94) -> 0 | Y94: =IF(AE94>AF94,0,IF(AG94<AH94,Q94,IF(AND(AG94>=AH94,AG94<=AF94),(Q94-U94),IF(AND(AH94<=AE94,AF94>=AE94),0,IF(AG94>AF94,((AH94-AE94)*12)*R94,0))))) -> 23148.8 | Z94: =Y94*V94 -> 23148.8 | AA94: 1 | AB94: =Z94*AA94 -> 23148.8 | AC94: =IF(P94>0,0,AB94+W94*AA94)*AA94 -> 23148.8 | AD94: =IF(P94>0,(O94-AB94)/2,IF(AE94>=AH94,(((O94*V94)*AA94)-AC94)/2,((((O94*V94)*AA94)-AB94)+(((O94*V94)*AA94)-AC94))/2)) -> 5787.2 | AE94: =$E94+(($F94-1)/12) -> 1998 | AF94: =($Q$5+1)-($Q$2/12) -> 2018 | AG94: =$K94+(($F94-1)/12) -> 2005 | AH94: =$Q$4+($Q$3/12) -> 2017 | AI94: =$L94+(($M94-1)/12) -> -0.08333333333
D97: Retired/Transferred 2017
B98: Trct | C98: 355 | D98: Engine Rebuild, Capital Repair | E98: 2012 | F98: 9 | G98: 0 | I98: S/L | J98: 3 | K98: =E98+J98 -> 2015 | O98: =10263.47+25500 -> 35763.47 | Q98: =O98-O98*G98 -> 35763.47 | R98: =Q98/J98/12 -> 993.4297222 | S98: =IF(P98>0,0,IF(OR(AE98>AF98,AG98<AH98),0,IF(AND(AG98>=AH98,AG98<=AF98),R98*((AG98-AH98)*12),IF(AND(AH98<=AE98,AF98>=AE98),((AF98-AE98)*12)*R98,IF(AG98>AF98,12*R98,0))))) -> 0 | T98: =IF(P98=0,0,IF(AND(AI98>=AH98,AI98<=AG98),((AI98-AH98)*12)*R98,0)) -> 0 | U98: =IF(T98>0,T98,S98) -> 0 | V98: 1 | W98: =V98*SUM(S98:T98) -> 0 | Y98: =IF(AE98>AF98,0,IF(AG98<AH98,Q98,IF(AND(AG98>=AH98,AG98<=AF98),(Q98-U98),IF(AND(AH98<=AE98,AF98>=AE98),0,IF(AG98>AF98,((AH98-AE98)*12)*R98,0))))) -> 35763.47 | Z98: =Y98*V98 -> 35763.47 | AA98: 1 | AB98: =Z98*AA98 -> 35763.47 | AC98: =IF(P98>0,0,AB98+W98*AA98)*AA98 -> 35763.47 | AD98: =IF(P98>0,(O98-AB98)/2,IF(AE98>=AH98,(((O98*V98)*AA98)-AC98)/2,((((O98*V98)*AA98)-AB98)+(((O98*V98)*AA98)-AC98))/2)) -> 0 | AE98: =$E98+(($F98-1)/12) -> 2012.666667 | AF98: =($Q$5+1)-($Q$2/12) -> 2018 | AG98: =$K98+(($F98-1)/12) -> 2015.666667 | AH98: =$Q$4+($Q$3/12) -> 2017 | AI98: =$L98+(($M98-1)/12) -> -0.08333333333 | AK98: =+IF((AG98-AH98)>3,((O98-Q98)/(AG98-AH98)),(O98-Q98)/3) -> 0 | AM98: =+AK98+U98 -> 0 | AO98: =+IF(AG98<AH98,-AD98,0) -> 0 | AQ98: =IF(AG98>AH98,IF(AK98>0,IF(P98>0,(O98-AB98)/2,IF(AE98>=AH98,(((O98*V98)*AA98)-AC98)/2,((((O98*V98)*AA98)-AB98)+(((O98*V98)*AA98)-AC98))/2)),0),0) -> 0 | AS98: =+AD98+AO98+(IF(AQ98>0,(AQ98-AD98),0)) -> 0
A99: 109711 | B99: Trct | C99: 5002 | D99: 2000 Kenworth Tractor (Commingle) (U) | E99: 2010 | F99: 6 | G99: 0.33 | I99: S/L | J99: 5 | K99: =E99+J99 -> 2015 | O99: 74038.58 | Q99: =O99-O99*G99 -> 49605.8486 | R99: =Q99/J99/12 -> 826.7641433 | S99: =IF(P99>0,0,IF(OR(AE99>AF99,AG99<AH99),0,IF(AND(AG99>=AH99,AG99<=AF99),R99*((AG99-AH99)*12),IF(AND(AH99<=AE99,AF99>=AE99),((AF99-AE99)*12)*R99,IF(AG99>AF99,12*R99,0))))) -> 0 | T99: =IF(P99=0,0,IF(AND(AI99>=AH99,AI99<=AG99),((AI99-AH99)*12)*R99,0)) -> 0 | U99: =IF(T99>0,T99,S99) -> 0 | V99: 1 | W99: =V99*SUM(S99:T99) -> 0 | Y99: =IF(AE99>AF99,0,IF(AG99<AH99,Q99,IF(AND(AG99>=AH99,AG99<=AF99),(Q99-U99),IF(AND(AH99<=AE99,AF99>=AE99),0,IF(AG99>AF99,((AH99-AE99)*12)*R99,0))))) -> 49605.8486 | Z99: =Y99*V99 -> 49605.8486 | AA99: 1 | AB99: =Z99*AA99 -> 49605.8486 | AC99: =IF(P99>0,0,AB99+W99*AA99)*AA99 -> 49605.8486 | AD99: =IF(P99>0,(O99-AB99)/2,IF(AE99>=AH99,(((O99*V99)*AA99)-AC99)/2,((((O99*V99)*AA99)-AB99)+(((O99*V99)*AA99)-AC99))/2)) -> 24432.7314 | AE99: =$E99+(($F99-1)/12) -> 2010.416667 | AF99: =($Q$5+1)-($Q$2/12) -> 2018 | AG99: =$K99+(($F99-1)/12) -> 2015.416667 | AH99: =$Q$4+($Q$3/12) -> 2017 | AI99: =$L99+(($M99-1)/12) -> -0.08333333333 | AK99: =+IF((AG99-AH99)>3,((O99-Q99)/(AG99-AH99)),(O99-Q99)/3) -> 8144.2438 | AM99: =+AK99+U99 -> 8144.2438 | AO99: =+IF(AG99<AH99,-AD99,0) -> -24432.7314 | AQ99: =IF(AG99>AH99,IF(AK99>0,IF(P99>0,(O99-AB99)/2,IF(AE99>=AH99,(((O99*V99)*AA99)-AC99)/2,((((O99*V99)*AA99)-AB99)+(((O99*V99)*AA99)-AC99))/2)),0),0) -> 0 | AS99: =+AD99+AO99+(IF(AQ99>0,(AQ99-AD99),0)) -> 0

Sheet 2144 Cont, DB Orig
C1: Island Disposal | AD1: 2012-01-01
C2: Depreciation Schedule | O2: =+'2144 Trks Orig'!Q2 -> 12 | P2: Months in first year
C3: 2017-12-31 | O3: =+'2144 Trks Orig'!Q3 -> 0 | P3: Months in second year | AD3: A. | AE3: Purchase date
O4: ='2144 Trks Orig'!Q4 -> 2017 | P4: First year | AD4: B. | AE4: End of Test Period
O5: ='2144 Trks Orig'!Q5 -> 2018 | P5: Second year | AD5: C | AE5: Date fully Depr
AD6: D. | AE6: Beg of Test Period
AD7: E. | AE7: Disposition Date
R8: Disposal | U8: Total | W8: Beginning | X8: Ending | Z8: Allocated | AA8: Allocated
C9: GARBAGE | D9: Date in | F9: Salvage | J9: Year | N9: Asset | Q9: Test | R9: Year | S9: Total | T9: % | U9: Allocated | W9: Accum | X9: Accum | Y9: Branch | Z9: Accum. | AA9: Accum. | AB9: Average
B10: Quantity | D10: Service | F10: Value | H10: Method | I10: Life | J10: Fully | K10: Asset | L10: Mo. | M10: Asset | N10: Disposal | O10: Depr | P10: Monthly | Q10: Year | R10: Depn | S10: Test yr. | T10: Allo. | U10: Test year | W10: Depr | X10: Depr | Y10: Allo. | Z10: Depr. | AA10: Depr. | AB10: Investment | AC10: A. | AD10: B | AE10: C. | AF10: D. | AG10: E.
A11: Codes | B11: No | C11: Asset Classification | D11: Year | E11: Mo | F11: % | G11: - | H11: M | I11: Years | J11: Depr | K11: Cost | L11: - | M11: Cost | N11: - | O11: Cost | P11: Depr | Q11: Depr | R11: - | S11: Depn. | T11: - | U11: Depr. | W11: 2017-01-01 | X11: =+C3 -> 2017-12-31 | Y11: % | Z11: 2017-01-01 | AA11: =+C3 -> 2017-12-31 | AB11: =C3 -> 2017-12-31
C12: Containers | D12: 1998 | E12: 5 | F12: 0 | H12: S/L | I12: 10 | J12: =D12+I12 -> 2008 | M12: 10093 | O12: =M12-M12*F12 -> 10093 | P12: =O12/I12/12 -> 84.10833333 | Q12: =IF(N12>0,0,IF(OR(AC12>AD12,AE12<AF12),0,IF(AND(AE12>=AF12,AE12<=AD12),P12*((AE12-AF12)*12),IF(AND(AF12<=AC12,AD12>=AC12),((AD12-AC12)*12)*P12,IF(AE12>AD12,12*P12,0))))) -> 0 | R12: =IF(N12=0,0,IF(AND(AG12>=AF12,AG12<=AE12),((AG12-AF12)*12)*P12,0)) -> 0 | S12: =IF(R12>0,R12,Q12) -> 0 | T12: 1 | U12: =T12*SUM(Q12:R12) -> 0 | W12: =IF(AC12>AD12,0,IF(AE12<AF12,O12,IF(AND(AE12>=AF12,AE12<=AD12),(O12-S12),IF(AND(AF12<=AC12,AD12>=AC12),0,IF(AE12>AD12,((AF12-AC12)*12)*P12,0))))) -> 10093 | X12: =W12*T12 -> 10093 | Y12: 1 | Z12: =X12*Y12 -> 10093 | AA12: =IF(N12>0,0,Z12+U12*Y12)*Y12 -> 10093 | AB12: =IF(N12>0,(M12-Z12)/2,IF(AC12>=AF12,(((M12*T12)*Y12)-AA12)/2,((((M12*T12)*Y12)-Z12)+(((M12*T12)*Y12)-AA12))/2)) -> 0 | AC12: =$D12+(($E12-1)/12) -> 1998.333333 | AD12: =($O$5+1)-($O$2/12) -> 2018 | AE12: =$J12+(($E12-1)/12) -> 2008.333333 | AF12: =$O$4+($O$3/12) -> 2017 | AG12: =$K12+(($L12-1)/12) -> -0.08333333333
C13: Containers | D13: 1998 | E13: 7 | F13: 0 | H13: S/L | I13: 10 | J13: 2008 | M13: 9888 | O13: 9888 | P13: 82.4 | Q13: 0 | R13: 0 | S13: 0 | T13: 1 | U13: 0 | W13: 9888 | X13: 9888 | Y13: 1 | Z13: 9888 | AA13: 9888 | AB13: 0 | AC13: 1998.5 | AD13: 2018 | AE13: 2008.5 | AF13: 2017 | AG13: -0.08333333333
C14: Containers | D14: 1998 | E14: 9 | F14: 0 | H14: S/L | I14: 10 | J14: 2008 | M14: 9908 | O14: 9908 | P14: 82.56666667 | Q14: 0 | R14: 0 | S14: 0 | T14: 1 | U14: 0 | W14: 9908 | X14: 9908 | Y14: 1 | Z14: 9908 | AA14: 9908 | AB14: 0 | AC14: 1998.666667 | AD14: 2018 | AE14: 2008.666667 | AF14: 2017 | AG14: -0.08333333333
B15: 12 | C15: 12 1 yd containers | D15: 2000 | E15: 7 | F15: 0 | H15: S/L | I15: 10 | J15: 2010 | M15: 6034 | N15: 0 | O15: 6034 | P15: 50.28333333 | Q15: 0 | R15: 0 | S15: 0 | T15: 1 | U15: 0 | W15: 6034 | X15: 6034 | Y15: 1 | Z15: 6034 | AA15: 6034 | AB15: 0 | AC15: 2000.5 | AD15: 2018 | AE15: 2010.5 | AF15: 2017 | AG15: -0.08333333333
B16: 12 | C16: 12 1.5 yd containers | D16: 2000 | E16: 7 | F16: 0 | H16: S/L | I16: 10 | J16: 2010 | M16: 6425 | N16: 0 | O16: 6425 | P16: 53.54166667 | Q16: 0 | R16: 0 | S16: 0 | T16: 1 | U16: 0 | W16: 6425 | X16: 6425 | Y16: 1 | Z16: 6425 | AA16: 6425 | AB16: 0 | AC16: 2000.5 | AD16: 2018 | AE16: 2010.5 | AF16: 2017 | AG16: -0.08333333333
B17: 12 | C17: 12 1 yd containers | D17: 2003 | E17: 1 | F17: 0 | H17: S/L | I17: 10 | J17: 2013 | M17: 4896 | N17: 0 | O17: 4896 | P17: 40.8 | Q17: 0 | R17: 0 | S17: 0 | T17: 1 | U17: 0 | W17: 4896 | X17: 4896 | Y17: 1 | Z17: 4896 | AA17: 4896 | AB17: 0 | AC17: 2003 | AD17: 2018 | AE17: 2013 | AF17: 2017 | AG17: -0.08333333333
B18: 12 | C18: 12 2 yd containers | D18: 2003 | E18: 1 | F18: 0 | H18: S/L | I18: 10 | J18: 2013 | M18: 5962 | N18: 0 | O18: 5962 | P18: 49.68333333 | Q18: 0 | R18: 0 | S18: 0 | T18: 1 | U18: 0 | W18: 5962 | X18: 5962 | Y18: 1 | Z18: 5962 | AA18: 5962 | AB18: 0 | AC18: 2003 | AD18: 2018 | AE18: 2013 | AF18: 2017 | AG18: -0.08333333333
B19: 12 | C19: 12 2 yd containers | D19: 2005 | E19: 7 | F19: 0 | H19: S/L | I19: 10 | J19: 2015 | M19: 7768.32 | N19: 0 | O19: 7768.32 | P19: 64.736 | Q19: 0 | R19: 0 | S19: 0 | T19: 1 | U19: 0 | W19: 7768.32 | X19: 7768.32 | Y19: 1 | Z19: 7768.32 | AA19: 7768.32 | AB19: 0 | AC19: 2005.5 | AD19: 2018 | AE19: 2015.5 | AF19: 2017 | AG19: -0.08333333333
B20: 12 | C20: 12 1 yd containers | D20: 2005 | E20: 9 | F20: 0 | H20: S/L | I20: 10 | J20: 2015 | M20: 6780 | N20: 0 | O20: 6780 | P20: 56.5 | Q20: 0 | R20: 0 | S20: 0 | T20: 1 | U20: 0 | W20: 6780 | X20: 6780 | Y20: 1 | Z20: 6780 | AA20: 6780 | AB20: 0 | AC20: 2005.666667 | AD20: 2018 | AE20: 2015.666667 | AF20: 2017 | AG20: -0.08333333333
B21: 12 | C21: 12 1.5 yd containers | D21: 2005 | E21: 9 | F21: 0 | H21: S/L | I21: 10 | J21: 2015 | M21: 7050.24 | N21: 0 | O21: 7050.24 | P21: 58.752 | Q21: 0 | R21: 0 | S21: 0 | T21: 1 | U21: 0 | W21: 7050.24 | X21: 7050.24 | Y21: 1 | Z21: 7050.24 | AA21: 7050.24 | AB21: 0 | AC21: 2005.666667 | AD21: 2018 | AE21: 2015.666667 | AF21: 2017 | AG21: -0.08333333333
B22: 12 | C22: 1 yd container | D22: 2006 | E22: 8 | F22: 0 | H22: S/L | I22: 10 | J22: 2016 | M22: 5287.68 | N22: 0 | O22: 5287.68 | P22: 44.064 | Q22: 0 | R22: 0 | S22: 0 | T22: 1 | U22: 0 | W22: 5287.68 | X22: 5287.68 | Y22: 1 | Z22: 5287.68 | AA22: 5287.68 | AB22: 0 | AC22: 2006.583333 | AD22: 2018 | AE22: 2016.583333 | AF22: 2017 | AG22: -0.08333333333
B23: 12 | C23: 1.5 yd container | D23: 2006 | E23: 8 | F23: 0 | H23: S/L | I23: 10 | J23: 2016 | M23: 5418.24 | N23: 0 | O23: 5418.24 | P23: 45.152 | Q23: 0 | R23: 0 | S23: 0 | T23: 1 | U23: 0 | W23: 5418.24 | X23: 5418.24 | Y23: 1 | Z23: 5418.24 | AA23: 5418.24 | AB23: 0 | AC23: 2006.583333 | AD23: 2018 | AE23: 2016.583333 | AF23: 2017 | AG23: -0.08333333333
B24: 12 | C24: 2 yd container | D24: 2006 | E24: 9 | F24: 0 | H24: S/L | I24: 10 | J24: 2016 | M24: 5679.36 | N24: 0 | O24: 5679.36 | P24: 47.328 | Q24: 0 | R24: 0 | S24: 0 | T24: 1 | U24: 0 | W24: 5679.36 | X24: 5679.36 | Y24: 1 | Z24: 5679.36 | AA24: 5679.36 | AB24: 0 | AC24: 2006.666667 | AD24: 2018 | AE24: 2016.666667 | AF24: 2017 | AG24: -0.08333333333
B25: 31 | C25: 2 yd container | D25: 2007 | E25: 8 | F25: 0 | H25: S/L | I25: 10 | J25: 2017 | M25: =1894.36+1894.36+2368.58+2842.29+5684.58 -> 14684.17 | N25: 0 | O25: 14684.17 | P25: 122.3680833 | Q25: 856.5765833 | R25: 0 | S25: 856.5765833 | T25: 1 | U25: 856.5765833 | W25: 13827.59342 | X25: 13827.59342 | Y25: 1 | Z25: 13827.59342 | AA25: 14684.17 | AB25: 428.2882917 | AC25: 2007.583333 | AD25: 2018 | AE25: 2017.583333 | AF25: 2017 | AG25: -0.08333333333
B26: 15 | C26: 2 yd container | D26: 2010 | E26: 8 | F26: 0 | H26: S/L | I26: 10 | J26: 2020 | M26: 7314.42 | N26: 0 | O26: 7314.42 | P26: 60.9535 | Q26: 731.442 | R26: 0 | S26: 731.442 | T26: 1 | U26: 731.442 | W26: 4693.4195 | X26: 4693.4195 | Y26: 1 | Z26: 4693.4195 | AA26: 5424.8615 | AB26: 2255.2795 | AC26: 2010.583333 | AD26: 2018 | AE26: 2020.583333 | AF26: 2017 | AG26: -0.08333333333
B27: 15 | C27: 1.5 yd container | D27: 2010 | E27: 8 | F27: 0 | H27: S/L | I27: 10 | J27: 2020 | M27: 7102.46 | N27: 0 | O27: 7102.46 | P27: 59.18716667 | Q27: 710.246 | R27: 0 | S27: 710.246 | T27: 1 | U27: 710.246 | W27: 4557.411833 | X27: 4557.411833 | Y27: 1 | Z27: 4557.411833 | AA27: 5267.657833 | AB27: 2189.925167 | AC27: 2010.583333 | AD27: 2018 | AE27: 2020.583333 | AF27: 2017 | AG27: -0.08333333333
B28: 15 | C28: 2 yd container | D28: 2011 | E28: 12 | F28: 0 | H28: S/L | I28: 10 | J28: 2021 | M28: 7391.25 | N28: 0 | O28: 7391.25 | P28: 61.59375 | Q28: 739.125 | R28: 0 | S28: 739.125 | T28: 1 | U28: 739.125 | W28: 3757.21875 | X28: 3757.21875 | Y28: 1 | Z28: 3757.21875 | AA28: 4496.34375 | AB28: 3264.46875 | AC28: 2011.916667 | AD28: 2018 | AE28: 2021.916667 | AF28: 2017 | AG28: -0.08333333333
B29: 30 | C29: 1 yd w/lids | D29: 2011 | E29: 8 | F29: 0 | H29: S/L | I29: 10 | J29: 2021 | M29: =9610.17+7756.83 -> 17367 | O29: 17367 | P29: 144.725 | Q29: 1736.7 | R29: 0 | S29: 1736.7 | T29: 1 | U29: 1736.7 | W29: 9407.125 | X29: 9407.125 | Y29: 1 | Z29: 9407.125 | AA29: 11143.825 | AB29: 7091.525 | AC29: 2011.583333 | AD29: 2018 | AE29: 2021.583333 | AF29: 2017 | AG29: -0.08333333333
A30: 113799 | B30: 18 | C30: 1.5 yd container | D30: 2014 | E30: 6 | F30: 0 | H30: S/L | I30: 10 | J30: 2024 | M30: 9276.46 | O30: 9276.46 | P30: 77.30383333 | Q30: 927.646 | R30: 0 | S30: 927.646 | T30: 1 | U30: 927.646 | W30: 2396.418833 | X30: 2396.418833 | Y30: 1 | Z30: 2396.418833 | AA30: 3324.064833 | AB30: 6416.218167 | AC30: 2014.416667 | AD30: 2018 | AE30: 2024.416667 | AF30: 2017 | AG30: -0.08333333333
A31: 113798 | B31: 18 | C31: 1 yd container | D31: 2014 | E31: 6 | F31: 0 | H31: S/L | I31: 10 | J31: 2024 | M31: 8669.91 | O31: 8669.91 | P31: 72.24925 | Q31: 866.991 | R31: 0 | S31: 866.991 | T31: 1 | U31: 866.991 | W31: 2239.72675 | X31: 2239.72675 | Y31: 1 | Z31: 2239.72675 | AA31: 3106.71775 | AB31: 5996.68775 | AC31: 2014.416667 | AD31: 2018 | AE31: 2024.416667 | AF31: 2017 | AG31: -0.08333333333
A32: 114392 | B32: 17 | C32: 2 yd container | D32: 2014 | E32: 7 | F32: 0 | H32: S/L | I32: 10 | J32: 2024 | M32: 9582.99 | O32: 9582.99 | P32: 79.85825 | Q32: 958.299 | R32: 0 | S32: 958.299 | T32: 1 | U32: 958.299 | W32: 2395.7475 | X32: 2395.7475 | Y32: 1 | Z32: 2395.7475 | AA32: 3354.0465 | AB32: 6708.093 | AC32: 2014.5 | AD32: 2018 | AE32: 2024.5 | AF32: 2017 | AG32: -0.08333333333
A33: 124519 | B33: 25 | C33: 1 yd container | D33: 2015 | E33: 12 | F33: 0 | H33: S/L | I33: 10 | J33: =D33+I33 -> 2025 | M33: 11680.91 | O33: 11680.91 | P33: 97.34091667 | Q33: 1168.091 | R33: 0 | S33: 1168.091 | T33: 1 | U33: 1168.091 | W33: 1265.431917 | X33: 1265.431917 | Y33: 1 | Z33: 1265.431917 | AA33: 2433.522917 | AB33: 9831.432583 | AC33: 2015.916667 | AD33: 2018 | AE33: 2025.916667 | AF33: 2017 | AG33: -0.08333333333
A34: 124520 | B34: 20 | C34: 2 yd container | D34: 2015 | E34: 12 | F34: 0 | H34: S/L | I34: 10 | J34: =D34+I34 -> 2025 | M34: 10745 | O34: 10745 | P34: 89.54166667 | Q34: 1074.5 | R34: 0 | S34: 1074.5 | T34: 1 | U34: 1074.5 | W34: 1164.041667 | X34: 1164.041667 | Y34: 1 | Z34: 1164.041667 | AA34: 2238.541667 | AB34: 9043.708333 | AC34: 2015.916667 | AD34: 2018 | AE34: 2025.916667 | AF34: 2017 | AG34: -0.08333333333
A35: 124521 | B35: 20 | C35: 1.5 yd container | D35: 2015 | E35: 12 | F35: 0 | H35: S/L | I35: 10 | J35: =D35+I35 -> 2025 | M35: 9767.24 | O35: 9767.24 | P35: 81.39366667 | Q35: 976.724 | R35: 0 | S35: 976.724 | T35: 1 | U35: 976.724 | W35: 1058.117667 | X35: 1058.117667 | Y35: 1 | Z35: 1058.117667 | AA35: 2034.841667 | AB35: 8220.760333 | AC35: 2015.916667 | AD35: 2018 | AE35: 2025.916667 | AF35: 2017 | AG35: -0.08333333333
A37: 169975 | B37: 44 | C37: 1.5 yd container | D37: 2016 | E37: 11 | F37: 0 | H37: S/L | I37: 12 | J37: =D37+I37 -> 2028 | M37: 22819.4 | O37: =M37-M37*F37 -> 22819.4 | P37: =O37/I37/12 -> 158.4680556 | Q37: =IF(N37>0,0,IF(OR(AC37>AD37,AE37<AF37),0,IF(AND(AE37>=AF37,AE37<=AD37),P37*((AE37-AF37)*12),IF(AND(AF37<=AC37,AD37>=AC37),((AD37-AC37)*12)*P37,IF(AE37>AD37,12*P37,0))))) -> 1901.616667 | R37: =IF(N37=0,0,IF(AND(AG37>=AF37,AG37<=AE37),((AG37-AF37)*12)*P37,0)) -> 0 | S37: =IF(R37>0,R37,Q37) -> 1901.616667 | T37: 1 | U37: =T37*SUM(Q37:R37) -> 1901.616667 | W37: =IF(AC37>AD37,0,IF(AE37<AF37,O37,IF(AND(AE37>=AF37,AE37<=AD37),(O37-S37),IF(AND(AF37<=AC37,AD37>=AC37),0,IF(AE37>AD37,((AF37-AC37)*12)*P37,0))))) -> 316.9361111 | X37: =W37*T37 -> 316.9361111 | Y37: 1 | Z37: =X37*Y37 -> 316.9361111 | AA37: =IF(N37>0,0,Z37+U37*Y37)*Y37 -> 2218.552778 | AB37: =IF(N37>0,(M37-Z37)/2,IF(AC37>=AF37,(((M37*T37)*Y37)-AA37)/2,((((M37*T37)*Y37)-Z37)+(((M37*T37)*Y37)-AA37))/2)) -> 21551.65556 | AC37: 2016.833333 | AD37: 2018 | AE37: 2028.833333 | AF37: 2017 | AG37: -0.08333333333
A38: 169976 | B38: 22 | C38: 2 yd container | D38: 2016 | E38: 11 | F38: 0 | H38: S/L | I38: 12 | J38: =D38+I38 -> 2028 | M38: 12799.44 | O38: =M38-M38*F38 -> 12799.44 | P38: =O38/I38/12 -> 88.885 | Q38: =IF(N38>0,0,IF(OR(AC38>AD38,AE38<AF38),0,IF(AND(AE38>=AF38,AE38<=AD38),P38*((AE38-AF38)*12),IF(AND(AF38<=AC38,AD38>=AC38),((AD38-AC38)*12)*P38,IF(AE38>AD38,12*P38,0))))) -> 1066.62 | R38: =IF(N38=0,0,IF(AND(AG38>=AF38,AG38<=AE38),((AG38-AF38)*12)*P38,0)) -> 0 | S38: =IF(R38>0,R38,Q38) -> 1066.62 | T38: 1 | U38: =T38*SUM(Q38:R38) -> 1066.62 | W38: =IF(AC38>AD38,0,IF(AE38<AF38,O38,IF(AND(AE38>=AF38,AE38<=AD38),(O38-S38),IF(AND(AF38<=AC38,AD38>=AC38),0,IF(AE38>AD38,((AF38-AC38)*12)*P38,0))))) -> 177.77 | X38: =W38*T38 -> 177.77 | Y38: 1 | Z38: =X38*Y38 -> 177.77 | AA38: =IF(N38>0,0,Z38+U38*Y38)*Y38 -> 1244.39 | AB38: =IF(N38>0,(M38-Z38)/2,IF(AC38>=AF38,(((M38*T38)*Y38)-AA38)/2,((((M38*T38)*Y38)-Z38)+(((M38*T38)*Y38)-AA38))/2)) -> 12088.36 | AC38: 2016.833333 | AD38: 2018 | AE38: 2028.833333 | AF38: 2017 | AG38: -0.08333333333
A39: 187316 | B39: 20 | C39: 1 yd Commercial Containers | D39: 2017 | E39: 9 | F39: 0 | H39: S/L | I39: 12 | J39: =D39+I39 -> 2029 | M39: 9984.1 | O39: =M39-M39*F39 -> 9984.1 | P39: =O39/I39/12 -> 69.33402778 | Q39: =IF(N39>0,0,IF(OR(AC39>AD39,AE39<AF39),0,IF(AND(AE39>=AF39,AE39<=AD39),P39*((AE39-AF39)*12),IF(AND(AF39<=AC39,AD39>=AC39),((AD39-AC39)*12)*P39,IF(AE39>AD39,12*P39,0))))) -> 277.3361111 | R39: =IF(N39=0,0,IF(AND(AG39>=AF39,AG39<=AE39),((AG39-AF39)*12)*P39,0)) -> 0 | S39: =IF(R39>0,R39,Q39) -> 277.3361111 | T39: 1 | U39: =T39*SUM(Q39:R39) -> 277.3361111 | W39: =IF(AC39>AD39,0,IF(AE39<AF39,O39,IF(AND(AE39>=AF39,AE39<=AD39),(O39-S39),IF(AND(AF39<=AC39,AD39>=AC39),0,IF(AE39>AD39,((AF39-AC39)*12)*P39,0))))) -> 0 | X39: =W39*T39 -> 0 | Y39: 1 | Z39: =X39*Y39 -> 0 | AA39: =IF(N39>0,0,Z39+U39*Y39)*Y39 -> 277.3361111 | AB39: =IF(N39>0,(M39-Z39)/2,IF(AC39>=AF39,(((M39*T39)*Y39)-AA39)/2,((((M39*T39)*Y39)-Z39)+(((M39*T39)*Y39)-AA39))/2)) -> 4853.381944 | AC39: 2017.666667 | AD39: 2018 | AE39: 2029.666667 | AF39: 2017 | AG39: -0.08333333333
A40: 187317 | B40: 23 | C40: 1.5 yd Commercial Containers | D40: 2017 | E40: 9 | F40: 0 | H40: S/L | I40: 12 | J40: =D40+I40 -> 2029 | M40: 11745.04 | O40: =M40-M40*F40 -> 11745.04 | P40: =O40/I40/12 -> 81.56277778 | Q40: =IF(N40>0,0,IF(OR(AC40>AD40,AE40<AF40),0,IF(AND(AE40>=AF40,AE40<=AD40),P40*((AE40-AF40)*12),IF(AND(AF40<=AC40,AD40>=AC40),((AD40-AC40)*12)*P40,IF(AE40>AD40,12*P40,0))))) -> 326.2511111 | R40: =IF(N40=0,0,IF(AND(AG40>=AF40,AG40<=AE40),((AG40-AF40)*12)*P40,0)) -> 0 | S40: =IF(R40>0,R40,Q40) -> 326.2511111 | T40: 1 | U40: =T40*SUM(Q40:R40) -> 326.2511111 | W40: =IF(AC40>AD40,0,IF(AE40<AF40,O40,IF(AND(AE40>=AF40,AE40<=AD40),(O40-S40),IF(AND(AF40<=AC40,AD40>=AC40),0,IF(AE40>AD40,((AF40-AC40)*12)*P40,0))))) -> 0 | X40: =W40*T40 -> 0 | Y40: 1 | Z40: =X40*Y40 -> 0 | AA40: =IF(N40>0,0,Z40+U40*Y40)*Y40 -> 326.2511111 | AB40: =IF(N40>0,(M40-Z40)/2,IF(AC40>=AF40,(((M40*T40)*Y40)-AA40)/2,((((M40*T40)*Y40)-Z40)+(((M40*T40)*Y40)-AA40))/2)) -> 5709.394444 | AC40: 2017.666667 | AD40: 2018 | AE40: 2029.666667 | AF40: 2017 | AG40: -0.08333333333
A41: 187318 | B41: 25 | C41: 2 yd Commercial Containers | D41: 2017 | E41: 9 | F41: 0 | H41: S/L | I41: 12 | J41: =D41+I41 -> 2029 | M41: 13859.26 | O41: =M41-M41*F41 -> 13859.26 | P41: =O41/I41/12 -> 96.24486111 | Q41: =IF(N41>0,0,IF(OR(AC41>AD41,AE41<AF41),0,IF(AND(AE41>=AF41,AE41<=AD41),P41*((AE41-AF41)*12),IF(AND(AF41<=AC41,AD41>=AC41),((AD41-AC41)*12)*P41,IF(AE41>AD41,12*P41,0))))) -> 384.9794444 | R41: =IF(N41=0,0,IF(AND(AG41>=AF41,AG41<=AE41),((AG41-AF41)*12)*P41,0)) -> 0 | S41: =IF(R41>0,R41,Q41) -> 384.9794444 | T41: 1 | U41: =T41*SUM(Q41:R41) -> 384.9794444 | W41: =IF(AC41>AD41,0,IF(AE41<AF41,O41,IF(AND(AE41>=AF41,AE41<=AD41),(O41-S41),IF(AND(AF41<=AC41,AD41>=AC41),0,IF(AE41>AD41,((AF41-AC41)*12)*P41,0))))) -> 0 | X41: =W41*T41 -> 0 | Y41: 1 | Z41: =X41*Y41 -> 0 | AA41: =IF(N41>0,0,Z41+U41*Y41)*Y41 -> 384.9794444 | AB41: =IF(N41>0,(M41-Z41)/2,IF(AC41>=AF41,(((M41*T41)*Y41)-AA41)/2,((((M41*T41)*Y41)-Z41)+(((M41*T41)*Y41)-AA41))/2)) -> 6737.140278 | AC41: 2017.666667 | AD41: 2018 | AE41: 2029.666667 | AF41: 2017 | AG41: -0.08333333333
